Workbook

Sheet Design Regulator
A1: LM5143-Q1 Synchronous Buck Controller Design Tool
O2: http://www.ti.com/product/lm5175
A3: About | C3: xx | F3: = Input Box | O3: TERMS OF USE
A5: Step 1: Operating Specifications
D7: Input Voltage – Min, VIN(min) | E7: 8 | F7: V
D8: Input Voltage – Nom, VIN(nom) | E8: 12 | F8: V
D9: Input Voltage – Max, VIN(max) | E9: 24 | F9: V
D10: Output Voltage, VOUT | E10: 3.3 | F10: V | I10: Output Voltage, VOUT2 | J10: 5 | K10: V
D11: Full Load Output Current, IOUT | E11: 60 | F11: A | I11: Full Load Output Current, IOUT2 | J11: 7 | K11: A
D12: Switching Frequency, FSW | E12: 2100 | F12: kHz
D13: Frequency Set Resistor, RT | E13: =IF('Standard Value Calculator'!O4/1000>288, "N/A",'Standard Value Calculator'!O4/1000) -> 10.5 | F13: kΩ
D14: Ambient Temperature, TA | E14: 25 | F14: °C
A16: Step 2: Current Sense Resistors
D17: Required IOCP Setpoint at VIN(nom) | E17: 65 | F17: A | I17: Required IOCP Setpoint at VIN(nom) | J17: 10 | K17: A
D18: Recommended Sense Resistance | E18: =Rs_ideal*1000 -> 1.985201446 | F18: mΩ | I18: Recommended Sense Resistance | J18: =Rs2_ideal*1000 -> 6.615809034 | K18: mΩ
D19: Sense Resistance, RS | E19: 2.1 | F19: mΩ | I19: Sense Resistance, RS2 | J19: 7 | K19: mΩ
D20: Min Inductor Sat Current, ILO(SAT) | E20: ='Variable Management'!B95 -> 34.76190476 | F20: A | I20: Min Inductor Sat Current, ILO2(SAT) | J20: ='Variable Management'!D95 -> 10.42857143 | K20: A
D21: Max power loss in shunt | E21: ='Variable Management'!B105 -> 2.0668854 | F21: W | I21: Max power loss in shunt RS2 | J21: ='Variable Management'!D105 -> 0.6685264597 | K21: W
D22: VIN(min) | E22: ='Variable Management'!B97 -> 62.61811533 | F22: A | I22: VIN(min) | J22: ='Variable Management'!D97 -> 9.765093216 | K22: A
C23: IOUT(typ) at OCP Inception: | D23: VIN(nom) | E23: ='Variable Management'!B98 -> 60.97963582 | F23: A | H23: IOUT2(typ) at OCP Inception: | I23: VIN(nom) | J23: ='Variable Management'!D98 -> 9.39439562 | K23: A
D24: VIN(max) | E24: ='Variable Management'!B99 -> 59.33257682 | F24: A | I24: VIN(max) | J24: ='Variable Management'!D99 -> 9.022187427 | K24: A
A26: Step 3: Buck Inductances
D27: Ch1 Recommended Inductance | E27: =Lopt*1000000 -> 0.1375 | F27: µH | I27: Ch2 Recommended Inductance | J27: =Lopt2*1000000 -> 0.6944444444 | K27: µH
D28: Ch1 Inductance, LO1 | E28: 0.14 | F28: µH | I28: Ch2 Inductance, LO2 | J28: 0.68 | K28: µH
D29: Ch1 Inductor DCR | E29: 4 | F29: mΩ | I29: Ch2 Inductor DCR | J29: 5 | K29: mΩ
D30: DIL as a % at VIN(nom) | E30: ='Variable Management'!B68*100 -> 28.480579 | F30: % | I30: DIL2 as a % at VIN(nom) | J30: ='Variable Management'!D68*100 -> 29.54788024 | K30: %
A32: Step 4: Output Capacitors
D33: =IF(MODE=1, "Ch1 Output Voltage Ripple Spec", "Output Voltage Ripple Spec") -> Output Voltage Ripple Spec | E33: 10 | F33: mVpk-pk | I33: Ch2 Output Voltage Ripple Spec | J33: 50 | K33: mVpk-pk
D34: =IF(MODE=1, "Ch1 Minimum Output Capacitance", "Minimum Output Capacitance") -> Minimum Output Capacitance | E34: ='Variable Management'!B121 -> 50.85817679 | F34: µF | I34: Ch2 Minimum Output Capacitance | J34: ='Variable Management'!D121 -> 2.462323353 | K34: µF
D35: Output Capacitance (derated), COUT | E35: 100 | F35: µF | I35: Ch2 Output Cap (derated), COUT2 | J35: 100 | K35: µF | L35: =CHOOSE(SCH_MODE, "", "** For Single-Output Operation in 2-Phase Mode, tie MODE to VDDA and use FB1 to set VOUT **", "** For Single-Output Operation in 3-Phase Mode, tie both MODE pins to VDDA. Use FB1 of master IC to set VOUT. Connect FB2 of master IC to AGND. Connect FB2 of slave IC to VDDA to configure it as a slave **", "** For Single-Output Operation in 4-Phase Mode, tie both MODE pins to VDDA. Use FB1 of master IC to set VOUT. Connect FB2 of master IC to AGND. Connect FB2 of slave IC to VDDA to configure it as a slave **") -> ** For Single-Output Operation in 2-Phase Mode, tie MODE to VDDA and use FB1 to set VOUT **
D36: =IF(MODE=1, "Ch1 Maximum Permitted ESR", "Maximum Permitted ESR") -> Maximum Permitted ESR | E36: ='Variable Management'!B125 -> 1.007720262 | F36: mΩ | I36: Ch2 Maximum Permitted ESR | J36: ='Variable Management'!D125 -> 24.16651004 | K36: mΩ
D37: =IF(MODE=1, "Ch1 Output Capacitor ESR", "Output Capacitor ESR") -> Output Capacitor ESR | E37: 2 | F37: mΩ | I37: Ch2 Output Capacitor ESR | J37: 2 | K37: mΩ | L37: =CHOOSE(SCH_MODE, "", "** Tie VCCX to GND if not used **", "** Slave controller (CNTRL2) not shown **","** Slave controller (CNTRL2) not shown **") -> ** Tie VCCX to GND if not used ** | Q37: =IF(SCH_MODE=1, "** Tie VCCX to GND if not used **", "") -> 
D38: Resulting Output Voltage Ripple (max) | E38: ='Variable Management'!B127*1000 -> 17.82910986 | F38: mVpk-pk | I38: Resulting Output Voltage Ripple (max) | J38: ='Variable Management'!D127*1000 -> 4.316025106 | K38: mVpk-pk | L38: =IF(OR(SCH_MODE=3, SCH_MODE=4),"** Tie VCCX to GND if not used **", "") -> 
D39: Output Capacitor RMS Current (max) | E39: ='Variable Management'!B114 -> 2.941955474 | F39: A (rms) | I39: Output Capacitor RMS Current (max) | J39: ='Variable Management'!D114 -> 0.8119761818 | K39: A (rms)
A41: Step 5: Input Capacitors
D42: Input Voltage Ripple Spec | E42: 100 | F42: mVpk-pk
D43: Minimum Input Capacitance | E43: ='Variable Management'!B145 -> 35.71428571 | F43: µF
D44: Input Capacitance, CIN | E44: 60 | F44: µF
D45: Maximum Permitted ESR | E45: ='Variable Management'!B150 -> 1.153311857 | F45: mΩ
D46: Input Capacitor ESR | E46: 2 | F46: mΩ
D47: Resulting Input Voltage Ripple (max) | E47: ='Variable Management'!B155*1000 -> 129.7150422 | F47: mVpk-pk
D48: Input Capacitor RMS Current (max) | E48: ='Variable Management'!B138 -> 15 | F48: A (rms)
A50: Step 6: Soft-start, Hiccup, Dither, DEMB, MODE
D51: Soft-Start Time, tSS | E51: 3 | F51: ms
D52: Soft-Start Capacitance, CSS | E52: =IF(Tss>0.5/1000,Css_u*1000000000,"N/A") -> 100 | F52: nF
D53: Hiccup Fault Time, tRES | E53: 30 | F53: ms
D54: RES Capacitance, CRES | E54: =IF(Tres>1/1000,Cres_u*1000000000,"N/A") -> 470 | F54: nF
D55: Modulating Frequency | E55: 9 | F55: =IF(DITHER=1, "kHz", "") -> kHz
D56: =IF(DITHER=1, "DITH Capacitance, Cd", "*Tie DITH to VDDA") -> DITH Capacitance, Cd | E56: =IF(DITHER=1,IF(E55>0,'Standard Value Calculator'!O22*1000000000,"N/A"),"") -> 10 | F56: =IF(DITHER=1, "nF", "") -> nF
D57: =IF(DEMB=1, "* Tie DEMB to VDDA", "*Tie DEMB to AGND") -> * Tie DEMB to VDDA
D58: =IF(MODE=2, "* Tie MODE to VDDA", "* Tie MODE to AGND") -> * Tie MODE to VDDA
A60: Step 7: Compensation Design
D61: =IF(MODE=1, "Ch1 Load Pole Frequency", "Load Pole Frequency") -> Load Pole Frequency | E61: =Fp_dominant -> 34228.74568 | F61: Hz | I61: Ch2 Load Pole Frequency | J61: =Fp_dominant_Ch2 -> 2770.331714 | K61: Hz
D62: =IF(MODE=1, "Ch1 ESR Zero Frequency", "ESR Zero Frequency") -> ESR Zero Frequency | E62: =Fesr/1000 -> 795.7747164 | F62: kHz | I62: Ch2 ESR Zero Frequency | J62: =Fesr_Ch2/1000 -> 795.7747164 | K62: kHz
D63: =IF(MODE=1, "Ch1 Desired Crossover Frequency", "Desired Crossover Frequency") -> Desired Crossover Frequency | E63: 60 | F63: =" kHz " -> kHz | I63: Ch2 Desired Crossover Frequency | J63: 60 | K63: =" kHz " -> kHz
D64: =IF(MODE=1, "Ch1 Error Amp Pole Frequency", "Error Amp Pole Frequency") -> Error Amp Pole Frequency | E64: =Fp1_u -> 0.2072260376 | F64: Hz | I64: Ch2 Error Amp Pole Frequency | J64: =Fp1_u_Ch2 -> 2.071614636 | K64: Hz
D65: =CHOOSE(Ch1_VOUT, "* Tie FB1 to VDDA for Ch1 3.3V Out", "* Tie FB1 to AGND for Ch1 5V Out", IF(MODE=1, "Ch1 Upper Feedback Resistor", "Upper Feedback Resistor")) -> * Tie FB1 to VDDA for Ch1 3.3V Out | E65: 75 | F65: kΩ | I65: =CHOOSE(Ch2_VOUT, "* Tie FB2 to VDDA for Ch2 3.3V Out", "* Tie FB2 to AGND for Ch2 5V Out", "Ch2 Upper Feedback Resistor") -> * Tie FB2 to AGND for Ch2 5V Out | J65: 115 | K65: kΩ
D66: =IF(Ch1_VOUT=3, IF(MODE=1,"Ch1 Lower Feedback Resistor","Lower Feedback Resistor"),"") ->  | E66: =IF(Vout=Vref,"OPEN",Rfb2_u/1000) -> 16.5 | F66: =IF(Vout=Vref,"","kΩ") -> kΩ | I66: =IF(Ch2_VOUT=3, "Ch2 Lower Feedback Resistor","") ->  | J66: =IF(Vout2=Vref,"OPEN",Rfb4_u/1000) -> 15.8 | K66: =IF(Vout=Vref,"","kΩ") -> kΩ
A68: Compensation Components
B69: Calculated / | C69: Std Values | D69: =C69 -> Std Values | F69: Actual P/Z Frequencies
A70: RC1 | B70: =Rcea1/1000 -> 2.177123706 | C70: ='Standard Value Calculator'!O30 -> 2.15 | D70: =C70 -> 2.15 | E70: kΩ | F70: =Fp1_u -> 0.2072260376 | G70: Hz (FPEA)
A71: CC1 | B71: =Cc1ea*1000000000 -> 12.18388454 | C71: ='Standard Value Calculator'!O31 -> 12 | D71: 12 | E71: nF | F71: =Fz1_u/1000 -> 6.168796251 | G71: kHz (FZCOMP)
A72: CC2 | B72: =IF(Cc2ea<0, "N/A", Cc2ea*1000000000000) -> 60.03333647 | C72: ='Standard Value Calculator'!O32 -> 56 | D72: 56 | E72: pF | F72: =Fp2_u/1000 -> 842.8181914 | G72: kHz (FPCOMP)
A73: RC2 | B73: =Rcea2/1000 -> 21.99114855 | C73: ='Standard Value Calculator'!O34 -> 22.1 | D73: 22.1 | E73: kΩ | F73: =Fp1_u_Ch2 -> 2.071614636 | G73: Hz (FPEA2)
A74: CC3 | B74: =Cc3ea*1000000000 -> 1.20620457 | C74: ='Standard Value Calculator'!O35 -> 1.2 | D74: 1.2 | E74: nF | F74: =Fz1_u_Ch2/1000 -> 6.00131762 | G74: kHz (FZCOMP2)
A75: CC4 | B75: =IF(Cc4ea<0, "N/A", Cc4ea*1000000000000) -> N/A | C75: =IF(1, 'Standard Value Calculator'!O36) -> 0 | D75: 0 | E75: pF | F75: =Fp2_u_Ch2/1000 -> 226.2443439 | G75: kHz (FPCOMP2) | N75: ** Specify Inductor Core Loss ** | O75: 0.15 | P75: W
A77: Efficiency / Power Loss Analyzer
A79: Step 8: Efficiency
F80: =IF(MODE=1, "Ch1 Power MOSFETs", "Power MOSFETs") -> Power MOSFETs | G80: (Q1, Q2) | I80: =IF(MODE=1, "Ch2 Power MOSFETs ", "Power MOSFETs ") -> Power MOSFETs | J80: (Q3, Q4)
E81: BUK9M3R3-40H | H81: IPC50N04S5L-5R5
E82: High-side | F82: Low-side | H82: High-side | I82: Low-side
D83: On-State Resistance, RDS(on) | E83: 3.3 | F83: 3.3 | G83: mΩ | H83: 5.7 | I83: 5.7 | J83: mΩ
D84: Total Gate Charge, QG | E84: 9 | F84: 9 | G84: nC | H84: 9 | I84: 9 | J84: nC
D85: Gate-Drain Charge, QGD | E85: 3.6 | F85: 3.6 | G85: nC | H85: 3.6 | I85: 3.6 | J85: nC
D86: Gate-Source Charge, QGS | E86: 2.7 | F86: 2.7 | G86: nC | H86: 2.7 | I86: 2.7 | J86: nC
D87: Output Charge, QOSS | F87: 6 | G87: nC | I87: 6 | J87: nC
D88: Output Capacitance, COSS | E88: 300 | F88: 300 | G88: pF | H88: 300 | I88: 300 | J88: pF
D89: Gate Resistance, RG | E89: 0.5 | F89: 0.5 | G89: Ω | H89: 0.5 | I89: 0.5 | J89: Ω
D90: Transconductance, gFS | E90: 50 | F90: 50 | G90: S | H90: 50 | I90: 50 | J90: S
D91: Gate-Source Threshold Voltage, VTH | E91: 2.9 | F91: 2.9 | G91: V | H91: 2.9 | I91: 2.9 | J91: V
D92: Body Diode Forward Voltage, VBD | E92: 0.7 | F92: 0.7 | G92: V | H92: 0.7 | I92: 0.7 | J92: V
D93: Body Diode Rev Recovery Charge, QRR | F93: 22 | G93: nC | I93: 22 | J93: nC
D94: Thermal Resistance, θJA | E94: 50 | F94: 50 | G94: °C/W | H94: 50 | I94: 50 | J94: °C/W
A96: External Schottky Diode (if applicable) | E96: =CHOOSE(MODE, "Ch1", "") ->  | F96: =CHOOSE(MODE, "Ch2", "") -> 
D97: Schottky Fwd Voltage, VFWDsch | E97: 0 | F97: 0 | G97: V
D98: Schottky Rev Recovery Charge, QRRsch | E98: 0 | F98: 0 | G98: nC
A102: Step 9: IC Power Loss
D103: IC Power Dissipation | E103: ='Variable Management'!B322 -> 0.378 | F103: W
D104: IC Junction Temperature (estimate) | E104: ='Variable Management'!B324 -> 38.1544 | F104: °C

Sheet BOM & Schematic
A37: ** Tie DEMB to VDDA for FPWM, AGND for DCM ** | I37: =IF(OR(SCH_MODE=3, SCH_MODE=4), "** Slave controller (CNTRL2) not shown **","** Tie VCCX to GND if not used **") -> ** Tie VCCX to GND if not used **
A38: ** Tie MODE to VDDA for Single, AGND for Dual Outputs ** | I38: =IF(OR(SCH_MODE=3, SCH_MODE=4),"** Tie VCCX to GND if not used **", "") -> 
A39: ** For Dual-Output Operation, tie FB1/FB2 to to VDDA for Fixed 3.3V, AGND for Fixed 5V Output **
A40: ** For Single-Output Operation in 2-Phase Mode, tie MODE to VDDA and use FB1 to set VOUT. Connect FB2 to AGND to disable EA of channel 2 **
A41: ** For Single-Output Operation in 3-Phase or 4-Phase Mode, tie all MODE pins to VDDA. Use FB1 of master IC to set VOUT. Connect FB2 of master IC to AGND. Connect FB2 of slave IC to VDDA to configure it as a slave **
A42: =CHOOSE(MODE, "VIN = "&VIN_min&" V to "&VIN_max&" V, VOUT1 = "& Vout &" V, IOUT1 = " &Iout &"A"&", VOUT2 = "& Vout2 &" V, IOUT2 = " &Iout2 & " A, Fsw = " & Fsw/1000 &" kHz, Current Limit = "&ROUNDUP(Ilimit_DC,0)&" A", "VIN = "&VIN_min&" V to "&VIN_max&" V, VOUT = "& Vout &" V, IOUT = " &Iout & " A, Fsw = " & Fsw/1000 &" kHz, Current Limit = "&ROUNDUP(Ilimit_DC,0)&" A") -> VIN = 8 V to 24 V, VOUT = 3.3 V, IOUT = 60 A, Fsw = 2100 kHz, Current Limit = 65 A
A43: High Efficiency Synchronous Buck Regulator BOM
A44: Count | B44: Ref Des | C44: Value | D44: Description | H44: Size | I44: Part Number | J44: MFR
A45: 2 | B45: CBOOT1, CBOOT2 | C45: 0.1 | D45: =C45 -> 0.1 | H45: 0603 | I45: Std | J45: Std
A46: 1 | B46: CC1 | C46: ='Design Regulator'!D71 -> 12 | D46: 12 | H46: 0603 | I46: Std | J46: Std
A47: 1 | B47: CC2 | C47: ='Design Regulator'!D72 -> 56 | D47: 56 | H47: 0603 | I47: Std | J47: Std
A48: 1 | B48: CC3 | C48: =IF(MODE=1, 'Variable Management'!E354, "N/A") -> N/A | D48: =C48 -> N/A | H48: =IF(MODE=1, "0603", "-") -> - | I48: =IF(MODE=1, "Std", "-") -> - | J48: =IF(MODE=1, "Std", "-") -> -
A49: 1 | B49: CC4 | C49: =IF(MODE=1, 'Variable Management'!E355, "N/A") -> N/A | D49: N/A | H49: =IF(MODE=1, "0603", "-") -> - | I49: =IF(MODE=1, "Std", "-") -> - | J49: =IF(MODE=1, "Std", "-") -> -
A50: 1 | B50: CRES | C50: =Cres_u*1000000000 -> 470 | D50: =C50 -> 470 | H50: 0603 | I50: Std | J50: Std
A51: 1 | B51: CDITH | C51: =Cdither*1000000000 -> 10 | D51: =C51 -> 10 | H51: 0603 | I51: Std | J51: Std
A52: =ROUNDUP('Design Regulator'!E44/10,0) -> 6 | B52: CIN | C52: 10 | D52: =C52 -> 10 | H52: 1210 | I52: Std | J52: Std
A53: =ROUNDUP('Design Regulator'!E35/47,0) -> 3 | B53: COUT | C53: 47 | D53: =C53 -> 47 | H53: 1210 | I53: Std | J53: Std
A54: 2 | B54: CSS1, CSS2 | C54: ='Design Regulator'!E52 -> 100 | D54: =C54 -> 100 | H54: 0603 | I54: Std | J54: Std
A55: 3 | B55: CVCC1, CVCC2, CVCCX | C55: 2.2 | D55: 2.2 | H55: 0603 | I55: Std | J55: Std
A56: 1 | B56: CVDDA | C56: 0.47 | D56: 0.47 | H56: 0603 | I56: Std | J56: Std
A57: 2 | B57: DBOOT1, DBOOT2 | C57: See description | D57: Schottky Diode, 60V, 200mA | H57: - | I57: - | J57: Various
A58: 1 | B58: LO1 | C58: ='Design Regulator'!E28 -> 0.14 | D58: ="Inductor, "&Lf*1000000&"µH, "&Rdcr*1000&"mΩ, >"&ROUNDUP(Ilimit_DC*1.3/SCH_MODE,0)&"A" -> Inductor, 0.14µH, 4mΩ, >43A | H58: - | I58: - | J58: Various
A59: 1 | B59: LO2 | C59: =IF(MODE = 1, 'Design Regulator'!J28, 'Design Regulator'!E28) -> 0.14 | D59: =IF(MODE=1, "Inductor, "&Lo_2*1000000&"µH, "&Rdcr2*1000&"mΩ, >"&ROUNDUP(Ilimit2_DC*1.3,0)&"A", "Inductor, "&Lf*1000000&"µH, "&Rdcr*1000&"mΩ, >"&ROUNDUP(Ilimit_DC*1.3/SCH_MODE,0)&"A") -> Inductor, 0.14µH, 4mΩ, >43A | H59: - | I59: - | J59: Various
A60: 2 | B60: Q1, Q2 | C60: See description | D60: ='Design Regulator'!E83 -> 3.3 | H60: Std | I60: ='Design Regulator'!E81 -> BUK9M3R3-40H | J60: -
A61: 2 | B61: Q3, Q4 | C61: See description | D61: ='Design Regulator'!H83 -> 5.7 | H61: Std | I61: =IF(MODE=1, 'Design Regulator'!H81, 'Design Regulator'!E81) -> BUK9M3R3-40H | J61: -
A62: 1 | B62: RC1 | C62: ='Design Regulator'!D70 -> 2.15 | D62: =C62 -> 2.15 | H62: 0603 | I62: Std | J62: Std
A63: 1 | B63: RC2 | C63: =IF(MODE=1, 'Variable Management'!E353, "N/A") -> N/A | D63: =C63 -> N/A | H63: =IF(MODE=1, "0603", "-") -> - | I63: =IF(MODE=1, "Std", "-") -> - | J63: =IF(MODE=1, "Std", "-") -> -
A64: 1 | B64: RS1 | C64: =Rs*1000 -> 2.1 | D64: 2.1 | H64: 0508 | I64: Std | J64: Std
A65: 1 | B65: RS2 | C65: =IF(MODE=1, Rs_Ch2*1000, Rs*1000) -> 2.1 | D65: =C65 -> 2.1 | H65: 0508 | I65: Std | J65: Std
A66: 1 | B66: RT | C66: ='Design Regulator'!E13 -> 10.5 | D66: 10.5 | H66: 0603 | I66: Std | J66: Std
A67: 1 | B67: RFB1 | C67: ='Design Regulator'!E65 -> 75 | D67: 75 | H67: 0603 | I67: Std | J67: Std
A68: 1 | B68: RFB2 | C68: ='Design Regulator'!E66 -> 16.5 | D68: 16.5 | H68: 0603 | I68: Std | J68: Std
A69: 1 | B69: RFB3 | C69: =IF(MODE=1, 'Design Regulator'!J65, "N/A") -> N/A | D69: =C69 -> N/A | H69: =IF(MODE=1, "0603", "-") -> - | I69: =IF(MODE=1, "Std", "-") -> - | J69: =IF(MODE=1, "Std", "-") -> -
A70: 1 | B70: RFB4 | C70: =IF(MODE=1, 'Design Regulator'!J66, "N/A") -> N/A | D70: N/A | H70: =IF(MODE=1, "0603", "-") -> - | I70: =IF(MODE=1, "Std", "-") -> - | J70: =IF(MODE=1, "Std", "-") -> -
A71: 2 | B71: RPGOOD1, RPGOOD2 | C71: 100 | D71: 100 | H71: 0603 | I71: Std | J71: Std
A72: 2 | B72: RPG1, RPG2 | C72: 100 | D72: 100 | H72: 0603 | I72: Std | J72: Std
A73: 1 | B73: RDEMB | C73: 100 | D73: 100 | H73: 0603 | I73: Std | J73: Std
A74: 1 | B74: RVIN | C74: 2.2 | D74: 2.2 | H74: 0603 | I74: Std | J74: Std
A75: 1 | B75: U1 | C75: LM5143-Q1 | D75: IC, LM5143-Q1, Buck PWM Controller, 3.5V–65V Input | H75: VQFN-40 | I75: LM5143QRGWQ1 | J75: TI
A78: NOTES:
A79: ** For information on TI NexFETTM MOSFETs, see ** | D79: http://www.ti.com/nexfet | E79: **
A80: ** Inductor saturation current should be higher than the peak inductor current at the OCP setpoint for all input voltages and operating temperatures **
A81: ** Effective input and output capacitances should be appropriately derated for applied voltage and temperature, particularly with ceramics **

Sheet EVM
A1: LM5143-Q1 Quickstart Design Tool
B6: LM5143-Q1EVM-2100 PCB Layout

Sheet Variable Management (hidden)
A1: EXCEL Variables Names/Calculations
B2: Input from user =
B3: Output =
B4: Constant
A5: Variable Name | B5: Value | C5: STD Units | E5: Notes | I5: Iteration
A6: Step 1: Operational Specs
A7: VIN_min | B7: ='Design Regulator'!E7 -> 8 | C7: V | D7: Minimum input voltage | I7: 1
A8: VIN_nom | B8: ='Design Regulator'!E8 -> 12 | C8: V | D8: Nominal input voltage | K8: =CHOOSE(SCH_MODE, "Efficiency vs. IOUT (Ch1)", "Efficiency vs. IOUT - 2 Ph", "Efficiency vs. IOUT - 3 Ph", "Efficiency vs. IOUT - 4 Ph") -> Efficiency vs. IOUT - 2 Ph | L8: 1 | N8: DITHER Enabled | O8: 1 | T8: Dual Outputs | U8: 1 | W8: FPWM | X8: 1 | Z8: =CHOOSE(SCH_MODE, "Bode Plot (Ch1)", "Bode Plot - 2 Ph", "Bode Plot - 3 Ph", "Bode Plot - 4 Ph") -> Bode Plot - 2 Ph | AA8: 1
A9: VIN_max | B9: ='Design Regulator'!E9 -> 24 | C9: V | D9: Maximum input voltage | K9: =IF(MODE=1, "Efficiency vs. IOUT (Ch2)", "N/A - Do Not Use") -> N/A - Do Not Use | L9: 2 | N9: DITHER Disabled | O9: 2 | T9: Single Output – 2 Phases | U9: 2 | W9: DEM | X9: 2 | Z9: =IF(MODE=1, "Bode Plot (Ch2)", "N/A - Do Not Use") -> N/A - Do Not Use | AA9: 2
K10: PLOT_TYPE | L10: 1 | N10: DITHER Yes/No | O10: 1 | P10: 1 = Yes, 2 = No | T10: Single Output – 3 Phases | U10: 3 | W10: FPWM/DEM | X10: 1 | Z10: BODE_PLOT_TYPE | AA10: 1
A11: Vout | B11: ='Design Regulator'!E10 -> 3.3 | C11: V | D11: Output voltage - channel 1 | T11: Single Output – 4 Phases | U11: 4
A12: Iout | B12: ='Design Regulator'!E11 -> 60 | C12: A | D12: Output current - channel 1 | I12: 1 | T12: Single/Dual Yes/No | U12: 2
A13: Vout2 | B13: ='Design Regulator'!J10 -> 5 | C13: V | D13: Output voltage - channel 2 | I13: 1 | K13: 3.3V | L13: 1 | N13: 3.3V | O13: 1 | T13: MODE (Single/Dual), DUAL = 1, SINGLE = 2 | U13: =IF(U12=1, 1, 2) -> 2 | W13: VCCX Connected | X13: 1
A14: Iout2 | B14: ='Design Regulator'!J11 -> 7 | C14: A | D14: Output current - channel 2 | K14: 5V | L14: 2 | N14: 5V | O14: 2 | T14: SINGLE OUTPUT (1 = YES) | U14: =IF(U12=1, 2, 1) -> 1 | W14: No External VCC | X14: 2
K15: Adjustable | L15: 3 | N15: Adjustable | O15: 3 | T15: Number of Phases | U15: =SCH_MODE -> 2 | W15: Ext_VCC | X15: 1
A16: Rout | B16: =Vout/Iout -> 0.055 | C16: W | D16: Load resistance - Channel 1 | K16: Ch1 Output Setting | L16: =IF(Vout=3.3, 1, IF(Vout=5, 2, 3)) -> 1 | N16: Ch2 Output Setting | O16: =IF(Vout2=3.3, 1, IF(Vout2=5, 2, 3)) -> 2
A17: Rout2 | B17: =Vout2/Iout2 -> 0.7142857143 | C17: W
A18: Pout | B18: =CHOOSE(MODE, Vout*Iout+Vout2*Iout2, Vout*Iout) -> 198 | C18: W | D18: Output power
A20: Efficiency | B20: 0.9 | D20: Estimate of efficiency
A21: Pin | B21: =Pout/Efficiency -> 220 | C21: W | D21: Calculate input power assuming finite efficiency | L21: =Vout -> 3.3
A23: Iin_Vinmin | B23: =Pin/VIN_min -> 27.5 | C23: A
A24: Iin_Vinnom | B24: =Pin/VIN_nom -> 18.33333333 | C24: A | D24: Input currents at min, nom, max Vin
A25: Iin_Vinmax | B25: =Pin/VIN_max -> 9.166666667 | C25: A
A27: Fsw | B27: ='Design Regulator'!E12*1000 -> 2100000 | C27: Hz | D27: Nominal switching frequency - determines RT resistor (SYNCIN must be 80-120% of this)
A28: Tsw | B28: =1/Fsw -> 4.761904762e-07 | C28: sec | D28: Switching period | I28: 1
A29: Vref | B29: 0.6 | C29: V | D29: Reference voltage
A30: Rt | B30: =22*1000/(Fsw/1000000) -> 10476.19048 | C30: W | D30: Frequency set resistor
A33: Step 2: Buck Inductor | B33: Channel 1 | D33: Channel 2
A34: Don1 | B34: =Vout/VIN_nom -> 0.275 | F34: Ideal Duty Cycle at VIN(nom)
A35: Doff1 | B35: =1-34:34 -> 0.725 | F35: Ideal 1- Duty Cycle at VIN(nom)
A37: D_Vinmin | B37: =Vout/VIN_min -> 0.4125 | D37: =Vout2/VIN_min -> 0.625
A38: D_Vinnom | B38: =Vout/VIN_nom -> 0.275 | D38: =Vout2/VIN_nom -> 0.4166666667
A39: D_Vinmax | B39: =Vout/VIN_max -> 0.1375 | D39: =Vout2/VIN_max -> 0.2083333333
A41: L_Vinnom | B41: =(VIN_nom-Vout)*D1_Vinnom/(Fsw*(Iout/Number_of_Phases)*0.35) -> 1.085034014e-07 | C41: H | D41: =(VIN_nom-Vout2)*D2_Vinnom/(Fsw*Iout2*0.35) -> 5.66893424e-07 | E41: H | F41: Calculated inductance for 35% ripple at VIN(nom)
A42: L_slopecomp | B42: =1000*Vout*Rs/24/Fsw -> 1.375e-07 | C42: H | D42: =1000*Vout2*Rs_Ch2/24/Fsw -> 6.944444444e-07 | E42: H | F42: Calculated inductance based on one times inductor downslope
A44: Lopt | B44: =B42 -> 1.375e-07 | C44: H | D44: =D42 -> 6.944444444e-07 | E44: H | F44: min of calculated inductances at VIN(min) and VIN(nom)
A46: Lo | B46: ='Design Regulator'!E28/1000000 -> 1.4e-07 | C46: H | D46: ='Design Regulator'!J28/1000000 -> 6.8e-07 | E46: H | F46: Chosen inductance
A47: Rdcr | B47: ='Design Regulator'!E29/1000 -> 0.004 | C47: W | D47: ='Design Regulator'!J29/1000 -> 0.005 | E47: W | F47: Chosen inductor DCR
A49: Don2 | B49: =(Vout+Iout*(Rdcr+Rs))/(Vin+Iout*Rs) -> 0.3023255814
A50: Doff2 | B50: =1-_Don2 -> 0.6976744186
A52: D_Vinmin_2 | B52: =CHOOSE(MODE, (Vout+Iout*(Rdcr+Rs))/(VIN_min+Iout*Rs), (Vout+Iout/Number_of_Phases*(Rdcr+Rs))/(VIN_min+Iout/Number_of_Phases*Rs)) -> 0.431973211 | D52: =(Vout2+Iout2*(Rdcr2+Rs_Ch2))/(VIN_min+Iout2*Rs_Ch2) -> 0.6316312585 | F52: Duty cycles adjusted for DCR/shunt voltage drops
A53: D_Vinnom_2 | B53: =CHOOSE(MODE, (Vout+Iout*(Rdcr+Rs))/(VIN_nom+Iout*Rs), (Vout+Iout/Number_of_Phases*(Rdcr+Rs))/(VIN_nom+Iout/Number_of_Phases*Rs)) -> 0.2887341457 | D53: =(Vout2+Iout2*(Rdcr2+Rs_Ch2))/(VIN_nom+Iout2*Rs_Ch2) -> 0.4219437298 | F53: need to include RDS(on) later
A54: D_Vinmax_2 | B54: =CHOOSE(MODE, (Vout+Iout*(Rdcr+Rs))/(VIN_max+Iout*Rs), (Vout+Iout/Number_of_Phases*(Rdcr+Rs))/(VIN_max+Iout/Number_of_Phases*Rs)) -> 0.1447450443 | D54: =(Vout2+Iout2*(Rdcr2+Rs_Ch2))/(VIN_max+Iout2*Rs_Ch2) -> 0.2114017215
A56: Iripple_Vinmin | B56: =MAX(0, (VIN_min-Vout)*D1_Vinmin_2/(Fsw*Lf)) -> 6.905694189 | C56: A | D56: =MAX(0.1, (VIN_min-Vout2)*D2_Vinmin_2/(Fsw*Lo_2)) -> 1.326956426 | E56: A
A57: Iripple_Vinnom | B57: =MAX(0, (VIN_nom-Vout)*D1_Vinnom_2/(Fsw*Lf)) -> 8.5441737 | C57: A | D57: =MAX(0, (VIN_nom-Vout2)*D2_Vinnom_2/(Fsw*Lo_2)) -> 2.068351617 | E57: A
A58: Iripple_Vinmax | B58: =MAX(0, (VIN_max-Vout)*D1_Vinmax_2/(Fsw*Lf)) -> 10.19123271 | C58: A | D58: =MAX(0, (VIN_max-Vout2)*D2_Vinmax_2/(Fsw*Lo_2)) -> 2.812768003 | E58: A
A60: Ishunt_rms_Vinmin | B60: =SQRT((Iout/Number_of_Phases)^2+(Iripple_Vinmin^2)/12) -> 30.06616123 | C60: A | D60: =SQRT(Iout2^2+(Iripple2_Vinmin^2)/12) -> 7.010473197 | E60: A
A61: Ishunt_rms_Vinnom | B61: =SQRT((Iout/Number_of_Phases)^2+(Iripple_Vinnom^2)/12) -> 30.10122216 | C61: A | D61: =SQRT(Iout2^2+(Iripple2_Vinnom^2)/12) -> 7.025418602 | E61: A
A62: Ishunt_rms_Vinmax | B62: =SQRT((Iout/Number_of_Phases)^2+(Iripple_Vinmax^2)/12) -> 30.14390655 | C62: A | D62: =SQRT(Iout2^2+(Iripple2_Vinmax^2)/12) -> 7.046935882 | E62: A
A63: Max shunt power loss at full load | B63: =B61^2*Rs -> 1.902775508 | C63: W | D63: =D61^2*Rs -> 0.1036486637 | E63: W | F63: Note this is power loss at full load - not loss near OCP!
A65: Max inductor ripple current | B65: =MAX(B56:B58) -> 10.19123271 | C65: A | D65: =MAX(D56:D58) -> 2.812768003 | E65: A | F65: Ripple current at Vin(max)
B67: =B56/(Iout/Number_of_Phases) -> 0.2301898063 | D67: =D56/Iout2 -> 0.1895652036
A68: % ripple current | B68: =B57/(Iout/Number_of_Phases) -> 0.28480579 | D68: =D57/Iout2 -> 0.2954788024
B69: =B58/(Iout/Number_of_Phases) -> 0.3397077569 | D69: =D58/Iout2 -> 0.4018240004
A71: Inductor copper temerature | B71: 100 | C71: °C | D71: 100 | E71: °C
A72: DCR at hot | B72: =Rdcr*(1+0.0039*(B71-25)) -> 0.00517 | C72: W | D72: =Rdcr2*(1+0.0039*(D71-25)) -> 0.0064625 | E72: W
A75: Step 3: Sense Resistors, Slope Comp, Current Limit
A77: Ilimit_DC | B77: ='Design Regulator'!E17 -> 65 | C77: A | D77: ='Design Regulator'!J17 -> 10 | E77: A | F77: Chosen OCP level - based on output current
A79: Ilimit_inductor_Vinmin | B79: =CHOOSE(MODE, Ilimit_DC+Iripple_Vinmin/2, Ilimit_DC/Number_of_Phases+Iripple_Vinmin/2) -> 35.95284709 | C79: A | D79: =Ilimit2_DC+Iripple2_Vinmin/2 -> 10.66347821 | E79: A | F79: Peak inductor current at current limit inception
A80: Ilimit_inductor_Vinnom | B80: =CHOOSE(MODE, Ilimit_DC+Iripple_Vinnom/2, Ilimit_DC/Number_of_Phases+Iripple_Vinnom/2) -> 36.77208685 | C80: A | D80: =Ilimit2_DC+Iripple2_Vinnom/2 -> 11.03417581 | E80: A
A81: Ilimit_inductor_Vinmax | B81: =CHOOSE(MODE, Ilimit_DC+Iripple_Vinmax/2, Ilimit_DC/Number_of_Phases+Iripple_Vinmax/2) -> 37.59561635 | C81: A | D81: =Ilimit2_DC+Iripple2_Vinmax/2 -> 11.406384 | E81: A
A84: CS threshold_min | B84: 0.066 | C84: V
A85: CS threshold | B85: 0.073 | C85: V
A86: CS threshold_max | B86: 0.08 | C86: V
A88: Shunt required to get OCP at VIN(min) | B88: =Buck_CS_threshold/B79 -> 0.00203043725 | C88: W | D88: =Buck_CS_threshold/D79 -> 0.006845796329 | E88: W
A89: Shunt required to get OCP at VIN(nom) | B89: =Buck_CS_threshold/B80 -> 0.001985201446 | C89: W | D89: =Buck_CS_threshold/D80 -> 0.006615809034 | E89: W
A90: Shunt required to get OCP at VIN(max) | B90: =Buck_CS_threshold/B81 -> 0.001941715739 | C90: W | D90: =Buck_CS_threshold/D81 -> 0.006399924813 | E90: W
A92: Rs_ideal | B92: =B89 -> 0.001985201446 | C92: W | D92: =D89 -> 0.006615809034 | E92: W | F92: Ideal Rs for the required OCP -- based on 73mV CL threshold
A93: Rs | B93: ='Design Regulator'!E19/1000 -> 0.0021 | C93: W | D93: ='Design Regulator'!J19/1000 -> 0.007 | E93: W | F93: Selected (starndard value) current limit sense resistor
A95: Current limit - peak | B95: =Buck_CS_threshold/Rs -> 34.76190476 | C95: A | D95: =Buck_CS_threshold/Rs_Ch2 -> 10.42857143 | E95: A | F95: Peak inductor current limit = min sat current
A97: Iout_OCP_Vinmin | B97: =Number_of_Phases*(Buck_CS_threshold/Rs-Iripple_Vinmin/2) -> 62.61811533 | C97: A | D97: =Buck_CS_threshold/Rs_Ch2-Iripple2_Vinmin/2 -> 9.765093216 | E97: A | F97: Current limit setpoints (i.e. IOUT) after standard components are selected
A98: Iout_OCP_Vinnom | B98: =Number_of_Phases*(Buck_CS_threshold/Rs-Iripple_Vinnom/2) -> 60.97963582 | C98: A | D98: =Buck_CS_threshold/Rs_Ch2-Iripple2_Vinnom/2 -> 9.39439562 | E98: A
A99: Iout_OCP_Vinmax | B99: =Number_of_Phases*(Buck_CS_threshold/Rs-Iripple_Vinmax/2) -> 59.33257682 | C99: A | D99: =Buck_CS_threshold/Rs_Ch2-Iripple2_Vinmax/2 -> 9.022187427 | E99: A
A101: Irms_OCP_Vinmin | B101: =SQRT((Iout_OCP_Vinmin/Number_of_Phases)^2+(Iripple_Vinmin^2)/12) -> 31.37245835 | C101: A | D101: =SQRT(Iout2_OCP_Vinmin^2+(Iripple2_Vinmin^2)/12) -> 9.772603541 | E101: A
A102: Irms_OCP_Vinnom | B102: =SQRT((Iout_OCP_Vinnom/Number_of_Phases)^2+(Iripple_Vinnom^2)/12) -> 30.58941928 | C102: A | D102: =SQRT(Iout2_OCP_Vinnom^2+(Iripple2_Vinnom^2)/12) -> 9.413350923 | E102: A
A103: Irms_OCP_Vinmax | B103: =SQRT((Iout_OCP_Vinmax/Number_of_Phases)^2+(Iripple_Vinmax^2)/12) -> 29.81180588 | C103: A | D103: =SQRT(Iout2_OCP_Vinmax^2+(Iripple2_Vinmax^2)/12) -> 9.058651737 | E103: A
A105: Pshunt_Vinmin | B105: =B101^2*Rs -> 2.0668854 | C105: W | D105: =D101^2*Rs_Ch2 -> 0.6685264597 | E105: W | F105: Max power dissipations in shunt
A106: Pshunt_Vinnom | B106: =B102^2*Rs -> 1.9649964 | C106: W | D106: =D102^2*Rs_Ch2 -> 0.6202782292 | E106: W
A107: Pshunt_Vinmax | B107: =B103^2*Rs -> 1.866361917 | C107: W | D107: =D103^2*Rs_Ch2 -> 0.574414199 | E107: W
A110: Step 4: Output Capacitor
A111: Icoutrms_VINmin | B111: =Iripple_Vinmin/SQRT(12) -> 1.993502199 | C111: A | D111: =Iripple2_Vinmin/SQRT(12) -> 0.3830593247 | E111: A | F111: Output Cap RMS current
A112: Icoutrms_VINnom | B112: =Iripple_Vinnom/SQRT(12) -> 2.466490493 | C112: A | D112: =Iripple2_Vinnom/SQRT(12) -> 0.5970816813 | E112: A
A113: Icoutrms_VINmax | B113: =Iripple_Vinmax/SQRT(12) -> 2.941955474 | C113: A | D113: =Iripple2_Vinmax/SQRT(12) -> 0.8119761818 | E113: A
A114: Max Cout rms current | B114: =MAX(B111:B113) -> 2.941955474 | C114: A | D114: =MAX(D111:D113) -> 0.8119761818 | E114: A
A116: Vripple1 | B116: ='Design Regulator'!E33/1000 -> 0.01 | C116: V | D116: ='Design Regulator'!J33/1000 -> 0.05 | E116: V | F116: Output voltage ripple spec(pk-pk)
A118: Output Ripple Spec (pk-pk) | B118: =Vo1_ripple*1000 -> 10 | C118: mV | D118: =Vo2_ripple*1000 -> 50 | E118: mV | F118: Vout ripple spec at Vin(nom)
A120: Coutmin | B120: =Iripple_Vinnom/(Fsw*8*Vo1_ripple) -> 5.085817679e-05 | C120: F | D120: =Iripple2_Vinnom/(Fsw*8*Vo2_ripple) -> 2.462323353e-06 | E120: F | F120: Minimum output capacitnace | H120: =Vo2_ripple -> 0.05 | I120: 1
A121: Reported Coutmin | B121: =IF(Cout_min*1000000<2, 2.2,Cout_min*1000000) -> 50.85817679 | C121: uF | D121: =IF(Cout2_min*1000000<2, 2.2,Cout2_min*1000000) -> 2.462323353 | E121: uF
A122: Cout | B122: ='Design Regulator'!E35/1000000 -> 0.0001 | C122: F | D122: ='Design Regulator'!J35/1000000 -> 0.0001 | E122: F | F122: Chosen output capacitance | I122: 1
A123: Resrmax | B123: =SQRT((Vo1_ripple/Iripple_Vinnom)^2-(1/(Fsw*Cout*8))^2) -> 0.001007720262 | C123: W | D123: =SQRT((Vo2_ripple/Iripple2_Vinnom)^2-(1/(Fsw*Cout2*8))^2) -> 0.02416651004 | E123: W | F123: Max ESR before ripple exceeds Vripple1 | I123: 1
A125: Reported Cout ESR max | B125: =IF(OR(CoutEsrMax>0.3, CoutEsrMax<0, (ISERROR(CoutEsrMax))), "N/A", CoutEsrMax*1000) -> 1.007720262 | C125: mΩ | D125: =IF(OR(Cout2EsrMax>0.3, Cout2EsrMax<0, (ISERROR(Cout2EsrMax))), "N/A", Cout2EsrMax*1000) -> 24.16651004 | E125: mΩ
A126: CoutEsr | B126: ='Design Regulator'!E37/1000 -> 0.002 | C126: W | D126: ='Design Regulator'!J37/1000 -> 0.002 | E126: W | F126: Chosen ESR | I126: 1 | K126: =ISERROR(CoutEsrMax) -> FALSE | L126: =ISERROR(B125) -> FALSE
A127: Vripple | B127: =Iripple_Vinnom*SQRT(Cout_ESR^2+(1/(8*Fsw*Cout))^2) -> 0.01782910986 | C127: Vp-p | D127: =Iripple2_Vinnom*SQRT(Cout2_ESR^2+(1/(8*Fsw*Cout2))^2) -> 0.004316025106 | E127: Vp-p | L127: =OR(CoutEsrMax>0.3,CoutEsrMax<0) -> FALSE
K128: =OR(TRUE, FALSE, TRUE) -> TRUE
A129: Step 5: Input Capacitor
K130: Two channels operating at full load
A131: Icinrms_VINmin | B131: =SQRT(D1_Vinmin_2*(Iout^2*(1-D1_Vinmin_2)+Iripple_Vinmin^2/12)) -> 29.74991034 | C131: A | D131: =SQRT(D2_Vinmin_2*(Iout2^2*(1-D2_Vinmin_2)+Iripple2_Vinmin^2/12)) -> 3.390231473 | E131: A | F131: Calculate input cap rms current with one output unloaded | K131: =SQRT(Iout^2*D1_Vinmin*(1-D1_Vinmin)+Iout2^2*D2_Vinmin*(1-D2_Vinmin)-2*Iout*Iout2*D1_Vinmin*D2_Vinmin) -> 25.83329973 | L131: A | M131: =SQRT(Iout^2*D1_Vinmin*(1-D1_Vinmin)+Iout2^2*D2_Vinmin*(1-D2_Vinmin)-2*Iout*Iout2*(0.5-D2_Vinmin*(1-D1_Vinmin))) -> 27.79135432 | N131: A
A132: Icinrms_VINnom | B132: =SQRT(D1_Vinnom_2*(Iout^2*(1-D1_Vinnom_2)+Iripple_Vinnom^2/12)) -> 27.22272572 | C132: A | D132: =SQRT(D2_Vinnom_2*(Iout2^2*(1-D2_Vinnom_2)+Iripple2_Vinnom^2/12)) -> 3.478775562 | E132: A | K132: =SQRT(Iout^2*D1_Vinnom*(1-D1_Vinnom)+Iout2^2*D2_Vinnom*(1-D2_Vinnom)-2*Iout*Iout2*D1_Vinnom*D2_Vinnom) -> 25.16763243 | L132: A
A133: Icinrms_VINmax | B133: =SQRT(D1_Vinmax_2*(Iout^2*(1-D1_Vinmax_2)+Iripple_Vinmax^2/12)) -> 21.14026684 | C133: A | D133: =SQRT(D2_Vinmax_2*(Iout2^2*(1-D2_Vinmax_2)+Iripple2_Vinmax^2/12)) -> 2.882398121 | E133: A | K133: =SQRT(Iout^2*D1_Vinmax*(1-D1_Vinmax)+Iout2^2*D2_Vinmax*(1-D2_Vinmax)-2*Iout*Iout2*D1_Vinmax*D2_Vinmax) -> 20.27206445 | L133: A
A134: Max Cin rms current | B134: =MAX(B131:B133, D131:D133) -> 29.74991034 | C134: A | K134: =MAX(K131:K133) -> 25.83329973 | L134: A
F135: =Number_of_Phases*D1_Vinnom -> 0.55 | G135: N*D
A136: Icinrms - multiphase | B136: =Iout*SQRT((D1_Vinnom-F136/Number_of_Phases)*((F136+1)/Number_of_Phases-D1_Vinnom)) -> 14.92481156 | C136: A | F136: =FLOOR(Number_of_Phases*D1_Vinnom,1) -> 0 | G136: floor(N*D)
A137: Icinrms - multiphase - max | B137: =Iout/2/Number_of_Phases -> 15 | C137: A
A138: Final result | B138: =CHOOSE(MODE, B134, B137) -> 15 | C138: A | D138: …report this
A140: Vinripple1 | B140: ='Design Regulator'!E42/1000 -> 0.1 | C140: Vp-p | F140: Input voltage ripple spec (pk-pk)
A142: Cinmin_Vinmax | B142: =Iout/Number_of_Phases*D1_Vinmax*(1-D1_Vinmax)/(Vinripple1*Fsw) -> 1.694196429e-05 | C142: F | F142: Calculate cap at Vinmax and 50% duty cycle (Vin = 2*Vout)
A143: Cinmin_50%D | B143: =MAX(Iout/Number_of_Phases*0.5*(1-0.5)/(Vinripple1*Fsw), Iout2*0.5*(1-0.5)/(Vinripple1*Fsw)) -> 3.571428571e-05 | C143: F | F143: Buck 50% typically worst case
A144: Cinmin | B144: =IF(VIN_max<2*Vout, B142,B143) -> 3.571428571e-05 | C144: F
A145: Reported Cinmin | B145: =IF(Cinmin*1000000<10, 10,Cinmin*1000000) -> 35.71428571 | C145: uF | F145: …report this
A146: Cin | B146: ='Design Regulator'!E44/1000000 -> 6e-05 | C146: F | F146: Input capacitance
A147: CinEsrMax_Vinmax | B147: =-(Iout/Number_of_Phases*D1_Vinmax*(1-D1_Vinmax)/(Cin*Fsw)-Vinripple1)/(Iout/Number_of_Phases+Iripple_Vinmax/2) -> 0.002044796482 | C147: W
A148: CinEsrMax_50%D | B148: =-(Iout/Number_of_Phases*0.5*(1-0.5)/(Cin*Fsw)-Vinripple1)/(Iout/Number_of_Phases+Iripple_Vinmax/2) -> 0.001153311857 | C148: W | F148: Calculate ESR at Vinmax and 50% duty cycle (Vin = 2*Vout)
A149: CinEsrMax | B149: =IF(VIN_max<2*Vout, B147,B148) -> 0.001153311857 | C149: W
A150: Reported Cin ESR max | B150: =IF(OR(CinEsrMax>0.3, CinEsrMax<0), "N/A",CinEsrMax*1000) -> 1.153311857 | C150: mΩ | F150: …report this
A151: RCinEsr | B151: ='Design Regulator'!E46/1000 -> 0.002 | C151: W | F151: Input capacitance series resistance (ESR)
A153: Vinripple2_Vinmax | B153: =Iout/Number_of_Phases*D1_Vinmax_2*(1-D1_Vinmax_2)/(Cin*Fsw)+(Iout/Number_of_Phases +Iripple_Vinmax/2)*RCinEsr -> 0.09966597471 | C153: Vp-p
A154: Vinripple2_50%D | B154: =Iout/Number_of_Phases*0.5*(1-0.5)/(Cin*Fsw)+(Iout/Number_of_Phases +Iripple_Vinmax/2)*RCinEsr -> 0.1297150422 | C154: Vp-p | F154: Calculate ripple at Vinmax and 50% duty cycle (Vin = 2*Vout)
A155: Vinripple2 | B155: =IF(VIN_max<2*Vout, B153,B154) -> 0.1297150422 | C155: Vp-p | F155: …report highest of these
B157: =Iout*D1_Vinmax_2*(1-D1_Vinmax_2)/(Cin*Fsw) -> 0.05894948401 | C157: Vp-p
A159: Step 6a: Soft Start
A160: Tss | B160: ='Design Regulator'!E51/1000 -> 0.003 | C160: s | D160: Soft-start time
A161: Iss | B161: =Cout*Vout/Tss -> 0.11 | C161: A | D161: Load cap current during soft start
A162: Css | B162: =0.00002*Tss/0.6 -> 1e-07 | C162: F
A163: Css_u | B163: ='Standard Value Calculator'!B4 -> 1e-07 | C163: F
A165: Step 6b: Other Components - Dither, Hiccup, DEMB, MODE
A166: Tres | B166: ='Design Regulator'!E53/1000 -> 0.03 | C166: s | D166: Hiccup time
A167: Cres | B167: =0.00002*Tres/1.2 -> 5e-07 | C167: F
A168: Cres_u | B168: ='Standard Value Calculator'!G4 -> 4.7e-07 | C168: F
A170: RPG1/2 | B170: 100 | C170: kΩ
A171: RFB1/2 | C171: W | E171: Tie to VDDA or AGND for 3.3V/5V output, respectively.
A172: R_MODE | C172: W | E172: Tie to VDDA or AGND for Single/Dual operation, respectively.
A173: R_DEMB | C173: W | E173: Tie to VDDA or AGND for FPWM/DEM, respectively.
A175: Dither Modulation Frequency | B175: ='Design Regulator'!E55*1000 -> 9000 | C175: Hz
A176: Cdither_calculated | B176: =10*10^-6/Fdither/0.12 -> 9.259259259e-09 | C176: F
A177: Cdither_stdvalue | B177: ='Standard Value Calculator'!O22 -> 1e-08 | C177: F
A180: Step 7: Compensation
A181: Pi | B181: 3.14159265 | D181: p
A182: CS Amp Gain | B182: 12
A183: Ri | B183: =Rs*CSAmp_gain -> 0.0252 | C183: W | D183: =Rs_Ch2*CSAmp_gain -> 0.084 | E183: W | F183: Current Sense effective resistance = shunt resistor Rs * CS amp gain
A184: gm | B184: 0.0012 | C184: S | F184: Error Amp Transconductance
A186: Se_ext | B186: =B190/Ri*1000 -> 24242424.24 | C186: A/s | D186: =B190/Ri_Ch2*1000 -> 7272727.273 | E186: A/s | F186: Slope Comp Slope - referred to inductor current
A187: Sn | B187: =(Vin-Vout)/Lf -> 62142857.14 | C187: A/s | D187: =(Vin-Vout2)/Lo_2 -> 10294117.65 | E187: A/s | F187: On-time Slope
A188: Sf | B188: =Vout/Lf -> 23571428.57 | C188: A/s | D188: =Vout2/Lo_2 -> 7352941.176 | E188: A/s | F188: Off-time Slope
K189: Tsw | L189: Tsw (us) | M189: Slope comp amplitude
A190: Se_int | B190: =(Fsw/1000)/220*64 -> 610.9090909 | C190: mV/μs | F190: Slope Comp Slope - referred to IC | K190: =Ts -> 4.761904762e-07 | L190: =Ts*1000000 -> 0.4761904762 | M190: =B190*L190 -> 290.9090909 | N190: mV
A191: Sn_int | B191: =Sn*Ri/1000 -> 1566 | C191: mV/μs | D191: =Sn_Ch2*Ri_Ch2/1000 -> 864.7058824 | E191: mV/μs | F191: etc
A192: Sf_int | B192: =Sf*Ri/1000 -> 594 | C192: mV/μs | D192: =Sf_Ch2*Ri_Ch2/1000 -> 617.6470588 | E192: mV/μs | F192: etc
A194: mc_buck | B194: =1+Se_ext/Sn -> 1.390107976 | D194: =1+Se_ext_Ch2/Sn_Ch2 -> 1.706493506 | F194: mc = 1 + Se/Sf for peak current-mode buck
A195: k_buck | B195: =mc_buck*(1-D1_Vinnom_2) -> 0.9887363373 | D195: =mc_buck_Ch2*(1-D2_Vinnom_2) -> 0.9864492715 | F195: mc*(1-d)
A197: mc | B197: =1+Se_ext/Sn -> 1.390107976 | D197: =1+Se_ext_Ch2/Sn_Ch2 -> 1.706493506
A198: k | B198: =mc_buck*(1-D1_Vinnom_2) -> 0.9887363373 | D198: =mc_buck_Ch2*(1-D2_Vinnom_2) -> 0.9864492715
A199: Q | B199: =1/Pi/(k-0.5) -> 0.6512916316 | D199: =1/Pi/(k_Ch2-0.5) -> 0.654353712 | F199: 1/(Pi*(k-0.5)) | H199: Q = 2/Pi = 0.636 gives ideal one-cycle damping
A201: Error Amp (EA)
A202: GBW | B202: 6 | C202: MHz | F202: EA gain-bandwidth product
A203: Cbw | B203: =gm/(2*Pi*GBW*1000000) -> 3.183098865e-11 | C203: F | F203: EA effective bandwidth limiting capacitance = gm/(2*Pi*GBW)
A204: RoEA | B204: 64000000 | C204: W | F204: EA output resistance
A205: AEA | B205: =gm*RoEA -> 76800 | C205: V/V | F205: EA DC gain = gm*RoEA
A206: Afb | B206: =Vref/Vout -> 0.1818181818 | C206: V/V | D206: =Vref/Vout2 -> 0.12 | E206: V/V | F206: Feedback gain from Vout to FB
A207: Acs | B207: =1/Ri -> 39.68253968 | D207: =1/Ri_Ch2 -> 11.9047619 | F207: Acs = 1/Ri
A208: Am_buck | B208: =(Ro/Number_of_Phases)/Ri/((1+Ro/Number_of_Phases*(k-0.5)/(Fsw*Lf))) -> 1.04356321 | D208: =Ro_Ch2/Ri_Ch2/((1+Ro_Ch2*(k_Ch2-0.5)/(Fsw*Lo_2))) -> 6.839259341
A209: Am | B209: =(Ro*Number_of_Phases)/Ri/((1+Ro*Number_of_Phases*(k-0.5)/(Fsw*Lf))) -> 3.690273907 | D209: =Ro_Ch2/Ri_Ch2/((1+Ro_Ch2*(k_Ch2-0.5)/(Fsw*Lo_2))) -> 6.839259341 | F209: Buck modulator gain
A211: Scaling factor to calculate Rcomp - buck | B211: =2*Pi*Ri/gm -> 131.9468913 | F211: 2*Pi*Ri/gm -- scaling factor to calculate Rcomp given desired buck crossover frequency
A212: DC Gain is Adc = AEA*Afb*Am
A214: Ro | B214: =Rout -> 0.055 | C214: W | D214: =Rout2 -> 0.7142857143 | E214: W | F214: Output Resistance
A216: Fp_load_buck | B216: =1/(2*Pi*Ro*Cout)+(k-0.5)/(2*Pi*Fsw*Lf*Cout/Number_of_Phases) -> 34228.74568 | C216: Hz | D216: =1/(2*Pi*Ro_Ch2*Cout2)+(k_Ch2-0.5)/(2*Pi*Fsw*Lo_2*Cout2) -> 2770.331714 | E216: Hz | F216: Buck dominant pole frequency -- note slope comp influence
A217: Fp_dominant | B217: =Fload_u -> 34228.74568 | C217: Hz | D217: =Fload_u_Ch2 -> 2770.331714 | E217: Hz
B218: =Cbw -> 3.183098865e-11
A219: Fp_EA | B219: =1/(2*Pi*(RoEA+Rcea1_u)*Cc1ea_u) -> 0.2072260376 | C219: Hz | D219: =1/(2*Pi*(RoEA+Rcea2_u)*Cc3ea_u) -> 2.071614636 | E219: Hz | F219: Error Amp LF pole -- related to amplifier ouptut resistance and comp cap
A220: Fp_HF | B220: =1/(2*Pi*Rcea1_u*(Cc2ea_u+Cbw)) -> 842818.1914 | C220: Hz | D220: =1/(2*Pi*Rcea2_u*(Cc4ea_u+Cbw)) -> 226244.3439 | E220: Hz | F220: Error Amp HF pole cancels zero related to Output Cap ESR
A221: Fesr | B221: =1/(2*Pi*Cout*Cout_ESR) -> 795774.7164 | C221: Hz | D221: =1/(2*Pi*Cout2*Cout2_ESR) -> 795774.7164 | E221: Hz | F221: Cout ESR zero frequency
A222: F_mod | B222: =Fsw/2 -> 1050000 | C222: Hz | F222: Zero-order sample-and-hold effects of current-mode control modeled as pole at Fsw/2
A224: Desired Crossover Frequency | B224: ='Design Regulator'!E63*1000 -> 60000 | C224: Hz | D224: ='Design Regulator'!J63*1000 -> 60000 | E224: Hz
A225: Rcea1 | B225: =Fcross*Cout/Number_of_Phases*2*Pi*Ri/(gm*Afb) -> 2177.123706 | C225: W | D225: =Fcross_Ch2*Cout2*2*Pi*Ri_Ch2/(gm*Afb_Ch2) -> 21991.14855 | E225: W | F225: This component will largely determine the crossover frequency
A226: Cc1ea, Cc3ea | B226: =10/(Rcea1*Fcross*2*Pi) -> 1.218388454e-08 | C226: F | D226: =10/(Rcea2*Fcross_Ch2*2*Pi) -> 1.20620457e-09 | E226: F | F226: This along with Rcea1 will set a zero at Fcrossover/5 to optimize phase margin
A227: Cc2ea, Cc4ea | B227: =MAX(1/(Rcea1*2*Pi*Fesr)-Cbw, 1/(Rcea1*2*Pi*(Fsw/2))-Cbw) -> 6.003333647e-11 | C227: F | D227: =MAX(1/(Rcea2*2*Pi*Fesr_Ch2)-Cbw, 1/(Rcea2*2*Pi*(Fsw/2))-Cbw) -> -2.273642047e-11 | E227: F | F227: This along with Rcea1 places a pole at the output cap ESR zero
A229: Chosen Compensation Components from the standard value sheet
A230: Rcea1_u | B230: ='Design Regulator'!D70*1000 -> 2150 | C230: W | D230: ='Design Regulator'!D73*1000 -> 22100 | E230: W | F230: =1/(Rcea1*2*Pi*(Fsw/2))-Cbw -> 3.779120874e-11
A231: Cc1ea_u | B231: ='Design Regulator'!D71*0.000000001 -> 1.2e-08 | C231: F | D231: ='Design Regulator'!D74*0.000000001 -> 1.2e-09 | E231: F
A232: Cc2ea_u | B232: ='Design Regulator'!D72*0.000000000001 -> 5.6e-11 | C232: F | D232: ='Design Regulator'!D75*0.000000000001 -> 0 | E232: F
A234: Resulting Pole/Zero Locations | F234: =Cout -> 0.0001 | G234: =Cout_ESR -> 0.002
A235: Fz1 | B235: =1/(2*Pi*Rcea1_u*Cc1ea_u) -> 6168.796251 | C235: Hz | D235: =1/(2*Pi*Rcea2_u*Cc3ea_u) -> 6001.31762 | E235: Hz | F235: This zero is set at or close to the dominant load pole
A236: Fp2 | B236: =1/(2*Pi*Rcea1_u*(Cc1ea_u*(Cc2ea_u+Cbw)/(Cc1ea_u+Cc2ea_u+Cbw))) -> 848986.9877 | C236: Hz | D236: =1/(2*Pi*Rcea2_u*(Cc3ea_u*(Cc4ea_u+Cbw)/(Cc3ea_u+Cc4ea_u+Cbw))) -> 232245.6615 | E236: Hz | F236: This pole cancels the zero from the Output Cap ESR
A238: Rfb1 | B238: ='Design Regulator'!E65*1000 -> 75000 | C238: W | D238: ='Design Regulator'!J65*1000 -> 115000 | E238: W | F238: Upper Feedback Resistance - chosen by user
A239: Rfb2 | B239: =IF(Vout=Vref,100000000,Vref*B238/((Vout-Vref))) -> 16666.66667 | C239: W | D239: =IF(Vout2=Vref,100000000,Vref*D238/((Vout2-Vref))) -> 15681.81818 | E239: W | F239: Lower Feedback Resistance
A240: Rfb2_u | B240: =IF(Vout=Vref,"N/A",'Standard Value Calculator'!O11) -> 16500 | C240: W | D240: =IF(Vout2=Vref,"N/A",'Standard Value Calculator'!O13) -> 15800 | E240: W | F240: Std Value Lower Feedback Resistance
A243: Other Input Variables
A244: Rfets | B244: 0 | C244: W | D244: Series resistance due to FETs
A245: Diode loss eq res | B245: =0.00000002*Fsw*0.6*4/Iripple1 -> 
A246: Fet loss eq res | B246: =_Don2*RdsonTop+Doff2*RdsonBot -> 
A247: cap loss eq res | B247: =B248*Vin^2*Fsw/2/(((Iripple1/SQRT(3))^2)) -> 
A248: Sw cap | B248: 5e-09
A250: Step 8: Efficiency
A251: VAR | B251: 0
A252: Design
A253: Ta | B253: ='Design Regulator'!E14 -> 25 | C253: °C | D253: Ambient Temperature
A254: Components
A255: LTc | B255: =4000/1000000 -> 0.004 | C255: %/°C | D255: Inductor DCR Temp Co
A256: θCA | B256: 20 | C256: °C/W | D256: Inductor Core to Ambient Thermal Resistance
A257: RCinEsr | B257: =RCinEsr -> 0.002 | C257: W | D257: Input Capacitor ESR
A259: Controller Characteristics
... 105 more rows

Sheet Stability Calculations (hidden)
A2: Divider Network & EA Poles/Zeros | E2: Modulator | J2: Power Stage Poles/Zeros | M2: Complex Pole Pair | P2: Total System
B3: Afb1 | C3: =Afb -> 0.1818181818 | D3: V/V | E3: Acs | F3: =Acs -> 39.68253968 | G3: A/V | H3: gm | I3: =gm -> 0.0012 | J3: z_ESR | K3: =Fesr -> 795774.7164 | L3: Hz | M3: p3 | N3: =Fsw/2 -> 1050000 | O3: Hz | P3: Adc | Q3: =Am*Afb*AEA -> 51529.64291 | R3: V/V
B4: EA zero, z1 | C4: =Fz1_u -> 6168.796251 | D4: Hz | E4: Am | F4: =Am -> 3.690273907 | G4: V/V | J4: p_dom | K4: =Fp_dominant -> 34228.74568 | L4: Hz | M4: pterm1 | N4: =Q*pole3 -> 683856.2132 | P4: Crossover | Q4: =AE7 -> 48.69925 | R4: kHz
B5: EA pole, p1 | C5: =Fp1_u -> 0.2072260376 | D5: Hz | E5: Q | F5: =Q -> 0.6512916316 | M5: pterm2 | N5: =pole3^2 -> 1102500000000 | P5: Phase Margin | Q5: =AE9 -> 113.9957656 | R5: °
B6: Aea | C6: =AEA -> 76800 | D6: V/V | E6: mc | F6: =mc -> 1.390107976 | P6: radconv | Q6: =180/Pi -> 57.29577958 | AD6: XOVER SEARCH
B7: EA pole, p2 | C7: =Fp2_u -> 842818.1914 | D7: Hz | E7: k | F7: =k -> 0.9887363373 | AD7: xover | AE7: =SUM(AD12:AD613)/1000 -> 48.69925
AD9: phase margin | AE9: =SUM(AE13:AE613) -> 113.9957656
A10: Freq (Hz) | C10: Power Stage | I10: Error Amplifier | O10: Sampling Double Pole | Q10: System Response | X10: ERROR AMP Response | AA10: PLANT Response
C11: p_dom | E11: z_ESR | G11: z_RHP | I11: p1 | K11: z1 | M11: p2 | O11: p3
C12: Gain(V/V) | D12: Phase(rad) | E12: Gain(V/V) | F12: Phase(rad) | G12: Gain(V/V) | H12: Phase(rad) | I12: Gain(V/V) | J12: Phase(rad) | K12: Gain(V/V) | L12: Phase(rad) | M12: Gain(V/V) | N12: Phase(rad) | O12: Gain(V/V) | P12: Phase(rad) | Q12: Gain (dB) | R12: Phase (°) | S12: Phase Margin (°) | V12: Fsquare | X12: Gain(dB) | Y12: Phase(Deg) | AA12: Gain(dB) | AB12: Phase(Deg)
A13: 1 | B13: =A13/1000 -> 0.001 | C13: =SQRT(1+(A13/pole1)^2) -> 1 | D13: =ATAN(A13/pole1) -> 2.921521019e-05 | E13: =SQRT(1+(A13/Zero1)^2) -> 1 | F13: =ATAN(A13/Zero1) -> 1.25663706e-06 | G13: =IF(VIN_nom>Vout, 1, SQRT(1+(A13/z_RHP)^2)) -> 1 | H13: =IF(VIN_nom>Vout, 0, -ATAN(A13/z_RHP)) -> 0 | I13: =SQRT(1+(A13/Pole2)^2) -> 4.928172343 | J13: =ATAN(A13/Pole2) -> 1.366462407 | K13: =SQRT(1+(A13/Zero2)^2) -> 1.000000013 | L13: =ATAN(A13/Zero2) -> 0.0001621061793 | M13: =SQRT(1+(A13/pole4)^2) -> 1 | N13: =ATAN(A13/pole4) -> 1.18649551e-06 | O13: =SQRT((1-(V13/pterm2))^2+(A13/pterm1)^2) -> 1 | P13: =IF((ATAN((A13/pterm1)/(1-A13^2/pterm2))>0),ATAN((A13/pterm1)/(1-A13^2/pterm2)),PI()+ATAN((A13/pterm1)/(1-A13^2/pterm2))) -> 1.4622957e-06 | Q13: =20*LOG10(((E13*K13*G13)/(C13*I13*O13*M13))*Adc) -> 80.38742503 | R13: =((F13+L13+H13)-(D13+J13+P13+N13))*radconv -> -78.28499455 | S13: =IF(R13>0,R13,R13+180) -> 101.7150054 | U13: =IF(Q13<0,A13,1000000000) -> 1000000000 | V13: =A13^2 -> 1 | X13: =20*LOG10((K13/(I13*M13))*AEA) -> 83.85350677 | Y13: =(L13-(J13+N13))*radconv -> -78.28330886 | AA13: =20*LOG10((E13*G13/(C13*O13))*Acs*Am) -> 43.31316123 | AB13: =(F13+H13-(D13+P13))*radconv -> -0.001685691616 | AD13: =SUM((Q14<0)*(Q13>0))*A13 -> 0 | AE13: =IF(AD13>0,S11,0) -> 0
A14: 1.0965 | B14: =A14/1000 -> 0.0010965 | C14: 1.000000001 | D14: 3.203447797e-05 | E14: 1 | F14: 1.377902536e-06 | G14: 1 | H14: 0 | I14: 5.384988789 | J14: 1.384010688 | K14: 1.000000016 | L14: 0.0001777494253 | M14: 1 | N14: 1.300992327e-06 | O14: 1 | P14: 1.603407235e-06 | Q14: 79.61744672 | R14: -79.28970995 | S14: 100.71029 | U14: =IF(Q14<0,A14,1000000000) -> 1000000000 | V14: =A14^2 -> 1.20231225 | X14: 83.08352847 | Y14: -79.28786159 | AA14: 43.31316123 | AB14: -0.001848360856 | AD14: =SUM((Q15<0)*(Q14>0))*A14 -> 0 | AE14: 0
A15: 1.2023 | B15: 0.0012023 | C15: 1.000000001 | D15: 3.512544721e-05 | E15: 1 | F15: 1.510854737e-06 | G15: 1 | H15: 0 | I15: 5.887425395 | J15: 1.400115287 | K15: 1.000000019 | L15: 0.0001949002586 | M15: 1 | N15: 1.426523552e-06 | O15: 1 | P15: 1.75811812e-06 | Q15: 78.84263448 | R15: -80.21163834 | S15: 99.78836166 | U15: 1000000000 | V15: 1.44552529 | X15: 82.30871623 | Y15: -80.20961163 | AA15: 43.31316123 | AB15: -0.002026707029 | AD15: 0 | AE15: 0
A16: 1.3183 | B16: 0.0013183 | C16: 1.000000001 | D16: 3.851441159e-05 | E16: 1 | F16: 1.656624636e-06 | G16: 1 | H16: 0 | I16: 6.439768636 | J16: 1.414880298 | K16: 1.000000023 | L16: 0.0002137045748 | M16: 1 | N16: 1.564157031e-06 | O16: 1 | P16: 1.927744421e-06 | Q16: 78.06373756 | R16: -81.05673715 | S16: 98.94326285 | U16: 1000000000 | V16: 1.73791489 | X16: 81.52981931 | Y16: -81.05451491 | AA16: 43.31316123 | AB16: -0.002222247256 | AD16: 0 | AE16: 0
A17: 1.4454 | B17: 0.0014454 | C17: 1.000000001 | D17: 4.22276648e-05 | E17: 1 | F17: 1.816343207e-06 | G17: 1 | H17: 0 | I17: 7.046312262 | J17: 1.428397359 | K17: 1.000000027 | L17: 0.0002343082694 | M17: 1 | N17: 1.71496061e-06 | O17: 1 | P17: 2.113602205e-06 | Q17: 77.28190518 | R17: -81.83025014 | S17: 98.16974986 | U17: 1000000000 | V17: 2.08918116 | X17: 80.74798693 | Y17: -81.82781364 | AA17: 43.31316122 | AB17: -0.002436498661 | AD17: 0 | AE17: 0
A18: 1.5849 | B18: 0.0015849 | C18: 1.000000001 | D18: 4.630318661e-05 | E18: 1 | F18: 1.991644076e-06 | G18: 1 | H18: 0 | I18: 7.713268246 | J18: 1.440783633 | K18: 1.000000033 | L18: 0.0002569220802 | M18: 1 | N18: 1.880476734e-06 | O18: 1 | P18: 2.317592455e-06 | Q18: 76.49637423 | R18: -82.5388803 | S18: 97.4611197 | U18: 1000000000 | V18: 2.51190801 | X18: 79.96245598 | Y18: -82.53620865 | AA18: 43.31316122 | AB18: -0.002671652641 | AD18: 0 | AE18: 0
A19: 1.7378 | B19: 0.0017378 | C19: 1.000000001 | D19: 5.077019224e-05 | E19: 1 | F19: 2.183783883e-06 | G19: 1 | H19: 0 | I19: 8.445424455 | J19: 1.452110571 | K19: 1.00000004 | L19: 0.0002817081134 | M19: 1 | N19: 2.061891897e-06 | O19: 1 | P19: 2.541177468e-06 | Q19: 75.70871336 | R19: -83.18671406 | S19: 96.81328594 | U19: 1000000000 | V19: 3.01994884 | X19: 79.17479512 | Y19: -83.18378467 | AA19: 43.31316122 | AB19: -0.002929394888 | AD19: 0 | AE19: 0
A20: 1.9055 | B20: 0.0019055 | C20: 1.000000002 | D20: 5.566958298e-05 | E20: 1 | F20: 2.394521918e-06 | G20: 1 | H20: 0 | I20: 9.249488992 | J20: 1.462470512 | K20: 1.000000048 | L20: 0.0003088933176 | M20: 1 | N20: 2.260867195e-06 | O20: 1 | P20: 2.786404456e-06 | Q20: 74.91878826 | R20: -83.77903146 | S20: 96.22096854 | U20: 1000000000 | V20: 3.63093025 | X20: 78.38487002 | Y20: -83.77581937 | AA20: 43.31316122 | AB20: -0.003212085371 | AD20: 0 | AE20: 0
A21: 2.0893 | B21: 0.0020893 | C21: 1.000000002 | D21: 6.10393386e-05 | E21: 1 | F21: 2.625491809e-06 | G21: 1 | H21: 0 | I21: 10.13169808 | J21: 1.471935231 | K21: 1.000000057 | L21: 0.0003386884305 | M21: 1 | N21: 2.478945069e-06 | O21: 1 | P21: 3.055174406e-06 | Q21: 74.12749835 | R21: -84.31993506 | S21: 95.68006494 | U21: 1000000000 | V21: 4.36517449 | X21: 77.59358011 | Y21: -84.31641314 | AA21: 43.31316122 | AB21: -0.003521915489 | AD21: 0 | AE21: 0
A22: 2.2909 | B22: 0.0022909 | C22: 1.000000002 | D22: 6.692912495e-05 | E22: 1 | F22: 2.878829841e-06 | G22: 1 | H22: 0 | I22: 11.1002139 | J22: 1.480585667 | K22: 1.000000069 | L22: 0.0003713690324 | M22: 1 | N22: 2.718142564e-06 | O22: 1 | P22: 3.349973219e-06 | Q22: 73.33451628 | R22: -84.81404965 | S22: 95.18595035 | U22: 1000000000 | V22: 5.24822281 | X22: 76.80059805 | Y22: -84.8101879 | AA22: 43.31316121 | AB22: -0.003861750918 | AD22: 0 | AE22: 0
A23: 2.5119 | B23: 0.0025119 | C23: 1.000000003 | D23: 7.338568637e-05 | E23: 1 | F23: 3.156546631e-06 | G23: 1 | H23: 0 | I23: 12.16272517 | J23: 1.488484997 | K23: 1.000000083 | L23: 0.0004071944929 | M23: 1 | N23: 2.980358072e-06 | O23: 1 | P23: 3.673140569e-06 | Q23: 72.54052548 | R23: -85.26498281 | S23: 94.73501719 | U23: 1000000000 | V23: 6.30964161 | X23: 76.00660725 | Y23: -85.26074852 | AA23: 43.31316121 | AB23: -0.004234288763 | AD23: 0 | AE23: 0
A24: 2.7542 | B24: 0.0027542 | C24: 1.000000003 | D24: 8.046453176e-05 | E24: 1 | F24: 3.461029791e-06 | G24: 1 | H24: 0 | I24: 13.32836778 | J24: 1.495697815 | K24: 1.0000001 | L24: 0.0004464728133 | M24: 1 | N24: 3.267845934e-06 | O24: 1 | P24: 4.027454817e-06 | Q24: 71.74560413 | R24: -85.67642129 | S24: 94.32357871 | U24: 1000000000 | V24: 7.58561764 | X24: 75.2116859 | Y24: -85.67177856 | AA24: 43.3131612 | AB24: -0.004642731839 | AD24: 0 | AE24: 0
A25: 3.02 | B25: 0.00302 | C25: 1.000000004 | D25: 8.822993458e-05 | E25: 1 | F25: 3.795043921e-06 | G25: 1 | H25: 0 | I25: 14.60772687 | J25: 1.502285824 | K25: 1.00000012 | L25: 0.0004895606267 | M25: 1 | N25: 3.583216441e-06 | O25: 1 | P25: 4.416133014e-06 | Q25: 70.94949086 | R25: -86.05188378 | S25: 93.94811622 | U25: 1000000000 | V25: 9.1204 | X25: 74.41557264 | Y25: -86.04679299 | AA25: 43.3131612 | AB25: -0.005090788668 | AD25: 0 | AE25: 0
A26: 3.3113 | B26: 0.0033113 | C26: 1.000000005 | D26: 9.674032524e-05 | E26: 1 | F26: 4.161102297e-06 | G26: 1 | H26: 0 | I26: 16.01042976 | J26: 1.508296359 | K26: 1.000000144 | L26: 0.0005367821447 | M26: 1 | N26: 3.928842583e-06 | O26: 1 | P26: 4.842099752e-06 | Q26: 70.15308408 | R26: -86.39406733 | S26: 93.60593267 | U26: 1000000000 | V26: 10.96470769 | X26: 73.61916586 | Y26: -86.3884855 | AA26: 43.31316119 | AB26: -0.005581830631 | AD26: 0 | AE26: 0
A27: 3.6308 | B27: 0.0036308 | C27: 1.000000006 | D27: 0.0001060745848 | E27: 1 | F27: 4.562597837e-06 | G27: 1 | H27: 0 | I27: 17.54947831 | J27: 1.513783695 | K27: 1.000000173 | L27: 0.0005885750531 | M27: 1 | N27: 4.307927898e-06 | O27: 1 | P27: 5.309303228e-06 | Q27: 69.3558599 | R27: -86.70606129 | S27: 93.29393871 | U27: 1000000000 | V27: 13.18270864 | X27: 72.82194169 | Y27: -86.69994088 | AA27: 43.31316118 | AB27: -0.006120409097 | AD27: 0 | AE27: 0
A28: 3.9811 | B28: 0.0039811 | C28: 1.000000007 | D28: 0.0001163086728 | E28: 1 | F28: 5.0027978e-06 | G28: 1 | H28: 0 | I28: 19.23739753 | J28: 1.518790805 | K28: 1.000000208 | L28: 0.0006453608265 | M28: 1 | N28: 4.723557275e-06 | O28: 1 | P28: 5.821545411e-06 | Q28: 68.55821802 | R28: -86.99030826 | S28: 93.00969174 | U28: 1000000000 | V28: 15.84915721 | X28: 72.02429982 | Y28: -86.98359735 | AA28: 43.31316117 | AB28: -0.006710906863 | AD28: 0 | AE28: 0
A29: 4.3652 | B29: 0.0043652 | C29: 1.000000008 | D29: 0.0001275302349 | E29: 1 | F29: 5.485472094e-06 | G29: 1 | H29: 0 | I29: 21.08864325 | J29: 1.523359651 | K29: 1.00000025 | L29: 0.0007076257821 | M29: 1 | N29: 5.179290201e-06 | O29: 1 | P29: 6.38321319e-06 | Q29: 67.76017196 | R29: -87.24918993 | S29: 92.75081007 | U29: 1000000000 | V29: 19.05497104 | X29: 71.22625377 | Y29: -87.24183155 | AA29: 43.31316116 | AB29: -0.007358381003 | AD29: 0 | AE29: 0
A30: 4.7863 | B30: 0.0047863 | C30: 1.00000001 | D30: 0.0001398327597 | E30: 1 | F30: 6.01464196e-06 | G30: 1 | H30: 0 | I30: 23.11863871 | J30: 1.527527685 | K30: 1.000000301 | L30: 0.0007758886572 | M30: 1 | N30: 5.67892346e-06 | O30: 1 | P30: 6.998985909e-06 | Q30: 66.96190003 | R30: -87.484828 | S30: 92.515172 | U30: 1000000000 | V30: 22.90866769 | X30: 70.42798185 | Y30: -87.47675977 | AA30: 43.31316115 | AB30: -0.00806822573 | AD30: 0 | AE30: 0
A31: 5.2481 | B31: 0.0052481 | C31: 1.000000012 | D31: 0.0001533243435 | E31: 1 | F31: 6.594956954e-06 | G31: 1 | H31: 0 | I31: 25.34522072 | J31: 1.531330913 | K31: 1.000000362 | L31: 0.0008507492419 | M31: 1 | N31: 6.226847087e-06 | O31: 1 | P31: 7.674274063e-06 | Q31: 66.16322415 | R31: -87.69925754 | S31: 92.30074246 | U31: 1000000000 | V31: 27.54255361 | X31: 69.62930599 | Y31: -87.69041086 | AA31: 43.31316113 | AB31: -0.008846678102 | AD31: 0 | AE31: 0
A32: 5.7544 | B32: 0.0057544 | C32: 1.000000014 | D32: 0.000168116004 | E32: 1 | F32: 7.231192298e-06 | G32: 1 | H32: 0 | I32: 27.78671129 | J32: 1.534800128 | K32: 1.000000435 | L32: 0.0009328235359 | M32: 1 | N32: 6.827569763e-06 | O32: 1 | P32: 8.414634376e-06 | Q32: 65.36440334 | R32: -87.89421431 | S32: 92.10578569 | U32: 1000000000 | V32: 33.11311936 | X32: 68.83048521 | Y32: -87.88451416 | AA32: 43.31316111 | AB32: -0.009700143745 | AD32: 0 | AE32: 0
A33: 6.3096 | B33: 0.0063096 | C33: 1.000000017 | D33: 0.0001843362882 | E33: 1 | F33: 7.928877194e-06 | G33: 1 | H33: 0 | I33: 30.46432831 | J33: 1.537965153 | K33: 1.000000523 | L33: 0.001022824801 | M33: 1 | N33: 7.486312071e-06 | O33: 1 | P33: 9.226500949e-06 | Q33: 64.56531491 | R33: -88.07137381 | S33: 91.92862619 | U33: 1000000000 | V33: 39.81105216 | X33: 68.0313968 | Y33: -88.06073777 | AA33: 43.31316108 | AB33: -0.0106360397 | AD33: 0 | AE33: 0
A34: 6.9183 | B34: 0.0069183 | C34: 1.00000002 | D34: 0.000202119586 | E34: 1 | F34: 8.693792172e-06 | G34: 1 | H34: 0 | I34: 33.40025674 | J34: 1.540851962 | K34: 1.000000629 | L34: 0.00112149872 | M34: 1 | N34: 8.208531887e-06 | O34: 1 | P34: 1.011660034e-05 | Q34: 63.76615184 | R34: -88.23218969 | S34: 91.76781031 | U34: 1000000000 | V34: 47.86287489 | X34: 67.23223376 | Y34: -88.22052757 | AA34: 43.31316106 | AB34: -0.01166212015 | AD34: 0 | AE34: 0
A35: 7.5858 | B35: 0.0075858 | C35: 1.000000025 | D35: 0.0002216207379 | E35: 1 | F35: 9.532597409e-06 | G35: 1 | H35: 0 | I35: 36.62006002 | J35: 1.543485494 | K35: 1.000000756 | L35: 0.001229704446 | M35: 1 | N35: 9.00051764e-06 | O35: 1 | P35: 1.109268272e-05 | Q35: 62.96676798 | R35: -88.3780508 | S35: 91.6219492 | U35: 1000000000 | V35: 57.54436164 | X35: 66.43284993 | Y35: -88.36526348 | AA35: 43.31316102 | AB35: -0.01278731925 | AD35: 0 | AE35: 0
A36: 8.3176 | B36: 0.0083176 | C36: 1.00000003 | D36: 0.0002430004276 | E36: 1 | F36: 1.045220441e-05 | G36: 1 | H36: 0 | I36: 40.15026842 | J36: 1.545887317 | K36: 1.000000909 | L36: 0.001348333552 | M36: 1 | N36: 9.868795055e-06 | O36: 1 | P36: 1.216279071e-05 | Q36: 62.16738124 | R36: -88.51015151 | S36: 91.48984849 | U36: 1000000000 | V36: 69.18246976 | X36: 65.63346324 | Y36: -88.4961306 | AA36: 43.31316098 | AB36: -0.01402090831 | AD36: 0 | AE36: 0
A37: 9.1201 | B37: 0.0091201 | C37: 1.000000035 | D37: 0.0002664456323 | E37: 1 | F37: 1.146065565e-05 | G37: 1 | H37: 0 | I37: 44.02175561 | J37: 1.548078332 | K37: 1.000001093 | L37: 0.001478423502 | M37: 1 | N37: 1.08209577e-05 | O37: 1 | P37: 1.333628301e-05 | Q37: 61.36780467 | R37: -88.62964111 | S37: 91.37035889 | U37: 1000000000 | V37: 83.17622401 | X37: 64.83388672 | Y37: -88.61426744 | AA37: 43.31316092 | AB37: -0.01537367575 | AD37: 0 | AE37: 0
A38: 10 | B38: 0.01 | C38: 1.000000043 | D38: 0.0002921520937 | E38: 1 | F38: 1.25663706e-05 | G38: 1 | H38: 0 | I38: 48.26684436 | J38: 1.550076689 | K38: 1.000001314 | L38: 0.001621060387 | M38: 1 | N38: 1.18649551e-05 | O38: 1 | P38: 1.4622957e-05 | Q38: 60.56817558 | R38: -88.73750909 | S38: 91.26249091 | U38: 1000000000 | V38: 100 | X38: 64.03425769 | Y38: -88.72065217 | AA38: 43.31316086 | AB38: -0.01685691569 | AD38: 0 | AE38: 0
A39: 10.965 | B39: 0.010965 | C39: 1.000000051 | D39: 0.0003203447689 | E39: 1 | F39: 1.377902536e-05 | G39: 1 | H39: 0 | I39: 52.92268348 | J39: 1.551899713 | K39: 1.00000158 | L39: 0.0017774924 | M39: 1 | N39: 1.300992327e-05 | O39: 1 | P39: 1.603407235e-05 | Q39: 59.76831879 | R39: -88.83469009 | S39: 91.16530991 | U39: 1000000000 | V39: 120.231225 | X39: 63.23440098 | Y39: -88.81620648 | AA39: 43.31316079 | AB39: -0.01848360794 | AD39: 0 | AE39: 0
A40: 12.023 | B40: 0.012023 | C40: 1.000000062 | D40: 0.0003512544578 | E40: 1 | F40: 1.510854737e-05 | G40: 1 | H40: 0 | I40: 58.02738817 | J40: 1.553562232 | K40: 1.000001899 | L40: 0.001949000143 | M40: 1 | N40: 1.426523552e-05 | O40: 1 | P40: 1.75811812e-05 | Q40: 58.96849815 | R40: -88.92197414 | S40: 91.07802586 | U40: 1000000000 | V40: 144.552529 | X40: 62.43458043 | Y40: -88.90170707 | AA40: 43.3131607 | AB40: -0.02026706947 | AD40: 0 | AE40: 0
A41: 13.183 | B41: 0.013183 | C41: 1.000000074 | D41: 0.000385144097 | E41: 1 | F41: 1.656624636e-05 | G41: 1 | H41: 0 | I41: 63.62438218 | J41: 1.555078435 | K41: 1.000002283 | L41: 0.002137042527 | M41: 1 | N41: 1.564157031e-05 | O41: 1 | P41: 1.927744421e-05 | Q41: 58.16869028 | R41: -89.00010637 | S41: 90.99989363 | U41: 1000000000 | V41: 173.791489 | X41: 61.63477267 | Y41: -88.9778839 | AA41: 43.31316059 | AB41: -0.02222247148 | AD41: 0 | AE41: 0
A42: 14.454 | B42: 0.014454 | C42: 1.000000089 | D42: 0.0004222766231 | E42: 1 | F42: 1.816343206e-05 | G42: 1 | H42: 0 | I42: 69.75709031 | J42: 1.556460375 | K42: 1.000002745 | L42: 0.002343078449 | M42: 1 | N42: 1.71496061e-05 | O42: 1 | P42: 2.113602205e-05 | Q42: 57.36939858 | R42: -89.06970967 | S42: 90.93029033 | U42: 1000000000 | V42: 208.918116 | X42: 60.8354811 | Y42: -89.04534469 | AA42: 43.31316046 | AB42: -0.02436498518 | AD42: 0 | AE42: 0
A43: 15.849 | B43: 0.015849 | C43: 1.000000107 | D43: 0.0004630318334 | E43: 1 | F43: 1.991644076e-05 | G43: 1 | H43: 0 | I43: 76.48823899 | J43: 1.557722049 | K43: 1.0000033 | L43: 0.002569215206 | M43: 1 | N43: 1.880476734e-05 | O43: 1 | P43: 2.317592455e-05 | Q43: 56.56927715 | R43: -89.13148793 | S43: 90.86851207 | U43: 1000000000 | V43: 251.190801 | X43: 60.03535982 | Y43: -89.10477141 | AA43: 43.3131603 | AB43: -0.02671652453 | AD43: 0 | AE43: 0
A44: 17.378 | B44: 0.017378 | C44: 1.000000129 | D44: 0.0005077018793 | E44: 1 | F44: 2.183783883e-05 | G44: 1 | H44: 0 | I44: 83.86608028 | J44: 1.558872272 | K44: 1.000003968 | L44: 0.002817073757 | M44: 1 | N44: 2.061891897e-05 | O44: 1 | P44: 2.541177468e-05 | Q44: 55.76944909 | R44: -89.185871 | S44: 90.814129 | U44: 1000000000 | V44: 301.994884 | X44: 59.23553195 | Y44: -89.15657705 | AA44: 43.31316011 | AB44: -0.02929394641 | AD44: 0 | AE44: 0
A45: 19.055 | B45: 0.019055 | C45: 1.000000155 | D45: 0.0005566957729 | E45: 1 | F45: 2.394521917e-05 | G45: 1 | H45: 0 | I45: 91.95816799 | J45: 1.559921603 | K45: 1.000004771 | L45: 0.00308892345 | M45: 1 | N45: 2.260867194e-05 | O45: 1 | P45: 2.786404457e-05 | Q45: 54.96937654 | R45: -89.23335826 | S45: 90.76664174 | U45: 1000000000 | V45: 363.093025 | X45: 58.43545962 | Y45: -89.20123741 | AA45: 43.31315989 | AB45: -0.03212085045 | AD45: 0 | AE45: =IF(AD45>0,S43,0) -> 0
A46: 20.893 | B46: 0.020893 | C46: 1.000000186 | D46: 0.0006103933109 | E46: 1 | F46: 2.625491809e-05 | G46: 1 | H46: 0 | I46: 100.8272315 | J46: 1.560878209 | K46: 1.000005735 | L46: 0.003386871484 | M46: 1 | N46: 2.478945069e-05 | O46: 1 | P46: 3.055174406e-05 | Q46: 54.16963401 | R46: -89.27431983 | S46: 90.72568017 | U46: 1000000000 | V46: 436.517449 | X46: 57.63571737 | Y46: -89.23910068 | AA46: 43.31315962 | AB46: -0.03521915059 | AD46: 0 | AE46: 0
A47: 22.909 | B47: 0.022909 | C47: 1.000000224 | D47: 0.0006692911506 | E47: 1 | F47: 2.87882984e-05 | G47: 1 | H47: 0 | I47: 110.5553023 | J47: 1.561750957 | K47: 1.000006896 | L47: 0.003713673422 | M47: 1 | N47: 2.718142563e-05 | O47: 1 | P47: 3.34997322e-05 | Q47: 53.36960908 | R47: -89.30913564 | S47: 90.69086436 | U47: 1000000000 | V47: 524.822281 | X47: 56.83569276 | Y47: -89.27051813 | AA47: 43.31315929 | AB47: -0.03861750351 | AD47: 0 | AE47: 0
A48: 25.119 | B48: 0.025119 | C48: 1.000000269 | D48: 0.0007338567333 | E48: 1 | F48: 3.15654663e-05 | G48: 1 | H48: 0 | I48: 121.2195874 | J48: 1.562546741 | K48: 1.00000829 | L48: 0.004071922649 | M48: 1 | N48: 2.980358071e-05 | O48: 1 | P48: 3.673140569e-05 | Q48: 52.5697563 | R48: -89.33808019 | S48: 90.66191981 | U48: 1000000000 | V48: 630.964161 | X48: 56.03584038 | Y48: -89.29573731 | AA48: 43.3131589 | AB48: -0.04234288016 | AD48: 0 | AE48: 0
A49: 27.542 | B49: 0.027542 | C49: 1.000000324 | D49: 0.0008046451457 | E49: 1.000000001 | F49: 3.461029789e-05 | G49: 1 | H49: 0 | I49: 132.9117706 | J49: 1.563272468 | K49: 1.000009967 | L49: 0.004464698764 | M49: 1.000000001 | N49: 3.267845933e-05 | O49: 1 | P49: 4.027454818e-05 | Q49: 51.76995754 | R49: -89.36140598 | S49: 90.63859402 | U49: 1000000000 | V49: 758.561764 | X49: 55.23604209 | Y49: -89.31497867 | AA49: 43.31315842 | AB49: -0.04642730854 | AD49: 0 | AE49: 0
A50: 30.2 | B50: 0.0302 | C50: 1.000000389 | D50: 0.0008822991191 | E50: 1.000000001 | F50: 3.795043919e-05 | G50: 1 | H50: 0 | I50: 145.738013 | J50: 1.563934645 | K50: 1.000011983 | L50: 0.004895567548 | M50: 1.000000001 | N50: 3.583216439e-05 | O50: 1 | P50: 4.416133015e-05 | Q50: 50.96978648 | R50: -89.37932025 | S50: 90.62067975 | U50: 1000000000 | V50: 912.04 | X50: 54.4358716 | Y50: -89.32841238 | AA50: 43.31315786 | AB50: -0.05090787369 | AD50: 0 | AE50: 0
A51: 33.113 | B51: 0.033113 | C51: 1.000000468 | D51: 0.0009674029536 | E51: 1.000000001 | F51: 4.161102294e-05 | G51: 1 | H51: 0 | I51: 159.7948251 | J51: 1.564538261 | K51: 1.000014407 | L51: 0.005367770408 | M51: 1.000000001 | N51: 3.928842581e-05 | O51: 1 | P51: 4.842099753e-05 | Q51: 50.17000951 | R51: -89.39195811 | S51: 90.60804189 | U51: 1000000000 | V51: 1096.470769 | X51: 53.63609532 | Y51: -89.33613982 | AA51: 43.31315717 | AB51: -0.0558182892 | AD51: 0 | AE51: 0
A52: 36.308 | B52: 0.036308 | C52: 1.000000563 | D52: 0.001060745454 | E52: 1.000000001 | F52: 4.562597834e-05 | G52: 1 | H52: 0 | I52: 175.2124964 | J52: 1.56508894 | K52: 1.000017321 | L52: 0.005885683247 | M52: 1.000000001 | N52: 4.307927895e-05 | O52: 1 | P52: 5.309303229e-05 | Q52: 49.36998667 | R52: -89.39943847 | S52: 90.60056153 | U52: 1000000000 | V52: 1318.270864 | X52: 52.83607329 | Y52: -89.3382344 | AA52: 43.31315635 | AB52: -0.06120406841 | AD52: 0 | AE52: 0
A53: 39.811 | B53: 0.039811 | C53: 1.000000676 | D53: 0.001163086209 | E53: 1.000000001 | F53: 5.002797795e-05 | G53: 1 | H53: 0 | I53: 192.1164917 | J53: 1.565591128 | K53: 1.000020824 | L53: 0.006453519568 | M53: 1.000000001 | N53: 4.723557272e-05 | O53: 1 | P53: 5.821545413e-05 | Q53: 48.57002471 | R53: -89.40182019 | S53: 90.59817981 | U53: 1000000000 | V53: 1584.915721 | X53: 52.03611232 | Y53: -89.33471115 | AA53: 43.31315537 | AB53: -0.06710903888 | AD53: 0 | AE53: 0
A54: 43.652 | B54: 0.043652 | C54: 1.000000813 | D54: 0.001275301664 | E54: 1.000000002 | F54: 5.485472089e-05 | G54: 1 | H54: 0 | I54: 210.6515783 | J54: 1.566049134 | K54: 1.000025036 | L54: 0.007076140894 | M54: 1.000000001 | N54: 5.179290196e-05 | O54: 1 | P54: 6.383213192e-05 | Q54: 47.77005871 | R54: -89.39912424 | S54: 90.60087576 | U54: 1000000000 | V54: 1905.497104 | X54: 51.2361475 | Y54: -89.32554047 | AA54: 43.31315418 | AB54: -0.07358377082 | AD54: 0 | AE54: 0
A55: 47.863 | B55: 0.047863 | C55: 1.000000978 | D55: 0.001398326694 | E55: 1.000000002 | F55: 6.014641953e-05 | G55: 1 | H55: 0 | I55: 230.9721749 | J55: 1.566466787 | K55: 1.0000301 | L55: 0.007758732438 | M55: 1.000000002 | N55: 5.678923454e-05 | O55: 1 | P55: 6.998985912e-05 | Q55: 46.97020233 | R55: -89.39132914 | S55: 90.60867086 | U55: 1000000000 | V55: 2290.866769 | X55: 50.43629255 | Y55: -89.31064693 | AA55: 43.31315275 | AB55: -0.08068220561 | AD55: 0 | AE55: 0
A56: 52.481 | B56: 0.052481 | C56: 1.000001175 | D56: 0.001533242245 | E56: 1.000000002 | F56: 6.594956945e-05 | G56: 1 | H56: 0 | I56: 253.2568288 | J56: 1.566847756 | K56: 1.000036188 | L56: 0.00850728923 | M56: 1.000000002 | N56: 6.226847079e-05 | O56: 1 | P56: 7.674274067e-05 | Q56: 46.17022348 | R56: -89.37836631 | S56: 90.62163369 | U56: 1000000000 | V56: 2754.255361 | X56: 49.63631541 | Y56: -89.28989959 | AA56: 43.31315104 | AB56: -0.08846671288 | AD56: 0 | AE56: 0
A57: 57.544 | B57: 0.057544 | C57: 1.000001413 | D57: 0.001681158472 | E57: 1.000000003 | F57: 7.231192285e-05 | G57: 1 | H57: 0 | I57: 277.6889131 | J57: 1.567195167 | K57: 1.000043507 | L57: 0.00932796751 | M57: 1.000000002 | N57: 6.827569753e-05 | O57: 1.000000001 | P57: 8.414634382e-05 | Q57: 45.37033746 | R57: -89.36012893 | S57: 90.63987107 | U57: 1000000000 | V57: 3311.311936 | X57: 48.83643146 | Y57: -89.26312758 | AA57: 43.31314898 | AB57: -0.09700134762 | AD57: 0 | AE57: 0
A58: 63.096 | B58: 0.063096 | C58: 1.000001699 | D58: 0.001843360815 | E58: 1.000000003 | F58: 7.928877177e-05 | G58: 1 | H58: 0 | I58: 304.4807546 | J58: 1.567512041 | K58: 1.000052307 | L58: 0.01022789492 | M58: 1.000000003 | N58: 7.486312057e-05 | O58: 1.000000001 | P58: 9.226500956e-05 | Q58: 44.57038528 | R58: -89.3364588 | S58: 90.6635412 | U58: 1000000000 | V58: 3981.105216 | X58: 48.03648175 | Y58: -89.23009852 | AA58: 43.3131465 | AB58: -0.1063602786 | AD58: 0 | AE58: 0
A59: 69.183 | B59: 0.069183 | C59: 1.000002043 | D59: 0.002021193135 | E59: 1.000000004 | F59: 8.69379215e-05 | G59: 1 | H59: 0 | I59: 333.8543321 | J59: 1.567801004 | K59: 1.000062886 | L59: 0.01121452175 | M59: 1.000000003 | N59: 8.208531869e-05 | O59: 1.000000001 | P59: 0.0001011660035 | Q59: 43.7705308 | R59: -89.30716017 | S59: 90.69283983 | U59: 1000000000 | V59: 4786.287489 | X59: 47.23663026 | Y59: -89.19053912 | AA59: 43.31314352 | AB59: -0.1166210454 | AD59: 0 | AE59: 0
A60: 75.858 | B60: 0.075858 | C60: 1.000002456 | D60: 0.002216203787 | E60: 1.000000005 | F60: 9.532597381e-05 | G60: 1 | H60: 0 | I60: 366.0654035 | J60: 1.568064571 | K60: 1.000075606 | L60: 0.01229643087 | M60: 1.000000004 | N60: 9.000517616e-05 | O60: 1.000000001 | P60: 0.0001109268273 | Q60: 42.97060428 | R60: -89.27197834 | S60: 90.72802166 | U60: 1000000000 | V60: 5754.436164 | X60: 46.43670732 | Y60: -89.14410536 | AA60: 43.31313993 | AB60: -0.1278729868 | AD60: 0 | AE60: 0
A61: 83.176 | B61: 0.083176 | C61: 1.000002952 | D61: 0.002429999541 | E61: 1.000000005 | F61: 0.0001045220437 | G61: 1 | H61: 0 | I61: 401.3793784 | J61: 1.568304916 | K61: 1.000090896 | L61: 0.01348252669 | M61: 1.000000005 | N61: 9.868795023e-05 | O61: 1.000000001 | P61: 0.0001216279073 | Q61: 42.17080537 | R61: -89.2306241 | S61: 90.7693759 | U61: 1000000000 | V61: 6918.246976 | X61: 45.63691272 | Y61: -89.09041529 | AA61: 43.31313563 | AB61: -0.1402088119 | AD61: 0 | AE61: 0
A62: 91.201 | B62: 0.091201 | C62: 1.00000355 | D62: 0.00266445008 | E62: 1.000000007 | F62: 0.000114606556 | G62: 1 | H62: 0 | I62: 440.1050973 | J62: 1.56852414 | K62: 1.000109281 | L62: 0.01478316878 | M62: 1.000000006 | N62: 0.0001082095766 | O62: 1.000000001 | P62: 0.0001333628304 | Q62: 41.370933 | R62: -89.18273658 | S62: 90.81726342 | U62: 1000000000 | V62: 8317.622401 | X62: 44.83704553 | Y62: -89.02900018 | AA62: 43.31313045 | AB62: -0.1537363999 | AD62: 0 | AE62: 0
A63: 100 | B63: 0.1 | C63: 1.000004268 | D63: 0.002921512708 | E63: 1.000000008 | F63: 0.0001256637053 | G63: 1 | H63: 0 | I63: 482.5658778 | J63: 1.568724069 | K63: 1.000131383 | L63: 0.01620919833 | M63: 1.000000007 | N63: 0.0001186495505 | O63: 1.000000002 | P63: 0.0001462295703 | Q63: 40.5711145 | R63: -89.12791665 | S63: 90.87208335 | U63: 1000000000 | V63: 10000 | X63: 44.03723325 | Y63: -88.95934796 | AA63: 43.31312422 | AB63: -0.1685686854 | AD63: 0 | AE63: 0
A64: 109.65 | B64: 0.10965 | C64: 1.000005131 | D64: 0.003203436841 | E64: 1.000000009 | F64: 0.0001377902528 | G64: 1 | H64: 0 | I64: 529.1332938 | J64: 1.568906443 | K64: 1.000157962 | L64: 0.01777307108 | M64: 1.000000008 | N64: 0.000130099232 | O64: 1.000000002 | P64: 0.0001603407239 | Q64: 39.77116824 | R64: -89.06568535 | S64: 90.93431465 | U64: 1000000000 | V64: 12023.1225 | X64: 43.23729448 | Y64: -88.88084989 | AA64: 43.31311673 | AB64: -0.1848354579 | AD64: 0 | AE64: 0
A65: 120.23 | B65: 0.12023 | C65: 1.000006169 | D65: 0.003512530277 | E65: 1.000000011 | F65: 0.0001510854726 | G65: 1 | H65: 0 | I65: 580.1885709 | J65: 1.569072748 | K65: 1.000189913 | L65: 0.01948755884 | M65: 1.00000001 | N65: 0.0001426523542 | O65: 1.000000002 | P65: 0.0001758118125 | Q65: 38.97135508 | R65: -88.99553471 | S65: 91.00446529 | U65: 1000000000 | V65: 14455.2529 | X65: 42.43749033 | Y65: -88.79286484 | AA65: 43.31310773 | AB65: -0.2026698754 | AD65: 0 | AE65: 0
A66: 131.83 | B66: 0.13183 | C66: 1.000007417 | D66: 0.003851422117 | E66: 1.000000014 | F66: 0.0001656624621 | G66: 1 | H66: 0 | I66: 636.1660167 | J66: 1.569224409 | K66: 1.000228322 | L66: 0.02136720543 | M66: 1.000000012 | N66: 0.0001564157018 | O66: 1.000000003 | P66: 0.0001927744428 | Q66: 38.17165186 | R66: -88.91687077 | S66: 91.08312923 | U66: 1000000000 | V66: 17379.1489 | X66: 41.63779793 | Y66: -88.69464714 | AA66: 43.31309691 | AB66: -0.2222236348 | AD66: 0 | AE66: 0
A67: 144.54 | B67: 0.14454 | C67: 1.000008916 | D67: 0.004222741383 | E67: 1.000000016 | F67: 0.0001816343187 | G67: 1 | H67: 0 | I67: 697.499939 | J67: 1.569362634 | K67: 1.000274464 | L67: 0.02342654091 | M67: 1.000000015 | N67: 0.0001714960594 | O67: 1.000000003 | P67: 0.0002113602213 | Q67: 37.37256536 | R67: -88.82908809 | S67: 91.17091191 | U67: 1000000000 | V67: 20891.8116 | X67: 40.83872443 | Y67: -88.58543966 | AA67: 43.3130839 | AB67: -0.2436484283 | AD67: 0 | AE67: 0
A68: 158.49 | B68: 0.15849 | C68: 1.00001072 | D68: 0.004630285574 | E68: 1.00000002 | F68: 0.000199164405 | G68: 1 | H68: 0 | I68: 764.8176713 | J68: 1.569488825 | K68: 1.00032999 | L68: 0.02568655777 | M68: 1.000000018 | N68: 0.0001880476712 | O68: 1.000000004 | P68: 0.0002317592466 | Q68: 36.57275704 | R68: -88.73129214 | S68: 91.26870786 | U68: 1000000000 | V68: 25119.0801 | X68: 40.03893176 | Y68: -88.46412877 | AA68: 43.31306826 | AB68: -0.2671633685 | AD68: 0 | AE68: 0
A69: 173.78 | B69: 0.17378 | C69: 1.000012888 | D69: 0.005076975607 | E69: 1.000000024 | F69: 0.0002183783848 | G69: 1 | H69: 0 | I69: 838.6017781 | J69: 1.569603865 | K69: 1.000396719 | L69: 0.02816336357 | M69: 1.000000021 | N69: 0.0002061891868 | O69: 1.000000005 | P69: 0.0002541177482 | Q69: 35.77336029 | R69: -88.62278599 | S69: 91.37721401 | U69: 1000000000 | V69: 30199.4884 | X69: 39.23955381 | Y69: -88.329849 | AA69: 43.31304945 | AB69: -0.29293699 | AD69: 0 | AE69: 0
A70: 190.55 | B70: 0.19055 | C70: 1.000015495 | D70: 0.005566900796 | E70: 1.000000029 | F70: 0.0002394521872 | G70: 1 | H70: 0 | I70: 919.5278495 | J70: 1.569708812 | K70: 1.000476962 | L70: 0.030879514 | M70: 1.000000026 | N70: 0.0002260867156 | O70: 1.000000006 | P70: 0.0002786404476 | Q70: 34.97385215 | R70: -88.50258332 | S70: 91.49741668 | U70: 1000000000 | V70: 36309.3025 | X70: 38.44006828 | Y70: -88.18137808 | AA70: 43.31302684 | AB70: -0.3212052429 | AD70: 0 | AE70: 0
A71: 208.93 | B71: 0.20893 | C71: 1.000018629 | D71: 0.006103858062 | E71: 1.000000034 | F71: 0.0002625491749 | G71: 1 | H71: 0 | I71: 1008.22322 | J71: 1.569804483 | K71: 1.000573385 | L71: 0.03385590295 | M71: 1.000000031 | N71: 0.0002478945019 | O71: 1.000000007 | P71: 0.0003055174432 | Q71: 34.17482585 | R71: -88.36976179 | S71: 91.63023821 | U71: 1000000000 | V71: 43651.7449 | X71: 37.64106916 | Y71: -88.01757458 | AA71: 43.31299966 | AB71: -0.3521872065 | AD71: 0 | AE71: 0
A72: 229.09 | B72: 0.22909 | C72: 1.000022397 | D72: 0.006692812571 | E72: 1.000000041 | F72: 0.0002878829761 | G72: 1 | H72: 0 | I72: 1105.508248 | J72: 1.569891765 | K72: 1.000689337 | L72: 0.03711984661 | M72: 1.000000037 | N72: 0.0002718142497 | O72: 1.000000009 | P72: 0.0003349973253 | Q72: 33.37569379 | R72: -88.22310518 | S72: 91.77689482 | U72: 1000000000 | V72: 52482.2281 | X72: 36.84196978 | Y72: -87.83693581 | AA72: 43.31296698 | AB72: -0.3861693672 | AD72: 0 | AE72: 0
A73: 251.19 | B73: 0.25119 | C73: 1.000026927 | D73: 0.007338436916 | E73: 1.00000005 | F73: 0.0003156546526 | G73: 1 | H73: 0 | I73: 1212.155038 | J73: 1.56997135 | K73: 1.000828694 | L73: 0.04069696862 | M73: 1.000000044 | N73: 0.0002980357984 | O73: 1.00000001 | P73: 0.0003673140614 | Q73: 32.57694028 | R73: -88.06146538 | S73: 91.93853462 | U73: 1000000000 | V73: 63096.4161 | X73: 36.04325556 | Y73: -87.63804405 | AA73: 43.31292769 | AB73: -0.4234213301 | AD73: 0 | AE73: 0
A74: 275.42 | B74: 0.27542 | C74: 1.000032372 | D74: 0.008046279543 | E74: 1.00000006 | F74: 0.0003461029652 | G74: 1 | H74: 0 | I74: 1329.080463 | J74: 1.570043927 | K74: 1.000996194 | L74: 0.0446176534 | M74: 1.000000053 | N74: 0.0003267845818 | O74: 1.000000012 | P74: 0.0004027454876 | Q74: 31.77848447 | R74: -87.88347414 | S74: 92.11652586 | U74: 1000000000 | V74: 75856.1764 | X74: 35.24484698 | Y74: -87.4192109 | AA74: 43.31288047 | AB74: -0.4642632366 | AD74: 0 | AE74: 0
A75: 302 | B75: 0.302 | C75: 1.000038922 | D75: 0.008822764549 | E75: 1.000000072 | F75: 0.0003795043739 | G75: 1 | H75: 0 | I75: 1457.346165 | J75: 1.570110148 | K75: 1.001197631 | L75: 0.04891701179 | M75: 1.000000064 | N75: 0.0003583216287 | O75: 1.000000015 | P75: 0.0004416133092 | Q75: 30.97994635 | R75: -87.6875427 | S75: 92.3124573 | U75: 1000000000 | V75: 91204 | X75: 34.44636566 | Y75: -87.17847694 | AA75: 43.31282366 | AB75: -0.5090657527 | AD75: 0 | AE75: 0
A76: 331.13 | B76: 0.33113 | C76: 1.000046792 | D76: 0.009673730783 | E76: 1.000000087 | F76: 0.0004161102057 | G76: 1 | H76: 0 | I76: 1597.917273 | J76: 1.570170512 | K76: 1.001439639 | L76: 0.05362675331 | M76: 1.000000077 | N76: 0.0003928842381 | O76: 1.000000018 | P76: 0.0004842099855 | Q76: 30.18214589 | R76: -87.47223331 | S76: 92.52776669 | U76: 1000000000 | V76: 109647.0769 | X76: 33.64863346 | Y76: -86.91406754 | AA76: 43.31275541 | AB76: -0.5581657766 | AD76: 0 | AE76: 0
A77: 363.08 | B77: 0.36308 | C77: =SQRT(1+(A77/pole1)^2) -> 1.000056258 | D77: =ATAN(A77/pole1) -> 0.0106070607 | E77: =SQRT(1+(A77/Zero1)^2) -> 1.000000104 | F77: =ATAN(A77/Zero1) -> 0.0004562597521 | G77: =IF(VIN_nom>Vout, 1, SQRT(1+(A77/z_RHP)^2)) -> 1 | H77: =IF(VIN_nom>Vout, 0, -ATAN(A77/z_RHP)) -> 0 | I77: =SQRT(1+(A77/Pole2)^2) -> 1752.096712 | J77: =ATAN(A77/Pole2) -> 1.570225582 | K77: =SQRT(1+(A77/Zero2)^2) -> 1.001730606 | L77: =ATAN(A77/Zero2) -> 0.05878968816 | M77: =SQRT(1+(A77/pole4)^2) -> 1.000000093 | N77: =ATAN(A77/pole4) -> 0.0004307927632 | O77: =SQRT((1-(V77/pterm2))^2+(A77/pterm1)^2) -> 1.000000021 | P77: =IF((ATAN((A77/pterm1)/(1-A77^2/pterm2))>0),ATAN((A77/pterm1)/(1-A77^2/pterm2)),PI()+ATAN((A77/pterm1)/(1-A77^2/pterm2))) -> 0.0005309303364 | Q77: =20*LOG10(((E77*K77*G77)/(C77*I77*O77*M77))*Adc) -> 29.3845113 | R77: =((F77+L77+H77)-(D77+J77+P77+N77))*radconv -> -87.23559855 | S77: =IF(R77>0,R77,R77+180) -> 92.76440145 | U77: 1000000000 | V77: 131827.0864 | X77: =20*LOG10((K77/(I77*M77))*AEA) -> 32.85108096 | Y77: =(L77-(J77+N77))*radconv -> -86.62358043 | AA77: =20*LOG10((E77*G77/(C77*O77))*Acs*Am) -> 43.31267332 | AB77: =(F77+H77-(D77+P77))*radconv -> -0.6120181213 | AD77: 0 | AE77: =IF(AD77>0,S75,0) -> 0
A78: 398.11 | B78: =A78/1000 -> 0.39811 | C78: 1.000067636 | D78: 0.01163034291 | E78: 1.000000125 | F78: 0.0005002797382 | G78: 1 | H78: 0 | I78: 1921.139151 | J78: 1.570275802 | K78: 1.00208029 | L78: 0.06444671924 | M78: 1.000000112 | N78: 0.0004723556924 | O78: 1.000000026 | P78: 0.0005821545591 | Q78: 28.58742904 | R78: -86.97577586 | S78: 93.02422414 | U78: =IF(Q78<0,A78,1000000000) -> 1000000000 | V78: =A78^2 -> 158491.5721 | X78: 32.05409738 | Y78: -86.30471521 | AA78: 43.31257463 | AB78: -0.6710606456 | AD78: =SUM((Q79<0)*(Q78>0))*A78 -> 0 | AE78: 0
A79: 436.52 | B79: 0.43652 | C79: 1.000081316 | D79: 0.01275233224 | E79: 1.00000015 | F79: 0.0005485471544 | G79: 1 | H79: 0 | I79: 2106.492284 | J79: 1.570321604 | K79: 1.002500546 | L79: 0.07064483273 | M79: 1.000000134 | N79: 0.0005179289738 | O79: 1.000000031 | P79: 0.0006383213426 | Q79: 27.79093115 | R79: -86.69062337 | S79: 93.30937663 | U79: 1000000000 | V79: 190549.7104 | X79: 31.25771814 | Y79: -85.95482487 | AA79: 43.31245599 | AB79: -0.7357984994 | AD79: 0 | AE79: 0
A80: 478.63 | B80: 0.47863 | C80: 1.000097761 | D80: 0.01398236477 | E80: 1.000000181 | F80: 0.0006014641235 | G80: 1 | H80: 0 | I80: 2309.700318 | J80: 1.57036337 | K80: 1.003005501 | L80: 0.07743374534 | M80: 1.000000161 | N80: 0.000567892285 | O80: 1.000000037 | P80: 0.0006998986221 | Q80: 26.99524702 | R80: -86.37787491 | S80: 93.62212509 | U80: 1000000000 | V80: 229086.6769 | X80: 30.46217661 | Y80: -85.57110454 | AA80: 43.31231338 | AB80: -0.8067703713 | AD80: 0 | AE80: 0
A81: 524.81 | B81: 0.52481 | C81: 1.000117535 | D81: 0.01533123317 | E81: 1.000000217 | F81: 0.0006594955998 | G81: 1 | H81: 0 | I81: 2532.548743 | J81: 1.570401468 | K81: 1.003612349 | L81: 0.08487058118 | M81: 1.000000194 | N81: 0.0006226846282 | O81: 1.000000045 | P81: 0.0007674274474 | Q81: 26.20028531 | R81: -86.03492643 | S81: 93.96507357 | U81: 1000000000 | V81: 275425.5361 | X81: 29.66738639 | Y81: -85.15032743 | AA81: 43.3121419 | AB81: -0.8845989956 | AD81: 0 | AE81: 0
A82: 575.44 | B82: 0.57544 | C82: 1.000141305 | D82: 0.01681001701 | E82: 1.000000261 | F82: 0.0007231191038 | G82: 1 | H82: 0 | I82: 2776.871305 | J82: 1.570436209 | K82: 1.004341377 | L82: 0.09301321582 | M82: 1.000000233 | N82: 0.0006827568703 | O82: 1.000000054 | P82: 0.0008414634918 | Q82: 25.40642722 | R82: -85.65914493 | S82: 94.34085507 | U82: 1000000000 | V82: 331131.1936 | X82: 28.87373443 | Y82: -84.68922126 | AA82: 43.31193576 | AB82: -0.9699236631 | AD82: 0 | AE82: 0
A83: 630.96 | B83: 0.63096 | C83: 1.000169885 | D83: 0.01843154155 | E83: 1.000000314 | F83: 0.0007928875532 | G83: 1 | H83: 0 | I83: 3044.791289 | J83: 1.570467897 | K83: 1.005217247 | L83: 0.1019280547 | M83: 1.00000028 | N83: 0.0007486310672 | O83: 1.000000065 | P83: 0.0009226501662 | Q83: 24.61371497 | R83: -85.2475129 | S83: 94.7524871 | U83: 1000000000 | V83: 398110.5216 | X83: 28.08127002 | Y83: -84.18402851 | AA83: 43.31168793 | AB83: -1.063484392 | AD83: 0 | AE83: 0
A84: 691.83 | B84: 0.69183 | C84: 1.000204241 | D84: 0.0202092072 | E84: 1.000000378 | F84: 0.0008693789982 | G84: 1 | H84: 0 | I84: 3338.528494 | J84: 1.570496794 | K84: 1.006269151 | L84: 0.1116832434 | M84: 1.000000337 | N84: 0.0008208530044 | O84: 1.000000078 | P84: 0.001011660128 | Q84: 23.82254994 | R84: -84.79694542 | S84: 95.20305458 | U84: 1000000000 | V84: 478628.7489 | X84: 27.29040291 | Y84: -83.63089104 | AA84: 43.31139001 | AB84: -1.166054389 | AD84: 0 | AE84: 0
A85: 758.58 | B85: 0.75858 | C85: 1.000245549 | D85: 0.02215844687 | E85: 1.000000454 | F85: 0.0009532594522 | G85: 1 | H85: 0 | I85: 3660.640512 | J85: 1.570523151 | K85: 1.007532503 | L85: 0.1223562275 | M85: 1.000000405 | N85: 0.000900051521 | O85: 1.000000093 | P85: 0.001109268396 | Q85: 23.03304941 | R85: -84.30394611 | S85: 95.69605389 | U85: 1000000000 | V85: 575443.6164 | X85: 26.50126056 | Y85: -83.02542197 | AA85: 43.31103182 | AB85: -1.278524142 | AD85: 0 | AE85: 0
A86: 831.76 | B86: 0.83176 | C86: 1.000295202 | D86: 0.02429526194 | E86: 1.000000546 | F86: 0.00104522006 | G86: 1 | H86: 0 | I86: 4013.781452 | J86: 1.570547185 | K86: 1.009049085 | L86: 0.1340251425 | M86: 1.000000487 | N86: 0.0009868791851 | O86: 1.000000112 | P86: 0.001216279235 | Q86: 22.24574991 | R86: -83.76501127 | S86: 96.23498873 | U86: 1000000000 | V86: 691824.6976 | X86: 25.71439159 | Y86: -82.36319433 | AA86: 43.31060128 | AB86: -1.401816941 | AD86: 0 | AE86: 0
A87: 912.01 | B87: 0.91201 | C87: 1.000354903 | D87: 0.02663826126 | E87: 1.000000657 | F87: 0.001146065063 | G87: 1 | H87: 0 | I87: 4401.039726 | J87: 1.570569108 | K87: 1.010869622 | L87: 0.146779217 | M87: 1.000000585 | N87: 0.001082095348 | O87: 1.000000135 | P87: 0.001333628517 | Q87: 21.46085714 | R87: -83.17615778 | S87: 96.82384222 | U87: 1000000000 | V87: 831762.2401 | X87: 24.93001645 | Y87: -81.63915124 | AA87: 43.31008366 | AB87: -1.53700654 | AD87: 0 | AE87: 0
A88: 1000 | B88: 1 | C88: 1.000426673 | D88: 0.02920690245 | E88: 1.00000079 | F88: 0.001256636399 | G88: 1 | H88: 0 | I88: 4825.64852 | J88: 1.570589101 | K88: 1.013054003 | L88: 0.1607081931 | M88: 1.000000704 | N88: 0.001186494953 | O88: 1.000000162 | P88: 0.001462295984 | Q88: 20.67897496 | R88: -82.53342254 | S88: 97.46657746 | U88: 1000000000 | V88: 1000000 | X88: 24.1487565 | Y88: -80.84820687 | AA88: 43.30946144 | AB88: -1.685215671 | AD88: 0 | AE88: 0
A89: 1096.5 | B89: 1.0965 | C89: 1.000512972 | D89: 0.03202352672 | E89: 1.000000949 | F89: 0.001377901664 | G89: 1 | H89: 0 | I89: 5291.323583 | J89: 1.570607338 | K89: 1.015674583 | L89: 0.1759121433 | M89: 1.000000846 | N89: 0.001300991593 | O89: 1.000000195 | P89: 0.00160340761 | Q89: 19.90049265 | R89: -81.83242326 | S89: 98.16757674 | U89: 1000000000 | V89: 1202312.25 | X89: 23.37102232 | Y89: -79.98468979 | AA89: 43.30871331 | AB89: -1.847733467 | AD89: 0 | AE89: 0
A90: 1202.3 | B90: 1.2023 | C90: 1.000616708 | D90: 0.03511101202 | E90: 1.000001141 | F90: 0.001510853588 | G90: 1 | H90: 0 | I90: 5801.877177 | J90: 1.570623969 | K90: 1.018816034 | L90: 0.1924871904 | M90: 1.000001017 | N90: 0.001426522584 | O90: 1.000000234 | P90: 0.001758118614 | Q90: 19.1263315 | R90: -81.06903485 | S90: 98.93096515 | U90: 1000000000 | V90: 1445525.29 | X90: 22.59776037 | Y90: -79.04315481 | AA90: 43.3078141 | AB90: -2.025880048 | AD90: 0 | AE90: =IF(AD90>0,S90,0) -> 0
A91: 1318.3 | B91: 1.3183 | C91: 1.000741405 | D91: 0.03849538496 | E91: 1.000001372 | F91: 0.001656623121 | G91: 1 | H91: 0 | I91: 6361.652386 | J91: 1.570639135 | K91: 1.022579897 | L91: 0.2105376442 | M91: 1.000001223 | N91: 0.001564155755 | O91: 1.000000282 | P91: 0.001927745072 | Q91: 18.35725045 | R91: -80.23885198 | S91: 99.76114802 | U91: 1000000000 | V91: 1737914.89 | X91: 21.8297601 | Y91: -78.01769474 | AA91: 43.30673333 | AB91: -2.221157235 | AD91: 0 | AE91: 0
A92: 1445.4 | B92: 1.4454 | C92: 1.000891191 | D92: 0.04220259186 | E92: 1.00000165 | F92: 0.001816341209 | G92: 1 | H92: 0 | I92: 6974.992293 | J92: 1.570652957 | K92: 1.027083428 | L92: 0.2301563345 | M92: 1.000001471 | N92: 0.001714958929 | O92: 1.000000339 | P92: 0.002113603063 | Q92: 17.59464373 | R92: -79.33812119 | S92: 100.6618788 | U92: 1000000000 | V92: 2089181.16 | X92: 21.06845142 | Y92: -76.90305894 | AA92: 43.30543528 | AB92: -2.435062251 | AD92: 0 | AE92: 0
A93: 1584.9 | B93: 1.5849 | C93: 1.001071419 | D93: 0.04627013804 | E93: 1.000001983 | F93: 0.001991641443 | G93: 1 | H93: 0 | I93: 7648.170241 | J93: 1.570665577 | K93: 1.032477098 | L93: 0.251482882 | M93: 1.000001768 | N93: 0.001880474517 | O93: 1.000000407 | P93: 0.002317593586 | Q93: 16.83829737 | R93: -78.36110346 | S93: 101.6388965 | U93: 1000000000 | V93: 2511908.01 | X93: 20.31366666 | Y93: -75.69134415 | AA93: 43.30387368 | AB93: -2.669759312 | AD93: 0 | AE93: 0
A94: 1737.8 | B94: 1.7378 | C94: 1.001287977 | D94: 0.05072663767 | E94: 1.000002384 | F94: 0.002183780411 | G94: 1 | H94: 0 | I94: 8386.011878 | J94: 1.570677081 | K94: 1.038922261 | L94: 0.2745919396 | M94: 1.000002126 | N94: 0.002061888976 | O94: 1.00000049 | P94: 0.002541178958 | Q94: 16.09051221 | R94: -77.30524577 | S94: 102.6947542 | U94: 1000000000 | V94: 3019948.84 | X94: 19.56775752 | Y94: -74.37834609 | AA94: 43.30199766 | AB94: -2.926899679 | AD94: 0 | AE94: 0
A95: 1905.5 | B95: 1.9055 | C95: 1.001548353 | D95: 0.05561218116 | E95: 1.000002867 | F95: 0.002394517341 | G95: 1 | H95: 0 | I95: 9195.273112 | J95: 1.570687575 | K95: 1.046620795 | L95: 0.2995957086 | M95: 1.000002556 | N95: 0.002260863342 | O95: 1.000000589 | P95: 0.002786406422 | Q95: 15.35219636 | R95: -76.16653421 | S95: 103.8334658 | U95: 1000000000 | V95: 3630930.25 | X95: 18.83169673 | Y95: -72.95773734 | AA95: 43.2997426 | AB95: -3.208796864 | AD95: 0 | AE95: 0
A96: 2089.3 | B96: 2.0893 | C96: 1.001861168 | D96: 0.06096370088 | E96: 1.000003447 | F96: 0.002625485777 | G96: 1 | H96: 0 | I96: 10082.22729 | J96: 1.570697142 | K96: 1.055798211 | L96: 0.3265623859 | M96: 1.000003073 | N96: 0.002478939991 | O96: 1.000000708 | P96: 0.003055176997 | Q96: 14.62547764 | R96: -74.94328583 | S96: 105.0567142 | U96: 1000000000 | V96: 4365174.49 | X96: 18.10768647 | Y96: -71.42570357 | AA96: 43.29703414 | AB96: -3.517582261 | AD96: 0 | AE96: 0
A97: 2290.9 | B97: 2.2909 | C97: 1.002237251 | D97: 0.06682945628 | E97: 1.000004144 | F97: 0.002878821888 | G97: 1 | H97: 0 | I97: 11055.078 | J97: 1.570705871 | K97: 1.066730974 | L97: 0.3555835774 | M97: 1.000003694 | N97: 0.00271813587 | O97: 1.000000851 | P97: 0.003349976635 | Q97: 13.91159025 | R97: -73.63315776 | S97: 106.3668422 | U97: 1000000000 | V97: 5248222.81 | X97: 17.3970542 | Y97: -69.77711679 | AA97: 43.29377902 | AB97: -3.856040975 | AD97: 0 | AE97: 0
A98: 2511.9 | B98: 2.5119 | C98: 1.002689114 | D98: 0.07325437202 | E98: 1.000004982 | F98: 0.003156536147 | G98: 1 | H98: 0 | I98: 12121.5463 | J98: 1.570713829 | K98: 1.079725601 | L98: 0.3866931179 | M98: 1.000004441 | N98: 0.002980349248 | O98: 1.000001023 | P98: 0.003673145071 | Q98: 13.21291996 | R98: -72.23691698 | S98: 107.763083 | U98: 1000000000 | V98: 6309641.61 | X98: 16.70229331 | Y98: -68.01015111 | AA98: 43.28986962 | AB98: -4.226765864 | AD98: 0 | AE98: 0
A99: 2754.2 | B99: 2.7542 | C99: 1.003232047 | D99: 0.08029154647 | E99: 1.000005989 | F99: 0.003461015971 | G99: 1 | H99: 0 | I99: 13290.80091 | J99: 1.570721087 | K99: 1.095142913 | L99: 0.4199168711 | M99: 1.000005339 | N99: 0.003267834302 | O99: 1.00000123 | P99: 0.004027460752 | Q99: 12.53150258 | R99: -70.75627944 | S99: 109.2437206 | U99: 1000000000 | V99: 7585617.64 | X99: 16.02557091 | Y99: -66.12345779 | AA99: 43.28517464 | AB99: -4.632821644 | AD99: 0 | AE99: 0
A100: 3020 | B100: 3.02 | C100: 1.003884715 | D100: 0.08800205562 | E100: 1.000007201 | F100: 0.003795025702 | G100: 1 | H100: 0 | I100: 14573.45825 | J100: 1.570727709 | K100: 1.113404529 | L100: 0.4552613185 | M100: 1.00000642 | N100: 0.003583201105 | O100: 1.000001479 | P100: 0.004416140838 | Q100: 11.86926701 | R100: -69.19455239 | S100: 110.8054476 | U100: 1000000000 | V100: 9120400 | X100: 15.36897589 | Y100: -64.11681873 | AA100: 43.2795341 | AB100: -5.077733657 | AD100: 0 | AE100: 0
A101: 3311.3 | B101: 3.3113 | C101: 1.004668448 | D101: 0.0964402213 | E101: 1.000008657 | F101: 0.004161078281 | G101: 1 | H101: 0 | I101: 15979.16963 | J101: 1.570733745 | K101: 1.134960407 | L101: 0.492638581 | M101: 1.000007718 | N101: 0.003928822368 | O101: 1.000001778 | P101: 0.004842110065 | Q101: 11.2292102 | R101: -67.56004575 | S101: 112.4399543 | U101: 1000000000 | V101: 10964707.69 | X101: 14.73568745 | Y101: -61.99540784 | AA101: 43.27276572 | AB101: -5.564637909 | AD101: 0 | AE101: 0
A102: 3630.8 | B102: 3.6308 | C102: 1.005610172 | D102: 0.1056794057 | E102: 1.000010409 | F102: 0.004562566178 | G102: 1 | H102: 0 | I102: 17520.9643 | J102: 1.570739252 | K102: 1.160353684 | L102: 0.5319764976 | M102: 1.000009279 | N102: 0.004307901249 | O102: 1.000002137 | P102: 0.005309316824 | Q102: 10.61318837 | R102: -65.86131599 | S102: 114.138684 | U102: 1000000000 | V102: 13182708.64 | X102: 14.12779142 | Y102: -59.76354639 | AA102: 43.26463992 | AB102: -6.097769596 | AD102: 0 | AE102: 0
A103: 3981.1 | B103: 3.9811 | C103: 1.006741132 | D103: 0.1157884263 | E103: 1.000012514 | F103: 0.005002756064 | G103: 1 | H103: 0 | I103: 19211.38894 | J103: 1.570744274 | K103: 1.190164153 | L103: 0.5731070856 | M103: 1.000011156 | N103: 0.004723522145 | O103: 1.00000257 | P103: 0.005821563335 | Q103: 10.0237379 | R103: -64.1121407 | S103: 115.8878593 | U103: 1000000000 | V103: 15849157.21 | X103: 13.54808953 | Y103: -57.43103835 | AA103: 43.25489135 | AB103: -6.68110235 | AD103: 0 | AE103: 0
A104: 4365.2 | B104: 4.3652 | C104: 1.008099182 | D104: 0.1268455227 | E104: 1.000015045 | F104: 0.005485417075 | G104: 1 | H104: 0 | I104: 21064.92049 | J104: 1.570748855 | K104: 1.225044658 | L104: 0.6158257033 | M104: 1.000013412 | N104: 0.00517924389 | O104: 1.000003089 | P104: 0.006383236818 | Q104: 9.46290669 | R104: -62.32896959 | S104: 117.6710304 | U104: 1000000000 | V104: 19054971.04 | X104: 12.99894984 | Y104: -55.0098152 | AA104: 43.24319983 | AB104: -7.31915439 | AD104: 0 | AE104: 0
A105: 4786.3 | B105: 4.7863 | C105: 1.009729271 | D105: 0.1389319132 | E105: 1.000018088 | F105: 0.006014569433 | G105: 1 | H105: 0 | I105: 23097.00104 | J105: 1.570753031 | K105: 1.265702749 | L105: 0.6598651205 | M105: 1.000016125 | N105: 0.005678862413 | O105: 1.000003714 | P105: 0.006999017055 | Q105: 8.932551114 | R105: -60.53202476 | S105: 119.4679752 | U105: 1000000000 | V105: 22908667.69 | X105: 12.48260693 | Y105: -52.51540779 | AA105: 43.22918715 | AB105: -8.016616968 | AD105: 0 | AE105: 0
A106: 5248.1 | B106: 5.2481 | C106: 1.011685897 | D106: 0.1521395442 | E106: 1.000021746 | F106: 0.006594861345 | G106: 1 | H106: 0 | I106: 25325.48547 | J106: 1.570756841 | K106: 1.312925977 | L106: 0.704928996 | M106: 1.000019387 | N106: 0.006226766609 | O106: 1.000004466 | P106: 0.007674315123 | Q106: 8.433859687 | R106: -58.74385073 | S106: 121.2561493 | U106: 1000000000 | V106: 27542553.61 | X106: 12.00070525 | Y106: -49.9650488 | AA106: 43.21239741 | AB106: -8.778801937 | AD106: 0 | AE106: 0
A107: 5370.3 | B107: 5.3703 | C107: 1.012233109 | D107: 0.1556257648 | E107: 1.000022771 | F107: 0.006748415558 | G107: 1 | H107: 0 | I107: 25915.17971 | J107: 1.570757739 | K107: 1.325847904 | L107: 0.7163090994 | M107: 1.0000203 | N107: 0.006371750607 | O107: 1.000004676 | P107: 0.007853010593 | Q107: 8.314302367 | R107: -58.30136351 | S107: 121.6986365 | U107: 1000000000 | V107: 28840122.09 | X107: 11.88583771 | Y107: -49.32137536 | AA107: 43.20770763 | AB107: -8.979988153 | AD107: 0 | AE107: 0
A108: 5432.85 | B108: 5.43285 | C108: 1.012517964 | D108: 0.1574087728 | E108: 1.000023305 | F108: 0.006827014585 | G108: 1 | H108: 0 | I108: 26217.02402 | J108: 1.570758184 | K108: 1.332527659 | L108: 0.7220484048 | M108: 1.000020776 | N108: 0.006445962853 | O108: 1.000004786 | P108: 0.007944478744 | Q108: 8.25492512 | R108: -58.07969921 | S108: 121.9203008 | U108: 1000000000 | V108: 29515859.12 | X108: 11.82890075 | Y108: -48.99681488 | AA108: 43.20526734 | AB108: -9.082884331 | AD108: 0 | AE108: 0
A109: 5495.4 | B109: 5.4954 | C109: 1.012806036 | D109: 0.1591907722 | E109: 1.000023844 | F109: 0.006905613527 | G109: 1 | H109: 0 | I109: 26518.86833 | J109: 1.570758618 | K109: 1.339250868 | L109: 0.7277302717 | M109: 1.000021257 | N109: 0.006520175028 | O109: 1.000004896 | P109: 0.008035946931 | Q109: 8.196735973 | R109: -57.86126753 | S109: 122.1387325 | U109: 1000000000 | V109: 30199421.16 | X109: 11.77317876 | Y109: -48.67554481 | AA109: 43.20280019 | AB109: -9.185722726 | AD109: 0 | AE109: 0
A110: 5559.4 | B110: 5.5594 | C110: 1.013104113 | D110: 0.161013026 | E110: 1.000024403 | F110: 0.006986034419 | G110: 1 | H110: 0 | I110: 26827.70983 | J110: 1.570759052 | K110: 1.346174229 | L110: 0.7334849193 | M110: 1.000021755 | N110: 0.006596107475 | O110: 1.000005011 | P110: 0.008129535522 | Q110: 8.138393997 | R110: -57.6410879 | S110: 122.3589121 | U110: 1000000000 | V110: 30906928.36 | X110: 11.71738888 | Y110: -48.35020327 | AA110: 43.20024809 | AB110: -9.290884633 | AD110: 0 | AE110: 0
A111: 5623.4 | B111: 5.6234 | C111: 1.013405553 | D111: 0.1628342018 | E111: 1.000024968 | F111: 0.00706645522 | G111: 1 | H111: 0 | I111: 27136.55132 | J111: 1.570759476 | K111: 1.353141712 | L111: 0.7391804913 | M111: 1.000022258 | N111: 0.006672039845 | O111: 1.000005127 | P111: 0.008223124152 | Q111: 8.081228624 | R111: -57.42423073 | S111: 122.5757693 | U111: 1000000000 | V111: 31622627.56 | X111: 11.66280362 | Y111: -48.02824594 | AA111: 43.19766797 | AB111: -9.395984781 | AD111: 0 | AE111: 0
A112: 5688.9 | B112: 5.6889 | C112: 1.013717535 | D112: 0.1646969336 | E112: 1.000025553 | F112: 0.00714876079 | G112: 1 | H112: 0 | I112: 27452.6313 | J112: 1.5707599 | K112: 1.360317475 | L112: 0.7449489491 | M112: 1.00002278 | N112: 0.006749751801 | O112: 1.000005247 | P112: 0.008318906306 | Q112: 8.023907985 | R112: -57.20569813 | S112: 122.7943019 | U112: 1000000000 | V112: 32363583.21 | X112: 11.60815254 | Y112: -47.70221453 | AA112: 43.19499842 | AB112: -9.503483603 | AD112: 0 | AE112: 0
A113: 5754.4 | B113: 5.7544 | C113: 1.014033033 | D113: 0.1665585127 | E113: 1.000026145 | F113: 0.007231066262 | G113: 1 | H113: 0 | I113: 27768.71127 | J113: 1.570760315 | K113: 1.367538026 | L113: 0.7506566807 | M113: 1.000023308 | N113: 0.006827463676 | O113: 1.000005369 | P113: 0.008414688502 | Q113: 7.967752347 | R113: -56.99057831 | S113: 123.0094217 | U113: 1000000000 | V113: 33113119.36 | X113: 11.55469569 | Y113: -47.37966192 | AA113: 43.19229963 | AB113: -9.610916391 | AD113: 0 | AE113: 0
A114: 5821.4 | B114: 5.8214 | C114: 1.014359389 | D114: 0.1684615186 | E114: 1.000026757 | F114: 0.007315256491 | G114: 1 | H114: 0 | I114: 28092.02971 | J114: 1.57076073 | K114: 1.374969538 | L114: 0.7564329084 | M114: 1.000023853 | N114: 0.006906955126 | O114: 1.000005495 | P114: 0.008512664227 | Q114: 7.911482234 | R114: -56.77402717 | S114: 123.2259728 | U114: 1000000000 | V114: 33888697.96 | X114: 11.50121636 | Y114: -47.05328672 | AA114: 43.18950884 | AB114: -9.720740445 | AD114: 0 | AE114: 0
A115: 5888.4 | B115: 5.8884 | C115: 1.014689416 | D115: 0.1703632934 | E115: 1.000027377 | F115: 0.007399446617 | G115: 1 | H115: 0 | I115: 28415.34815 | J115: 1.570761135 | K115: 1.38244643 | L115: 0.7621468441 | M115: 1.000024406 | N115: 0.006986446489 | O115: 1.000005622 | P115: 0.008610639996 | Q115: 7.85636362 | R115: -56.56097402 | S115: 123.439026 | U115: 1000000000 | V115: 34673254.56 | X115: 11.44891902 | Y115: -46.73048005 | AA115: 43.18668758 | AB115: -9.830493976 | AD115: 0 | AE115: 0
A116: 5957 | B116: 5.957 | C116: 1.015031125 | D116: 0.1723091952 | E116: 1.000028018 | F116: 0.007485647144 | G116: 1 | H116: 0 | I116: 28746.38763 | J116: 1.57076154 | K116: 1.390148131 | L116: 0.7679333543 | M116: 1.000024978 | N116: 0.007067836062 | O116: 1.000005754 | P116: 0.008710955531 | Q116: 7.801087951 | R116: -56.3464186 | S116: 123.6535814 | U116: 1000000000 | V116: 35485849 | X116: 11.3965635 | Y116: -46.40362393 | AA116: 43.18376743 | AB116: -9.942794666 | AD116: 0 | AE116: 0
A117: 6025.6 | B117: 6.0256 | C117: 1.015376674 | D117: 0.1742537799 | E117: 1.000028667 | F117: 0.00757184756 | G117: 1 | H117: 0 | I117: 29077.42712 | J117: 1.570761936 | K117: 1.397895865 | L117: 0.7736559117 | M117: 1.000025556 | N117: 0.007149225541 | O117: 1.000005887 | P117: 0.008811271115 | Q117: 7.746951789 | R117: -56.13545141 | S117: 123.8645486 | U117: 1000000000 | V117: 36307855.36 | X117: 11.34537931 | Y117: -46.08043151 | AA117: 43.18081545 | AB117: -10.0550199 | AD117: 0 | AE117: 0
A118: 6095.8 | B118: 6.0958 | C118: 1.015734255 | D118: 0.1762423419 | E118: 1.000029339 | F118: 0.007660058365 | G118: 1 | H118: 0 | I118: 29416.18763 | J118: 1.570762332 | K118: 1.405871166 | L118: 0.7794464478 | M118: 1.000026155 | N118: 0.007232513219 | O118: 1.000006025 | P118: 0.00891392647 | Q118: 7.692698739 | R118: -55.92323668 | S118: 124.0767633 | U118: 1000000000 | V118: 37158777.64 | X118: 11.29417996 | Y118: -45.75345296 | AA118: 43.17776176 | AB118: -10.16978372 | AD118: 0 | AE118: 0
A119: 6166 | B119: 6.166 | C119: 1.016095849 | D119: 0.1782294964 | E119: 1.000030019 | F119: 0.007748269051 | G119: 1 | H119: 0 | I119: 29754.94815 | J119: 1.570762719 | K119: 1.413893075 | L119: 0.7851714672 | M119: 1.000026761 | N119: 0.007315800796 | O119: 1.000006164 | P119: 0.009016581877 | Q119: 7.639571251 | R119: -55.71469462 | S119: 124.2853054 | U119: 1000000000 | V119: 38019556 | X119: 11.24413935 | Y119: -45.43022771 | AA119: 43.17467488 | AB119: -10.28446691 | AD119: 0 | AE119: 0
A120: 6237.8 | B120: 6.2378 | C120: 1.016469833 | D120: 0.1802604714 | E120: 1.000030722 | F120: 0.007838490112 | G120: 1 | H120: 0 | I120: 30101.42971 | J120: 1.570763106 | K120: 1.422145208 | L120: 0.7909599659 | M120: 1.000027388 | N120: 0.007400986561 | O120: 1.000006309 | P120: 0.009121577061 | Q120: 7.586363313 | R120: -55.50515382 | S120: 124.4948462 | U120: 1000000000 | V120: 38910148.84 | X120: 11.19412289 | Y120: -45.10347411 | AA120: 43.17148339 | AB120: -10.4016797 | AD120: 0 | AE120: 0
A121: 6309.6 | B121: 6.3096 | C121: 1.016848006 | D121: 0.1822899442 | E121: 1.000031433 | F121: 0.007928711045 | G121: 1 | H121: 0 | I121: 30447.91127 | J121: 1.570763484 | K121: 1.430444443 | L121: 0.7966814863 | M121: 1.000028022 | N121: 0.007486172219 | O121: 1.000006455 | P121: 0.009226572301 | Q121: 7.53426518 | R121: -55.29936401 | S121: 124.700636 | U121: 1000000000 | V121: 39811052.16 | X121: 11.1452508 | Y121: -44.78055758 | AA121: 43.16825736 | AB121: -10.51880643 | AD121: 0 | AE121: 0
A122: 6383.05 | B122: 6.38305 | C122: 1.017239201 | D122: 0.184364485 | E122: 1.000032169 | F122: 0.008021005167 | G122: 1 | H122: 0 | I122: 30802.35514 | J122: 1.570763862 | K122: 1.438982285 | L122: 0.8024660066 | M122: 1.000028678 | N122: 0.007573315373 | O122: 1.000006606 | P122: 0.009333980441 | Q122: 7.482084311 | R122: -55.09267841 | S122: 124.9073216 | U122: 1000000000 | V122: 40743327.3 | X122: 11.09640578 | Y122: -44.45414357 | AA122: 43.16492151 | AB122: -10.63853484 | AD122: 0 | AE122: 0
A123: 6456.5 | B123: 6.4565 | C123: 1.01763477 | D123: 0.186437422 | E123: 1.000032914 | F123: 0.008113299152 | G123: 1 | H123: 0 | I123: 31156.79902 | J123: 1.570764231 | K123: 1.447567707 | L123: 0.8081821012 | M123: 1.000029342 | N123: 0.007660458412 | O123: 1.000006759 | P123: 0.00944138864 | Q123: 7.430997297 | R123: -54.88982092 | S123: 125.1101791 | U123: 1000000000 | V123: 41686392.25 | X123: 11.04869061 | Y123: -44.13164956 | AA123: 43.16154966 | AB123: -10.75817136 | AD123: 0 | AE123: 0
A124: 6531.7 | B124: 6.5317 | C124: 1.01804429 | D124: 0.18855807 | E124: 1.000033685 | F124: 0.008207791966 | G124: 1 | H124: 0 | I124: 31519.68778 | J124: 1.570764601 | K124: 1.456406099 | L124: 0.8139643724 | M124: 1.00003003 | N124: 0.007749677578 | O124: 1.000006917 | P124: 0.009551355979 | Q124: 7.379792519 | R124: -54.68604504 | S124: 125.313955 | U124: 1000000000 | V124: 42663104.89 | X124: 11.00097521 | Y124: -43.80548288 | AA124: 43.15806028 | AB124: -10.88056216 | AD124: 0 | AE124: 0
A125: 6606.9 | B125: 6.6069 | C125: 1.018458385 | D125: 0.1906770029 | E125: 1.000034465 | F125: 0.008302284633 | G125: 1 | H125: 0 | I125: 31882.57654 | J125: 1.570764962 | K125: 1.465292597 | L125: 0.8196766977 | M125: 1.000030725 | N125: 0.00783889662 | O125: 1.000007078 | P125: 0.009661323381 | Q125: 7.329666798 | R125: -54.48617803 | S125: 125.513822 | U125: 1000000000 | V125: 43651127.61 | X125: 10.95437642 | Y125: -43.48332331 | AA125: 43.15453335 | AB125: -11.00285472 | AD125: 0 | AE125: 0
A126: 6683.85 | B126: 6.68385 | C126: 1.018886846 | D126: 0.1928434533 | E126: 1.000035272 | F126: 0.008398976112 | G126: 1 | H126: 0 | I126: 32253.91018 | J126: 1.570765323 | K126: 1.474434786 | L126: 0.8254504838 | M126: 1.000031445 | N126: 0.007930191773 | O126: 1.000007244 | P126: 0.009773849931 | Q126: 7.279457806 | R126: -54.28565171 | S126: 125.7143483 | U126: 1000000000 | V126: 44673850.82 | X126: 10.90781521 | Y126: -43.15776125 | AA126: 43.15088557 | AB126: -11.12789046 | AD126: 0 | AE126: 0
A127: 6760.8 | B127: 6.7608 | C127: 1.019320085 | D127: 0.1950080721 | E127: 1.000036089 | F127: 0.008495667434 | G127: 1 | H127: 0 | I127: 32625.24383 | J127: 1.570765676 | K127: 1.483625522 | L127: 0.8311529233 | M127: 1.000032173 | N127: 0.008021486795 | O127: 1.000007411 | P127: 0.009886376548 | Q127: 7.230311249 | R127: -54.08910785 | S127: 125.9108921 | U127: 1000000000 | V127: 45708416.64 | X127: 10.86235554 | Y127: -42.83628657 | AA127: 43.14719868 | AB127: -11.25282128 | AD127: 0 | AE127: 0
A128: 6839.55 | B128: 6.83955 | C128: 1.0197684 | D128: 0.1972214105 | E128: 1.000036935 | F128: 0.008594620376 | G128: 1 | H128: 0 | I128: 33005.26364 | J128: 1.570766029 | K128: 1.493080572 | L128: 0.8369158753 | M128: 1.000032927 | N128: 0.008114917234 | O128: 1.000007585 | P128: 0.01000153544 | Q128: 7.181081351 | R128: -53.8920319 | S128: 126.1079681 | U128: 1000000000 | V128: 46779444.2 | X128: 10.81693917 | Y128: -42.51146714 | AA128: 43.14338516 | AB128: -11.38056476 | AD128: 0 | AE128: 0
A129: 6918.3 | B129: 6.9183 | C129: 1.020221705 | D129: 0.1994327927 | E129: 1.00003779 | F129: 0.008693573151 | G129: 1 | H129: 0 | I129: 33385.28346 | J129: 1.570766373 | K129: 1.502584585 | L129: 0.8426061116 | M129: 1.000033689 | N129: 0.008208347532 | O129: 1.000007761 | P129: 0.0101166944 | Q129: 7.13289691 | R129: -53.69900971 | S129: 126.3009903 | U129: 1000000000 | V129: 47862874.89 | X129: 10.772609 | Y129: -42.19081353 | AA129: 43.13953088 | AB129: -11.50819617 | AD129: 0 | AE129: 0
A130: 6998.9 | B130: 6.9989 | C130: 1.020690822 | D130: 0.2016940796 | E130: 1.000038676 | F130: 0.008794850353 | G130: 1 | H130: 0 | I130: 33774.23072 | J130: 1.570766718 | K130: 1.512361604 | L130: 0.8483557752 | M130: 1.000034479 | N130: 0.008303972551 | O130: 1.000007943 | P130: 0.01023455876 | Q130: 7.084629477 | R130: -53.50558949 | S130: 126.4944105 | U130: 1000000000 | V130: 48984601.21 | X130: 10.72832847 | Y130: -41.86688075 | AA130: 43.13554398 | AB130: -11.63870874 | AD130: 0 | AE130: 0
A131: 7079.5 | B131: 7.0795 | C131: 1.021165152 | D131: 0.2039532772 | E131: 1.000039572 | F131: 0.008896127376 | G131: 1 | H131: 0 | I131: 34163.17798 | J131: 1.570767056 | K131: 1.522187977 | L131: 0.8540313914 | M131: 1.000035278 | N131: 0.008399597419 | O131: 1.000008127 | P131: 0.0103524232 | Q131: 7.03739013 | R131: -53.31629173 | S131: 126.6837083 | U131: 1000000000 | V131: 50119320.25 | X131: 10.68511847 | Y131: -41.54719011 | AA131: 43.13151464 | AB131: -11.76910162 | AD131: 0 | AE131: 0
A132: 7161.95 | B132: 7.16195 | C132: 1.021655758 | D132: 0.2062621473 | E132: 1.000040499 | F132: 0.008999728806 | G132: 1 | H132: 0 | I132: 34561.05269 | J132: 1.570767392 | K132: 1.532289969 | L132: 0.8597617706 | M132: 1.000036104 | N132: 0.008497416991 | O132: 1.000008317 | P132: 0.01047299304 | Q132: 6.990096778 | R132: -53.12684987 | S132: 126.8731501 | U132: 1000000000 | V132: 51293527.8 | X132: 10.64199074 | Y132: -41.22448752 | AA132: 43.12734901 | AB132: -11.90236235 | AD132: 0 | AE132: 0
A133: 7244.4 | B133: 7.2444 | C133: 1.022151805 | D133: 0.2085687886 | E133: 1.000041437 | F133: 0.009103330043 | G133: 1 | H133: 0 | I133: 34958.9274 | J133: 1.570767722 | K133: 1.542441618 | L133: 0.865416904 | M133: 1.00003694 | N133: 0.008595236401 | O133: 1.00000851 | P133: 0.01059356296 | Q133: 6.943812511 | R133: -52.94159115 | S133: 127.0584089 | U133: 1000000000 | V133: 52481331.36 | X133: 10.59991626 | Y133: -40.90609575 | AA133: 43.12313923 | AB133: -12.0354954 | AD133: 0 | AE133: 0
A134: 7328.75 | B134: 7.32875 | C134: 1.022664905 | D134: 0.2109262563 | E134: 1.000042407 | F134: 0.009209318492 | G134: 1 | H134: 0 | I134: 35365.97085 | J134: 1.570768051 | K134: 1.552877573 | L134: 0.8711256546 | M134: 1.000037805 | N134: 0.008695309817 | O134: 1.000008709 | P134: 0.01071691142 | Q134: 6.897472601 | R134: -52.75632409 | S134: 127.2436759 | U134: 1000000000 | V134: 53710576.56 | X134: 10.5579287 | Y134: -40.58476108 | AA134: 43.11878687 | AB134: -12.171563 | AD134: 0 | AE134: 0
A135: 7413.1 | B135: 7.4131 | C135: 1.023183683 | D135: 0.2132813465 | E135: 1.000043389 | F135: 0.009315306735 | G135: 1 | H135: 0 | I135: 35773.01429 | J135: 1.570768373 | K135: 1.563363461 | L135: 0.8767580065 | M135: 1.000038681 | N135: 0.008795383059 | O135: 1.000008911 | P135: 0.01084025997 | Q135: 6.852122466 | R135: -52.5752977 | S135: 127.4247023 | U135: 1000000000 | V135: 54954051.61 | X135: 10.51697686 | Y135: -40.2678033 | AA135: 43.11438858 | AB135: -12.3074944 | AD135: 0 | AE135: 0
A136: 7499.45 | B136: 7.49945 | C136: 1.023720634 | D136: 0.2156897914 | E136: 1.000044406 | F136: 0.009423807819 | G136: 1 | H136: 0 | I136: 36189.70903 | J136: 1.570768695 | K136: 1.574148655 | L136: 0.882445993 | M136: 1.000039587 | N136: 0.008897828928 | O136: 1.000009119 | P136: 0.01096653329 | Q136: 6.806689187 | R136: -52.39430024 | S136: 127.6056998 | U136: 1000000000 | V136: 56241750.3 | X136: 10.47609359 | Y136: -39.94779384 | AA136: 43.10983857 | AB136: -12.44650641 | AD136: 0 | AE136: 0
A137: 7585.8 | B137: 7.5858 | C137: 1.024263517 | D137: 0.2180956972 | E137: 1.000045434 | F137: 0.009532308682 | G137: 1 | H137: 0 | I137: 36606.40377 | J137: 1.570769009 | K137: 1.584984085 | L137: 0.8880563894 | M137: 1.000040504 | N137: 0.009000274611 | O137: 1.000009331 | P137: 0.01109280671 | Q137: 6.762227154 | R137: -52.21760247 | S137: 127.7823975 | U137: 1000000000 | V137: 57544361.64 | X137: 10.4362294 | Y137: -39.63222953 | AA137: 43.10524073 | AB137: -12.58537295 | AD137: 0 | AE137: 0
A138: 7674.15 | B138: 7.67415 | C138: 1.024825104 | D138: 0.2205546747 | E138: 1.000046499 | F138: 0.00964332236 | G138: 1 | H138: 0 | I138: 37032.74981 | J138: 1.570769324 | K138: 1.596121406 | L138: 0.8937177083 | M138: 1.000041453 | N138: 0.009105092898 | O138: 1.000009549 | P138: 0.01122200492 | Q138: 6.71770765 | R138: -52.04118739 | S138: 127.9588126 | U138: 1000000000 | V138: 58892578.22 | X138: 10.39646357 | Y138: -39.31388351 | AA138: 43.10048705 | AB138: -12.72730387 | AD138: 0 | AE138: 0
A139: 7762.5 | B139: 7.7625 | C139: 1.025392881 | D139: 0.2230109438 | E139: 1.000047575 | F139: 0.009754335801 | G139: 1 | H139: 0 | I139: 37459.09585 | J139: 1.570769631 | K139: 1.607309174 | L139: 0.8993003922 | M139: 1.000042413 | N139: 0.009209910986 | O139: 1.000009771 | P139: 0.01135120323 | Q139: 6.674139332 | R139: -51.86912218 | S139: 128.1308778 | U139: 1000000000 | V139: 60256406.25 | X139: 10.35769867 | Y139: -39.00004253 | AA139: 43.09568363 | AB139: -12.86907964 | AD139: 0 | AE139: 0
A140: 7852.9 | B140: 7.8529 | C140: 1.025980228 | D140: 0.2255213767 | E140: 1.00004869 | F140: 0.009867924857 | G140: 1 | H140: 0 | I140: 37895.33446 | J140: 1.570769938 | K140: 1.618807658 | L140: 0.9049325605 | M140: 1.000043406 | N140: 0.009317160976 | O140: 1.000009999 | P140: 0.01148339946 | Q140: 6.63051198 | R140: -51.6974886 | S140: 128.3025114 | U140: 1000000000 | V140: 61668038.41 | X140: 10.3190375 | Y140: -38.68350563 | AA140: 43.09071745 | AB140: -13.01398297 | AD140: 0 | AE140: 0
A141: 7943.3 | B141: 7.9433 | C141: =SQRT(1+(A141/pole1)^2) -> 1.026574034 | D141: =ATAN(A141/pole1) -> 0.2280289211 | E141: =SQRT(1+(A141/Zero1)^2) -> 1.000049817 | F141: =ATAN(A141/Zero1) -> 0.009981513657 | G141: =IF(VIN_nom>Vout, 1, SQRT(1+(A141/z_RHP)^2)) -> 1 | H141: =IF(VIN_nom>Vout, 0, -ATAN(A141/z_RHP)) -> 0 | I141: =SQRT(1+(A141/Pole2)^2) -> 38331.57308 | J141: =ATAN(A141/Pole2) -> 1.570770239 | K141: =SQRT(1+(A141/Zero2)^2) -> 1.630356768 | L141: =ATAN(A141/Zero2) -> 0.9104851087 | M141: =SQRT(1+(A141/pole4)^2) -> 1.000044411 | N141: =ATAN(A141/pole4) -> 0.009424410752 | O141: =SQRT((1-(V141/pterm2))^2+(A141/pterm1)^2) -> 1.000010231 | P141: =IF((ATAN((A141/pterm1)/(1-A141^2/pterm2))>0),ATAN((A141/pterm1)/(1-A141^2/pterm2)),PI()+ATAN((A141/pterm1)/(1-A141^2/pterm2))) -> 0.0116155958 | Q141: =20*LOG10(((E141*K141*G141)/(C141*I141*O141*M141))*Adc) -> 6.587815407 | R141: =((F141+L141+H141)-(D141+J141+P141+N141))*radconv -> -51.53025104 | S141: =IF(R141>0,R141,R141+180) -> 128.469749 | U141: 1000000000 | V141: 63096014.89 | X141: =20*LOG10((K141/(I141*M141))*AEA) -> 10.28135882 | Y141: =(L141-(J141+N141))*radconv -> -38.37153022 | AA141: =20*LOG10((E141*G141/(C141*O141))*Acs*Am) -> 43.08569956 | AB141: =(F141+H141-(D141+P141))*radconv -> -13.15872081 | AD141: 0 | AE141: 0
A142: 8035.8 | B142: =A142/1000 -> 8.0358 | C142: 1.027188308 | D142: 0.2305916985 | E142: 1.000050984 | F142: 0.01009774087 | G142: 1 | H142: 0 | I142: 38777.94556 | J142: 1.570770539 | K142: 1.642225454 | L142: 0.9160856261 | M142: 1.000045452 | N142: 0.009534151725 | O142: 1.000010471 | P142: 0.01175086318 | Q142: 6.545058071 | R142: -51.36359718 | S142: 128.6364028 | U142: =IF(Q142<0,A142,1000000000) -> 1000000000 | V142: =A142^2 -> 64574081.64 | X142: 10.24378927 | Y142: -38.05694912 | AA142: 43.08051177 | AB142: -13.30664806 | AD142: =SUM((Q143<0)*(Q142>0))*A142 -> 0 | AE142: 0
A143: 8128.3 | B143: 8.1283 | C143: 1.02780932 | D143: 0.2331513957 | E143: 1.000052165 | F143: 0.01021396781 | G143: 1 | H143: 0 | I143: 39224.31804 | J143: 1.570770832 | K143: 1.654144909 | L143: 0.9216056019 | M143: 1.000046504 | N143: 0.009643892468 | O143: 1.000010713 | P143: 0.01188613068 | Q143: 6.503210764 | R143: -51.20138115 | S143: 128.7986189 | U143: 1000000000 | V143: 66069260.89 | X143: 10.2071835 | Y143: -37.74698229 | AA143: 43.07527024 | AB143: -13.45439885 | AD143: 0 | AE143: 0
A144: 8222.95 | B144: 8.22295 | C144: 1.028451728 | D144: 0.2357673712 | E144: 1.000053387 | F144: 0.01033289595 | G144: 1 | H144: 0 | I144: 39681.06566 | J144: 1.570771126 | K144: 1.666392828 | L144: 0.9271719646 | M144: 1.000047593 | N144: 0.009756183702 | O144: 1.000010964 | P144: 0.01202454236 | Q144: 6.461300713 | R144: -51.03990336 | S144: 128.9600966 | U144: 1000000000 | V144: 67616906.7 | X144: 10.17069224 | Y144: -37.43450383 | AA144: 43.06985145 | AB144: -13.60539953 | AD144: 0 | AE144: 0
A145: 8270.275 | B145: 8.270275 | C145: 1.028775569 | D145: 0.2370741293 | E145: 1.000054003 | F145: 0.01039235992 | G145: 1 | H145: 0 | I145: 39909.43947 | J145: 1.57077127 | K145: 1.672535936 | L145: 0.9299245316 | M145: 1.000048143 | N145: 0.009812329227 | O145: 1.000011091 | P145: 0.01209374825 | Q145: 6.440680971 | R145: -50.96084795 | S145: 129.039152 | U145: 1000000000 | V145: 68397448.58 | X145: 10.15280284 | Y145: -37.28001853 | AA145: 43.0671211 | AB145: -13.68082943 | AD145: 0 | AE145: 0
A146: 8317.6 | B146: 8.3176 | C146: 1.029101166 | D146: 0.2383800628 | E146: 1.000054623 | F146: 0.01045182381 | G146: 1 | H146: 0 | I146: 40137.81328 | J146: 1.570771413 | K146: 1.678691625 | L146: 0.9326569321 | M146: 1.000048695 | N146: 0.009868474689 | O146: 1.000011218 | P146: 0.01216295416 | Q146: 6.420279602 | R146: -50.88290066 | S146: 129.1170993 | U146: 1000000000 | V146: 69182469.76 | X146: 10.13514575 | Y146: -37.12668858 | AA146: 43.06437682 | AB146: -13.75621208 | AD146: 0 | AE146: 0
A147: 8366.05 | B147: 8.36605 | C147: 1.02943632 | D147: 0.2397161825 | E147: 1.000055261 | F147: 0.01051270118 | G147: 1 | H147: 0 | I147: 40371.61595 | J147: 1.570771557 | K147: 1.685006532 | L147: 0.9354335837 | M147: 1.000049264 | N147: 0.009925954766 | O147: 1.000011349 | P147: 0.01223380526 | Q147: 6.399615543 | R147: -50.80423734 | S147: 129.1957627 | U147: 1000000000 | V147: 69990792.6 | X147: 10.11730562 | Y147: -36.97089979 | AA147: 43.0615529 | AB147: -13.83333755 | AD147: 0 | AE147: 0
A148: 8414.5 | B148: 8.4145 | C148: 1.02977331 | D148: 0.2410514301 | E148: 1.000055903 | F148: 0.01057357848 | G148: 1 | H148: 0 | I148: 40605.41861 | J148: 1.5707717 | K148: =SQRT(1+(A148/Zero2)^2) -> 1.691334333 | L148: =ATAN(A148/Zero2) -> 0.9381894799 | M148: 1.000049837 | N148: 0.009983434777 | O148: 1.000011481 | P148: 0.0123046564 | Q148: 6.37917245 | R148: -50.72671316 | S148: 129.2732868 | U148: 1000000000 | V148: 70803810.25 | X148: 10.09970099 | Y148: -36.8163001 | AA148: 43.05871443 | AB148: -13.91041306 | AD148: 0 | AE148: 0
A149: 8462.95 | B149: 8.46295 | C149: 1.030112135 | D149: 0.2423858017 | E149: 1.000056548 | F149: 0.0106344557 | G149: 1 | H149: 0 | I149: 40839.22128 | J149: 1.570771841 | K149: 1.697674884 | L149: 0.940924811 | M149: 1.000050412 | N149: 0.01004091472 | O149: 1.000011614 | P149: 0.01237550756 | Q149: 6.358946438 | R149: -50.650317 | S149: 129.349683 | U149: 1000000000 | V149: 71621522.7 | X149: 10.08232796 | Y149: -36.66287861 | AA149: 43.05586145 | AB149: -13.98743839 | AD149: 0 | AE149: 0
A150: 8511.4 | B150: 8.5114 | C150: 1.030452793 | D150: 0.2437192934 | E150: 1.000057198 | F150: 0.01069533284 | G150: 1 | H150: 0 | I150: 41073.02395 | J150: 1.57077198 | K150: 1.704028043 | L150: 0.943639766 | M150: 1.000050991 | N150: 0.0100983946 | O150: 1.000011747 | P150: 0.01244635876 | Q150: 6.338933702 | R150: -50.5750378 | S150: 129.4249622 | U150: 1000000000 | V150: 72443929.96 | X150: 10.0651827 | Y150: -36.51062449 | AA150: 43.05299398 | AB150: -14.06441331 | AD150: 0 | AE150: 0
A151: 8560.95 | B151: 8.56095 | C151: 1.03080308 | D151: 0.2450821464 | E151: 1.000057866 | F151: 0.01075759204 | G151: 1 | H151: 0 | I151: 41312.13482 | J151: 1.570772121 | K151: 1.710538336 | L151: 0.9463954805 | M151: 1.000051586 | N151: 0.01015717942 | O151: 1.000011884 | P151: 0.01251881859 | Q151: 6.318683305 | R151: -50.49919335 | S151: 129.5008066 | U151: 1000000000 | V151: 73289864.9 | X151: 10.04787982 | Y151: -36.35610987 | AA151: 43.05004646 | AB151: -14.14308348 | AD151: 0 | AE151: 0
A152: 8610.5 | B152: 8.6105 | C152: 1.031155279 | D152: 0.2464440708 | E152: 1.000058537 | F152: 0.01081985116 | G152: 1 | H152: 0 | I152: 41551.2457 | J152: 1.57077226 | K152: 1.717061521 | L152: 0.9491302776 | M152: 1.000052185 | N152: 0.01021596418 | O152: 1.000012022 | P152: 0.01259127846 | Q152: 6.298648163 | R152: -50.42449411 | S152: 129.5755059 | U152: 1000000000 | V152: 74140710.25 | X152: 10.03080728 | Y152: -36.20279364 | AA152: 43.04708385 | AB152: -14.22170047 | AD152: 0 | AE152: 0
A153: 8660.05 | B153: 8.66005 | C153: 1.03150939 | D153: 0.2478050628 | E153: 1.000059213 | F153: 0.0108821102 | G153: 1 | H153: 0 | I153: 41790.35658 | J153: 1.570772398 | K153: 1.72359745 | L153: 0.951844354 | M153: 1.000052788 | N153: 0.01027474886 | O153: 1.000012161 | P153: 0.01266373836 | Q153: 6.278824444 | R153: -50.35092855 | S153: 129.6490715 | U153: 1000000000 | V153: 74996466 | X153: 10.01396123 | Y153: -36.05066452 | AA153: 43.04410619 | AB153: -14.30026403 | AD153: 0 | AE153: 0
A154: 8709.6 | B154: 8.7096 | C154: 1.03186541 | D154: 0.2491651181 | E154: 1.000059893 | F154: 0.01094436915 | G154: 1 | H154: 0 | I154: 42029.46746 | J154: 1.570772534 | K154: 1.73014598 | L154: 0.9545379048 | M154: 1.000053393 | N154: 0.01033353347 | O154: 1.000012301 | P154: 0.01273619829 | Q154: 6.259208391 | R154: -50.27848527 | S154: 129.7215147 | U154: 1000000000 | V154: 75857132.16 | X154: 9.997337858 | Y154: -35.89971134 | AA154: 43.04111351 | AB154: -14.37877393 | AD154: 0 | AE154: =IF(AD154>0,S154,0) -> 0
A155: 8760.325 | B155: 8.760325 | C155: 1.032231849 | D155: 0.2505564505 | E155: 1.000060592 | F155: 0.01100810438 | G155: 1 | H155: 0 | I155: 42274.24848 | J155: 1.570772672 | K155: 1.736862701 | L155: 0.9572742692 | M155: 1.000054017 | N155: 0.01039371199 | O155: 1.000012444 | P155: 0.01281037654 | Q155: 6.239338444 | R155: -50.20547482 | S155: 129.7945252 | U155: 1000000000 | V155: 76743294.11 | X155: 9.980547088 | Y155: -35.74638507 | AA155: 43.03803433 | AB155: -14.45908975 | AD155: 0 | AE155: 0
A156: 8811.05 | B156: 8.81105 | C156: 1.032600284 | D156: 0.2519467927 | E156: 1.000061296 | F156: 0.01107183953 | G156: 1 | H156: 0 | I156: 42519.02949 | J156: 1.570772808 | K156: 1.743592327 | L156: 0.9599895311 | M156: 1.000054644 | N156: 0.01045389043 | O156: 1.000012589 | P156: 0.01288455482 | Q156: 6.219678404 | R156: -50.13361664 | S156: 129.8663834 | U156: 1000000000 | V156: 77634602.1 | X156: 9.963981899 | Y156: -35.5942678 | AA156: 43.03493948 | AB156: -14.53934884 | AD156: 0 | AE156: 0
A157: 8861.775 | B157: 8.861775 | C157: 1.032970714 | D157: 0.2533361405 | E157: 1.000062004 | F157: 0.01113557459 | G157: 1 | H157: 0 | I157: 42763.81051 | J157: 1.570772943 | K157: 1.750334709 | L157: 0.9626838941 | M157: 1.000055275 | N157: 0.0105140688 | O157: 1.000012734 | P157: 0.01295873315 | Q157: 6.200224481 | R157: -50.06289881 | S157: 129.9371012 | U157: 1000000000 | V157: 78531056.15 | X157: 9.947638465 | Y157: -35.44334785 | AA157: 43.03182899 | AB157: -14.61955096 | AD157: 0 | AE157: 0
A158: 8912.5 | B158: 8.9125 | C158: 1.033343136 | D158: 0.2547244895 | E158: 1.000062716 | F158: 0.01119930955 | G158: 1 | H158: 0 | I158: 43008.59152 | J158: 1.570773076 | K158: =SQRT(1+(A158/Zero2)^2) -> 1.7570897 | L158: =ATAN(A158/Zero2) -> 0.9653575598 | M158: 1.00005591 | N158: 0.0105742471 | O158: 1.000012881 | P158: 0.01303291151 | Q158: 6.180972964 | R158: -49.99330953 | S158: 130.0066905 | U158: 1000000000 | V158: 79432656.25 | X158: 9.93151304 | Y158: -35.29361368 | AA158: 43.0287029 | AB158: -14.69969586 | AD158: 0 | AE158: 0
A159: 8964.4 | B159: 8.9644 | C159: 1.033726245 | D159: 0.2561439601 | E159: 1.000063448 | F159: 0.01126452079 | G159: 1 | H159: 0 | I159: 43259.04268 | J159: 1.57077321 | K159: 1.764014064 | L159: 0.9680719451 | M159: 1.000056563 | N159: 0.01063581929 | O159: 1.000013031 | P159: 0.01310880819 | Q159: 6.1614812 | R159: -49.92326416 | S159: 130.0767358 | U159: 1000000000 | V159: 80360467.36 | X159: 9.915235895 | Y159: -35.1416264 | AA159: 43.02548828 | AB159: -14.78163776 | AD159: 0 | AE159: 0
A160: 9016.3 | B160: 9.0163 | C160: 1.034111436 | D160: 0.2575623762 | E160: 1.000064185 | F160: 0.01132973193 | G160: 1 | H160: 0 | I160: 43509.49383 | J160: 1.570773343 | K160: 1.770951323 | L160: 0.9707650842 | M160: 1.00005722 | N160: 0.0106973914 | O160: 1.000013182 | P160: 0.01318470491 | Q160: 6.142193704 | R160: -49.85437559 | S160: 130.1456244 | U160: 1000000000 | V160: 81293665.69 | X160: 9.899179276 | Y160: -34.99085634 | AA160: 43.0222574 | AB160: -14.86351926 | AD160: 0 | AE160: 0
A161: 9068.2 | B161: 9.0682 | C161: 1.034498705 | D161: 0.2589797331 | E161: 1.000064926 | F161: 0.01139494297 | G161: 1 | H161: 0 | I161: 43759.94498 | J161: 1.570773475 | K161: 1.777901327 | L161: 0.973437187 | M161: 1.00005788 | N161: 0.01075896343 | O161: 1.000013335 | P161: 0.01326060168 | Q161: 6.123106738 | R161: -49.78663155 | S161: 130.2133685 | U161: 1000000000 | V161: 82232251.24 | X161: 9.883339408 | Y161: -34.84129148 | AA161: 43.0190103 | AB161: -14.94534007 | AD161: 0 | AE161: 0
A162: 9120.1 | B162: 9.1201 | C162: 1.034888051 | D162: 0.2603960263 | E162: 1.000065671 | F162: 0.01146015392 | G162: 1 | H162: 0 | I162: 44010.39614 | J162: 1.570773605 | K162: 1.784863926 | L162: 0.9760884614 | M162: 1.000058545 | N162: 0.01082053538 | O162: 1.000013488 | P162: 0.01333649848 | Q162: 6.10421664 | R162: -49.72001986 | S162: 130.2799801 | U162: 1000000000 | V162: 83176224.01 | X162: 9.867712592 | Y162: -34.69291991 | AA162: 43.01574702 | AB162: -15.02709995 | AD162: 0 | AE162: 0
A163: 9173.2 | B163: 9.1732 | C163: 1.035288546 | D163: 0.2618439608 | E163: 1.000066438 | F163: 0.01152687253 | G163: 1 | H163: 0 | I163: 44266.63807 | J163: 1.570773736 | K163: 1.792000393 | L163: 0.9787796951 | M163: 1.000059229 | N163: 0.01088353087 | O163: 1.000013645 | P163: 0.01341415017 | Q163: 6.085089789 | R163: -49.6530274 | S163: 130.3469726 | U163: 1000000000 | V163: 84147598.24 | X163: 9.851941182 | Y163: -34.54234049 | AA163: 43.01239158 | AB163: -15.11068691 | AD163: 0 | AE163: 0
A164: 9226.3 | B164: 9.2263 | C164: 1.03569121 | D164: 0.2632907724 | E164: 1.000067209 | F164: 0.01159359104 | G164: 1 | H164: 0 | I164: 44522.88 | J164: 1.570773866 | K164: 1.799149736 | L164: 0.9814495595 | M164: 1.000059916 | N164: 0.01094652628 | O164: 1.000013804 | P164: 0.0134918019 | Q164: 6.066161503 | R164: -49.58719488 | S164: 130.4128051 | U164: 1000000000 | V164: 85124611.69 | X164: 9.836385196 | Y164: -34.39298535 | AA164: 43.00901928 | AB164: -15.19420953 | AD164: 0 | AE164: 0
A165: 9279.4 | B165: 9.2794 | C165: 1.03609604 | D165: 0.2647364565 | E165: 1.000067985 | F165: 0.01166030945 | G165: 1 | H165: 0 | I165: 44779.12193 | J165: 1.570773995 | K165: 1.806311802 | L165: 0.9840982704 | M165: 1.000060608 | N165: 0.0110095216 | O165: 1.000013963 | P165: 0.01356945367 | Q165: 6.0474281 | R165: -49.52250968 | S165: 130.4774903 | U165: 1000000000 | V165: 86107264.36 | X165: 9.82104091 | Y165: -34.24484212 | AA165: 43.00563016 | AB165: -15.27766756 | AD165: 0 | AE165: 0
A166: 9332.5 | B166: 9.3325 | C166: 1.036503034 | D166: 0.2661810082 | E166: 1.000068766 | F166: 0.01172702775 | G166: 1 | H166: 0 | I166: 45035.36386 | J166: 1.570774122 | K166: 1.813486441 | L166: 0.9867260417 | M166: 1.000061303 | N166: 0.01107251683 | O166: 1.000014123 | P166: 0.01364710549 | Q166: 6.028885976 | R166: -49.45895928 | S166: 130.5410407 | U166: 1000000000 | V166: 87095556.25 | X166: 9.805904678 | Y166: -34.09789856 | AA166: 43.00222427 | AB166: -15.36106072 | AD166: 0 | AE166: 0
A167: 9386.85 | B167: 9.38685 | C167: 1.036921847 | D167: 0.2676583879 | E167: 1.000069569 | F167: 0.01179531653 | G167: 1 | H167: 0 | I167: 45297.63785 | J167: 1.570774251 | K167: 1.820842838 | L167: 0.9893942078 | M167: 1.00006202 | N167: 0.01113699491 | O167: 1.000014288 | P167: 0.01372658532 | Q167: 6.010101762 | R167: -49.39507513 | S167: 130.6049249 | U167: 1000000000 | V167: 88112952.92 | X167: 9.790623862 | Y167: -33.94872559 | AA167: 42.99872087 | AB167: -15.44634954 | AD167: 0 | AE167: 0
A168: 9441.2 | B168: 9.4412 | C168: 1.037342921 | D168: 0.2691345714 | E168: 1.000070377 | F168: 0.0118636052 | G168: 1 | H168: 0 | I168: 45559.91184 | J168: 1.570774378 | K168: 1.828212094 | L168: 0.9920408827 | M168: 1.00006274 | N168: 0.01120147289 | O168: 1.000014454 | P168: 0.0138060652 | Q168: 5.991510534 | R168: -49.33235372 | S168: 130.6676463 | U168: 1000000000 | V168: 89136257.44 | X168: 9.775553517 | Y168: -33.80078389 | AA168: 42.99519999 | AB168: -15.53156984 | AD168: 0 | AE168: 0
A169: 9495.55 | B169: 9.49555 | C169: 1.037766254 | D169: 0.2706095537 | E169: 1.000071189 | F169: 0.01193189375 | G169: 1 | H169: 0 | I169: 45822.18583 | J169: 1.570774503 | K169: 1.835594053 | L169: 0.9946662882 | M169: 1.000063464 | N169: 0.01126595079 | O169: 1.000014621 | P169: 0.01388554512 | Q169: 5.973108663 | R169: -49.27078206 | S169: 130.7292179 | U169: 1000000000 | V169: 90165469.8 | X169: 9.760689971 | Y169: -33.65406074 | AA169: 42.99166167 | AB169: -15.61672132 | AD169: 0 | AE169: 0
A170: 9549.9 | B170: 9.5499 | C170: 1.038191843 | D170: 0.27208333 | E170: 1.000072007 | F170: 0.0120001822 | G170: 1 | H170: 0 | I170: 46084.45982 | J170: 1.570774628 | K170: 1.842988564 | L170: 0.9972706441 | M170: 1.000064193 | N170: 0.01133042859 | O170: 1.000014789 | P170: 0.01396502509 | Q170: 5.954892598 | R170: -49.21034727 | S170: 130.7896527 | U170: 1000000000 | V170: 91200590.01 | X170: 9.746029628 | Y170: -33.50854356 | AA170: 42.98810594 | AB170: -15.70180371 | AD170: 0 | AE170: 0
A171: 9605.525 | B171: 9.605525 | C171: 1.038629749 | D171: 0.2735904257 | E171: 1.000072848 | F171: 0.01207007251 | G171: 1 | H171: 0 | I171: 46352.88652 | J171: 1.570774753 | K171: 1.850569381 | L171: 0.9999145263 | M171: 1.000064943 | N171: 0.01139641888 | O171: 1.000014962 | P171: 0.01404636964 | Q171: 5.936437969 | R171: -49.14965865 | S171: 130.8503414 | U171: 1000000000 | V171: 92266110.53 | X171: 9.731232099 | Y171: -33.36084843 | AA171: 42.98444884 | AB171: -15.78881021 | AD171: 0 | AE171: 0
A172: 9661.15 | B172: 9.66115 | C172: 1.039070012 | D172: 0.2750962477 | E172: 1.000073694 | F172: 0.01213996271 | G172: 1 | H172: 0 | I172: 46621.31321 | J172: 1.570774877 | K172: 1.858163029 | L172: 1.002536817 | M172: 1.000065697 | N172: 0.01146240907 | O172: 1.000015136 | P172: 0.01412771423 | Q172: 5.918170676 | R172: -49.09013404 | S172: 130.909866 | U172: 1000000000 | V172: 93337819.32 | X172: 9.716640032 | Y172: -33.2143903 | AA172: 42.98077362 | AB172: -15.87574375 | AD172: 0 | AE172: 0
A173: 9716.775 | B173: 9.716775 | C173: 1.039512629 | D173: 0.2766007908 | E173: 1.000074545 | F173: 0.01220985278 | G173: 1 | H173: 0 | I173: 46889.7399 | J173: 1.570775 | K173: 1.86576935 | L173: 1.005137745 | M173: 1.000066456 | N173: 0.01152839916 | O173: 1.000015311 | P173: 0.01420905888 | Q173: 5.900087147 | R173: -49.0317601 | S173: 130.9682399 | U173: 1000000000 | V173: 94415716.4 | X173: 9.702249808 | Y173: -33.06915609 | AA173: 42.97708031 | AB173: -15.96260401 | AD173: 0 | AE173: 0
A174: 9772.4 | B174: 9.7724 | C174: 1.039957597 | D174: 0.2781040497 | E174: 1.000075401 | F174: 0.01227974274 | G174: 1 | H174: 0 | I174: 47158.1666 | J174: 1.570775122 | K174: 1.87338819 | L174: 1.007717535 | M174: 1.000067219 | N174: 0.01159438915 | O174: 1.000015487 | P174: 0.01429040358 | Q174: 5.88218389 | R174: -48.97452363 | S174: 131.0254764 | U174: 1000000000 | V174: 95499801.76 | X174: 9.688057882 | Y174: -32.92513292 | AA174: 42.97336898 | AB174: -16.04939071 | AD174: 0 | AE174: 0
A175: 9829.3 | B175: 9.8293 | C175: 1.040415194 | D175: 0.2796404315 | E175: 1.000076281 | F175: 0.01235123454 | G175: 1 | H175: 0 | I175: 47432.74599 | J175: 1.570775244 | K175: 1.881194459 | L175: 1.010334819 | M175: 1.000068004 | N175: 0.01166189162 | O175: 1.000015667 | P175: 0.01437361286 | Q175: 5.864053216 | R175: -48.91713849 | S175: 131.0828615 | U175: 1000000000 | V175: 96615138.49 | X175: 9.673742211 | Y175: -32.77904822 | AA175: 42.96955398 | AB175: -16.13809027 | AD175: 0 | AE175: 0
A176: 9886.2 | B176: 9.8862 | C176: 1.040875244 | D176: 0.2811754587 | E176: 1.000077167 | F176: 0.01242272622 | G176: 1 | H176: 0 | I176: 47707.32539 | J176: 1.570775366 | K176: 1.889013507 | L176: 1.012930454 | M176: 1.000068793 | N176: 0.01172939398 | O176: 1.000015849 | P176: 0.0144568222 | Q176: 5.846104011 | R176: -48.86091608 | S176: 131.1390839 | U176: 1000000000 | V176: 97736950.44 | X176: 9.659626769 | Y176: -32.63420386 | AA176: 42.96572022 | AB176: -16.22671222 | AD176: 0 | AE176: 0
A177: 9943.1 | B177: 9.9431 | C177: 1.041337745 | D177: 0.282709126 | E177: 1.000078058 | F177: 0.01249421777 | G177: 1 | H177: 0 | I177: 47981.90478 | J177: 1.570775486 | K177: 1.896845178 | L177: 1.015504672 | M177: 1.000069587 | N177: 0.01179689623 | O177: 1.000016032 | P177: 0.01454003159 | Q177: 5.82833277 | R177: -48.80584275 | S177: 131.1941572 | U177: 1000000000 | V177: 98865237.61 | X177: 9.645707998 | Y177: -32.49058649 | AA177: 42.96186775 | AB177: -16.31525627 | AD177: 0 | AE177: 0
A178: 10000 | B178: 10 | C178: 1.041802693 | D178: 0.284241428 | E178: 1.000078954 | F178: 0.0125657092 | G178: 1 | H178: 0 | I178: 48256.48418 | J178: 1.570775604 | K178: 1.904689314 | L178: 1.018057705 | M178: 1.000070386 | N178: 0.01186439838 | O178: 1.000016216 | P178: 0.01462324104 | Q178: 5.810736064 | R178: -48.751905 | S178: 131.248095 | U178: 1000000000 | V178: 100000000 | X178: 9.631982415 | Y178: -32.3481829 | AA178: 42.95799662 | AB178: -16.4037221 | AD178: 0 | AE178: 0
A179: 10058.25 | B179: 10.05825 | C179: 1.042281204 | D179: 0.2858086653 | E179: 1.000079876 | F179: 0.01263889668 | G179: 1 | H179: 0 | I179: 48537.5782 | J179: 1.570775724 | K179: 1.912732313 | L179: 1.020649601 | M179: 1.000071208 | N179: 0.01193350196 | O179: 1.000016406 | P179: 0.01470842475 | Q179: 5.792899152 | R179: -48.6978499 | S179: 131.3021501 | U179: 1000000000 | V179: 101168393.1 | X179: 9.618127743 | Y179: -32.20364439 | AA179: 42.95401438 | AB179: -16.49420551 | AD179: 0 | AE179: 0
A180: 10116.5 | B180: 10.1165 | C180: 1.042762272 | D180: 0.2873744603 | E180: 1.000080804 | F180: 0.01271208403 | G180: 1 | H180: 0 | I180: 48818.67222 | J180: 1.570775843 | K180: 1.920788053 | L180: 1.023219774 | M180: 1.000072036 | N180: 0.01200260542 | O180: 1.000016597 | P180: 0.01479360853 | Q180: 5.775238117 | R180: -48.64495677 | S180: 131.3550432 | U180: 1000000000 | V180: 102343572.2 | X180: 9.604468383 | Y180: -32.06035047 | AA180: 42.95001271 | AB180: -16.5846063 | AD180: 0 | AE180: 0
A181: 10174.75 | B181: 10.17475 | C181: 1.043245895 | D181: 0.2889388074 | E181: 1.000081737 | F181: 0.01278527124 | G181: 1 | H181: 0 | I181: 49099.76624 | J181: 1.57077596 | K181: 1.928856376 | L181: 1.025768462 | M181: 1.000072868 | N181: 0.01207170877 | O181: 1.000016788 | P181: 0.01487879236 | Q181: 5.757749512 | R181: -48.59321161 | S181: 131.4067884 | U181: 1000000000 | V181: 103525537.6 | X181: 9.591000834 | Y181: -31.91828746 | AA181: 42.94599165 | AB181: -16.67492415 | AD181: 0 | AE181: 0
A182: 10233 | B182: 10.233 | C182: 1.043732068 | D182: 0.290501701 | E182: 1.000082676 | F182: 0.01285845832 | G182: 1 | H182: 0 | I182: 49380.86026 | J182: 1.570776076 | K182: 1.936937124 | L182: 1.0282959 | M182: 1.000073704 | N182: 0.012140812 | O182: 1.000016981 | P182: 0.01496397625 | Q182: 5.740429967 | R182: -48.5426006 | S182: 131.4573994 | U182: 1000000000 | V182: 104714289 | X182: 9.577721668 | Y182: -31.77744188 | AA182: 42.94195127 | AB182: -16.76515872 | AD182: 0 | AE182: 0
A183: 10292.5 | B183: 10.2925 | C183: 1.044231304 | D183: 0.2920966266 | E183: 1.00008364 | F183: 0.01293321579 | G183: 1 | H183: 0 | I183: 49667.98634 | J183: 1.570776193 | K183: 1.945203945 | L183: 1.030855879 | M183: 1.000074564 | N183: 0.01221139802 | O183: 1.000017179 | P183: 0.01505098819 | Q183: 5.722909873 | R183: -48.49206025 | S183: 131.5079397 | U183: 1000000000 | V183: 105935556.2 | X183: 9.564348545 | Y183: -31.6348169 | AA183: 42.9378043 | AB183: -16.85724335 | AD183: 0 | AE183: 0
A184: 10352 | B184: 10.352 | C184: 1.044733194 | D184: 0.2936900238 | E184: 1.00008461 | F184: 0.01300797311 | G184: 1 | H184: 0 | I184: 49955.11242 | J184: 1.570776309 | K184: 1.953483406 | L184: 1.033394174 | M184: 1.000075428 | N184: 0.01228198392 | O184: 1.000017379 | P184: 0.01513800018 | Q184: 5.705559295 | R184: -48.44267463 | S184: 131.5573254 | U184: 1000000000 | V184: 107163904 | X184: 9.551164979 | Y184: -31.4934342 | AA184: 42.93363729 | AB184: -16.94924043 | AD184: 0 | AE184: 0
A185: 10411.5 | B185: 10.4115 | C185: 1.045237734 | D185: 0.2952818869 | E185: 1.000085585 | F185: 0.0130827303 | G185: 1 | H185: 0 | I185: 50242.2385 | J185: 1.570776423 | K185: 1.961775347 | L185: 1.035911028 | M185: 1.000076298 | N185: 0.01235256969 | O185: 1.000017579 | P185: 0.01522501224 | Q185: 5.688374875 | R185: -48.39442953 | S185: 131.6055705 | U185: 1000000000 | V185: 108399332.2 | X185: 9.538167548 | Y185: -31.35327991 | AA185: 42.9294503 | AB185: -17.04114962 | AD185: 0 | AE185: 0
A186: 10471 | B186: 10.471 | C186: 1.04574492 | D186: 0.2968722098 | E186: 1.000086566 | F186: 0.01315748733 | G186: 1 | H186: 0 | I186: 50529.36458 | J186: 1.570776536 | K186: 1.97007961 | L186: 1.038406679 | M186: 1.000077172 | N186: 0.01242315534 | O186: 1.00001778 | P186: 0.01531202436 | Q186: 5.671353325 | R186: -48.34731093 | S186: 131.6526891 | U186: 1000000000 | V186: 109641841 | X186: 9.525352903 | Y186: -31.21434036 | AA186: 42.9252434 | AB186: -17.13297057 | AD186: 0 | AE186: 0
A187: 10532 | B187: 10.532 | C187: 1.046267635 | D187: 0.29850102 | E187: 1.000087577 | F187: 0.01323412884 | G187: 1 | H187: 0 | I187: 50823.72913 | J187: 1.570776651 | K187: 1.978605855 | L187: 1.040943483 | M187: 1.000078074 | N187: 0.01249552033 | O187: 1.000017988 | P187: 0.01540123013 | Q187: 5.654068377 | R187: -48.30015941 | S187: 131.6998406 | U187: 1000000000 | V187: 110923024 | X187: 9.512401526 | Y187: -31.073145 | AA187: 42.92090982 | AB187: -17.2270144 | AD187: 0 | AE187: 0
A188: 10593 | B188: 10.593 | C188: 1.046793122 | D188: 0.3001281992 | E188: 1.000088595 | F188: 0.0133107702 | G188: 1 | H188: 0 | I188: 51118.09369 | J188: 1.570776764 | K188: 1.987144723 | L188: 1.043458501 | M188: 1.000078981 | N188: 0.01256788519 | O188: 1.000018197 | P188: 0.01549043597 | Q188: 5.636947848 | R188: -48.25416258 | S188: 131.7458374 | U188: 1000000000 | V188: 112211649 | X188: 9.49963537 | Y188: -30.93319779 | AA188: 42.91655545 | AB188: -17.3209648 | AD188: 0 | AE188: 0
A189: 10654 | B189: 10.654 | C189: 1.047321379 | D189: 0.3017537413 | E189: 1.000089618 | F189: 0.0133874114 | G189: 1 | H189: 0 | I189: 51412.45824 | J189: 1.570776876 | K189: 1.995696053 | L189: 1.045951981 | M189: 1.000079893 | N189: 0.01264024992 | O189: 1.000018408 | P189: 0.01557964187 | Q189: 5.619988427 | R189: -48.20930589 | S189: 131.7906941 | U189: 1000000000 | V189: 113507716 | X189: 9.487051055 | Y189: -30.79448449 | AA189: 42.91218035 | AB189: -17.4148214 | AD189: 0 | AE189: 0
A190: 10715 | B190: 10.715 | C190: 1.047852401 | D190: 0.3033776401 | E190: 1.000090647 | F190: 0.01346405245 | G190: 1 | H190: 0 | I190: 51706.82279 | J190: 1.570776987 | K190: 2.004259685 | L190: 1.048424169 | M190: 1.000080811 | N190: 0.01271261452 | O190: 1.000018619 | P190: 0.01566884784 | Q190: 5.603186877 | R190: -48.16557496 | S190: 131.834425 | U190: 1000000000 | V190: 114811225 | X190: 9.474645278 | Y190: -30.65699109 | AA190: 42.90778457 | AB190: -17.50858387 | AD190: 0 | AE190: 0
A191: 10777.5 | B191: 10.7775 | C191: 1.048399343 | D191: 0.3050397601 | E191: 1.000091708 | F191: 0.01354257794 | G191: 1 | H191: 0 | I191: 52008.42582 | J191: 1.570777099 | K191: 2.013046493 | L191: 1.050935316 | M191: 1.000081756 | N191: 0.01278675843 | O191: 1.000018837 | P191: 0.01576024747 | Q191: 5.586132606 | R191: -48.12192145 | S191: 131.8780785 | U191: 1000000000 | V191: 116154506.2 | X191: 9.462116237 | Y191: -30.51736749 | AA191: 42.90325934 | AB191: -17.60455396 | AD191: 0 | AE191: 0
A192: 10840 | B192: 10.84 | C192: 1.048949179 | D192: 0.3067001422 | E192: 1.000092774 | F192: 0.01362110327 | G192: 1 | H192: 0 | I192: 52310.02885 | J192: 1.57077721 | K192: 2.021845885 | L192: 1.053424622 | M192: 1.000082707 | N192: 0.01286090221 | O192: 1.000019056 | P192: 0.01585164718 | Q192: 5.569237414 | R192: -48.07941977 | S192: 131.9205802 | U192: 1000000000 | V192: 117505600 | X192: 9.449767827 | Y192: -30.37899527 | AA192: 42.89871256 | AB192: -17.7004245 | AD192: 0 | AE192: 0
A193: 10902.5 | B193: 10.9025 | C193: 1.049501903 | D193: 0.30835878 | E193: 1.000093847 | F193: 0.01369962843 | G193: 1 | H193: 0 | I193: 52611.63187 | J193: 1.57077732 | K193: 2.030657698 | L193: 1.055892338 | M193: 1.000083664 | N193: 0.01293504584 | O193: 1.000019277 | P193: 0.01594304695 | Q193: 5.552498047 | R193: -48.03805503 | S193: 131.961945 | U193: 1000000000 | V193: 118864506.2 | X193: 9.437596721 | Y193: -30.24185993 | AA193: 42.8941443 | AB193: -17.7961951 | AD193: 0 | AE193: 0
A194: 10965 | B194: 10.965 | C194: 1.050057512 | D194: 0.3100156671 | E194: 1.000094926 | F194: 0.01377815343 | G194: 1 | H194: 0 | I194: 52913.2349 | J194: 1.570777428 | K194: 2.039481769 | L194: 1.058338716 | M194: 1.000084625 | N194: 0.01300918933 | O194: 1.000019498 | P194: 0.0160344468 | Q194: 5.535911327 | R194: -47.99781256 | S194: 132.0021874 | U194: 1000000000 | V194: 120231225 | X194: 9.425599668 | Y194: -30.10594714 | AA194: 42.88955463 | AB194: -17.89186542 | AD194: 0 | AE194: 0
A195: 11028.75 | B195: 11.02875 | C195: 1.050627199 | D195: 0.3117038818 | E195: 1.000096033 | F195: 0.01385824874 | G195: 1 | H195: 0 | I195: 53220.86998 | J195: 1.570777537 | K195: 2.048494787 | L195: 1.060812293 | M195: 1.000085612 | N195: 0.01308481555 | O195: 1.000019726 | P195: 0.01612767472 | Q195: 5.519146905 | R195: -47.95790635 | S195: 132.0420937 | U195: 1000000000 | V195: 121633326.6 | X195: 9.413538684 | Y195: -29.96856091 | AA195: 42.8848512 | AB195: -17.98934544 | AD195: 0 | AE195: 0
A196: 11092.5 | B196: 11.0925 | C196: 1.051199878 | D196: 0.3133902619 | E196: 1.000097147 | F196: 0.01393834388 | G196: 1 | H196: 0 | I196: 53528.50507 | J196: 1.570777645 | K196: 2.057520229 | L196: 1.063264185 | M196: 1.000086605 | N196: 0.01316044161 | O196: 1.000019954 | P196: 0.01622090271 | Q196: 5.50253484 | R196: -47.91913748 | S196: 132.0808625 | U196: 1000000000 | V196: 123043556.2 | X196: 9.401652173 | Y196: -29.83241713 | AA196: 42.88012564 | AB196: -18.08672036 | AD196: 0 | AE196: 0
A197: 11156.25 | B197: 11.15625 | C197: 1.051775542 | D197: 0.3150748008 | E197: 1.000098266 | F197: 0.01401843884 | G197: 1 | H197: 0 | I197: 53836.14016 | J197: 1.570777752 | K197: 2.066557932 | L197: 1.065694645 | M197: 1.000087603 | N197: 0.01323606752 | O197: 1.000020185 | P197: 0.01631413079 | Q197: 5.486071981 | R197: -47.88149098 | S197: 132.118509 | U197: 1000000000 | V197: 124461914.1 | X197: 9.389936907 | Y197: -29.69750118 | AA197: 42.87537805 | AB197: -18.1839898 | AD197: 0 | AE197: 0
A198: 11220 | B198: 11.22 | C198: 1.052354189 | D198: 0.3167574919 | E198: 1.000099393 | F198: 0.01409853362 | G198: 1 | H198: 0 | I198: 54143.77524 | J198: 1.570777857 | K198: 2.075607736 | L198: 1.068103925 | M198: 1.000088607 | N198: 0.01331169329 | O198: 1.000020416 | P198: 0.01640735894 | Q198: 5.46975525 | R198: -47.84495206 | S198: 132.1550479 | U198: 1000000000 | V198: 125888400 | X198: 9.378389731 | Y198: -29.56379868 | AA198: 42.87060849 | AB198: -18.28115338 | AD198: 0 | AE198: 0
A199: 11285.5 | B199: 11.2855 | C199: 1.052951819 | D199: 0.3184844433 | E199: 1.000100556 | F199: 0.0141808269 | G199: 1 | H199: 0 | I199: 54459.85521 | J199: 1.570777965 | K199: 2.084918404 | L199: 1.070557543 | M199: 1.000089645 | N199: 0.01338939489 | O199: 1.000020655 | P199: 0.01650314637 | Q199: 5.453139649 | R199: -47.8085484 | S199: 132.1914516 | U199: 1000000000 | V199: 127362510.2 | X199: 9.366697403 | Y199: -29.42767483 | AA199: 42.86568522 | AB199: -18.38087357 | AD199: 0 | AE199: 0
A200: 11351 | B200: 11.351 | C200: 1.053552586 | D200: 0.3202094302 | E200: 1.000101727 | F200: 0.01426311998 | G200: 1 | H200: 0 | I200: 54775.93519 | J200: 1.570778071 | K200: 2.094241512 | L200: 1.07298933 | M200: 1.000090688 | N200: 0.01346709633 | O200: 1.000020896 | P200: 0.01659893389 | Q200: 5.436671945 | R200: -47.77328297 | S200: 132.226717 | U200: 1000000000 | V200: 128845201 | X200: 9.355175989 | Y200: -29.29280176 | AA200: 42.86073893 | AB200: -18.48048121 | AD200: 0 | AE200: 0
A201: 11416.5 | B201: 11.4165 | C201: 1.054156485 | D201: 0.3219324459 | E201: 1.000102904 | F201: 0.01434541286 | G201: 1 | H201: 0 | I201: 55092.01516 | J201: 1.570778175 | K201: 2.103576896 | L201: 1.075399547 | M201: 1.000091738 | N201: 0.01354479761 | O201: 1.000021138 | P201: 0.01669472149 | Q201: 5.420349025 | R201: -47.73914038 | S201: 132.2608596 | U201: 1000000000 | V201: 130336472.2 | X201: 9.34382229 | Y201: -29.15916445 | AA201: 42.85576971 | AB201: -18.57997593 | AD201: 0 | AE201: 0
A202: 11482 | B202: 11.482 | C202: 1.054763509 | D202: 0.3236534835 | E202: 1.000104088 | F202: 0.01442770556 | G202: 1 | H202: 0 | I202: 55408.09513 | J202: 1.570778279 | K202: 2.112924391 | L202: 1.077788452 | M202: 1.000092793 | N202: 0.01362249873 | O202: 1.000021381 | P202: 0.01679050917 | Q202: 5.404167847 | R202: -47.70610546 | S202: 132.2938945 | U202: 1000000000 | V202: 131836324 | X202: 9.332633177 | Y202: -29.02674814 | AA202: 42.85077764 | AB202: -18.67935732 | AD202: 0 | AE202: 0
... 433 more rows

Sheet Ch2 Stability Calculations (hidden)
A2: Divider Network & EA Poles/Zeros | E2: Modulator | J2: Power Stage Poles/Zeros | M2: Complex Pole Pair | P2: Total System
B3: Afb1 | C3: =Afb_Ch2 -> 0.12 | D3: V/V | E3: Acs | F3: =Acs_Ch2 -> 11.9047619 | G3: A/V | H3: gm | I3: =gm -> 0.0012 | J3: z_ESR | K3: =Fesr_Ch2 -> 795774.7164 | L3: Hz | M3: p3 | N3: =Fsw/2 -> 1050000 | O3: Hz | P3: Adc | Q3: =Am_Ch2*Afb_Ch2*AEA -> 63030.61409 | R3: V/V
B4: EA zero, z1 | C4: =Fz1_u_Ch2 -> 6001.31762 | D4: Hz | E4: Am | F4: =Am_Ch2 -> 6.839259341 | G4: V/V | J4: p_dom | K4: =Fp_dominant_Ch2 -> 2770.331714 | L4: Hz | M4: pterm1 | N4: =Q_Ch2*pole3 -> 687071.3976 | P4: Crossover | Q4: =AE7 -> 58.549 | R4: kHz
B5: EA pole, p1 | C5: =Fp1_u_Ch2 -> 2.071614636 | D5: Hz | E5: Q | F5: =Q_Ch2 -> 0.654353712 | M5: pterm2 | N5: =pole3^2 -> 1102500000000 | P5: Phase Margin | Q5: =AE9 -> 71.67165979 | R5: °
B6: Aea | C6: =AEA -> 76800 | D6: V/V | E6: mc | F6: =mc_Ch2 -> 1.706493506 | P6: radconv | Q6: =180/Pi -> 57.29577958 | AD6: XOVER SEARCH
B7: EA pole, p2 | C7: =Fp2_u_Ch2 -> 226244.3439 | D7: Hz | E7: k | F7: =k_Ch2 -> 0.9864492715 | AD7: xover | AE7: =SUM(AD12:AD613)/1000 -> 58.549
AD9: phase margin | AE9: =SUM(AE13:AE613) -> 71.67165979
A10: Freq (Hz) | C10: Power Stage | I10: Error Amplifier | O10: Sampling Double Pole | Q10: System Response | X10: ERROR AMP Response | AA10: PLANT Response
C11: p_dom | E11: z_ESR | G11: z_RHP | I11: p1 | K11: z1 | M11: p2 | O11: p3
C12: Gain(V/V) | D12: Phase(rad) | E12: Gain(V/V) | F12: Phase(rad) | G12: Gain(V/V) | H12: Phase(rad) | I12: Gain(V/V) | J12: Phase(rad) | K12: Gain(V/V) | L12: Phase(rad) | M12: Gain(V/V) | N12: Phase(rad) | O12: Gain(V/V) | P12: Phase(rad) | Q12: Gain (dB) | R12: Phase (°) | S12: Phase Margin (°) | V12: Fsquare | X12: Gain(dB) | Y12: Phase(Deg) | AA12: Gain(dB) | AB12: Phase(Deg)
A13: 1 | B13: =A13/1000 -> 0.001 | C13: =SQRT(1+(A13/pole1)^2) -> 1.000000065 | D13: =ATAN(A13/pole1) -> 0.0003609675879 | E13: =SQRT(1+(A13/Zero1)^2) -> 1 | F13: =ATAN(A13/Zero1) -> 1.25663706e-06 | G13: =IF(VIN_nom>Vout, 1, SQRT(1+(A13/z_RHP)^2)) -> 1 | H13: =IF(VIN_nom>Vout, 0, -ATAN(A13/z_RHP)) -> 0 | I13: =SQRT(1+(A13/Pole2)^2) -> 1.110411646 | J13: =ATAN(A13/Pole2) -> 0.4497244481 | K13: =SQRT(1+(A13/Zero2)^2) -> 1.000000014 | L13: =ATAN(A13/Zero2) -> 0.0001666300726 | M13: =SQRT(1+(A13/pole4)^2) -> 1 | N13: =ATAN(A13/pole4) -> 4.42e-06 | O13: =SQRT((1-(V13/pterm2))^2+(A13/pterm1)^2) -> 1 | P13: =IF((ATAN((A13/pterm1)/(1-A13^2/pterm2))>0),ATAN((A13/pterm1)/(1-A13^2/pterm2)),PI()+ATAN((A13/pterm1)/(1-A13^2/pterm2))) -> 1.455452815e-06 | Q13: =20*LOG10(((E13*K13*G13)/(C13*I13*O13*M13))*Adc) -> 95.08135016 | R13: =((F13+L13+H13)-(D13+J13+P13+N13))*radconv -> -25.77871221 | S13: =IF(R13>0,R13,R13+180) -> 154.2212878 | U13: =IF(Q13<0,A13,1000000000) -> 1000000000 | V13: =A13^2 -> 1 | X13: =20*LOG10((K13/(I13*M13))*AEA) -> 96.79754436 | Y13: =(L13-(J13+N13))*radconv -> -25.7580189 | AA13: =20*LOG10((E13*G13/(C13*O13))*Acs*Am) -> 43.31316067 | AB13: =(F13+H13-(D13+P13))*radconv -> -0.02069331065 | AD13: =SUM((Q14<0)*(Q13>0))*A13 -> 0 | AE13: =IF(AD13>0,S11,0) -> 0
A14: 1.0965 | B14: =A14/1000 -> 0.0010965 | C14: 1.000000078 | D14: 0.0003958009566 | E14: 1 | F14: 1.377902536e-06 | G14: 1 | H14: 0 | I14: 1.13143962 | J14: 0.4868098087 | K14: 1.000000017 | L14: 0.0001827098743 | M14: 1 | N14: 4.84653e-06 | O14: 1 | P14: 1.595904012e-06 | Q14: 94.91840258 | R14: -27.90464689 | S14: 152.0953531 | U14: =IF(Q14<0,A14,1000000000) -> 1000000000 | V14: =A14^2 -> 1.20231225 | X14: 96.63459689 | Y14: -27.88195668 | AA14: 43.31316055 | AB14: -0.02269021493 | AD14: =SUM((Q15<0)*(Q14>0))*A14 -> 0 | AE14: 0
A15: 1.2023 | B15: 0.0012023 | C15: 1.000000094 | D15: 0.0004339913225 | E15: 1 | F15: 1.510854737e-06 | G15: 1 | H15: 0 | I15: 1.156212638 | J15: 0.525859534 | K15: 1.00000002 | L15: 0.0002003393355 | M15: 1 | N15: 5.314166e-06 | O15: 1 | P15: 1.74989092e-06 | Q15: 94.73027588 | R15: -30.14323739 | S15: 149.8567626 | U15: 1000000000 | V15: 1.44552529 | X15: 96.44647033 | Y15: -30.11835783 | AA15: 43.31316041 | AB15: -0.02487956692 | AD15: 0 | AE15: 0
A16: 1.3183 | B16: 0.0013183 | C16: 1.000000113 | D16: 0.0004758635559 | E16: 1 | F16: 1.656624636e-06 | G16: 1 | H16: 0 | I16: 1.18530947 | J16: 0.5667291409 | K16: 1.000000024 | L16: 0.0002196684232 | M16: 1 | N16: 5.826886e-06 | O16: 1 | P16: 1.918723446e-06 | Q16: 94.51439491 | R16: -32.48621571 | S16: 147.5137843 | U16: 1000000000 | V16: 1.73791489 | X16: 96.23058952 | Y16: -32.45893572 | AA16: 43.31316025 | AB16: -0.02727999056 | AD16: 0 | AE16: 0
A17: 1.4454 | B17: 0.0014454 | C17: 1.000000136 | D17: 0.0005217425268 | E17: 1 | F17: 1.816343207e-06 | G17: 1 | H17: 0 | I17: 1.219347575 | J17: 0.6091918625 | K17: 1.000000029 | L17: 0.0002408471045 | M17: 1 | N17: 6.388668e-06 | O17: 1 | P17: 2.103711499e-06 | Q17: 94.26847946 | R17: -34.92059931 | S17: 145.0794007 | U17: 1000000000 | V17: 2.08918116 | X17: 95.98467428 | Y17: -34.8906892 | AA17: 43.31316005 | AB17: -0.02991010981 | AD17: 0 | AE17: 0
A18: 1.5849 | B18: 0.0015849 | C18: 1.000000164 | D18: 0.0005720974925 | E18: 1 | F18: 1.991644076e-06 | G18: 1 | H18: 0 | I18: 1.259090859 | J18: 0.653067152 | K18: 1.000000035 | L18: 0.0002640919984 | M18: 1 | N18: 7.005258e-06 | O18: 1 | P18: 2.306747167e-06 | Q18: 93.98988823 | R18: -37.43605843 | S18: 142.5639416 | U18: 1000000000 | V18: 2.51190801 | X18: 95.70608328 | Y18: -37.40326161 | AA18: 43.31315981 | AB18: -0.0327968259 | AD18: 0 | AE18: 0
A19: 1.7378 | B19: 0.0017378 | C19: 1.000000197 | D19: 0.0006272894192 | E19: 1 | F19: 2.183783883e-06 | G19: 1 | H19: 0 | I19: 1.305254929 | J19: 0.6979925777 | K19: 1.000000042 | L19: 0.0002895697348 | M19: 1 | N19: 7.681076e-06 | O19: 1 | P19: 2.529285902e-06 | Q19: 93.67712259 | R19: -40.01183868 | S19: 139.9881613 | U19: 1000000000 | V19: 3.01994884 | X19: 95.39331793 | Y19: -39.97587785 | AA19: 43.31315952 | AB19: -0.0359608321 | AD19: 0 | AE19: 0
A20: 1.9055 | B20: 0.0019055 | C20: 1.000000237 | D20: 0.0006878236601 | E20: 1 | F20: 2.394521918e-06 | G20: 1 | H20: 0 | I20: 1.358697047 | J20: 0.7436548005 | K20: 1.00000005 | L20: 0.0003175135956 | M20: 1 | N20: 8.42231e-06 | O20: 1 | P20: 2.77336534e-06 | Q20: 93.32857652 | R20: -42.630003 | S20: 137.369997 | U20: 1000000000 | V20: 3.63093025 | X20: 95.04477221 | Y20: -42.59057191 | AA20: 43.31315918 | AB20: -0.03943109895 | AD20: 0 | AE20: 0
A21: 2.0893 | B21: 0.0020893 | C21: 1.000000284 | D21: 0.0007541694711 | E21: 1 | F21: 2.625491809e-06 | G21: 1 | H21: 0 | I21: 1.420262958 | J21: 0.7896484927 | K21: 1.000000061 | L21: 0.0003481401999 | M21: 1 | N21: 9.234706e-06 | O21: 1 | P21: 3.040877567e-06 | Q21: 92.94365362 | R21: -45.26734266 | S21: 134.7326573 | U21: 1000000000 | V21: 4.36517449 | X21: 94.65984972 | Y21: -45.22410813 | AA21: 43.31315876 | AB21: -0.04323452763 | AD21: 0 | AE21: 0
A22: 2.2909 | B22: 0.0022909 | C22: 1.000000342 | D22: 0.0008269404945 | E22: 1 | F22: 2.878829841e-06 | G22: 1 | H22: 0 | I22: 1.490942491 | J22: 0.8356217101 | K22: 1.000000073 | L22: 0.0003817328183 | M22: 1 | N22: 1.0125778e-05 | O22: 1 | P22: 3.334296855e-06 | Q22: 92.52181059 | R22: -47.90371209 | S22: 132.0962879 | U22: 1000000000 | V22: 5.24822281 | X22: 94.23800719 | Y22: -47.8563058 | AA22: 43.31315826 | AB22: -0.04740629664 | AD22: 0 | AE22: 0
A23: 2.5119 | B23: 0.0025119 | C23: 1.000000411 | D23: 0.0009067142749 | E23: 1 | F23: 3.156546631e-06 | G23: 1 | H23: 0 | I23: 1.571698119 | J23: 0.8811627987 | K23: 1.000000088 | L23: 0.0004185580588 | M23: 1 | N23: 1.1102598e-05 | O23: 1 | P23: 3.655951927e-06 | Q23: 92.06364529 | R23: -50.51554353 | S23: 129.4844565 | U23: 1000000000 | V23: 6.30964161 | X23: 93.77984249 | Y23: -50.46356401 | AA23: 43.31315766 | AB23: -0.05197951505 | AD23: 0 | AE23: 0
A24: 2.7542 | B24: 0.0027542 | C24: 1.000000494 | D24: 0.0009941766462 | E24: 1 | F24: 3.461029791e-06 | G24: 1 | H24: 0 | I24: 1.663597092 | J24: 0.9259106415 | K24: 1.000000105 | L24: 0.000458932518 | M24: 1 | N24: 1.2173564e-05 | O24: 1 | P24: 4.008608144e-06 | Q24: 91.57006434 | R24: -53.08216812 | S24: 126.9178319 | U24: 1000000000 | V24: 7.58561764 | X24: 93.28626226 | Y24: -53.02517462 | AA24: 43.31315694 | AB24: -0.05699349991 | AD24: 0 | AE24: 0
A25: 3.02 | B25: 0.00302 | C25: 1.000000594 | D25: 0.001090121731 | E25: 1 | F25: 3.795043921e-06 | G25: 1 | H25: 0 | I25: 1.767818175 | J25: 0.9695519863 | K25: 1.000000127 | L25: 0.0005032227815 | M25: 1 | N25: 1.33484e-05 | O25: 1 | P25: 4.395467502e-06 | Q25: 91.04227482 | R25: -55.58566294 | S25: 124.4143371 | U25: 1000000000 | V25: 9.1204 | X25: 92.75847361 | Y25: -55.52316916 | AA25: 43.31315607 | AB25: -0.06249377615 | AD25: 0 | AE25: 0
A26: 3.3113 | B26: 0.0033113 | C26: 1.000000714 | D26: 0.001195271456 | E26: 1 | F26: 4.161102297e-06 | G26: 1 | H26: 0 | I26: 1.885452374 | J26: 1.011751482 | K26: 1.000000152 | L26: 0.0005517621086 | M26: 1 | N26: 1.4635946e-05 | O26: 1 | P26: 4.819440907e-06 | Q26: 90.48271455 | R26: -58.00683656 | S26: 121.9931634 | U26: 1000000000 | V26: 10.96470769 | X26: 92.19891439 | Y26: -57.93831483 | AA26: 43.31315503 | AB26: -0.06852172993 | AD26: 0 | AE26: 0
A27: 3.6308 | B27: 0.0036308 | C27: 1.000000859 | D27: 0.001310600425 | E27: 1 | F27: 4.562597837e-06 | G27: 1 | H27: 0 | I27: 2.017859256 | J27: 1.052299952 | K27: 1.000000183 | L27: 0.0006050003994 | M27: 1 | N27: 1.6048136e-05 | O27: 1 | P27: 5.284458082e-06 | Q27: 89.89320747 | R27: -60.33373483 | S27: 119.6662652 | U27: 1000000000 | V27: 13.18270864 | X27: 91.60940856 | Y27: -60.2586016 | AA27: 43.31315377 | AB27: -0.07513323259 | AD27: 0 | AE27: 0
A28: 3.9811 | B28: 0.0039811 | C28: 1.000001033 | D28: 0.001437047137 | E28: 1 | F28: 5.0027978e-06 | G28: 1 | H28: 0 | I28: 2.166350823 | J28: 1.090991835 | K28: 1.00000022 | L28: 0.0006633708909 | M28: 1 | N28: 1.7596462e-05 | O28: 1 | P28: 5.794303203e-06 | Q28: 89.27644794 | R28: -62.55460965 | S28: 117.4453903 | U28: 1000000000 | V28: 15.84915721 | X28: 90.99265054 | Y28: -62.47222757 | AA28: 43.31315226 | AB28: -0.08238208594 | AD28: 0 | AE28: 0
A29: 4.3652 | B29: 0.0043652 | C29: 1.000001241 | D29: 0.001575694479 | E29: 1 | F29: 5.485472094e-06 | G29: 1 | H29: 0 | I29: 2.332396936 | J29: 1.127694838 | K29: 1.000000265 | L29: 0.0007273734714 | M29: 1 | N29: 1.9294184e-05 | O29: 1 | P29: 6.353342629e-06 | Q29: 88.63497304 | R29: -64.66191529 | S29: 115.3380847 | U29: 1000000000 | V29: 19.05497104 | X29: 90.35117745 | Y29: -64.57158492 | AA29: 43.31315045 | AB29: -0.09033036887 | AD29: 0 | AE29: 0
A30: 4.7863 | B30: 0.0047863 | C30: 1.000001492 | D30: 0.001727697522 | E30: 1 | F30: 6.01464196e-06 | G30: 1 | H30: 0 | I30: 2.517546589 | J30: 1.162319303 | K30: 1.000000318 | L30: 0.0007975413548 | M30: 1 | N30: 2.1155446e-05 | O30: 1 | P30: 6.96623381e-06 | Q30: 87.97147024 | R30: -66.65055125 | S30: 113.3494487 | U30: 1000000000 | V30: 22.90866769 | X30: 89.68767684 | Y30: -66.55150696 | AA30: 43.31314827 | AB30: -0.09904429859 | AD30: 0 | AE30: 0
A31: 5.2481 | B31: 0.0052481 | C31: 1.000001794 | D31: 0.001894391814 | E31: 1 | F31: 6.594956954e-06 | G31: 1 | H31: 0 | I31: 2.723564067 | J31: 1.194835997 | K31: 1.000000382 | L31: 0.0008744910693 | M31: 1 | N31: 2.3196602e-05 | O31: 1 | P31: 7.63836192e-06 | Q31: 87.28826658 | R31: -68.51888477 | S31: 111.4811152 | U31: 1000000000 | V31: 27.54255361 | X31: 89.0044758 | Y31: -68.41028433 | AA31: 43.31314565 | AB31: -0.1086004385 | AD31: 0 | AE31: 0
A32: 5.7544 | B32: 0.0057544 | C32: 1.000002157 | D32: 0.002077148991 | E32: 1 | F32: 7.231192298e-06 | G32: 1 | H32: 0 | I32: 2.952256961 | J32: 1.225236033 | K32: 1.00000046 | L32: 0.0009588558049 | M32: 1 | N32: 2.543444799e-05 | O32: 1 | P32: 8.37525768e-06 | Q32: 86.58793291 | R32: -70.26645 | S32: 109.73355 | U32: 1000000000 | V32: 33.11311936 | X32: 88.30414528 | Y32: -70.14737258 | AA32: 43.31314249 | AB32: -0.1190774208 | AD32: 0 | AE32: 0
A33: 6.3096 | B33: 0.0063096 | C33: 1.000002594 | D33: 0.002277557253 | E33: 1 | F33: 7.928877194e-06 | G33: 1 | H33: 0 | I33: 3.205703267 | J33: 1.253557848 | K33: 1.000000553 | L33: 0.001051368729 | M33: 1 | N33: 2.788843199e-05 | O33: 1 | P33: 9.183325083e-06 | Q33: 85.87254664 | R33: -71.89549931 | S33: 108.1045007 | U33: 1000000000 | V33: 39.81105216 | X33: 87.5887628 | Y33: -71.76493302 | AA33: 43.3131387 | AB33: -0.1305662929 | AD33: 0 | AE33: 0
A34: 6.9183 | B34: 0.0069183 | C34: 1.000003118 | D34: 0.00249727698 | E34: 1 | F34: 8.693792172e-06 | G34: 1 | H34: 0 | I34: 3.486075307 | J34: 1.279853521 | K34: 1.000000664 | L34: 0.001152796331 | M34: 1 | N34: 3.057888599e-05 | O34: 1 | P34: 1.006925921e-05 | Q34: 85.14427416 | R34: -73.40906915 | S34: 106.5909309 | U34: 1000000000 | V34: 47.86287489 | X34: 86.86049488 | Y34: -73.26590691 | AA34: 43.31313415 | AB34: -0.1431622399 | AD34: 0 | AE34: 0
A35: 7.5858 | B35: 0.0075858 | C35: 1.000003749 | D35: 0.002738221203 | E35: 1 | F35: 9.532597409e-06 | G35: 1 | H35: 0 | I35: 3.795871866 | J35: 1.304205649 | K35: 1.000000799 | L35: 0.001264021743 | M35: 1.000000001 | N35: 3.352923599e-05 | O35: 1 | P35: 1.104077397e-05 | Q35: 84.40477426 | R35: -74.81195229 | S35: 105.1880477 | U35: 1000000000 | V35: 57.54436164 | X35: 86.12100046 | Y35: -74.65497736 | AA35: 43.31312867 | AB35: -0.1569749307 | AD35: 0 | AE35: 0
A36: 8.3176 | B36: 0.0083176 | C36: 1.000004507 | D36: 0.003002375118 | E36: 1 | F36: 1.045220441e-05 | G36: 1 | H36: 0 | I36: 4.137690856 | J36: 1.326698809 | K36: 1.00000096 | L36: 0.001385961417 | M36: 1.000000001 | N36: 3.676379198e-05 | O36: 1 | P36: 1.210587434e-05 | Q36: 83.65583916 | R36: -76.10905736 | S36: 103.8909426 | U36: 1000000000 | V36: 69.18246976 | X36: 85.37207194 | Y36: -75.93693919 | AA36: 43.31312208 | AB36: -0.1721181713 | AD36: 0 | AE36: 0
A37: 9.1201 | B37: 0.0091201 | C37: 1.000005419 | D37: 0.003292048749 | E37: 1 | F37: 1.146065565e-05 | G37: 1 | H37: 0 | I37: 4.514557188 | J37: 1.347438105 | K37: 1.000001155 | L37: 0.001519681769 | M37: 1.000000001 | N37: 4.031084198e-05 | O37: 1 | P37: 1.327387522e-05 | Q37: 82.89869055 | R37: -77.30647932 | S37: 102.6935207 | U37: 1000000000 | V37: 83.17622401 | X37: 84.61493125 | Y37: -77.11775493 | AA37: 43.31311417 | AB37: -0.1887243893 | AD37: 0 | AE37: 0
A38: 10 | B38: 0.01 | C38: 1.000006515 | D38: 0.003609660358 | E38: 1 | F38: 1.25663706e-05 | G38: 1 | H38: 0 | I38: 4.929645254 | J38: 1.366524323 | K38: 1.000001388 | L38: 0.001666299199 | M38: 1.000000001 | N38: 4.419999997e-05 | O38: 1 | P38: 1.455452815e-05 | Q38: 82.13467287 | R38: -78.41006918 | S38: 101.5899308 | U38: 1000000000 | V38: 100 | X38: 83.85092309 | Y38: -78.20313696 | AA38: 43.31310465 | AB38: -0.2069322173 | AD38: 0 | AE38: 0
A39: 10.965 | B39: 0.010965 | C39: 1.000007833 | D39: 0.003957989105 | E39: 1 | F39: 1.377902536e-05 | G39: 1 | H39: 0 | I39: 5.386609459 | J39: 1.384067549 | K39: 1.000001669 | L39: 0.00182709673 | M39: 1.000000001 | N39: 4.846529996e-05 | O39: 1 | P39: 1.595904012e-05 | Q39: 81.36466743 | R39: -79.42622212 | S39: 100.5737779 | U39: 1000000000 | V39: 120.231225 | X39: 83.0809291 | Y39: -79.19932115 | AA39: 43.3130932 | AB39: -0.226900977 | AD39: 0 | AE39: 0
A40: 12.023 | B40: 0.012023 | C40: 1.000009417 | D40: 0.004339886251 | E40: 1 | F40: 1.510854737e-05 | G40: 1 | H40: 0 | I40: 5.889207618 | J40: 1.400167446 | K40: 1.000002007 | L40: 0.002003390701 | M40: 1.000000001 | N40: 5.314165995e-05 | O40: 1 | P40: 1.74989092e-05 | Q40: 80.58982909 | R40: -80.36073847 | S40: 99.63926153 | U40: 1000000000 | V40: 144.552529 | X40: 82.30610452 | Y40: -80.11194435 | AA40: 43.31307944 | AB40: -0.2487941237 | AD40: 0 | AE40: 0
A41: 13.183 | B41: 0.013183 | C41: 1.000011322 | D41: 0.004758599999 | E41: 1 | F41: 1.656624636e-05 | G41: 1 | H41: 0 | I41: 6.441727569 | J41: 1.414928099 | K41: 1.000002413 | L41: 0.002196680734 | M41: 1.000000002 | N41: 5.826885993e-05 | O41: 1 | P41: 1.918723446e-05 | Q41: 79.81090629 | R41: -81.2196844 | S41: 98.7803156 | U41: 1000000000 | V41: 173.791489 | X41: 81.52719827 | Y41: -80.94688653 | AA41: 43.31306289 | AB41: -0.2727978682 | AD41: 0 | AE41: 0
A42: 14.454 | B42: 0.014454 | C42: 1.000013611 | D42: 0.005217378401 | E42: 1 | F42: 1.816343206e-05 | G42: 1 | H42: 0 | I42: 7.048464425 | J42: 1.428441135 | K42: 1.0000029 | L42: 0.002408466435 | M42: 1.000000002 | N42: 6.388667991e-05 | O42: 1 | P42: 2.103711499e-05 | Q42: 79.02904748 | R42: -82.00841232 | S42: 97.99158768 | U42: 1000000000 | V42: 208.918116 | X42: 80.74535933 | Y42: -81.70931391 | AA42: 43.31304301 | AB42: -0.2990984127 | AD42: 0 | AE42: 0
A43: 15.849 | B43: 0.015849 | C43: 1.000016365 | D43: 0.005720913135 | E43: 1 | F43: 1.991644076e-05 | G43: 1 | H43: 0 | I43: 7.71563213 | J43: 1.440823692 | K43: 1.000003487 | L43: 0.002640913906 | M43: 1.000000002 | N43: 7.005257989e-05 | O43: 1 | P43: 2.306747167e-05 | Q43: 78.24348864 | R43: -82.73378186 | S43: 97.26621814 | U43: 1000000000 | V43: 251.190801 | X43: 79.95982441 | Y43: -82.40581714 | AA43: 43.31301909 | AB43: -0.3279647187 | AD43: 0 | AE43: 0
A44: 17.378 | B44: 0.017378 | C44: 1.000019674 | D44: 0.006272812739 | E44: 1 | F44: 2.183783883e-05 | G44: 1 | H44: 0 | I44: 8.44802006 | J44: 1.452147209 | K44: 1.000004193 | L44: 0.002895689335 | M44: 1.000000003 | N44: 7.681075985e-05 | O44: 1 | P44: 2.529285903e-05 | Q44: 77.45579754 | R44: -83.40000021 | S44: 96.59999979 | U44: 1000000000 | V44: 301.994884 | X44: 79.17216206 | Y44: -83.04039655 | AA44: 43.31299035 | AB44: -0.3596036541 | AD44: 0 | AE44: 0
A45: 19.055 | B45: 0.019055 | C45: 1.000023655 | D45: 0.006878129219 | E45: 1 | F45: 2.394521917e-05 | G45: 1 | H45: 0 | I45: 9.252338439 | J45: 1.462504005 | K45: 1.000005041 | L45: 0.003175125393 | M45: 1.000000004 | N45: 8.42230998e-05 | O45: 1 | P45: 2.77336534e-05 | Q45: 76.66583885 | R45: -84.01251626 | S45: 95.98748374 | U45: 1000000000 | V45: 363.093025 | X45: 78.38223795 | Y45: -83.61821142 | AA45: 43.31295577 | AB45: -0.3943048369 | AD45: 0 | AE45: 0
A46: 20.893 | B46: 0.020893 | C46: 1.000028438 | D46: 0.007541553163 | E46: 1 | F46: 2.625491809e-05 | G46: 1 | H46: 0 | I46: 10.13482546 | J46: 1.471965837 | K46: 1.00000606 | L46: 0.003481388074 | M46: 1.000000004 | N46: 9.234705974e-05 | O46: 1 | P46: 3.040877567e-05 | Q46: 75.87451089 | R46: -84.57558954 | S46: 95.42441046 | U46: 1000000000 | V46: 436.517449 | X46: 77.59095153 | Y46: -84.14325237 | AA46: 43.31291423 | AB46: -0.4323371662 | AD46: 0 | AE46: 0
A47: 22.909 | B47: 0.022909 | C47: 1.000034191 | D47: 0.008269218342 | E47: 1 | F47: 2.87882984e-05 | G47: 1 | H47: 0 | I47: 11.10364585 | J47: 1.480613626 | K47: 1.000007286 | L47: 0.003817309827 | M47: 1.000000005 | N47: 0.0001012577797 | O47: 1 | P47: 3.334296855e-05 | Q47: 75.081485 | R47: -85.09405012 | S47: 94.90594988 | U47: 1000000000 | V47: 524.822281 | X47: 76.79797561 | Y47: -84.61999785 | AA47: 43.31286426 | AB47: -0.4740522748 | AD47: 0 | AE47: 0
A48: 25.119 | B48: 0.025119 | C48: 1.000041106 | D48: 0.009066896767 | E48: 1 | F48: 3.15654663e-05 | G48: 1 | H48: 0 | I48: 12.16649077 | J48: 1.48851053 | K48: 1.00000876 | L48: 0.00418555639 | M48: 1.000000006 | N48: 0.0001110259795 | O48: 1 | P48: 3.655951927e-05 | Q48: 74.28744315 | R48: -85.5716989 | S48: 94.4283011 | U48: 1000000000 | V48: 630.964161 | X48: 76.00399381 | Y48: -85.05191785 | AA48: 43.3128042 | AB48: -0.5197810568 | AD48: 0 | AE48: 0
A49: 27.542 | B49: 0.027542 | C49: 1.000049418 | D49: 0.009941442213 | E49: 1.000000001 | F49: 3.461029789e-05 | G49: 1 | H49: 0 | I49: 13.33249896 | J49: 1.495721129 | K49: 1.000010531 | L49: 0.004589293283 | M49: 1.000000007 | N49: 0.0001217356394 | O49: 1 | P49: 4.008608144e-05 | Q49: 73.49246178 | R49: -86.01245233 | S49: 93.98754767 | U49: 1000000000 | V49: 758.561764 | X49: 75.20908464 | Y49: -85.44253591 | AA49: 43.31273201 | AB49: -0.569916421 | AD49: 0 | AE49: 0
A50: 30.2 | B50: 0.0302 | C50: 1.000059417 | D50: 0.01090078984 | E50: 1.000000001 | F50: 3.795043919e-05 | G50: 1 | H50: 0 | I50: 14.61225889 | J50: 1.502307106 | K50: 1.000012662 | L50: 0.005032185763 | M50: 1.000000009 | N50: 0.0001334839992 | O50: 1 | P50: 4.395467503e-05 | Q50: 72.69627744 | R50: -86.42009514 | S50: 93.57990486 | U50: 1000000000 | V50: 912.04 | X50: 74.41298714 | Y50: -85.79518187 | AA50: 43.31264517 | AB50: -0.6249132691 | AD50: 0 | AE50: 0
A51: 33.113 | B51: 0.033113 | C51: 1.000071431 | D51: 0.01195215109 | E51: 1.000000001 | F51: 4.161102294e-05 | G51: 1 | H51: 0 | I51: 16.01540088 | J51: 1.508315784 | K51: 1.000015222 | L51: 0.005517565653 | M51: 1.000000011 | N51: 0.000146359459 | O51: 1 | P51: 4.819440908e-05 | Q51: 71.8997862 | R51: -86.79756629 | S51: 93.20243371 | U51: 1000000000 | V51: 1096.470769 | X51: 73.61660024 | Y51: -86.11238127 | AA51: 43.31254082 | AB51: -0.6851850144 | AD51: 0 | AE51: 0
A52: 36.308 | B52: 0.036308 | C52: 1.00008588 | D52: 0.01310526143 | E52: 1.000000001 | F52: 4.562597834e-05 | G52: 1 | H52: 0 | I52: 17.55493087 | J52: 1.513801422 | K52: 1.000018301 | L52: 0.006049930919 | M52: 1.000000013 | N52: 0.0001604813586 | O52: 1 | P52: 5.284458083e-05 | Q52: 71.10246124 | R52: -87.14828178 | S52: 92.85171822 | U52: 1000000000 | V52: 1318.270864 | X52: 72.81940078 | Y52: -86.39699201 | AA52: 43.31241533 | AB52: -0.7512897658 | AD52: 0 | AE52: 0
A53: 39.811 | B53: 0.039811 | C53: 1.00010325 | D53: 0.01436949217 | E53: 1.000000001 | F53: 5.002797795e-05 | G53: 1 | H53: 0 | I53: 19.24337779 | J53: 1.518806981 | K53: 1.000022003 | L53: 0.006633612577 | M53: 1.000000015 | N53: 0.0001759646182 | O53: 1 | P53: 5.794303205e-05 | Q53: 70.30469886 | R53: -87.47499878 | S53: 92.52500122 | U53: 1000000000 | V53: 1584.915721 | X53: 72.02178926 | Y53: -86.65123403 | AA53: 43.31226447 | AB53: -0.8237647551 | AD53: 0 | AE53: 0
A54: 43.652 | B54: 0.043652 | C54: 1.000124133 | D54: 0.01575565397 | E54: 1.000000002 | F54: 5.485472089e-05 | G54: 1 | H54: 0 | I54: 21.09520198 | J54: 1.52337441 | K54: 1.000026453 | L54: 0.007273607723 | M54: 1.000000019 | N54: 0.0001929418376 | O54: 1 | P54: 6.353342632e-05 | Q54: 69.50650848 | R54: -87.78046189 | S54: 92.21953811 | U54: 1000000000 | V54: 1905.497104 | X54: 71.22378025 | Y54: -86.87723216 | AA54: 43.3120831 | AB54: -0.9032297302 | AD54: 0 | AE54: 0
A55: 47.863 | B55: 0.047863 | C55: 1.000149236 | D55: 0.01727527369 | E55: 1.000000002 | F55: 6.014641953e-05 | G55: 1 | H55: 0 | I55: 23.1258315 | J55: 1.527541151 | K55: 1.000031803 | L55: 0.007975246148 | M55: 1.000000022 | N55: 0.0002115544568 | O55: 1 | P55: 6.966233813e-05 | Q55: 68.70806353 | R55: -88.06717982 | S55: 91.93282018 | U55: 1000000000 | V55: 2290.866769 | X55: 70.4255533 | Y55: -87.07683433 | AA55: 43.31186509 | AB55: -0.9903454954 | AD55: 0 | AE55: 0
A56: 52.481 | B56: 0.052481 | C56: 1.00017942 | D56: 0.01894167513 | E56: 1.000000002 | F56: 6.594956945e-05 | G56: 1 | H56: 0 | I56: 25.35310874 | J56: 1.531343198 | K56: 1.000038236 | L56: 0.008744690014 | M56: 1.000000027 | N56: 0.0002319660158 | O56: 1 | P56: 7.638361924e-05 | Q56: 67.90917999 | R56: -88.33763503 | S56: 91.66236497 | U56: 1000000000 | V56: 2754.255361 | X56: 69.62693189 | Y56: -87.25175916 | AA56: 43.31160296 | AB56: -1.08587587 | AD56: 0 | AE56: 0
A57: 57.544 | B57: 0.057544 | C57: 1.000215705 | D57: 0.02076853322 | E57: 1.000000003 | F57: 7.231192285e-05 | G57: 1 | H57: 0 | I57: 27.79536142 | J57: 1.534811335 | K57: 1.000045969 | L57: 0.009588267144 | M57: 1.000000032 | N57: 0.0002543444745 | O57: 1.000000001 | P57: 8.375257686e-05 | Q57: 67.11010988 | R57: -88.59402237 | S57: 91.40597763 | U57: 1000000000 | V57: 3311.311936 | X57: 68.82817688 | Y57: -87.40341757 | AA57: 43.31128786 | AB57: -1.190604803 | AD57: 0 | AE57: 0
A58: 63.096 | B58: 0.063096 | C58: 1.000259331 | D58: 0.02277167502 | E58: 1.000000003 | F58: 7.928877177e-05 | G58: 1 | H58: 0 | I58: 30.47381406 | J58: 1.537975376 | K58: 1.000055267 | L58: 0.0105133038 | M58: 1.000000039 | N58: 0.0002788843128 | O58: 1.000000001 | P58: 9.183325091e-05 | Q58: 66.31072199 | R58: -88.8385487 | S58: 91.1614513 | U58: 1000000000 | V58: 3981.105216 | X58: 68.02916783 | Y58: -87.53310909 | AA58: 43.31090903 | AB58: -1.305439618 | AD58: 0 | AE58: 0
A59: 69.183 | B59: 0.069183 | C59: 1.000311772 | D59: 0.02496763229 | E59: 1.000000004 | F59: 8.69379215e-05 | G59: 1 | H59: 0 | I59: 33.41065855 | J59: 1.540861288 | K59: 1.000066445 | L59: 0.01152745779 | M59: 1.000000047 | N59: 0.0003057888505 | O59: 1.000000001 | P59: 0.0001006925922 | Q59: 65.51119918 | R59: -89.07322248 | S59: 90.92677752 | U59: 1000000000 | V59: 4786.287489 | X59: 67.23010039 | Y59: -87.64189444 | AA59: 43.31045366 | AB59: -1.431328041 | AD59: 0 | AE59: 0
A60: 75.858 | B60: 0.075858 | C60: 1.000374824 | D60: 0.0273754399 | E60: 1.000000005 | F60: 9.532597381e-05 | G60: 1 | H60: 0 | I60: 36.63146629 | J60: 1.543494 | K60: 1.000079884 | L60: 0.01263955103 | M60: 1.000000056 | N60: 0.0003352923474 | O60: 1.000000001 | P60: 0.0001104077398 | Q60: 64.71138302 | R60: -89.30007123 | S60: 90.69992877 | U60: 1000000000 | V60: 5754.436164 | X60: 66.43083169 | Y60: -87.73070994 | AA60: 43.30990619 | AB60: -1.569361292 | AD60: 0 | AE60: 0
A61: 83.176 | B61: 0.083176 | C61: 1.000450614 | D61: 0.0300148248 | E61: 1.000000005 | F61: 0.0001045220437 | G61: 1 | H61: 0 | I61: 40.16277583 | J61: 1.545895076 | K61: 1.00009604 | L61: 0.01385873572 | M61: 1.000000068 | N61: 0.0003676379034 | O61: 1.000000001 | P61: 0.0001210587435 | Q61: 63.91147685 | R61: -89.52095083 | S61: 90.47904917 | U61: 1000000000 | V61: 6918.246976 | X61: 65.63158354 | Y61: -87.80028056 | AA61: 43.30924817 | AB61: -1.720670269 | AD61: 0 | AE61: 0
A62: 91.201 | B62: 0.091201 | C62: 1.000541736 | D62: 0.03290872139 | E62: 1.000000007 | F62: 0.000114606556 | G62: 1 | H62: 0 | I62: 44.03547048 | J62: 1.548085409 | K62: 1.000115465 | L62: 0.01519565968 | M62: 1.000000081 | N62: 0.0004031083982 | O62: 1.000000001 | P62: 0.0001327387524 | Q62: 63.11127596 | R62: -89.73777933 | S62: 90.26222067 | U62: 1000000000 | V62: 8317.622401 | X62: 64.83217374 | Y62: -87.85120958 | AA62: 43.30845709 | AB62: -1.886569745 | AD62: 0 | AE62: 0
A63: 100 | B63: 0.1 | C63: 1.000651276 | D63: 0.03608109486 | E63: 1.000000008 | F63: 0.0001256637053 | G63: 1 | H63: 0 | I63: 48.28188307 | J63: 1.550083143 | K63: 1.000138818 | L63: 0.01666146548 | M63: 1.000000098 | N63: 0.0004419999712 | O63: 1.000000002 | P63: 0.0001455452818 | Q63: 62.31089658 | R63: -89.95234877 | S63: 90.04765123 | U63: 1000000000 | V63: 10000 | X63: 64.03274523 | Y63: -87.88391518 | AA63: 43.30750622 | AB63: -2.068433589 | AD63: 0 | AE63: 0
A64: 109.65 | B64: 0.10965 | C64: 1.000782986 | D64: 0.03955944862 | E64: 1.000000009 | F64: 0.0001377902528 | G64: 1 | H64: 0 | I64: 52.93917403 | J64: 1.5519056 | K64: 1.000166901 | L64: 0.01826895491 | M64: 1.000000117 | N64: 0.0004846529621 | O64: 1.000000002 | P64: 0.0001595904016 | Q64: 61.51013789 | R64: -90.16651424 | S64: 89.83348576 | U64: 1000000000 | V64: 12023.1225 | X64: 63.23312972 | Y64: -87.89867573 | AA64: 43.30636303 | AB64: -2.267838505 | AD64: 0 | AE64: 0
A65: 120.23 | B65: 0.12023 | C65: 1.000941299 | D65: 0.04337191852 | E65: 1.000000011 | F65: 0.0001510854726 | G65: 1 | H65: 0 | I65: 58.04547042 | J65: 1.553567601 | K65: 1.000200659 | L65: 0.0200312542 | M65: 1.000000141 | N65: 0.00053141655 | O65: 1.000000002 | P65: 0.0001749890925 | Q65: 60.70923347 | R65: -90.38200591 | S65: 89.61799409 | U65: 1000000000 | V65: 14455.2529 | X65: 62.4335992 | Y65: -87.89560845 | AA65: 43.30498913 | AB65: -2.48639746 | AD65: 0 | AE65: 0
A66: 131.83 | B66: 0.13183 | C66: 1.001131591 | D66: 0.04755048874 | E66: 1.000000014 | F66: 0.0001656624621 | G66: 1 | H66: 0 | I66: 63.64420953 | J66: 1.555083332 | K66: 1.000241242 | L66: 0.02196331039 | M66: 1.00000017 | N66: 0.0005826885341 | O66: 1.000000003 | P66: 0.0001918723453 | Q66: 59.90812329 | R66: -90.60063644 | S66: 89.39936356 | U66: 1000000000 | V66: 17379.1489 | X66: 61.63414014 | Y66: -87.8746924 | AA66: 43.30333801 | AB66: -2.725944037 | AD66: 0 | AE66: 0
A67: 144.54 | B67: 0.14454 | C67: 1.001360152 | D67: 0.05212699249 | E67: 1.000000016 | F67: 0.0001816343187 | G67: 1 | H67: 0 | I67: 69.77882971 | J67: 1.556464842 | K67: 1.000289995 | L67: 0.02408005557 | M67: 1.000000204 | N67: 0.0006388667131 | O67: 1.000000003 | P67: 0.0002103711508 | Q67: 59.10726788 | R67: -90.82408849 | S67: 89.17591151 | U67: 1000000000 | V67: 20891.8116 | X67: 60.8352675 | Y67: -87.83578532 | AA67: 43.30135525 | AB67: -2.988303171 | AD67: 0 | AE67: 0
A68: 158.49 | B68: 0.15849 | C68: 1.001635141 | D68: 0.05714746277 | E68: 1.00000002 | F68: 0.000199164405 | G68: 1 | H68: 0 | I68: 76.51207693 | J68: 1.557726123 | K68: 1.000348662 | L68: 0.02640306336 | M68: 1.000000245 | N68: 0.0007005256854 | O68: 1.000000004 | P68: 0.0002306747179 | Q68: 58.30526581 | R68: -91.05459947 | S68: 88.94540053 | U68: 1000000000 | V68: 25119.0801 | X68: 60.03565036 | Y68: -87.77848563 | AA68: 43.29897031 | AB68: -3.276113838 | AD68: 0 | AE68: 0
A69: 173.78 | B69: 0.17378 | C69: 1.001965529 | D69: 0.06264686603 | E69: 1.000000024 | F69: 0.0002183783848 | G69: 1 | H69: 0 | I69: 83.89221832 | J69: 1.558875988 | K69: 1.000419165 | L69: 0.02894888482 | M69: 1.000000295 | N69: 0.0007681074489 | O69: 1.000000005 | P69: 0.0002529285918 | Q69: 57.50317925 | R69: -91.29375599 | S69: 88.70624401 | U69: 1000000000 | V69: 30199.4884 | X69: 59.23642833 | Y69: -87.70237538 | AA69: 43.29610579 | AB69: -3.591380608 | AD69: 0 | AE69: 0
A70: 190.55 | B70: 0.19055 | C70: 1.002362716 | D70: 0.06867421357 | E70: 1.000000029 | F70: 0.0002394521872 | G70: 1 | H70: 0 | I70: 91.98682873 | J70: 1.559924991 | K70: 1.000503947 | L70: 0.03174069705 | M70: 1.000000355 | N70: 0.0008422308009 | O70: 1.000000006 | P70: 0.000277336536 | Q70: 56.700393 | R70: -91.54367995 | S70: 88.45632005 | U70: 1000000000 | V70: 36309.3025 | X70: 58.43708452 | Y70: -87.60676674 | AA70: 43.29266334 | AB70: -3.936913216 | AD70: 0 | AE70: 0
A71: 208.93 | B71: 0.20893 | C71: 1.002839827 | D71: 0.07527446392 | E71: 1.000000034 | F71: 0.0002625491749 | G71: 1 | H71: 0 | I71: 100.8586571 | J71: 1.560881299 | K71: 1.000605825 | L71: 0.03479996656 | M71: 1.000000426 | N71: 0.0009234703375 | O71: 1.000000007 | P71: 0.0003040877594 | Q71: 55.89739275 | R71: -91.80621968 | S71: 88.19378032 | U71: 1000000000 | V71: 43651.7449 | X71: 57.6382176 | Y71: -87.4909306 | AA71: 43.28853001 | AB71: -4.315289078 | AD71: 0 | AE71: 0
A72: 229.09 | B72: 0.22909 | C72: 1.003413329 | D72: 0.08250634208 | E72: 1.000000041 | F72: 0.0002878829761 | G72: 1 | H72: 0 | I72: 110.5897605 | J72: 1.561753775 | K72: 1.000728335 | L72: 0.03815475785 | M72: 1.000000513 | N72: 0.001012577454 | O72: 1.000000008 | P72: 0.000333429689 | Q72: 55.09345487 | R72: -92.0836847 | S72: 87.9163153 | U72: 1000000000 | V72: 52482.2281 | X72: 56.83924553 | Y72: -87.35380987 | AA72: 43.28356421 | AB72: -4.729874824 | AD72: 0 | AE72: 0
A73: 251.19 | B73: 0.25119 | C73: 1.004102242 | D73: 0.09042419144 | E73: 1.00000005 | F73: 0.0003156546526 | G73: 1 | H73: 0 | I73: 121.25737 | J73: 1.562549312 | K73: 1.000875571 | L73: 0.04183139147 | M73: 1.000000616 | N73: 0.001110259344 | O73: 1.00000001 | P73: 0.0003655951973 | Q73: 54.28890593 | R73: -92.37811787 | S73: 87.62188213 | U73: 1000000000 | V73: 63096.4161 | X73: 56.04065795 | Y73: -87.19433195 | AA73: 43.27760285 | AB73: -5.183785924 | AD73: 0 | AE73: 0
A74: 275.42 | B74: 0.27542 | C74: 1.004929788 | D74: 0.09909208206 | E74: 1.00000006 | F74: 0.0003461029652 | G74: 1 | H74: 0 | I74: 132.953198 | J74: 1.563274812 | K74: 1.001052542 | L74: 0.0458610757 | M74: 1.000000741 | N74: 0.001217355799 | O74: 1.000000012 | P74: 0.0004008608205 | Q74: 53.48347205 | R74: -92.69184781 | S74: 87.30815219 | U74: 1000000000 | V74: 75856.1764 | X74: 55.24237965 | Y74: -87.01115232 | AA74: 43.27044726 | AB74: -5.680695486 | AD74: 0 | AE74: 0
A75: 302 | B75: 0.302 | C75: 1.005924283 | D75: 0.1085834479 | E75: 1.000000072 | F75: 0.0003795043739 | G75: 1 | H75: 0 | I75: 145.7834386 | J75: 1.563936783 | K75: 1.001265365 | L75: 0.05027986924 | M75: 1.000000891 | N75: 0.001334839207 | O75: 1.000000014 | P75: 0.0004395467583 | Q75: 52.67653777 | R75: -93.02744703 | S75: 86.97255297 | U75: 1000000000 | V75: 91204 | X75: 54.44403674 | Y75: -86.80263356 | AA75: 43.26185589 | AB75: -6.22481347 | AD75: 0 | AE75: 0
A76: 331.13 | B76: 0.33113 | C76: 1.007118043 | D76: 0.1189628142 | E76: 1.000000087 | F76: 0.0004161102057 | G76: 1 | H76: 0 | I76: 159.8446325 | J76: 1.564540211 | K76: 1.001521051 | L76: 0.05512032542 | M76: 1.000001071 | N76: 0.001463593555 | O76: 1.000000017 | P76: 0.0004819441013 | Q76: 51.86865503 | R76: -93.38708598 | S76: 86.61291402 | U76: 1000000000 | V76: 109647.0769 | X76: 53.64645559 | Y76: -86.56724679 | AA76: 43.25155431 | AB76: -6.819839184 | AD76: 0 | AE76: 0
A77: 363.08 | B77: 0.36308 | C77: =SQRT(1+(A77/pole1)^2) -> 1.00855181 | D77: =ATAN(A77/pole1) -> 0.1303173617 | E77: =SQRT(1+(A77/Zero1)^2) -> 1.000000104 | F77: =ATAN(A77/Zero1) -> 0.0004562597521 | G77: =IF(VIN_nom>Vout, 1, SQRT(1+(A77/z_RHP)^2)) -> 1 | H77: =IF(VIN_nom>Vout, 0, -ATAN(A77/z_RHP)) -> 0 | I77: =SQRT(1+(A77/Pole2)^2) -> 175.2671098 | J77: =ATAN(A77/Pole2) -> 1.565090719 | K77: =SQRT(1+(A77/Zero2)^2) -> 1.001828456 | L77: =ATAN(A77/Zero2) -> 0.0604263938 | M77: =SQRT(1+(A77/pole4)^2) -> 1.000001288 | N77: =ATAN(A77/pole4) -> 0.001604812222 | O77: =SQRT((1-(V77/pterm2))^2+(A77/pterm1)^2) -> 1.00000002 | P77: =IF((ATAN((A77/pterm1)/(1-A77^2/pterm2))>0),ATAN((A77/pterm1)/(1-A77^2/pterm2)),PI()+ATAN((A77/pterm1)/(1-A77^2/pterm2))) -> 0.0005284458222 | Q77: =20*LOG10(((E77*K77*G77)/(C77*I77*O77*M77))*Adc) -> 51.05891481 | R77: =((F77+L77+H77)-(D77+J77+P77+N77))*radconv -> -93.77363526 | S77: =IF(R77>0,R77,R77+180) -> 86.22636474 | U77: 1000000000 | V77: 131827.0864 | X77: =20*LOG10((K77/(I77*M77))*AEA) -> 52.84907198 | Y77: =(L77-(J77+N77))*radconv -> -86.30286447 | AA77: =20*LOG10((E77*G77/(C77*O77))*Acs*Am) -> 43.2391977 | AB77: =(F77+H77-(D77+P77))*radconv -> -7.470770787 | AD77: 0 | AE77: =IF(AD77>0,S75,0) -> 0
A78: 398.11 | B78: =A78/1000 -> 0.39811 | C78: 1.010272772 | D78: 0.1427276722 | E78: 1.000000125 | F78: 0.0005002797382 | G78: 1 | H78: 0 | I78: 192.1763744 | J78: 1.56559275 | K78: 1.00219789 | L78: 0.06624004703 | M78: 1.000001548 | N78: 0.001759644384 | O78: 1.000000024 | P78: 0.0005794303387 | Q78: 50.247315 | R78: -94.18963042 | S78: 85.81036958 | U78: =IF(Q78<0,A78,1000000000) -> 1000000000 | V78: =A78^2 -> 158491.5721 | X78: 52.05228072 | Y78: -86.00740218 | AA78: 43.22438914 | AB78: -8.182228244 | AD78: =SUM((Q79<0)*(Q78>0))*A78 -> 0 | AE78: 0
A79: 436.52 | B79: 0.43652 | C79: 1.012337973 | D79: 0.1562846118 | E79: 1.00000015 | F79: 0.0005485471544 | G79: 1 | H79: 0 | I79: 210.7172386 | J79: 1.566050613 | K79: 1.002641872 | L79: 0.07260948789 | M79: 1.000001861 | N79: 0.001929416006 | O79: 1.000000029 | P79: 0.0006353342873 | Q79: 49.43342052 | R79: -94.63784211 | S79: 85.36215789 | U79: 1000000000 | V79: 190549.7104 | X79: 51.25612366 | Y79: -85.6784209 | AA79: 43.20665173 | AB79: -8.959421207 | AD79: 0 | AE79: 0
A80: 478.63 | B80: 0.47863 | C80: 1.014814981 | D80: 0.1710810409 | E80: 1.000000181 | F80: 0.0006014641235 | G80: 1 | H80: 0 | I80: 231.0441695 | J80: 1.566468137 | K80: 1.003175321 | L80: 0.07958569676 | M80: 1.000002238 | N80: 0.002115541444 | O80: 1.000000035 | P80: 0.000696623413 | Q80: 48.61691172 | R80: -95.12097396 | S80: 84.87902604 | U80: 1000000000 | V80: 229086.6769 | X80: 50.46084149 | Y80: -85.31330013 | AA80: 43.1854251 | AB80: -9.807673836 | AD80: 0 | AE80: 0
A81: 524.81 | B81: 0.52481 | C81: 1.017785483 | D81: 0.1872208312 | E81: 1.000000217 | F81: 0.0006594955998 | G81: 1 | H81: 0 | I81: 253.3357699 | J81: 1.566848986 | K81: 1.003816393 | L81: 0.08722722846 | M81: 1.00000269 | N81: 0.002319656039 | O81: 1.000000042 | P81: 0.0007638362343 | Q81: 47.79703926 | R81: -95.64193034 | S81: 84.35806966 | U81: 1000000000 | V81: 275425.5361 | X81: 49.66635641 | Y81: -84.90898859 | AA81: 43.16003772 | AB81: -10.73294176 | AD81: 0 | AE81: 0
A82: 575.44 | B82: 0.57544 | C82: 1.021344997 | D82: 0.2048028934 | E82: 1.000000261 | F82: 0.0007231191038 | G82: 1 | H82: 0 | I82: 277.7754699 | J82: 1.567196289 | K82: 1.004586507 | L82: 0.09559336132 | M82: 1.000003235 | N82: 0.002543439315 | O82: 1.00000005 | P82: 0.0008375258237 | Q82: 46.97342418 | R82: -96.20326177 | S82: 83.79673823 | U82: 1000000000 | V82: 331131.1936 | X82: 48.8730653 | Y82: -84.46236532 | AA82: 43.12971375 | AB82: -11.74089646 | AD82: 0 | AE82: 0
A83: 630.96 | B83: 0.63096 | C83: 1.025608527 | D83: 0.2239362027 | E83: 1.000000314 | F83: 0.0007928875532 | G83: 1 | H83: 0 | I83: 304.5756628 | J83: 1.567513064 | K83: 1.005511696 | L83: 0.1047520743 | M83: 1.000003889 | N83: 0.00278883597 | O83: 1.000000061 | P83: 0.0009183325818 | Q83: 46.14520531 | R83: -96.80760658 | S83: 83.19239342 | U83: 1000000000 | V83: 398110.5216 | X83: 48.08102919 | Y83: -83.9698198 | AA83: 43.09353098 | AB83: -12.83778678 | AD83: 0 | AE83: 0
A84: 691.83 | B84: 0.69183 | C84: 1.030710523 | D84: 0.2447228512 | E84: 1.000000378 | F84: 0.0008693789982 | G84: 1 | H84: 0 | I84: 333.9583963 | J84: 1.567801937 | K84: 1.006622772 | L84: 0.1147730517 | M84: 1.000004675 | N84: 0.003057879069 | O84: 1.000000073 | P84: 0.001006926018 | Q84: 45.31174629 | R84: -97.45709372 | S84: 82.54290628 | U84: 1000000000 | V84: 478628.7489 | X84: 47.29067147 | Y84: -83.42762632 | AA84: 43.05042968 | AB84: -14.0294674 | AD84: 0 | AE84: 0
A85: 758.58 | B85: 0.75858 | C85: 1.036811906 | D85: 0.2672714528 | E85: 1.000000454 | F85: 0.0009532594522 | G85: 1 | H85: 0 | I85: 366.1795082 | J85: 1.568065422 | K85: 1.007957106 | L85: 0.1257354241 | M85: 1.000005621 | N85: 0.003352911035 | O85: 1.000000088 | P85: 0.001104077524 | Q85: 44.47194589 | R85: -98.15369679 | S85: 81.84630321 | U85: 1000000000 | V85: 575443.6164 | X85: 46.50213585 | Y85: -82.83152931 | AA85: 42.9991649 | AB85: -15.32216748 | AD85: 0 | AE85: 0
A86: 831.76 | B86: 0.83176 | C86: 1.044099184 | D86: 0.2916755085 | E86: 1.000000546 | F86: 0.00104522006 | G86: 1 | H86: 0 | I86: 401.5044909 | J86: 1.568305692 | K86: 1.009558772 | L86: 0.1377188924 | M86: 1.000006758 | N86: 0.003676362637 | O86: 1.000000105 | P86: 0.001210587602 | Q86: 43.62496477 | R86: -98.89847651 | S86: 81.10152349 | U86: 1000000000 | V86: 691824.6976 | X86: 45.71598969 | Y86: -82.17722601 | AA86: 42.93832994 | AB86: -16.72125051 | AD86: 0 | AE86: 0
A87: 912.01 | B87: 0.91201 | C87: 1.052794677 | D87: 0.3180314243 | E87: 1.000000657 | F87: 0.001146065063 | G87: 1 | H87: 0 | I87: 440.242281 | J87: 1.568524848 | K87: 1.011481271 | L87: 0.1508143714 | M87: 1.000008125 | N87: 0.004031062366 | O87: 1.000000127 | P87: 0.001327387744 | Q87: 42.7694131 | R87: -99.69203726 | S87: 80.30796274 | U87: 1000000000 | V87: 831762.2401 | X87: 44.93247574 | Y87: -81.45978985 | AA87: 42.86629223 | AB87: -18.23224741 | AD87: 0 | AE87: 0
A88: 1000 | B88: 1 | C88: 1.063154556 | D88: 0.3464119059 | E88: 1.00000079 | F88: 0.001256636399 | G88: 1 | H88: 0 | I88: 482.7162969 | J88: 1.568724715 | K88: 1.01378774 | L88: 0.1651130737 | M88: 1.000009768 | N88: 0.004419971217 | O88: 1.000000152 | P88: 0.001455453108 | Q88: 41.90412484 | R88: -100.5336005 | S88: 79.46639952 | U88: 1000000000 | V88: 1000000 | X88: 44.15224103 | Y88: -80.67426892 | AA88: 42.78123867 | AB88: -19.85933156 | AD88: 0 | AE88: 0
A89: 1096.5 | B89: 1.0965 | C89: 1.07548055 | D89: 0.3768812969 | E89: 1.000000949 | F89: 0.001377901664 | G89: 1 | H89: 0 | I89: 529.2982285 | J89: 1.568907032 | K89: 1.016554425 | L89: 0.1807165244 | M89: 1.000011744 | N89: 0.004846492054 | O89: 1.000000183 | P89: 0.001595904397 | Q89: 41.0274881 | R89: -101.4213392 | S89: 78.57866079 | U89: 1000000000 | V89: 1202312.25 | X89: 43.37572629 | Y89: -79.81514085 | AA89: 42.68111668 | AB89: -21.60619835 | AD89: 0 | AE89: 0
A90: 1202.3 | B90: 1.2023 | C90: 1.090113981 | D90: 0.4094616854 | E90: 1.000001141 | F90: 0.001510853588 | G90: 1 | H90: 0 | I90: 580.36942 | J90: 1.569073285 | K90: 1.019870507 | L90: 0.1977218252 | M90: 1.00001412 | N90: 0.005314115976 | O90: 1.00000022 | P90: 0.001749891428 | Q90: 40.13828817 | R90: -102.3512497 | S90: 77.64875026 | U90: 1000000000 | V90: 1445525.29 | X90: 42.60391199 | Y90: -78.87712741 | AA90: 42.56373104 | AB90: -23.47412233 | AD90: 0 | AE90: =IF(AD90>0,S90,0) -> 0
A91: 1318.3 | B91: 1.3183 | C91: 1.107450296 | D91: 0.4441527139 | E91: 1.000001372 | F91: 0.001656623121 | G91: 1 | H91: 0 | I91: 636.3643144 | J91: 1.569224899 | K91: 1.023842868 | L91: 0.216234017 | M91: 1.000016976 | N91: 0.005826820055 | O91: 1.000000264 | P91: 0.001918724116 | Q91: 39.2349579 | R91: -103.3176128 | S91: 76.68238716 | U91: 1000000000 | V91: 1737914.89 | X91: 41.83762678 | Y91: -77.85451956 | AA91: 42.42668598 | AB91: -25.46309328 | AD91: 0 | AE91: 0
A92: 1445.4 | B92: 1.4454 | C92: 1.127925225 | D92: 0.4808899871 | E92: 1.00000165 | F92: 0.001816341209 | G92: 1 | H92: 0 | I92: 697.717355 | J92: 1.569363081 | K92: 1.028594833 | L92: 0.2363457997 | M92: 1.000020407 | N92: 0.006388581084 | O92: 1.000000318 | P92: 0.002103712382 | Q92: 38.31655514 | R92: -104.3117349 | S92: 75.68826508 | U92: 1000000000 | V92: 2089181.16 | X92: 41.0783434 | Y92: -76.74230307 | AA92: 42.26756661 | AB92: -27.56943186 | AD92: 0 | AE92: 0
A93: 1584.9 | B93: 1.5849 | C93: 1.152083162 | D93: 0.5196502795 | E93: 1.000001983 | F93: 0.001991641443 | G93: 1 | H93: 0 | I93: 765.0560709 | J93: 1.569489233 | K93: 1.034284577 | L93: 0.2581971244 | M93: 1.000024537 | N93: 0.007005143412 | O93: 1.000000382 | P93: 0.002306748331 | Q93: 37.38009063 | R93: -105.3246909 | S93: 74.67530908 | U93: 1000000000 | V93: 2511908.01 | X93: 40.32594694 | Y93: -75.53286875 | AA93: 42.08349855 | AB93: -29.79182217 | AD93: 0 | AE93: 0
A94: 1737.8 | B94: 1.7378 | C94: 1.180462671 | D94: 0.5602440046 | E94: 1.000002384 | F94: 0.002183780411 | G94: 1 | H94: 0 | I94: 838.8631768 | J94: 1.569604237 | K94: 1.041081474 | L94: 0.2818604968 | M94: 1.000029499 | N94: 0.007680924947 | O94: 1.000000459 | P94: 0.002529287437 | Q94: 36.42561785 | R94: -106.3417792 | S94: 73.65822083 | U94: 1000000000 | V94: 3019948.84 | X94: 39.58283993 | Y94: -74.22236608 | AA94: 41.87213278 | AB94: -32.11941309 | AD94: 0 | AE94: 0
A95: 1905.5 | B95: 1.9055 | C95: 1.213713943 | D95: 0.6025071664 | E95: 1.000002867 | F95: 0.002394517341 | G95: 1 | H95: 0 | I95: 919.8144736 | J95: 1.569709151 | K95: 1.04919726 | L95: 0.3074458824 | M95: 1.000035467 | N95: 0.008422110862 | O95: 1.000000552 | P95: 0.002773367363 | Q95: 35.45155416 | R95: -107.3477337 | S95: 72.65226629 | U95: 1000000000 | V95: 3630930.25 | X95: 38.85005452 | Y95: -72.8049094 | AA95: 41.63085451 | AB95: -34.54282431 | AD95: 0 | AE95: 0
A96: 2089.3 | B96: 2.0893 | C96: 1.25250621 | D96: 0.6461643253 | E96: 1.000003447 | F96: 0.002625485777 | G96: 1 | H96: 0 | I96: 1008.537491 | J96: 1.569804792 | K96: 1.058868079 | L96: 0.3350170346 | M96: 1.000042639 | N96: 0.009234443502 | O96: 1.000000664 | P96: 0.003040880234 | Q96: 34.45808301 | R96: -108.3235109 | S96: 71.67648909 | U96: 1000000000 | V96: 4365174.49 | X96: 38.12985023 | Y96: -71.27722181 | AA96: 41.35758764 | AB96: -37.0462891 | AD96: 0 | AE96: 0
A97: 2290.9 | B97: 2.2909 | C97: 1.297625097 | D97: 0.6909536841 | E97: 1.000004144 | F97: 0.002878821888 | G97: 1 | H97: 0 | I97: 1105.852844 | J97: 1.569892047 | K97: 1.07038309 | L97: 0.3646603262 | M97: 1.000051264 | N97: 0.01012543195 | O97: 1.000000798 | P97: 0.00333430037 | Q97: 33.44446783 | R97: -109.2496625 | S97: 70.75033748 | U97: 1000000000 | V97: 5248222.81 | X97: 37.42361714 | Y97: -69.63483555 | AA97: 41.05020556 | AB97: -39.61482698 | AD97: 0 | AE97: 0
A98: 2511.9 | B98: 2.5119 | C98: 1.34986341 | D98: 0.736512422 | E98: 1.000004982 | F98: 0.003156536147 | G98: 1 | H98: 0 | I98: 1212.532877 | J98: 1.569971607 | K98: 1.084062207 | L98: 0.3964016581 | M98: 1.000061632 | N98: 0.01110214184 | O98: 1.00000096 | P98: 0.003655956561 | Q98: 32.41194751 | R98: -110.104379 | S98: 69.89562096 | U98: 1000000000 | V98: 6309641.61 | X98: 36.73390271 | Y98: -67.87671097 | AA98: 40.70739966 | AB98: -42.22766807 | AD98: 0 | AE98: 0
A99: 2754.2 | B99: 2.7542 | C99: 1.410102073 | D99: 0.7824781569 | E99: 1.000005989 | F99: 0.003461015971 | G99: 1 | H99: 0 | I99: 1329.494748 | J99: 1.570044161 | K99: 1.100281367 | L99: 0.4302573589 | M99: 1.000074095 | N99: 0.0121729627 | O99: 1.000001154 | P99: 0.004008614253 | Q99: 31.36176083 | R99: -110.8665039 | S99: 69.13349614 | U99: 1000000000 | V99: 7585617.64 | X99: 36.06292348 | Y99: -66.00243279 | AA99: 40.32819221 | AB99: -44.86407107 | AD99: 0 | AE99: 0
A100: 3020 | B100: 3.02 | C100: 1.47931279 | D100: 0.8284896035 | E100: 1.000007201 | F100: 0.003795025702 | G100: 1 | H100: 0 | I100: 1457.800432 | J100: 1.570110362 | K100: 1.119478991 | L100: 0.466222543 | M100: 1.000089086 | N100: 0.01334760728 | O100: 1.000001388 | P100: 0.004395475556 | Q100: 30.29546473 | R100: -111.5162357 | S100: 68.48376434 | U100: 1000000000 | V100: 9120400 | X100: 35.41280811 | Y100: -64.01287471 | AA100: 39.91201149 | AB100: -47.50336095 | AD100: 0 | AE100: 0
A101: 3311.3 | B101: 3.3113 | C101: 1.558420744 | D101: 0.8741158426 | E101: 1.000008657 | F101: 0.004161078281 | G101: 1 | H101: 0 | I101: 1598.415357 | J101: 1.570170707 | K101: 1.142121485 | L101: 0.5041951136 | M101: 1.0001071 | N101: 0.01463490107 | O101: 1.000001668 | P101: 0.004819451524 | Q101: 29.21692002 | R101: -112.0352914 | S101: 67.96470864 | U101: 1000000000 | V101: 10964707.69 | X101: 34.78674735 | Y101: -61.91442071 | AA101: 39.45952753 | AB101: -50.12087065 | AD101: 0 | AE101: 0
A102: 3630.8 | B102: 3.6308 | C102: 1.648537364 | D102: 0.9190215501 | E102: 1.000010409 | F102: 0.004562566178 | G102: 1 | H102: 0 | I102: 1752.642855 | J102: 1.57022576 | K102: 1.168770967 | L102: 0.5440882088 | M102: 1.000128763 | N102: 0.01604675852 | O102: 1.000002006 | P102: 0.005284472078 | Q102: 28.12872927 | R102: -112.4101808 | S102: 67.58981919 | U102: 1000000000 | V102: 13182708.64 | X102: 34.18682581 | Y102: -59.71276248 | AA102: 38.97125832 | AB102: -52.69741833 | AD102: 0 | AE102: 0
A103: 3981.1 | B103: 3.9811 | C103: 1.75074479 | D103: 0.9628469369 | E103: 1.000012514 | F103: 0.005002756064 | G103: 1 | H103: 0 | I103: 1921.737986 | J103: 1.570275964 | K103: 1.200025445 | L103: 0.5857175082 | M103: 1.000154806 | N103: 0.01759464617 | O103: 1.000002411 | P103: 0.005794321654 | Q103: 27.03524274 | R103: -112.6315625 | S103: 67.3684375 | U103: 1000000000 | V103: 15849157.21 | X103: 33.61580548 | Y103: -57.41914326 | AA103: 38.44879213 | AB103: -55.21241923 | AD103: 0 | AE103: 0
A104: 4365.2 | B104: 4.3652 | C104: 1.866230747 | D104: 1.005294697 | E104: 1.000015045 | F104: 0.005485417075 | G104: 1 | H104: 0 | I104: 2107.148895 | J104: 1.570321752 | K104: 1.236556652 | L104: 0.6288622593 | M104: 1.000186115 | N104: 0.01929179035 | O104: 1.000002899 | P104: 0.006353366952 | Q104: 25.9405889 | R104: -112.695867 | S104: 67.30413303 | U104: 1000000000 | V104: 19054971.04 | X104: 33.07598384 | Y104: -55.04699374 | AA104: 37.89395992 | AB104: -57.64887323 | AD104: 0 | AE104: 0
A105: 4786.3 | B105: 4.7863 | C105: 1.996232618 | D105: 1.046107606 | E105: 1.000018088 | F105: 0.006014569433 | G105: 1 | H105: 0 | I105: 2310.420271 | J105: 1.570363505 | K105: 1.27909049 | L105: 0.6732400726 | M105: 1.000223751 | N105: 0.02115229079 | O105: 1.000003486 | P105: 0.006966265873 | Q105: 24.84919706 | R105: -112.6054024 | S105: 67.39459756 | U105: 1000000000 | V105: 22908667.69 | X105: 32.56948682 | Y105: -52.61332343 | AA105: 37.30906511 | AB105: -59.99207901 | AD105: 0 | AE105: 0
A106: 5248.1 | B106: 5.2481 | C106: 2.142131866 | D106: 1.085099548 | E106: 1.000021746 | F106: 0.006594861345 | G106: 1 | H106: 0 | I106: 2533.338159 | J106: 1.570401591 | K106: 1.328433295 | L106: 0.7185418093 | M106: 1.000269005 | N106: 0.02319244278 | O106: 1.000004191 | P106: 0.007638404187 | Q106: 23.76485473 | R106: -112.3682145 | S106: 67.63178554 | U106: 1000000000 | V106: 27542553.61 | X106: 32.09781991 | Y106: -50.13679936 | AA106: 36.69638968 | AB106: -62.2314151 | AD106: 0 | AE106: 0
A107: 5370.3 | B107: 5.3703 | C107: 2.181237952 | D107: 1.094540083 | E107: 1.000022771 | F107: 0.006748415558 | G107: 1 | H107: 0 | I107: 2592.32596 | J107: 1.570410573 | K107: 1.341925022 | L107: 0.7299644373 | M107: 1.000281676 | N107: 0.02373226949 | O107: 1.000004388 | P107: 0.007816263543 | Q107: 23.4954561 | R107: -112.2874859 | S107: 67.71251406 | U107: 1000000000 | V107: 28840122.09 | X107: 31.98555097 | Y107: -49.51377541 | AA107: 36.53925999 | AB107: -62.77371053 | AD107: 0 | AE107: 0
A108: 5432.85 | B108: 5.43285 | C108: 2.201328218 | D108: 1.099242372 | E108: 1.000023305 | F108: 0.006827014585 | G108: 1 | H108: 0 | I108: 2622.519797 | J108: 1.570415014 | K108: 1.348897696 | L108: 0.7357224927 | M108: 1.000288275 | N108: 0.02400858299 | O108: 1.000004491 | P108: 0.007907303718 | Q108: 23.36019935 | R108: -112.2437939 | S108: 67.75620614 | U108: 1000000000 | V108: 29515859.12 | X108: 31.92992559 | Y108: -49.1999492 | AA108: 36.45962863 | AB108: -63.04384466 | AD108: 0 | AE108: 0
A109: 5495.4 | B109: 5.4954 | C109: 2.221466278 | D109: 1.103859507 | E109: 1.000023844 | F109: 0.006905613527 | G109: 1 | H109: 0 | I109: 2652.713634 | J109: 1.570419354 | K109: 1.355914633 | L109: 0.7414211388 | M109: 1.00029495 | N109: 0.02428489282 | O109: 1.000004595 | P109: 0.00799834393 | Q109: 23.22668149 | R109: -112.1986207 | S109: 67.80137928 | U109: 1000000000 | V109: 30199421.16 | X109: 31.87550243 | Y109: -48.88952089 | AA109: 36.38053393 | AB109: -63.30909983 | AD109: 0 | AE109: 0
A110: 5559.4 | B110: 5.5594 | C110: 2.242119293 | D110: 1.108497727 | E110: 1.000024403 | F110: 0.006986034419 | G110: 1 | H110: 0 | I110: 2683.607409 | J110: 1.570423694 | K110: 1.363139333 | L110: 0.7471909709 | M110: 1.000301859 | N110: 0.02456760407 | O110: 1.000004703 | P110: 0.008091494625 | Q110: 23.09183139 | R110: -112.1509603 | S110: 67.84903972 | U110: 1000000000 | V110: 30906928.36 | X110: 31.82102822 | Y110: -48.57538067 | AA110: 36.30015803 | AB110: -63.57557961 | AD110: 0 | AE110: 0
A111: 5623.4 | B111: 5.6234 | C111: 2.262819661 | D111: 1.113051181 | E111: 1.000024968 | F111: 0.00706645522 | G111: 1 | H111: 0 | I111: 2714.501184 | J111: 1.570427935 | K111: 1.370408934 | L111: 0.752899777 | M111: 1.000308848 | N111: 0.0248503114 | O111: 1.000004812 | P111: 0.00818464536 | Q111: 22.95872768 | R111: -112.1019338 | S111: 67.89806617 | U111: 1000000000 | V111: 31622627.56 | X111: 31.76774511 | Y111: -48.2647311 | AA111: 36.22033743 | AB111: -63.83720273 | AD111: 0 | AE111: 0
A112: 5688.9 | B112: 5.6889 | C112: 2.284052882 | D112: 1.117625801 | E112: 1.000025553 | F112: 0.00714876079 | G112: 1 | H112: 0 | I112: 2746.119031 | J112: 1.570432177 | K112: 1.377894666 | L112: 0.7586798178 | M112: 1.000316084 | N112: 0.02513964056 | O112: 1.000004924 | P112: 0.008279979358 | Q112: 22.82427503 | R112: -112.0504351 | S112: 67.94956491 | U112: 1000000000 | V112: 32363583.21 | X112: 31.71441259 | Y112: -47.95037952 | AA112: 36.13921731 | AB112: -64.10005557 | AD112: 0 | AE112: 0
A113: 5754.4 | B113: 5.7544 | C113: 2.305333021 | D113: 1.122116057 | E113: 1.000026145 | F113: 0.007231066262 | G113: 1 | H113: 0 | I113: 2777.736879 | J113: 1.570436321 | K113: 1.385425934 | L113: 0.7643972066 | M113: 1.000323403 | N113: 0.02542896552 | O113: 1.000005038 | P113: 0.008375313398 | Q113: 22.69157624 | R113: -111.9976867 | S113: 68.00231333 | U113: 1000000000 | V113: 33113119.36 | X113: 31.66225997 | Y113: -47.63961186 | AA113: 36.05867113 | AB113: -64.35807481 | AD113: 0 | AE113: 0
A114: 5821.4 | B114: 5.8214 | C114: 2.327147691 | D114: 1.126624088 | E114: 1.000026757 | F114: 0.007315256491 | G114: 1 | H114: 0 | I114: 2810.078799 | J114: 1.570440465 | K114: 1.393176015 | L114: 0.77018138 | M114: 1.000330977 | N114: 0.02572491183 | O114: 1.000005156 | P114: 0.008472830706 | Q114: 22.55761492 | R114: -111.9425265 | S114: 68.05747346 | U114: 1000000000 | V114: 33888697.96 | X114: 31.61009986 | Y114: -47.32539701 | AA114: 35.97686992 | AB114: -64.61712953 | AD114: 0 | AE114: 0
A115: 5888.4 | B115: 5.8884 | C115: 2.349008776 | D115: 1.131048299 | E115: 1.000027377 | F115: 0.007399446617 | G115: 1 | H115: 0 | I115: 2842.420719 | J115: 1.570444514 | K115: 1.400972191 | L115: 0.7759013672 | M115: 1.000338638 | N115: 0.02602085363 | O115: 1.000005276 | P115: 0.008570348059 | Q115: 22.42541216 | R115: -111.8862359 | S115: 68.11376414 | U115: 1000000000 | V115: 34673254.56 | X115: 31.55910662 | Y115: -47.0148541 | AA115: 35.89566041 | AB115: -64.87138176 | AD115: 0 | AE115: 0
A116: 5957 | B116: 5.957 | C116: 2.371438665 | D116: 1.13549356 | E116: 1.000028018 | F116: 0.007485647144 | G116: 1 | H116: 0 | I116: 2875.534984 | J116: 1.570448565 | K116: 1.409001503 | L116: 0.7816921725 | M116: 1.000346573 | N116: 0.02632385798 | O116: 1.000005399 | P116: 0.008670194233 | Q116: 22.29183554 | R116: -111.8275167 | S116: 68.17248332 | U116: 1000000000 | V116: 35485849 | X116: 31.50807065 | Y116: -46.7006584 | AA116: 35.81311976 | AB116: -65.12685828 | AD116: 0 | AE116: 0
A117: 6025.6 | B117: 6.0256 | C117: 2.393914536 | D117: 1.139855435 | E117: 1.000028667 | F117: 0.00757184756 | G117: 1 | H117: 0 | I117: 2908.649249 | J117: 1.570452525 | K117: 1.417077528 | L117: 0.7874171635 | M117: 1.0003546 | N117: 0.02662685749 | O117: 1.000005524 | P117: 0.008770040457 | Q117: 22.16002463 | R117: -111.7677851 | S117: 68.23221485 | U117: 1000000000 | V117: 36307855.36 | X117: 31.45819009 | Y117: -46.39022801 | AA117: 35.73118941 | AB117: -65.37755713 | AD117: 0 | AE117: 0
A118: 6095.8 | B118: 6.0958 | C118: 2.416960891 | D118: 1.144234974 | E118: 1.000029339 | F118: 0.007660058365 | G118: 1 | H118: 0 | I118: 2942.535859 | J118: 1.570456484 | K118: 1.425389446 | L118: 0.7932083263 | M118: 1.000362909 | N118: 0.02693691899 | O118: 1.000005654 | P118: 0.008872215506 | Q118: 22.02692791 | R118: -111.7056973 | S118: 68.29430275 | U118: 1000000000 | V118: 37158777.64 | X118: 31.40830829 | Y118: -46.07641089 | AA118: 35.64797449 | AB118: -65.62928636 | AD118: 0 | AE118: 0
A119: 6166 | B119: 6.166 | C119: 2.440052727 | D119: 1.148531702 | E119: 1.000030019 | F119: 0.007748269051 | G119: 1 | H119: 0 | I119: 2976.422468 | J119: 1.570460353 | K119: 1.433748613 | L119: 0.798932151 | M119: 1.000371314 | N119: 0.0272469753 | O119: 1.000005785 | P119: 0.008974390609 | Q119: 21.89560117 | R119: -111.6427173 | S119: 68.35728267 | U119: 1000000000 | V119: 38019556 | X119: 31.35956854 | Y119: -45.76644649 | AA119: 35.5653875 | AB119: -65.87627084 | AD119: 0 | AE119: 0
A120: 6237.8 | B120: 6.2378 | C120: 2.463716589 | D120: 1.152842961 | E120: 1.000030722 | F120: 0.007838490112 | G120: 1 | H120: 0 | I120: 3011.081422 | J120: 1.57046422 | K120: 1.442346322 | L120: 0.8047176083 | M120: 1.00038001 | N120: 0.027564093 | O120: 1.00000592 | P120: 0.009078894543 | Q120: 21.76307218 | R120: -111.5774614 | S120: 68.42253862 | U120: 1000000000 | V120: 38910148.84 | X120: 31.31086535 | Y120: -45.45335529 | AA120: 35.48156169 | AB120: -66.1241061 | AD120: 0 | AE120: 0
A121: 6309.6 | B121: 6.3096 | C121: 2.487425372 | D121: 1.157072111 | E121: 1.000031433 | F121: 0.007928711045 | G121: 1 | H121: 0 | I121: 3045.740376 | J121: 1.570467999 | K121: 1.450991736 | L121: 0.8104343123 | M121: 1.000388807 | N121: 0.02788120516 | O121: 1.000006058 | P121: 0.009183398535 | Q121: 21.63231467 | R121: -111.5114349 | S121: 68.48856507 | U121: 1000000000 | V121: 39811052.16 | X121: 31.26328909 | Y121: -45.144198 | AA121: 35.39838044 | AB121: -66.36723694 | AD121: 0 | AE121: 0
A122: 6383.05 | B122: 6.38305 | C122: 2.51172415 | D122: 1.161315759 | E122: 1.000032169 | F122: 0.008021005167 | G122: 1 | H122: 0 | I122: 3081.19581 | J122: 1.570471777 | K122: 1.459884303 | L122: 0.8162121352 | M122: 1.00039791 | N122: 0.02820559891 | O122: 1.000006199 | P122: 0.009290304139 | Q122: 21.5003448 | R122: -111.4431732 | S122: 68.55682679 | U122: 1000000000 | V122: 40743327.3 | X122: 31.2157517 | Y122: -44.83195599 | AA122: 35.31394797 | AB122: -66.61121722 | AD122: 0 | AE122: 0
A123: 6456.5 | B123: 6.4565 | C123: 2.536067293 | D123: 1.165478013 | E123: 1.000032914 | F123: 0.008113299152 | G123: 1 | H123: 0 | I123: 3116.651244 | J123: 1.57047547 | K123: 1.468825016 | L123: 0.8219198077 | M123: 1.000407118 | N123: 0.02852998672 | O123: 1.000006343 | P123: 0.009397209804 | Q123: 21.3701477 | R123: -111.374262 | S123: 68.62573797 | U123: 1000000000 | V123: 41686392.25 | X123: 31.169326 | Y123: -44.52372804 | AA123: 35.23017656 | AB123: -66.85053399 | AD123: 0 | AE123: 0
A124: 6531.7 | B124: 6.5317 | C124: 2.561035071 | D124: 1.169657385 | E124: 1.000033685 | F124: 0.008207791966 | G124: 1 | H124: 0 | I124: 3152.95143 | J124: 1.570479164 | K124: 1.478027713 | L124: 0.827691737 | M124: 1.000416655 | N124: 0.02886209709 | O124: 1.000006492 | P124: 0.009506662637 | Q124: 21.23864411 | R124: -111.3031125 | S124: 68.69688746 | U124: 1000000000 | V124: 42663104.89 | X124: 31.12291207 | Y124: -44.21226103 | AA124: 35.14508691 | AB124: -67.09085152 | AD124: 0 | AE124: 0
A125: 6606.9 | B125: 6.6069 | C125: 2.58604672 | D125: 1.173755984 | E125: 1.000034465 | F125: 0.008302284633 | G125: 1 | H125: 0 | I125: 3189.251615 | J125: 1.570482774 | K125: 1.487279041 | L125: 0.8333920479 | M125: 1.000426302 | N125: 0.02919420109 | O125: 1.000006642 | P125: 0.009616115536 | Q125: 21.10891655 | R125: -111.2314333 | S125: 68.76856666 | U125: 1000000000 | V125: 43651127.61 | X125: 31.07759585 | Y125: -43.90489226 | AA125: 35.06067556 | AB125: -67.32654108 | AD125: 0 | AE125: 0
A126: 6683.85 | B126: 6.68385 | C126: 2.611684519 | D126: 1.177868626 | E126: 1.000035272 | F126: 0.008398976112 | G126: 1 | H126: 0 | I126: 3226.396553 | J126: 1.570486383 | K126: 1.49679506 | L126: 0.8391518772 | M126: 1.000436288 | N126: 0.0295340269 | O126: 1.000006798 | P126: 0.009728115611 | Q126: 20.977967 | R126: -111.157611 | S126: 68.84238896 | U126: 1000000000 | V126: 44673850.82 | X126: 31.0323276 | Y126: -43.59455577 | AA126: 34.97499426 | AB126: -67.56305527 | AD126: 0 | AE126: 0
A127: 6760.8 | B127: 6.7608 | C127: 2.637365633 | D127: 1.181901243 | E127: 1.000036089 | F127: 0.008495667434 | G127: 1 | H127: 0 | I127: 3263.541491 | J127: 1.570489911 | K127: 1.506360107 | L127: 0.844838746 | M127: 1.000446389 | N127: 0.02987384589 | O127: 1.000006955 | P127: 0.009840115755 | Q127: 20.84879389 | R127: -111.0833788 | S127: 68.91662116 | U127: 1000000000 | V127: 45708416.64 | X127: 30.98814132 | Y127: -43.2883945 | AA127: 34.89000743 | AB127: -67.79498433 | AD127: 0 | AE127: 0
A128: 6839.55 | B128: 6.83955 | C128: 2.663691013 | D128: 1.185947615 | E128: 1.000036935 | F128: 0.008594620376 | G128: 1 | H128: 0 | I128: 3301.555316 | J128: 1.570493439 | K128: 1.516198693 | L128: 0.8505841611 | M128: 1.000456847 | N128: 0.03022160671 | O128: 1.000007118 | P128: 0.009954735859 | Q128: 20.71839642 | R128: -111.0070559 | S128: 68.99294414 | U128: 1000000000 | V128: 46779444.2 | X128: 30.94400798 | Y128: -42.97933383 | AA128: 34.8037433 | AB128: -68.02772202 | AD128: 0 | AE128: 0
A129: 6918.3 | B129: 6.9183 | C129: 2.690059153 | D129: 1.189914725 | E129: 1.00003779 | F129: 0.008693573151 | G129: 1 | H129: 0 | I129: 3339.569141 | J129: 1.570496887 | K129: 1.526086681 | L129: 0.8562553088 | M129: 1.000467425 | N129: 0.03056936023 | O129: 1.000007283 | P129: 0.01006935604 | Q129: 20.58977535 | R129: -110.9304417 | S129: 69.06955828 | U129: 1000000000 | V129: 47862874.89 | X129: 30.90094061 | Y129: -42.67452335 | AA129: 34.71818961 | AB129: -68.25591836 | AD129: 0 | AE129: 0
A130: 6998.9 | B130: 6.9989 | C130: 2.717089712 | D130: 1.193895234 | E130: 1.000038676 | F130: 0.008794850353 | G130: 1 | H130: 0 | I130: 3378.475989 | J130: 1.570500335 | K130: 1.536257121 | L130: 0.8619838982 | M130: 1.000478377 | N130: 0.03092527553 | O130: 1.000007454 | P130: 0.01018666896 | Q130: 20.4599297 | R130: -110.8517929 | S130: 69.14820711 | U130: 1000000000 | V130: 48984601.21 | X130: 30.85793171 | Y130: -42.36688938 | AA130: 34.63135286 | AB130: -68.48490351 | AD130: 0 | AE130: 0
A131: 7079.5 | B131: 7.0795 | C131: 2.744162474 | D131: 1.197797264 | E131: 1.000039572 | F131: 0.008896127376 | G131: 1 | H131: 0 | I131: 3417.382837 | J131: 1.570503705 | K131: 1.546477312 | L131: 0.8676369541 | M131: 1.000489456 | N131: 0.031281183 | O131: 1.000007626 | P131: 0.01030398196 | Q131: 20.33185987 | R131: -110.7729703 | S131: 69.22702966 | U131: 1000000000 | V131: 50119320.25 | X131: 30.81597246 | Y131: -42.06357821 | AA131: 34.54524228 | AB131: -68.70939214 | AD131: 0 | AE131: 0
A132: 7161.95 | B132: 7.16195 | C132: 2.77189901 | D132: 1.20170993 | E132: 1.000040499 | F132: 0.008999728806 | G132: 1 | H132: 0 | I132: 3457.182709 | J132: 1.570507074 | K132: 1.556982541 | L132: 0.8733427878 | M132: 1.00050092 | N132: 0.03164525135 | O132: 1.000007805 | P132: 0.01042398771 | Q132: 20.20264503 | R132: -110.6922219 | S132: 69.30777811 | U132: 1000000000 | V132: 51293527.8 | X132: 30.77410276 | Y132: -41.75771061 | AA132: 34.45789713 | AB132: -68.93451128 | AD132: 0 | AE132: 0
A133: 7244.4 | B133: 7.2444 | C133: 2.79967714 | D133: 1.205545011 | E133: 1.000041437 | F133: 0.009103330043 | G133: 1 | H133: 0 | I133: 3496.982581 | J133: 1.570510366 | K133: 1.567537779 | L133: 0.8789719606 | M133: 1.000512517 | N133: 0.03200931131 | O133: 1.000007986 | P133: 0.01054399355 | Q133: 20.07520271 | R133: -110.6114157 | S133: 69.38858433 | U133: 1000000000 | V133: 52481331.36 | X133: 30.73326483 | Y133: -41.45623049 | AA133: 34.37129275 | AB133: -69.15518518 | AD133: 0 | AE133: 0
A134: 7328.75 | B134: 7.32875 | C134: 2.828137161 | D134: 1.209390451 | E134: 1.000042407 | F134: 0.009209318492 | G134: 1 | H134: 0 | I134: 3537.699611 | J134: 1.570513657 | K134: 1.57838696 | L134: 0.8846527581 | M134: 1.000524518 | N134: 0.03238175199 | O134: 1.000008173 | P134: 0.01066676492 | Q134: 19.94661465 | R134: -110.5287468 | S134: 69.47125317 | U134: 1000000000 | V134: 53710576.56 | X134: 30.6925203 | Y134: -41.15227262 | AA134: 34.28344921 | AB134: -69.37647421 | AD134: 0 | AE134: 0
A135: 7413.1 | B135: 7.4131 | C135: 2.856638169 | D135: 1.213159212 | E135: 1.000043389 | F135: 0.009315306735 | G135: 1 | H135: 0 | I135: 3578.416642 | J135: 1.570516874 | K135: 1.589286382 | L135: 0.8902558159 | M135: 1.000536658 | N135: 0.03275418368 | O135: 1.000008362 | P135: 0.01078953639 | Q135: 19.81979535 | R135: -110.446134 | S135: 69.55386596 | U135: 1000000000 | V135: 54954051.61 | X135: 30.65278944 | Y135: -40.85276411 | AA135: 34.19636077 | AB135: -69.59336994 | AD135: 0 | AE135: 0
A136: 7499.45 | B136: 7.49945 | C136: 2.885856146 | D136: 1.216940169 | E136: 1.000044406 | F136: 0.009423807819 | G136: 1 | H136: 0 | I136: 3620.099103 | J136: 1.570520091 | K136: 1.600495207 | L136: 0.8959124945 | M136: 1.00054923 | N136: 0.03313543658 | O136: 1.000008558 | P136: 0.01091521895 | Q136: 19.69175768 | R136: -110.3616761 | S136: 69.63832394 | U136: 1000000000 | V136: 56241750.3 | X136: 30.61313352 | Y136: -40.55068884 | AA136: 34.10797902 | AB136: -69.81098722 | AD136: 0 | AE136: 0
A137: 7585.8 | B137: 7.5858 | C137: 2.91511455 | D137: 1.22064528 | E137: 1.000045434 | F137: 0.009532308682 | G137: 1 | H137: 0 | I137: 3661.781564 | J137: 1.570523236 | K137: 1.611754531 | L137: 0.9014903172 | M137: 1.000561947 | N137: 0.03351667984 | O137: 1.000008756 | P137: 0.01104090161 | Q137: 19.56548652 | R137: -110.2773858 | S137: 69.72261417 | U137: 1000000000 | V137: 57544361.64 | X137: 30.57447408 | Y137: -40.25312693 | AA137: 34.0203673 | AB137: -70.0242589 | AD137: 0 | AE137: 0
A138: 7674.15 | B138: 7.67415 | C138: 2.94509121 | D138: 1.22435996 | E138: 1.000046499 | F138: 0.00964332236 | G138: 1 | H138: 0 | I138: 3704.429456 | J138: 1.57052638 | K138: 1.623325811 | L138: 0.9071170675 | M138: 1.000575109 | N138: 0.0339067432 | O138: 1.000008961 | P138: 0.01116949538 | Q138: 19.43807521 | R138: -110.1913687 | S138: 69.80863134 | U138: 1000000000 | V138: 58892578.22 | X138: 30.5359178 | Y138: -39.95326701 | AA138: 33.93151228 | AB138: -70.23810165 | AD138: 0 | AE138: 0
A139: 7762.5 | B139: 7.7625 | C139: 2.975107691 | D139: 1.227999733 | E139: 1.000047575 | F139: 0.009754335801 | G139: 1 | H139: 0 | I139: 3747.077348 | J139: 1.570529452 | K139: 1.634947756 | L139: 0.9126639963 | M139: 1.000588424 | N139: 0.03429679624 | O139: 1.000009169 | P139: 0.01129808925 | Q139: 19.31242549 | R139: -110.1056284 | S139: 69.8943716 | U139: 1000000000 | V139: 60256406.25 | X139: 30.49833935 | Y139: -39.65797583 | AA139: 33.843441 | AB139: -70.44765257 | AD139: 0 | AE139: 0
A140: 7852.9 | B140: 7.8529 | C140: 3.00586062 | D140: 1.231648668 | E140: 1.00004869 | F140: 0.009867924857 | G140: 1 | H140: 0 | I140: 3790.714806 | J140: 1.570532524 | K140: 1.646890693 | L140: 0.9182584209 | M140: 1.000602204 | N140: 0.03469588893 | O140: 1.000009384 | P140: 0.01142966702 | Q140: 19.18563956 | R140: -110.0182331 | S140: 69.98176694 | U140: 1000000000 | V140: 61668038.41 | X140: 30.46086857 | Y140: -39.36048126 | AA140: 33.75412586 | AB140: -70.65775181 | AD140: 0 | AE140: 0
A141: 7943.3 | B141: 7.9433 | C141: =SQRT(1+(A141/pole1)^2) -> 3.036652761 | D141: =ATAN(A141/pole1) -> 1.235223647 | E141: =SQRT(1+(A141/Zero1)^2) -> 1.000049817 | F141: =ATAN(A141/Zero1) -> 0.009981513657 | G141: =IF(VIN_nom>Vout, 1, SQRT(1+(A141/z_RHP)^2)) -> 1 | H141: =IF(VIN_nom>Vout, 0, -ATAN(A141/z_RHP)) -> 0 | I141: =SQRT(1+(A141/Pole2)^2) -> 3834.352264 | J141: =ATAN(A141/Pole2) -> 1.570535527 | K141: =SQRT(1+(A141/Zero2)^2) -> 1.65888443 | L141: =ATAN(A141/Zero2) -> 0.9237721207 | M141: =SQRT(1+(A141/pole4)^2) -> 1.000616145 | N141: =ATAN(A141/pole4) -> 0.03509497058 | O141: =SQRT((1-(V141/pterm2))^2+(A141/pterm1)^2) -> 1.000009601 | P141: =IF((ATAN((A141/pterm1)/(1-A141^2/pterm2))>0),ATAN((A141/pterm1)/(1-A141^2/pterm2)),PI()+ATAN((A141/pterm1)/(1-A141^2/pterm2))) -> 0.0115612449 | Q141: =20*LOG10(((E141*K141*G141)/(C141*I141*O141*M141))*Adc) -> 19.06060972 | R141: =((F141+L141+H141)-(D141+J141+P141+N141))*radconv -> -109.931221 | S141: =IF(R141>0,R141,R141+180) -> 70.06877899 | U141: 1000000000 | V141: 63096014.89 | X141: =20*LOG10((K141/(I141*M141))*AEA) -> 30.42435672 | Y141: =(L141-(J141+N141))*radconv -> -39.06760724 | AA141: =20*LOG10((E141*G141/(C141*O141))*Acs*Am) -> 33.66560786 | AB141: =(F141+H141-(D141+P141))*radconv -> -70.86361377 | AD141: 0 | AE141: 0
A142: 8035.8 | B142: =A142/1000 -> 8.0358 | C142: 3.068199563 | D142: 1.238807352 | E142: 1.000050984 | F142: 0.01009774087 | G142: 1 | H142: 0 | I142: 3879.003424 | J142: 1.570538529 | K142: 1.671208226 | L142: 0.9293318118 | M142: 1.000630574 | N142: 0.03550331134 | O142: 1.000009826 | P142: 0.01169587946 | Q142: 18.93444884 | R142: -109.8426282 | S142: 70.15737183 | U142: =IF(Q142<0,A142,1000000000) -> 1000000000 | V142: =A142^2 -> 64574081.64 | X142: 30.38795707 | Y142: -38.77262861 | AA142: 33.57584664 | AB142: -71.06999955 | AD142: =SUM((Q143<0)*(Q142>0))*A142 -> 0 | AE142: 0
A143: 8128.3 | B143: 8.1283 | C143: 3.099784967 | D143: 1.242318067 | E143: 1.000052165 | F143: 0.01021396781 | G143: 1 | H143: 0 | I143: 3923.654584 | J143: 1.570541462 | K143: 1.683582922 | L143: 0.9348099403 | M143: 1.00064517 | N143: 0.03591164027 | O143: 1.000010054 | P143: 0.01183051415 | Q143: 18.81003799 | R143: -109.754522 | S143: 70.24547797 | U143: 1000000000 | V143: 66069260.89 | X143: 30.35249722 | Y143: -38.48231858 | AA143: 33.48689564 | AB143: -71.27220344 | AD143: 0 | AE143: 0
A144: 8222.95 | B144: 8.22295 | C144: 3.132143259 | D144: 1.245837045 | E144: 1.000053387 | F144: 0.01033289595 | G144: 1 | H144: 0 | I144: 3969.343582 | J144: 1.570544396 | K144: 1.696296773 | L144: 0.940332493 | M144: 1.000660277 | N144: 0.03632944767 | O144: 1.000010289 | P144: 0.01196827831 | Q144: 18.6845024 | R144: -109.6649116 | S144: 70.33508844 | U144: 1000000000 | V144: 67616906.7 | X144: 30.31715406 | Y144: -38.19000631 | AA144: 33.39670321 | AB144: -71.47490526 | AD144: 0 | AE144: 0
A145: 8270.275 | B145: 8.270275 | C145: 3.148336725 | D145: 1.247569398 | E145: 1.000054003 | F145: 0.01039235992 | G145: 1 | H145: 0 | I145: 3992.188081 | J145: 1.570545838 | K145: 1.702672881 | L145: 0.9430628 | M145: 1.000667897 | N145: 0.03653834663 | O145: 1.000010408 | P145: 0.01203716043 | Q145: 18.62239107 | R145: -109.6203242 | S145: 70.37967577 | U145: 1000000000 | V145: 68397448.58 | X145: 30.29982956 | Y145: -38.04562286 | AA145: 33.35191637 | AB145: -71.57470137 | AD145: 0 | AE145: 0
A146: 8317.6 | B146: 8.3176 | C146: 3.164539543 | D146: 1.249284016 | E146: 1.000054623 | F146: 0.01045182381 | G146: 1 | H146: 0 | I146: 4015.03258 | J146: 1.570547263 | K146: 1.709061588 | L146: 0.9457727147 | M146: 1.00067556 | N146: 0.03674724239 | O146: 1.000010527 | P146: 0.01210604259 | Q146: 18.56071016 | R146: -109.5758881 | S146: 70.42411194 | U146: 1000000000 | V146: 69182469.76 | X146: 30.28273133 | Y146: -37.9024067 | AA146: 33.30733369 | AB146: -71.67348136 | AD146: 0 | AE146: 0
A147: 8366.05 | B147: 8.36605 | C147: 3.18113707 | D147: 1.251021294 | E147: 1.000055261 | F147: 0.01051270118 | G147: 1 | H147: 0 | I147: 4038.420134 | J147: 1.570548705 | K147: 1.715615069 | L147: 0.94852612 | M147: 1.000683451 | N147: 0.03696110066 | O147: 1.00001065 | P147: 0.01217656224 | Q147: 18.49800331 | R147: -109.5305565 | S147: 70.46944347 | U147: 1000000000 | V147: 69990792.6 | X147: 30.26545713 | Y147: -37.75698401 | AA147: 33.26190105 | AB147: -71.77357252 | AD147: 0 | AE147: 0
A148: 8414.5 | B148: 8.4145 | C148: 3.197744097 | D148: 1.252740532 | E148: 1.000055903 | F148: 0.01057357848 | G148: 1 | H148: 0 | I148: 4061.807688 | J148: 1.570550131 | K148: =SQRT(1+(A148/Zero2)^2) -> 1.722181457 | L148: =ATAN(A148/Zero2) -> 0.9512585494 | M148: 1.000691387 | N148: 0.03717495555 | O148: 1.000010774 | P148: 0.01224708192 | Q148: 18.43573642 | R148: -109.4853921 | S148: 70.51460789 | U148: 1000000000 | V148: 70803810.25 | X148: 30.2484122 | Y148: -37.61276201 | AA148: 33.21667908 | AB148: -71.8726301 | AD148: 0 | AE148: 0
A149: 8462.95 | B149: 8.46295 | C149: 3.214360479 | D149: 1.254442001 | E149: 1.000056548 | F149: 0.0106344557 | G149: 1 | H149: 0 | I149: 4085.195241 | J149: 1.57055154 | K149: 1.728760606 | L149: 0.9539702013 | M149: 1.000699369 | N149: 0.03738880703 | O149: 1.000010899 | P149: 0.01231760164 | Q149: 18.37390396 | R149: -109.4403989 | S149: 70.55960111 | U149: 1000000000 | V149: 71621522.7 | X149: 30.23159269 | Y149: -37.46972935 | AA149: 33.17166613 | AB149: -71.97066954 | AD149: 0 | AE149: 0
A150: 8511.4 | B150: 8.5114 | C150: 3.230986071 | D150: 1.256125964 | E150: 1.000057198 | F150: 0.01069533284 | G150: 1 | H150: 0 | I150: 4108.582795 | J150: 1.570552934 | K150: 1.73535237 | L150: 0.9566612723 | M150: 1.000707397 | N150: 0.03760265509 | O150: 1.000011024 | P150: 0.01238812139 | Q150: 18.31250051 | R150: -109.3955808 | S150: 70.60441924 | U150: 1000000000 | V150: 72443929.96 | X150: 30.21499481 | Y150: -37.32787476 | AA150: 33.12686056 | AB150: -72.067706 | AD150: 0 | AE150: 0
A151: 8560.95 | B151: 8.56095 | C151: 3.247998506 | D151: 1.257830323 | E151: 1.000057866 | F151: 0.01075759204 | G151: 1 | H151: 0 | I151: 4132.501336 | J151: 1.570554343 | K151: 1.742106692 | L151: 0.959392357 | M151: 1.000715654 | N151: 0.03782135476 | O151: 1.000011153 | P151: 0.01246024224 | Q151: 18.25014114 | R151: -109.34993 | S151: 70.65006995 | U151: 1000000000 | V151: 73289864.9 | X151: 30.19824546 | Y151: -37.18400642 | AA151: 33.08125055 | AB151: -72.16592363 | AD151: 0 | AE151: 0
A152: 8610.5 | B152: 8.6105 | C152: 3.265020277 | D152: 1.259516917 | E152: 1.000058537 | F152: 0.01081985116 | G152: 1 | H152: 0 | I152: 4156.419876 | J152: 1.570555735 | K152: 1.748873907 | L152: 0.9621023261 | M152: 1.000723959 | N152: 0.03804005081 | O152: 1.000011282 | P152: 0.01253236313 | Q152: 18.1882193 | R152: -109.3044701 | S152: 70.69552987 | U152: 1000000000 | V152: 74140710.25 | X152: 30.18172015 | Y152: -37.04134678 | AA152: 33.03585402 | AB152: -72.26312335 | AD152: 0 | AE152: 0
A153: 8660.05 | B153: 8.66005 | C153: 3.28205124 | D153: 1.261186011 | E153: 1.000059213 | F153: 0.0108821102 | G153: 1 | H153: 0 | I153: 4180.338417 | J153: 1.570557112 | K153: 1.755653866 | L153: 0.9647913841 | M153: 1.000732312 | N153: 0.03825874322 | O153: 1.000011412 | P153: 0.01260448406 | Q153: 18.12672947 | R153: -109.2592046 | S153: 70.74079543 | U153: 1000000000 | V153: 74996466 | X153: 30.16541506 | Y153: -36.89988412 | AA153: 32.99066927 | AB153: -72.35932045 | AD153: 0 | AE153: 0
A154: 8709.6 | B154: 8.7096 | C154: 3.299091251 | D154: 1.262837868 | E154: 1.000059893 | F154: 0.01094436915 | G154: 1 | H154: 0 | I154: 4204.256957 | J154: 1.570558473 | K154: 1.762446423 | L154: 0.9674597338 | M154: 1.000740713 | N154: 0.03847743197 | O154: 1.000011543 | P154: 0.01267660502 | Q154: 18.06566622 | R154: -109.2141368 | S154: 70.78586321 | U154: 1000000000 | V154: 75857132.16 | X154: 30.14932647 | Y154: -36.75960687 | AA154: 32.94569461 | AB154: -72.45452992 | AD154: 0 | AE154: =IF(AD154>0,S154,0) -> 0
A155: 8760.325 | B155: 8.760325 | C155: 3.316544568 | D155: 1.264511308 | E155: 1.000060592 | F155: 0.01100810438 | G155: 1 | H155: 0 | I155: 4228.742688 | J155: 1.57055985 | K155: 1.769412952 | L155: 0.9701701179 | M155: 1.000749363 | N155: 0.03870130276 | O155: 1.000011678 | P155: 0.01275043626 | Q155: 18.00359126 | R155: -109.1682085 | S155: 70.83179147 | U155: 1000000000 | V155: 76743294.11 | X155: 30.1330768 | Y155: -36.61721906 | AA155: 32.89986932 | AB155: -72.55098947 | AD155: 0 | AE155: 0
A156: 8811.05 | B156: 8.81105 | C156: 3.334007074 | D156: 1.266167224 | E156: 1.000061296 | F156: 0.01107183953 | G156: 1 | H156: 0 | I156: 4253.228419 | J156: 1.570561211 | K156: 1.776392378 | L156: 0.9728592236 | M156: 1.000758063 | N156: 0.03892516968 | O156: 1.000011814 | P156: 0.01282426754 | Q156: 17.94195213 | R156: -109.1224942 | S156: 70.87750582 | U156: 1000000000 | V156: 77634602.1 | X156: 30.11704632 | Y156: -36.47604928 | AA156: 32.85426067 | AB156: -72.64644489 | AD156: 0 | AE156: 0
A157: 8861.775 | B157: 8.861775 | C157: 3.351478628 | D157: 1.267805879 | E157: 1.000062004 | F157: 0.01113557459 | G157: 1 | H157: 0 | I157: 4277.71415 | J157: 1.570562557 | K157: 1.783384549 | L157: 0.9755272618 | M157: 1.000766813 | N157: 0.03914903268 | O157: 1.00001195 | P157: 0.01289809886 | Q157: 17.88074331 | R157: -109.0769968 | S157: 70.92300316 | U157: 1000000000 | V157: 78531056.15 | X157: 30.10123129 | Y157: -36.33608546 | AA157: 32.80886689 | AB157: -72.74091138 | AD157: 0 | AE157: 0
A158: 8912.5 | B158: 8.9125 | C158: 3.368959087 | D158: 1.269427533 | E158: 1.000062716 | F158: 0.01119930955 | G158: 1 | H158: 0 | I158: 4302.199881 | J158: 1.570563888 | K158: =SQRT(1+(A158/Zero2)^2) -> 1.790389315 | L158: =ATAN(A158/Zero2) -> 0.9781744418 | M158: 1.000775613 | N158: 0.03937289177 | O158: 1.000012088 | P158: 0.01297193022 | Q158: 17.81995935 | R158: -109.0317194 | S158: 70.96828056 | U158: 1000000000 | V158: 79432656.25 | X158: 30.08562799 | Y158: -36.19731563 | AA158: 32.76368623 | AB158: -72.83440381 | AD158: 0 | AE158: 0
A159: 8964.4 | B159: 8.9644 | C159: 3.38685354 | D159: 1.271069421 | E159: 1.000063448 | F159: 0.01126452079 | G159: 1 | H159: 0 | I159: 4327.252802 | J159: 1.570565233 | K159: 1.797569224 | L159: 0.9808615687 | M159: 1.000784669 | N159: 0.03960193226 | O159: 1.000012229 | P159: 0.01304747186 | Q159: 17.75820155 | R159: -108.9856237 | S159: 71.01437626 | U159: 1000000000 | V159: 80360467.36 | X159: 30.06987864 | Y159: -36.05655477 | AA159: 32.71767777 | AB159: -72.92906897 | AD159: 0 | AE159: 0
A160: 9016.3 | B160: 9.0163 | C160: 3.404757027 | D160: 1.272694047 | E160: 1.000064185 | F160: 0.01132973193 | G160: 1 | H160: 0 | I160: 4352.305724 | J160: 1.570566564 | K160: 1.804762009 | L160: 0.9835272958 | M160: 1.000793778 | N160: 0.0398309686 | O160: 1.000012371 | P160: 0.01312301354 | Q160: 17.69687729 | R160: -108.9397639 | S160: 71.06023607 | U160: 1000000000 | V160: 81293665.69 | X160: 30.05434339 | Y160: -35.91701888 | AA160: 32.67188877 | AB160: -73.02274504 | AD160: 0 | AE160: 0
A161: 9068.2 | B161: 9.0682 | C161: 3.422669407 | D161: 1.274301672 | E161: 1.000064926 | F161: 0.01139494297 | G161: 1 | H161: 0 | I161: 4377.358645 | J161: 1.570567879 | K161: 1.811967517 | L161: 0.9861718405 | M161: 1.000802939 | N161: 0.04006000076 | O161: 1.000012514 | P161: 0.01319855526 | Q161: 17.63598104 | R161: -108.8941426 | S161: 71.10585738 | U161: 1000000000 | V161: 82232251.24 | X161: 30.03901851 | Y161: -35.77869556 | AA161: 32.6263174 | AB161: -73.11544706 | AD161: 0 | AE161: 0
A162: 9120.1 | B162: 9.1201 | C162: 3.44059054 | D162: 1.275892553 | E162: 1.000065671 | F162: 0.01146015392 | G162: 1 | H162: 0 | I162: 4402.411566 | J162: 1.570569179 | K162: 1.819185597 | L162: 0.9887954176 | M162: 1.000812152 | N162: 0.04028902871 | O162: 1.000012657 | P162: 0.01327409703 | Q162: 17.57550736 | R162: -108.8487623 | S162: 71.15123775 | U162: 1000000000 | V162: 83176224.01 | X162: 30.02390036 | Y162: -35.64157248 | AA162: 32.58096187 | AB162: -73.20718977 | AD162: 0 | AE162: 0
A163: 9173.2 | B163: 9.1732 | C163: 3.458934953 | D163: 1.277503153 | E163: 1.000066438 | F163: 0.01152687253 | G163: 1 | H163: 0 | I163: 4428.043746 | J163: 1.570570493 | K163: 1.826583424 | L163: 0.9914581768 | M163: 1.000821633 | N163: 0.04052334773 | O163: 1.000012805 | P163: 0.01335138547 | Q163: 17.51406721 | R163: -108.8025844 | S163: 71.19741563 | U163: 1000000000 | V163: 84147598.24 | X163: 30.00864291 | Y163: -35.50250844 | AA163: 32.53477916 | AB163: -73.30007593 | AD163: 0 | AE163: 0
A164: 9226.3 | B164: 9.2263 | C164: 3.477288243 | D164: 1.279096754 | E164: 1.000067209 | F164: 0.01159359104 | G164: 1 | H164: 0 | I164: 4453.675926 | J164: 1.570571793 | K164: 1.833994098 | L164: 0.9940994357 | M164: 1.000831169 | N164: 0.04075766229 | O164: 1.000012954 | P164: 0.01342867395 | Q164: 17.45305815 | R164: -108.7566634 | S164: 71.24333663 | U164: 1000000000 | V164: 85124611.69 | X164: 29.99359439 | Y164: -35.36467516 | AA164: 32.48881863 | AB164: -73.39198821 | AD164: 0 | AE164: 0
A165: 9279.4 | B165: 9.2794 | C165: 3.495650271 | D165: 1.280673618 | E165: 1.000067985 | F165: 0.01166030945 | G165: 1 | H165: 0 | I165: 4479.308106 | J165: 1.570573078 | K165: 1.841417464 | L165: 0.9967194171 | M165: 1.00084076 | N165: 0.04099197238 | O165: 1.000013103 | P165: 0.01350596249 | Q165: 17.39247467 | R165: -108.7110014 | S165: 71.28899863 | U165: 1000000000 | V165: 86107264.36 | X165: 29.97875116 | Y165: -35.22805988 | AA165: 32.44307838 | AB165: -73.48294149 | AD165: 0 | AE165: 0
A166: 9332.5 | B166: 9.3325 | C166: 3.514020901 | D166: 1.282233999 | E166: 1.000068766 | F166: 0.01172702775 | G166: 1 | H166: 0 | I166: 4504.940285 | J166: 1.570574348 | K166: 1.848853368 | L166: 0.9993183416 | M166: 1.000850405 | N166: 0.04122627797 | O166: 1.000013254 | P166: 0.01358325106 | Q166: 17.33231132 | R166: -108.6656003 | S166: 71.33439967 | U166: 1000000000 | V166: 87095556.25 | X166: 29.96410962 | Y166: -35.09264997 | AA166: 32.39755657 | AB166: -73.57295036 | AD166: 0 | AE166: 0
A167: 9386.85 | B167: 9.38685 | C167: 3.532832751 | D167: 1.283814303 | E167: 1.000069569 | F167: 0.01179531653 | G167: 1 | H167: 0 | I167: 4531.175859 | J167: 1.570575634 | K167: 1.856477144 | L167: 1.001956868 | M167: 1.000860335 | N167: 0.04146609453 | O167: 1.000013409 | P167: 0.0136623591 | Q167: 17.27116121 | R167: -108.6194027 | S167: 71.38059733 | U167: 1000000000 | V167: 88112952.92 | X167: 29.94932862 | Y167: -34.95528769 | AA167: 32.35118745 | AB167: -73.66411498 | AD167: 0 | AE167: 0
A168: 9441.2 | B168: 9.4412 | C168: 3.551653331 | D168: 1.285377862 | E168: 1.000070377 | F168: 0.0118636052 | G168: 1 | H168: 0 | I168: 4557.411433 | J168: 1.570576904 | K168: 1.864113739 | L168: 1.004573793 | M168: 1.000870322 | N168: 0.04170590632 | O168: 1.000013565 | P168: 0.01374146719 | Q168: 17.21044 | R168: -108.5734821 | S168: 71.42651789 | U168: 1000000000 | V168: 89136257.44 | X168: 29.93475156 | Y168: -34.81916188 | AA168: 32.3050433 | AB168: -73.75432023 | AD168: 0 | AE168: 0
A169: 9495.55 | B169: 9.49555 | C169: 3.570482502 | D169: 1.286924934 | E169: 1.000071189 | F169: 0.01193189375 | G169: 1 | H169: 0 | I169: 4583.647007 | J169: 1.57057816 | K169: 1.871762995 | L169: 1.007169348 | M169: 1.000880367 | N169: 0.04194571331 | O169: 1.000013721 | P169: 0.01382057532 | Q169: 17.15014217 | R169: -108.5278403 | S169: 71.47215973 | U169: 1000000000 | V169: 90165469.8 | X169: 29.92037484 | Y169: -34.68425945 | AA169: 32.25912219 | AB169: -73.84358083 | AD169: 0 | AE169: 0
A170: 9549.9 | B170: 9.5499 | C170: 3.589320128 | D170: 1.28845577 | E170: 1.000072007 | F170: 0.0120001822 | G170: 1 | H170: 0 | I170: 4609.882581 | J170: 1.570579402 | K170: 1.879424759 | L170: 1.009743757 | M170: 1.000890469 | N170: 0.04218551548 | O170: 1.000013879 | P170: 0.0138996835 | Q170: 17.09026228 | R170: -108.4824787 | S170: 71.51752133 | U170: 1000000000 | V170: 91200590.01 | X170: 29.90619493 | Y170: -34.55056744 | AA170: 32.21342221 | AB170: -73.93191123 | AD170: 0 | AE170: 0
A171: 9605.525 | B171: 9.605525 | C171: 3.608608286 | D171: 1.290005966 | E171: 1.000072848 | F171: 0.01207007251 | G171: 1 | H171: 0 | I171: 4636.733616 | J171: 1.570580658 | K171: 1.887279052 | L171: 1.012356898 | M171: 1.000900868 | N171: 0.04243093815 | O171: 1.000014041 | P171: 0.01398064754 | Q171: 17.02940485 | R171: -108.4363445 | S171: 71.56365548 | U171: 1000000000 | V171: 92266110.53 | X171: 29.89188255 | Y171: -34.41497915 | AA171: 32.16687716 | AB171: -74.02136537 | AD171: 0 | AE171: 0
A172: 9661.15 | B172: 9.66115 | C172: 3.627905023 | D172: 1.291539674 | E172: 1.000073694 | F172: 0.01213996271 | G172: 1 | H172: 0 | I172: 4663.584652 | J172: 1.570581899 | K172: 1.895146126 | L172: 1.014948362 | M172: 1.000911327 | N172: 0.0426763557 | O172: 1.000014204 | P172: 0.01406161163 | Q172: 16.96897396 | R172: -108.3905066 | S172: 71.60949335 | U172: 1000000000 | V172: 93337819.32 | X172: 29.87776907 | Y172: -34.28063177 | AA172: 32.12055975 | AB172: -74.10987487 | AD172: 0 | AE172: 0
A173: 9716.775 | B173: 9.716775 | C173: 3.647210204 | D173: 1.29305715 | E173: 1.000074545 | F173: 0.01220985278 | G173: 1 | H173: 0 | I173: 4690.435688 | J173: 1.570583127 | K173: 1.903025822 | L173: 1.017518382 | M173: 1.000921847 | N173: 0.04292176812 | O173: 1.000014368 | P173: 0.01414257578 | Q173: 16.90896409 | R173: -108.3449662 | S173: 71.65503378 | U173: 1000000000 | V173: 94415716.4 | X173: 29.86385094 | Y173: -34.1475119 | AA173: 32.07446801 | AB173: -74.19745432 | AD173: 0 | AE173: 0
A174: 9772.4 | B174: 9.7724 | C174: 3.666523695 | D174: 1.294558642 | E174: 1.000075401 | F174: 0.01227974274 | G174: 1 | H174: 0 | I174: 4717.286724 | J174: 1.570584341 | K174: 1.910917984 | L174: 1.02006719 | M174: 1.000932426 | N174: 0.04316717536 | O174: 1.000014533 | P174: 0.01422353997 | Q174: 16.8493698 | R174: -108.2997243 | S174: 71.70027572 | U174: 1000000000 | V174: 95499801.76 | X174: 29.85012469 | Y174: -34.01560628 | AA174: 32.02859998 | AB174: -74.284118 | AD174: 0 | AE174: 0
A175: 9829.3 | B175: 9.8293 | C175: 3.686288338 | D175: 1.296078269 | E175: 1.000076281 | F175: 0.01235123454 | G175: 1 | H175: 0 | I175: 4744.753221 | J175: 1.570585568 | K175: 1.919003781 | L175: 1.022652712 | M175: 1.000943311 | N175: 0.04341820228 | O175: 1.000014703 | P175: 0.01430636003 | Q175: 16.78883395 | R175: -108.2537551 | S175: 71.74624489 | U175: 1000000000 | V175: 96615138.49 | X175: 29.83627879 | Y175: -33.88191987 | AA175: 31.98191002 | AB175: -74.37183524 | AD175: 0 | AE175: 0
A176: 9886.2 | B176: 9.8862 | C176: 3.706061404 | D176: 1.297581683 | E176: 1.000077167 | F176: 0.01242272622 | G176: 1 | H176: 0 | I176: 4772.219719 | J176: 1.570586781 | K176: 1.9271023 | L176: 1.02521652 | M176: 1.000954259 | N176: 0.04366922372 | O176: 1.000014874 | P176: 0.01438918015 | Q176: 16.72872174 | R176: -108.2081001 | S176: 71.79189993 | U176: 1000000000 | V176: 97736950.44 | X176: 29.82262654 | Y176: -33.74947645 | AA176: 31.93545007 | AB176: -74.45862362 | AD176: 0 | AE176: 0
A177: 9943.1 | B177: 9.9431 | C177: 3.725842758 | D177: 1.299069137 | E177: 1.000078058 | F177: 0.01249421777 | G177: 1 | H177: 0 | I177: 4799.686217 | J177: 1.57058798 | K177: 1.935213379 | L177: 1.027758854 | M177: 1.00096527 | N177: 0.04392023966 | O177: 1.000015045 | P177: 0.01447200032 | Q177: 16.66902767 | R177: -108.1627599 | S177: 71.83724013 | U177: 1000000000 | V177: 98865237.61 | X177: 29.80916446 | Y177: -33.61826234 | AA177: 31.88921808 | AB177: -74.54449754 | AD177: 0 | AE177: 0
A178: 10000 | B178: 10 | C178: 3.745632267 | D178: 1.300540877 | E178: 1.000078954 | F178: 0.0125657092 | G178: 1 | H178: 0 | I178: 4827.152715 | J178: 1.570589165 | K178: 1.943336863 | L178: 1.030279948 | M178: 1.000976343 | N178: 0.04417125006 | O178: 1.000015218 | P178: 0.01455482055 | Q178: 16.60974632 | R178: -108.1177351 | S178: 71.88226489 | U178: 1000000000 | V178: 100000000 | X178: 29.79588913 | Y178: -33.48826401 | AA178: 31.84321205 | AB178: -74.6294711 | AD178: 0 | AE178: 0
A179: 10058.25 | B179: 10.05825 | C179: 3.765899615 | D179: 1.302031509 | E179: 1.000079876 | F179: 0.01263889668 | G179: 1 | H179: 0 | I179: 4855.270878 | J179: 1.570590365 | K179: 1.951665769 | L179: 1.032839101 | M179: 1.000987745 | N179: 0.04442821013 | O179: 1.000015396 | P179: 0.01463960581 | Q179: 16.54948042 | R179: -108.0719693 | S179: 71.92803067 | U179: 1000000000 | V179: 101168393.1 | X179: 29.7824888 | Y179: -33.35642681 | AA179: 31.79634649 | AB179: -74.71554253 | AD179: 0 | AE179: 0
A180: 10116.5 | B180: 10.1165 | C180: 3.78617524 | D180: 1.303506179 | E180: 1.000080804 | F180: 0.01271208403 | G180: 1 | H180: 0 | I180: 4883.389041 | J180: 1.570591551 | K180: 1.960007349 | L180: 1.035376488 | M180: 1.000999213 | N180: 0.04468516432 | O180: 1.000015575 | P180: 0.01472439114 | Q180: 16.48963588 | R180: -108.026535 | S180: 71.97346499 | U180: 1000000000 | V180: 102343572.2 | X180: 29.76927719 | Y180: -33.2258356 | AA180: 31.74971356 | AB180: -74.80069941 | AD180: 0 | AE180: 0
A181: 10174.75 | B181: 10.17475 | C181: 3.806459011 | D181: 1.304965136 | E181: 1.000081737 | F181: 0.01278527124 | G181: 1 | H181: 0 | I181: 4911.507205 | J181: 1.570592723 | K181: 1.968361441 | L181: 1.037892352 | M181: 1.001010747 | N181: 0.04494211261 | O181: 1.000015755 | P181: 0.01480917652 | Q181: 16.43020716 | R181: -107.9814324 | S181: 72.01856758 | U181: 1000000000 | V181: 103525537.6 | X181: 29.75625086 | Y181: -33.09647641 | AA181: 31.70331117 | AB181: -74.88495601 | AD181: 0 | AE181: 0
A182: 10233 | B182: 10.233 | C182: 3.826750799 | D182: 1.306408623 | E182: 1.000082676 | F182: 0.01285845832 | G182: 1 | H182: 0 | I182: 4939.625368 | J182: 1.570593882 | K182: 1.976727887 | L182: 1.040386936 | M182: 1.001022348 | N182: 0.04519905495 | O182: 1.000015936 | P182: 0.01489396197 | Q182: 16.37118888 | R182: -107.9366617 | S182: 72.0633383 | U182: 1000000000 | V182: 104714289 | X182: 29.74340647 | Y182: -32.96833543 | AA182: 31.65713727 | AB182: -74.96832628 | AD182: 0 | AE182: 0
A183: 10292.5 | B183: 10.2925 | C183: 3.847486177 | D183: 1.307867364 | E183: 1.00008364 | F183: 0.01293321579 | G183: 1 | H183: 0 | I183: 4968.346926 | J183: 1.570595053 | K183: 1.985286461 | L183: 1.042913328 | M183: 1.001034265 | N183: 0.04546150492 | O183: 1.000016122 | P183: 0.01498056691 | Q183: 16.3113223 | R183: -107.8912729 | S183: 72.10872707 | U183: 1000000000 | V183: 105935556.2 | X183: 29.73047087 | Y183: -32.83868816 | AA183: 31.61020629 | AB183: -75.05258477 | AD183: 0 | AE183: 0
A184: 10352 | B184: 10.352 | C184: 3.868229654 | D184: 1.309310462 | E184: 1.00008461 | F184: 0.01300797311 | G184: 1 | H184: 0 | I184: 4997.068483 | J184: 1.570596209 | K184: 1.993857598 | L184: 1.045418015 | M184: 1.001046251 | N184: 0.04572394862 | O184: 1.000016309 | P184: 0.01506717191 | Q184: 16.25187285 | R184: -107.8462304 | S184: 72.15376959 | U184: 1000000000 | V184: 107163904 | X184: 29.71771826 | Y184: -32.71028335 | AA184: 31.56350946 | AB184: -75.13594706 | AD184: 0 | AE184: 0
A185: 10411.5 | B185: 10.4115 | C185: 3.888981101 | D185: 1.310738163 | E185: 1.000085585 | F185: 0.0130827303 | G185: 1 | H185: 0 | I185: 5025.790041 | J185: 1.570597353 | K185: 2.002441137 | L185: 1.047901245 | M185: 1.001058306 | N185: 0.04598638602 | O185: 1.000016497 | P185: 0.01515377698 | Q185: 16.19283505 | R185: -107.801534 | S185: 72.19846602 | U185: 1000000000 | V185: 108399332.2 | X185: 29.70514527 | Y185: -32.58310685 | AA185: 31.51704464 | AB185: -75.21842713 | AD185: 0 | AE185: 0
A186: 10471 | B186: 10.471 | C186: 3.909740391 | D186: 1.312150706 | E186: 1.000086566 | F186: 0.01315748733 | G186: 1 | H186: 0 | I186: 5054.511598 | J186: 1.570598484 | K186: 2.011036918 | L186: 1.050363261 | M186: 1.001070431 | N186: 0.04624881708 | O186: 1.000016686 | P186: 0.01524038211 | Q186: 16.13420353 | R186: -107.7571834 | S186: 72.24281663 | U186: 1000000000 | V186: 109641841 | X186: 29.69274865 | Y186: -32.45714466 | AA186: 31.47080975 | AB186: -75.30003871 | AD186: 0 | AE186: 0
A187: 10532 | B187: 10.532 | C187: 3.931031037 | D187: 1.313583368 | E187: 1.000087577 | F187: 0.01323412884 | G187: 1 | H187: 0 | I187: 5083.957228 | J187: 1.57059963 | K187: 2.019861945 | L187: 1.052865576 | M187: 1.001082932 | N187: 0.04651785743 | O187: 1.000016881 | P187: 0.01532917063 | Q187: 16.07451018 | R187: -107.7120733 | S187: 72.28792671 | U187: 1000000000 | V187: 110923024 | X187: 29.68021924 | Y187: -32.32925311 | AA187: 31.42364581 | AB187: -75.38282018 | AD187: 0 | AE187: 0
A188: 10593 | B188: 10.593 | C188: 3.952329664 | D188: 1.315000593 | E188: 1.000088595 | F188: 0.0133107702 | G188: 1 | H188: 0 | I188: 5113.402859 | J188: 1.570600762 | K188: 2.028699509 | L188: 1.055346105 | M188: 1.001095506 | N188: 0.04678689104 | O188: 1.000017077 | P188: 0.01541795922 | Q188: 16.01523274 | R188: -107.6673258 | S188: 72.33267419 | U188: 1000000000 | V188: 112211649 | X188: 29.66786845 | Y188: -32.20260867 | AA188: 31.37671916 | AB188: -75.46471714 | AD188: 0 | AE188: 0
A189: 10654 | B189: 10.654 | C189: 3.973636144 | D189: 1.316402621 | E189: 1.000089618 | F189: 0.0133874114 | G189: 1 | H189: 0 | I189: 5142.848489 | J189: 1.570601882 | K189: 2.037549448 | L189: 1.057805101 | M189: 1.001108152 | N189: 0.04705591787 | O189: 1.000017274 | P189: 0.01550674788 | Q189: 15.95636574 | R189: -107.6229403 | S189: 72.37705968 | U189: 1000000000 | V189: 113507716 | X189: 29.65569299 | Y189: -32.07719685 | AA189: 31.33002762 | AB189: -75.54574347 | AD189: 0 | AE189: 0
A190: 10715 | B190: 10.715 | C190: 3.994950352 | D190: 1.317789692 | E190: 1.000090647 | F190: 0.01346405245 | G190: 1 | H190: 0 | I190: 5172.29412 | J190: 1.570602989 | K190: 2.0464116 | L190: 1.060242813 | M190: 1.001120871 | N190: 0.04732493789 | O190: 1.000017473 | P190: 0.01559553661 | Q190: 15.8979038 | R190: -107.5789161 | S190: 72.42108386 | U190: 1000000000 | V190: 114811225 | X190: 29.64368962 | Y190: -31.95300334 | AA190: 31.28356905 | AB190: -75.6259128 | AD190: 0 | AE190: 0
A191: 10777.5 | B191: 10.7775 | C191: 4.016796566 | D191: 1.319195601 | E191: 1.000091708 | F191: 0.01354257794 | G191: 1 | H191: 0 | I191: 5202.463823 | J191: 1.57060411 | K191: 2.055504177 | L191: 1.062718653 | M191: 1.001133977 | N191: 0.04760056605 | O191: 1.000017677 | P191: 0.01568650874 | Q191: 15.83841888 | R191: -107.5341833 | S191: 72.46581666 | U191: 1000000000 | V191: 116154506.2 | X191: 29.63156627 | Y191: -31.82700475 | AA191: 31.23620748 | AB191: -75.70717858 | AD191: 0 | AE191: 0
A192: 10840 | B192: 10.84 | C192: 4.038650633 | D192: 1.320586298 | E192: 1.000092774 | F192: 0.01362110327 | G192: 1 | H192: 0 | I192: 5232.633526 | J192: 1.570605218 | K192: 2.064609243 | L192: 1.06517267 | M192: 1.00114716 | N192: 0.04787618696 | O192: 1.000017883 | P192: 0.01577748095 | Q192: 15.77934807 | R192: -107.4898281 | S192: 72.51017191 | U192: 1000000000 | V192: 117505600 | X192: 29.61961696 | Y192: -31.70225534 | AA192: 31.18908598 | AB192: -75.78757276 | AD192: 0 | AE192: 0
A193: 10902.5 | B193: 10.9025 | C193: 4.060512428 | D193: 1.321962021 | E193: 1.000093847 | F193: 0.01369962843 | G193: 1 | H193: 0 | I193: 5262.803229 | J193: 1.570606314 | K193: 2.073726633 | L193: 1.067605123 | M193: 1.001160419 | N193: 0.0481518006 | O193: 1.00001809 | P193: 0.01586845323 | Q193: 15.7206859 | R193: -107.4458494 | S193: 72.55415059 | U193: 1000000000 | V193: 118864506.2 | X193: 29.60783843 | Y193: -31.57874031 | AA193: 31.14220233 | AB193: -75.86710909 | AD193: 0 | AE193: 0
A194: 10965 | B194: 10.965 | C194: 4.082381825 | D194: 1.323323008 | E194: 1.000094926 | F194: 0.01377815343 | G194: 1 | H194: 0 | I194: 5292.972933 | J194: 1.570607397 | K194: 2.082856186 | L194: 1.070016266 | M194: 1.001173754 | N194: 0.04842740691 | O194: 1.000018298 | P194: 0.01595942558 | Q194: 15.66242699 | R194: -107.4022462 | S194: 72.59775382 | U194: 1000000000 | V194: 120231225 | X194: 29.59622751 | Y194: -31.45644511 | AA194: 31.09555434 | AB194: -75.94580107 | AD194: 0 | AE194: 0
A195: 11028.75 | B195: 11.02875 | C195: 4.104696316 | D195: 1.324696272 | E195: 1.000096033 | F195: 0.01385824874 | G195: 1 | H195: 0 | I195: 5323.74603 | J195: 1.570608489 | K195: 2.092180694 | L195: 1.07245394 | M195: 1.001187434 | N195: 0.04870851777 | O195: 1.000018511 | P195: 0.01605221746 | Q195: 15.60341286 | R195: -107.3581565 | S195: 72.64184352 | U195: 1000000000 | V195: 121633326.6 | X195: 29.58455382 | Y195: -31.33294574 | AA195: 31.04821391 | AB195: -76.02521074 | AD195: 0 | AE195: 0
A196: 11092.5 | B196: 11.0925 | C196: 4.127018464 | D196: 1.326054682 | E196: 1.000097147 | F196: 0.01393834388 | G196: 1 | H196: 0 | I196: 5354.519127 | J196: 1.570609569 | K196: 2.101517524 | L196: 1.074869967 | M196: 1.001201193 | N196: 0.04898962092 | O196: 1.000018726 | P196: 0.01614500942 | Q196: 15.54480731 | R196: -107.3144549 | S196: 72.68554512 | U196: 1000000000 | V196: 123043556.2 | X196: 29.57304807 | Y196: -31.21068547 | AA196: 31.00111411 | AB196: -76.10376942 | AD196: 0 | AE196: 0
A197: 11156.25 | B197: 11.15625 | C197: 4.149348146 | D197: 1.327398475 | E197: 1.000098266 | F197: 0.01401843884 | G197: 1 | H197: 0 | I197: 5385.292225 | J197: 1.570610636 | K197: 2.110866512 | L197: 1.077264607 | M197: 1.001215031 | N197: 0.04927071633 | O197: 1.000018942 | P197: 0.01623780146 | Q197: 15.48660492 | R197: -107.27114 | S197: 72.72886001 | U197: 1000000000 | V197: 124461914.1 | X197: 29.56170709 | Y197: -31.08964944 | AA197: 30.95425269 | AB197: -76.18149055 | AD197: 0 | AE197: 0
A198: 11220 | B198: 11.22 | C198: 4.171685241 | D198: 1.32872788 | E198: 1.000099393 | F198: 0.01409853362 | G198: 1 | H198: 0 | I198: 5416.065322 | J198: 1.570611691 | K198: 2.120227498 | L198: 1.079638115 | M198: 1.001228948 | N198: 0.04955180394 | O198: 1.000019159 | P198: 0.01633059357 | Q198: 15.4288004 | R198: -107.2282103 | S198: 72.77178967 | U198: 1000000000 | V198: 125888400 | X198: 29.55052783 | Y198: -30.96982301 | AA198: 30.90762743 | AB198: -76.25838732 | AD198: 0 | AE198: 0
A199: 11285.5 | B199: 11.2855 | C199: 4.194643107 | D199: 1.330079028 | E199: 1.000100556 | F199: 0.0141808269 | G199: 1 | H199: 0 | I199: 5447.683171 | J199: 1.570612763 | K199: 2.129857782 | L199: 1.082055034 | M199: 1.00124333 | N199: 0.04984059952 | O199: 1.000019384 | P199: 0.01642593301 | Q199: 15.36981802 | R199: -107.1845019 | S199: 72.81549814 | U199: 1000000000 | V199: 127362510.2 | X199: 29.53920695 | Y199: -30.84795194 | AA199: 30.85996593 | AB199: -76.33654992 | AD199: 0 | AE199: 0
A200: 11351 | B200: 11.351 | C200: 4.217608547 | D200: 1.331415465 | E200: 1.000101727 | F200: 0.01426311998 | G200: 1 | H200: 0 | I200: 5479.30102 | J200: 1.570613822 | K200: 2.139500396 | L200: 1.084450181 | M200: 1.001257795 | N200: 0.05012938678 | O200: 1.000019609 | P200: 0.01652127253 | Q200: 15.31124463 | R200: -107.1411967 | S200: 72.85880327 | U200: 1000000000 | V200: 128845201 | X200: 29.52805042 | Y200: -30.72732712 | AA200: 30.81254908 | AB200: -76.41386961 | AD200: 0 | AE200: 0
A201: 11416.5 | B201: 11.4165 | C201: 4.240581439 | D201: 1.332737424 | E201: 1.000102904 | F201: 0.01434541286 | G201: 1 | H201: 0 | I201: 5510.918869 | J201: 1.570614869 | K201: 2.149155173 | L201: 1.086823821 | M201: 1.001272343 | N201: 0.05041816567 | O201: 1.000019836 | P201: 0.01661661213 | Q201: 15.25307479 | R201: -107.0982931 | S201: 72.90170686 | U201: 1000000000 | V201: 130336472.2 | X201: 29.51705511 | Y201: -30.60793334 | AA201: 30.76537454 | AB201: -76.4903598 | AD201: 0 | AE201: 0
A202: 11482 | B202: 11.482 | C202: 4.263561661 | D202: 1.334045134 | E202: 1.000104088 | F202: 0.01442770556 | G202: 1 | H202: 0 | I202: 5542.536718 | J202: 1.570615904 | K202: 2.15882195 | L202: 1.089176217 | M202: 1.001286975 | N202: 0.05070693614 | O202: 1.000020065 | P202: 0.01671195182 | Q202: 15.19530316 | R202: -107.0557892 | S202: 72.94421076 | U202: 1000000000 | V202: 131836324 | X202: 29.50621799 | Y202: -30.4897556 | AA202: 30.71844004 | AB202: -76.56603364 | AD202: 0 | AE202: 0
... 433 more rows

Sheet Bode Plot Management (hidden)
J1: Single or dual output (MODE) | N1: 3.3V or 5V fixed (FB1/2)
A2: =CHOOSE(BODE_PLOT_TYPE, "BODE_PLOT_Ch1", "BODE_PLOT_Ch2") -> BODE_PLOT_Ch1 | J2: With/without dither (DITH) | N2: With/without VOUT connected to VCCX
J3: FPWM or DEM (DEMB)
J4: Shunt or inductor DCR current sensing
F6: =INDIRECT(A2) -> 0

Sheet Efficiency Calculations (hidden)
A1: BUCK CONTROLLER POWER DESIGN TOOL
H2: =AV19 -> 0.9012839882 | I2: 10% load
H3: =AV59 -> 0.8954411821 | I3: 50% load | AP3: =IF(MODE=1, (Qg_Q1+Qg_Q2)*Fsw*Vin, (Qg_Q1+Qg_Q2+Qg_Q3+Qg_Q4)*Fsw*Vin) -> 0.9072
H4: =AV109 -> 0.8351995579 | I4: 100% load | AO4: I_VCC | AP4: =(Qg_Q1+Qg_Q2)*Fsw*1000 -> 37.8 | AQ4: mA | AR4: =AP4*5/1000 -> 0.189
A6: Enter the values of your design and MOSFET datasheet specifications below. Note that thermal resistance (θJA) will change when components are placed on the PCB
G7: Operating Point Condtions | R7: Filter Inductor | V7: Cout | Y7: Cin | AB7: High-side BUCK "Control" MOSFET Losses | AH7: Low-side BUCK "Sync" MOSFET Losses | AL7: External Diode | AM7: Diode/FET | AN7: Sense Rs | AO7: Controller IC Losses | AT7: RESULTS | AZ7: Consolidated Buck/Boost Efficiency & Losses
A8: Input Parameters | G8: Step | H8: Vin | I8: Mode | J8: Iout | K8: Iout/ phase | L8: Iin | M8: Duty Cycle BUCK Leg | N8: Ripple Current pk-pk | O8: Peak Inductor Current | P8: Valley Inductor Current | Q8: SW node voltage at Q1 turn-on | R8: Irms Lf | S8: DCR Loss | T8: Core Loss | U8: Total Inductor Loss | V8: Irms Cout | W8: Cout ESR Loss | X8: Total Cout Loss | Y8: Irms Cin | Z8: Cin ESR Loss | AA8: Total Cin Loss | AB8: Irms | AC8: RDS(on) Loss | AD8: Transition Loss (not including capacitive loss) | AE8: MOSFET Output Capacitance Loss | AF8: Dead Time Loss | AG8: Total Control MOSFET Loss | AH8: Irms | AI8: RDS(on) Loss | AJ8: Deadtime Loss | AK8: Total Sync MOSFET Loss | AL8: Deadtime Loss | AM8: Reverse Recovery Loss | AN8: Isense Shunt Loss | AO8: IQ Loss | AP8: Switching Current Loss | AQ8: Switching Current Diss | AR8: LDO Loss Saved from Gate Drive Current (ext VCC) | AS8: Total IC Loss | AT8: Total Loss | AU8: Pout | AV8: EFF, h | AW8: =IF(Vin>Vout, "Buck ''CONTROL'' MOSFET Temp Rise", "Boost ''CONTROL'' MOSFET Temp Rise") -> Buck ''CONTROL'' MOSFET Temp Rise | AX8: =IF(Vin>Vout, "Buck ''SYNC'' MOSFET Temp Rise", "Boost ''SYNC'' MOSFET Temp Rise") -> Buck ''SYNC'' MOSFET Temp Rise | AZ8: h | BA8: Inductor Cu & Core Loss | BB8: Total MOSFET Loss | BC8: Control MOSFET Loss | BD8: SYNC MOSFET Loss | BE8: Shunt Loss
A9: Design | B9: Input Value | C9: Units | D9: Description | G9: 0 | H9: =Vin -> 12 | I9: =MODE -> 2 | J9: 0 | K9: =Iout*G9/100/Number_of_Phases -> 0 | L9: =Vout*K9/(Vin*Efficiency) -> 0 | M9: =(Vout+(Rdson2+Rs+Rdcr)*K9)/(Vin+(Rs+Rdson2-Rdson1)*K9) -> 0.275 | N9: =(Vin-(Rdson1+Rdcr)*K9-Vout)*M9/(Fsw*Lf) -> 8.137755102 | O9: =K9+N9/2 -> 4.068877551 | P9: =K9-N9/2 -> -4.068877551 | Q9: =IF(MIN(Vin, -P9/(Coss_Q1+Coss_Q2)*0.00000002)<0, 0, MIN(Vin, -P9/(Coss_Q1+Coss_Q2)*0.00000002)) -> 12 | R9: =SQRT(K9^2+(N9^2)/12) -> 2.349167549 | S9: =R9^2*Rdcr -> 0.0220743527 | T9: =Core_Loss_Ch1 -> 0.15 | U9: =(T9+S9*(1+Ltc*(Ta-25)))/(1-S9*Ltc*ThetaCa) -> 0.1723787647 | V9: =N9/SQRT(12) -> 2.349167549 | W9: =RCoutEsr*V9^2 -> 0.01103717635 | X9: =W9 -> 0.01103717635 | Y9: =SQRT(M9*(1-M9))*SQRT(K9^2+(N9^2)/12) -> 1.048936851 | Z9: =RCinEsr*Y9^2 -> 0.002200537035 | AA9: =Z9 -> 0.002200537035 | AB9: =SQRT(M9)*SQRT(K9^2+(N9^2)/12) -> 1.231913856 | AC9: =Rdson1*AB9^2 -> 0.005008118769 | AD9: =(Vin*K9/2)*Fsw*(Tr_buck+Tf_buck) -> 0 | AE9: =(0.5*Coss_Q1*(Vin-Q9)^2-0.5*Coss_Q2*(Vin-Q9)^2+(Qoss_Q2*(Vin-Q9)/Vin)*Vin)*Fsw -> 0 | AF9: =IF(K9>N9/2,0,ABS(K9-N9/2)*Vsd_Q1*Deadtime*Fsw) -> 0.0837375 | AG9: =(AF9+AE9+AD9+AC9*(1+RdsonTopTc*Ta-RdsonTopTc*25))/(1-AC9*RdsonTopTc*ThetaJA_Q1) -> 0.08883459761 | AH9: =SQRT((1-M9))*SQRT(K9^2+(N9^2)/12) -> 2.000244092 | AI9: =Rdson2*AH9^2 -> 0.01320322221 | AJ9: =IF(K9<N9/2,Deadtime*Fsw*IF(VfdSky_Q2>0,0,Vsd_Q2)*(K9+N9/2),2*Deadtime*Fsw*IF(VfdSky_Q2>0,0,Vsd_Q2)*K9) -> 0.0837375 | AK9: =(AJ9+AI9*(1+RdsonBotTc*Ta-RdsonBotTc*25))/(1-AI9*RdsonBotTc*ThetaJA_Q2) -> 0.09719738595 | AL9: =2*Deadtime*Fsw*IF(VfdSky_Q2>0,VfdSky_Q2,Vsd_Q2)*K9 -> 0 | AM9: =IF(QrrSky_Q2>0,QrrSky_Q2,Qrr_Q2*K9/(Iout/Number_of_Phases))*Fsw*Vin -> 0 | AN9: =Rs*R9^2 -> 0.01158903517 | AO9: =Iq*Vin -> 0.00042 | AP9: =IF(Ext_VCC=1, (Qg_Q1+Qg_Q2)*Fsw*VCC, (Qg_Q1+Qg_Q2)*Fsw*Vin) -> 0.189 | AQ9: =(Vin-VCC)*Fsw*(Qg_Q1+Qg_Q2)+(RdsonDRT+RdsonDRT2)*Fsw*Qg_Q1*VCC/(RdsonDRT+2*Rgate1+RdsonDRT2)+(RdsonDRB+RdsonDRB2)*Fsw*Qg_Q2*VCC/(RdsonDRB+2*Rgate2+RdsonDRB2) -> 0.378 | AR9: =(Qg_Q1+Qg_Q2)*Fsw*(Vin-VCC) -> 0.2646 | AS9: =SUM(AO9:AP9) -> 0.18942 | AT9: =SUM(U9,X9,AA9,AG9,AK9,AL9,AM9,AS9,AN9) -> 0.5726574968 | AU9: =Vout*K9 -> 0 | AV9: =AU9/(AU9+AT9) -> 0 | AW9: =ThetaJA_Q1*BC9 -> 4.441729881 | AX9: =ThetaJA_Q2*BD9 -> 4.859869297 | AZ9: =AV9*100 -> 0 | BA9: =U9 -> 0.1723787647 | BB9: =AG9+AK9+AM9 -> 0.1860319836 | BC9: =AG9+AM9*0.66 -> 0.08883459761 | BD9: =AK9+AM9*0.33 -> 0.09719738595 | BE9: =AN9 -> 0.01158903517
G10: 1 | H10: 12 | I10: 2 | J10: =Iout*G10/100 -> 0.6 | K10: 0.3 | L10: 0.09166666667 | M10: 0.2752205509 | N10: 8.142231497 | O10: =K10+N10/2 -> 4.371115748 | P10: =K10-N10/2 -> -3.771115748 | Q10: 12 | R10: =SQRT(K10^2+(N10^2)/12) -> 2.369527621 | S10: 0.02245864458 | T10: 0.15 | U10: 0.1727690573 | V10: =N10/SQRT(12) -> 2.350459773 | W10: 0.01104932229 | X10: =W10 -> 0.01104932229 | Y10: =SQRT(M10*(1-M10))*SQRT(K10^2+(N10^2)/12) -> 1.058291092 | Z10: 0.002239960072 | AA10: =Z10 -> 0.002239960072 | AB10: =SQRT(M10)*SQRT(K10^2+(N10^2)/12) -> 1.243088948 | AC10: 0.005099391441 | AD10: 0.024057 | AE10: 0 | AF10: 0.0776095621 | AG10: 0.106874953 | AH10: 2.017273162 | AI10: 0.01342899034 | AJ10: 0.0899575621 | AK10: 0.1036649756 | AL10: 0.012348 | AM10: 0.005544 | AN10: 0.01179078841 | AO10: 0.00042 | AP10: 0.189 | AQ10: 0.378 | AR10: 0.2646 | AS10: 0.18942 | AT10: 0.6157010567 | AU10: 0.99 | AV10: =AU10/(AU10+AT10) -> 0.6165531223 | AW10: 5.526699649 | AX10: 5.274724782 | AZ10: =AV10*100 -> 61.65531223 | BA10: 0.1727690573 | BB10: 0.2160839286 | BC10: 0.110533993 | BD10: 0.1054944956 | BE10: 0.01179078841
A11: Vin | B11: =Vin -> 12 | C11: V | D11: Vin | G11: 2 | H11: 12 | I11: 2 | J11: 1.2 | K11: 0.6 | L11: 0.1833333333 | M11: 0.2754410787 | N11: 8.146703921 | O11: 4.67335196 | P11: -3.47335196 | Q11: 12 | R11: 2.427083036 | S11: 0.02356292826 | T11: 0.15 | U11: 0.1738907182 | V11: 2.351750851 | W11: 0.01106146413 | X11: 0.01106146413 | Y11: 1.084266011 | Z11: 0.002351265567 | AA11: 0.002351265567 | AB11: 1.273793387 | AC11: 0.00535441366 | AD11: 0.048114 | AE11: 0 | AF11: 0.07148158334 | AG11: 0.1250839472 | AH11: 2.065958003 | AI11: 0.01408500215 | AJ11: 0.09617758334 | AK11: 0.1105740727 | AL11: 0.024696 | AM11: 0.011088 | AN11: 0.01237053733 | AO11: 0.00042 | AP11: 0.189 | AQ11: 0.378 | AR11: 0.2646 | AS11: 0.18942 | AT11: 0.6605360052 | AU11: 1.98 | AV11: 0.7498477567 | AW11: 6.620101362 | AX11: 5.711655635 | AZ11: 74.98477567 | BA11: 0.1738907182 | BB11: 0.2467460199 | BC11: 0.1324020272 | BD11: 0.1142331127 | BE11: 0.01237053733
A12: Vout | B12: =Vout -> 3.3 | C12: V | D12: Vout | G12: 3 | H12: 12 | I12: 2 | J12: 1.8 | K12: 0.9 | L12: 0.275 | M12: 0.2756615833 | N12: 8.151172375 | O12: 4.975586187 | P12: -3.175586187 | Q12: 12 | R12: 2.519285796 | S12: 0.02538720369 | T12: 0.15 | U12: 0.1757441359 | V12: 2.353040782 | W12: 0.01107360185 | X12: 0.01107360185 | Y12: 1.125735394 | Z12: 0.002534560356 | AA12: 0.002534560356 | AB12: 1.322712815 | AC12: 0.005773578332 | AD12: 0.072171 | AE12: 0 | AF12: 0.06535356373 | AG12: 0.143463802 | AH12: 2.144115606 | AI12: 0.01517086472 | AJ12: 0.1023975637 | AK12: 0.117926237 | AL12: 0.037044 | AM12: 0.016632 | AN12: 0.01332828194 | AO12: 0.00042 | AP12: 0.189 | AQ12: 0.378 | AR12: 0.2646 | AS12: 0.18942 | AT12: 0.707166619 | AU12: 2.97 | AV12: 0.8076870884 | AW12: 7.722046098 | AX12: 6.170739852 | AZ12: 80.76870884 | BA12: 0.1757441359 | BB12: 0.278022039 | BC12: 0.154440922 | BD12: 0.123414797 | BE12: 0.01332828194
A13: Fsw | B13: =Fsw/1000 -> 2100 | C13: kHz | D13: Switching Frequency | G13: 4 | H13: 12 | I13: 2 | J13: 2.4 | K13: 1.2 | L13: 0.3666666667 | M13: 0.2758820648 | N13: 8.155636859 | O13: 5.27781843 | P13: -2.87781843 | Q13: 12 | R13: 2.64251163 | S13: 0.02793147086 | T13: 0.15 | U13: 0.1783299523 | V13: 2.354329568 | W13: 0.01108573543 | X13: 0.01108573543 | Y13: 1.181090818 | Z13: 0.002789951043 | AA13: 0.002789951043 | AB13: 1.387965404 | AC13: 0.006357278278 | AD13: 0.096228 | AE13: 0 | AF13: 0.05922550328 | AG13: 0.1620167787 | AH13: 2.248648428 | AI13: 0.01668618518 | AJ13: 0.1086175033 | AK13: 0.1257232568 | AL13: 0.049392 | AM13: 0.022176 | AN13: 0.0146640222 | AO13: 0.00042 | AP13: 0.189 | AQ13: 0.378 | AR13: 0.2646 | AS13: 0.18942 | AT13: 0.7555976964 | AU13: 3.96 | AV13: 0.8397662937 | AW13: 8.832646935 | AX13: 6.652066838 | AZ13: 83.97662937 | BA13: 0.1783299523 | BB13: 0.3099160355 | BC13: 0.1766529387 | BD13: 0.1330413368 | BE13: 0.0146640222
A14: Iout | B14: =Iout -> 60 | C14: A | D14: Max Output Current | G14: 5 | H14: 12 | I14: 2 | J14: 3 | K14: 1.5 | L14: 0.4583333333 | M14: 0.2761025231 | N14: 8.160097375 | O14: 5.580048687 | P14: -2.580048687 | Q14: 12 | R14: 2.792656877 | S14: 0.03119572972 | T14: 0.15 | U14: 0.1816490637 | V14: 2.355617208 | W14: 0.01109786486 | X14: 0.01109786486 | Y14: 1.248507909 | Z14: 0.003117543999 | AA14: 0.003117543999 | AB14: 1.467414366 | AC14: 0.007105906241 | AD14: 0.120285 | AE14: 0 | AF14: 0.05309740199 | AG14: 0.1807451799 | AH14: 2.376052926 | AI14: 0.01863057078 | AJ14: 0.114837402 | AK14: 0.1339671497 | AL14: 0.06174 | AM14: 0.02772 | AN14: 0.0163777581 | AO14: 0.00042 | AP14: 0.189 | AQ14: 0.378 | AR14: 0.2646 | AS14: 0.18942 | AT14: 0.8058345602 | AU14: 4.95 | AV14: 0.8599969211 | AW14: 9.952018994 | AX14: 7.155737483 | AZ14: 85.99969211 | BA14: 0.1816490637 | BB14: 0.3424323296 | BC14: 0.1990403799 | BD14: 0.1431147497 | BE14: 0.0163777581
A15: Ta | B15: =Ta -> 25 | C15: °C | D15: Ambient Temperature | G15: 6 | H15: 12 | I15: 2 | J15: 3.6 | K15: 1.8 | L15: 0.55 | M15: 0.2763229583 | N15: 8.164553923 | O15: 5.882276961 | P15: -2.282276961 | Q15: 12 | R15: 2.965635693 | S15: 0.03517998025 | T15: 0.15 | U15: 0.1857026214 | V15: 2.356903703 | W15: 0.01110999013 | X15: 0.01110999013 | Y15: 1.326168422 | Z15: 0.003517445365 | AA15: 0.003517445365 | AB15: 1.558928816 | AC15: 0.008019854877 | AD15: 0.144342 | AE15: 0 | AF15: 0.04696925986 | AG15: 0.1996513497 | AH15: 2.522842843 | AI15: 0.02100362883 | AJ15: 0.1210572599 | AK15: 0.1426601649 | AL15: 0.074088 | AM15: 0.033264 | AN15: 0.01846948963 | AO15: 0.00042 | AP15: 0.189 | AQ15: 0.378 | AR15: 0.2646 | AS15: 0.18942 | AT15: 0.8578830612 | AU15: 5.94 | AV15: 0.8738014389 | AW15: 11.08027949 | AX15: 7.681864246 | AZ15: 87.38014389 | BA15: 0.1857026214 | BB15: 0.3755755146 | BC15: 0.2216055897 | BD15: 0.1536372849 | BE15: 0.01846948963
A16: Vcc | B16: =VCC -> 5 | C16: V | D16: Subregulated VCC Voltage | G16: 7 | H16: 12 | I16: 2 | J16: 4.2 | K16: 2.1 | L16: 0.6416666667 | M16: 0.2765433703 | N16: 8.169006503 | O16: 6.184503251 | P16: -1.984503251 | Q16: 12 | R16: 3.157697833 | S16: 0.03988422241 | T16: 0.15 | U16: 0.1904920325 | V16: 2.358189052 | W16: 0.01112211121 | X16: 0.01112211121 | Y16: 1.412402395 | Z16: 0.003989761048 | AA16: 0.003989761048 | AB16: 1.660550909 | AC16: 0.009099516763 | AD16: 0.168399 | AE16: 0 | AF16: 0.04084107691 | AG16: 0.2187376751 | AH16: 2.68581948 | AI16: 0.02380496673 | AJ16: 0.1272770769 | AK16: 0.1518047852 | AL16: 0.086436 | AM16: 0.038808 | AN16: 0.02093921677 | AO16: 0.00042 | AP16: 0.189 | AQ16: 0.378 | AR16: 0.2646 | AS16: 0.18942 | AT16: 0.9117495819 | AU16: 6.93 | AV16: 0.8837313571 | AW16: 12.21754776 | AX16: 8.230571261 | AZ16: 88.37313571 | BA16: 0.1904920325 | BB16: 0.4093504603 | BC16: 0.2443509551 | BD16: 0.1646114252 | BE16: 0.02093921677
A17: Components | B17: Input Value | C17: Units | D17: Description | G17: 8 | H17: 12 | I17: 2 | J17: 4.8 | K17: 2.4 | L17: 0.7333333333 | M17: 0.2767637592 | N17: 8.173455116 | O17: 6.486727558 | P17: -1.686727558 | Q17: 12 | R17: 3.365577817 | S17: 0.04530845618 | T17: 0.15 | U17: 0.1960189615 | V17: 2.359473256 | W17: 0.01113422809 | X17: 0.01113422809 | Y17: 1.50575508 | Z17: 0.004534596723 | AA17: 0.004534596723 | AB17: 1.770574671 | AC17: 0.01034528439 | AD17: 0.192456 | AE17: 0 | AF17: 0.03471285315 | AG17: 0.2380065867 | AH17: 2.862198348 | AI17: 0.02703419196 | AJ17: 0.1334968531 | AK17: 0.161403729 | AL17: 0.098784 | AM17: 0.044352 | AN17: 0.02378693949 | AO17: 0.00042 | AP17: 0.189 | AQ17: 0.378 | AR17: 0.2646 | AS17: 0.18942 | AT17: 0.9674410415 | AU17: 7.92 | AV17: 0.8911451522 | AW17: 13.36394534 | AX17: 8.801994449 | AZ17: 89.11451522 | BA17: 0.1960189615 | BB17: 0.4437623157 | BC17: 0.2672789067 | BD17: 0.176039889 | BE17: 0.02378693949
A18: L | B18: =Lf*1000000 -> 0.14 | C18: uH | D18: Filter Inductance | G18: 9 | H18: 12 | I18: 2 | J18: 5.4 | K18: 2.7 | L18: 0.825 | M18: 0.276984125 | N18: 8.177899763 | O18: 6.788949882 | P18: -1.388949882 | Q18: 12 | R18: 3.586526227 | S18: 0.05145268151 | T18: 0.15 | U18: 0.2022853313 | V18: 2.360756315 | W18: 0.01114634076 | X18: 0.01114634076 | Y18: 1.60500122 | Z18: 0.005152057834 | AA18: 0.005152057834 | AB18: 1.887562977 | AC18: 0.01175755017 | AD18: 0.216513 | AE18: 0 | AF18: 0.02858458856 | AG18: 0.2574605598 | AH18: 3.049635451 | AI18: 0.03069091207 | AJ18: 0.1397165886 | AK18: 0.1714599531 | AL18: 0.111132 | AM18: 0.049896 | AN18: 0.02701265779 | AO18: 0.00042 | AP18: 0.189 | AQ18: 0.378 | AR18: 0.2646 | AS18: 0.18942 | AT18: 1.024964901 | AU18: 8.91 | AV18: 0.8968325595 | AW18: 14.51959599 | AX18: 9.396281655 | AZ18: 89.68325595 | BA18: 0.2022853313 | BB18: 0.4788165129 | BC18: 0.2903919198 | BD18: 0.1879256331 | BE18: 0.02701265779
A19: Rdcr | B19: =Rdcr*1000 -> 4 | C19: mW | D19: Inductor DCR at 25°C | G19: 10 | H19: 12 | I19: 2 | J19: 6 | K19: 3 | L19: 0.9166666667 | M19: 0.2772044677 | N19: 8.182340445 | O19: 7.091170222 | P19: -1.091170222 | Q19: 12 | R19: 3.818275081 | S19: 0.05831689838 | T19: 0.15 | U19: 0.2092933254 | V19: 2.362038229 | W19: 0.01115844919 | X19: 0.01115844919 | Y19: 1.709129836 | Z19: 0.005842249593 | AA19: 0.005842249593 | AB19: 2.010329872 | AC19: 0.01333670644 | AD19: 0.24057 | AE19: 0 | AF19: 0.02245628318 | AG19: 0.2771021155 | AH19: 3.24619753 | AI19: 0.03477473473 | AJ19: 0.1459362832 | AK19: 0.1819766559 | AL19: 0.12348 | AM19: 0.05544 | AN19: 0.03061637165 | AO19: 0.00042 | AP19: 0.189 | AQ19: 0.378 | AR19: 0.2646 | AS19: 0.18942 | AT19: 1.084329167 | AU19: 9.9 | AV19: 0.9012839882 | AW19: 15.68462578 | AX19: 10.01359279 | AZ19: 90.12839882 | BA19: 0.2092933254 | BB19: 0.5145187714 | BC19: 0.3136925155 | BD19: 0.2002718559 | BE19: 0.03061637165
A20: LTc | B20: =Ltc*1000000 -> 4000 | C20: ppm | D20: Inductor Series Resistance Temp Co | G20: 11 | H20: 12 | I20: 2 | J20: 6.6 | K20: 3.3 | L20: 1.008333333 | M20: 0.2774247872 | N20: 8.186777161 | O20: 7.393388581 | P20: -0.7933885806 | Q20: 12 | R20: 4.058974832 | S20: 0.06590110676 | T20: 0.15 | U20: 0.2170453893 | V20: 2.363318999 | W20: 0.01117055338 | X20: 0.01117055338 | Y20: 1.817316288 | Z20: 0.00660527698 | AA20: 0.00660527698 | AB20: 2.137907886 | AC20: 0.01508314543 | AD20: 0.264627 | AE20: 0 | AF20: 0.01632793699 | AG20: 0.2969338216 | AH20: 3.450308183 | AI20: 0.03928526765 | AJ20: 0.152155937 | AK20: 0.1929572803 | AL20: 0.135828 | AM20: 0.060984 | AN20: 0.03459808105 | AO20: 0.00042 | AP20: 0.189 | AQ20: 0.378 | AR20: 0.2646 | AS20: 0.18942 | AT20: 1.145542403 | AU20: 10.89 | AV20: 0.9048200435 | AW20: 16.85916308 | AX20: 10.65410002 | AZ20: 90.48200435 | BA20: 0.2170453893 | BB20: 0.5508751019 | BC20: 0.3371832616 | BD20: 0.2130820003 | BE20: 0.03459808105
A21: ThetaCa | B21: =ThetaCa -> 20 | C21: °C/W | D21: Core to Ambient Thermal Resistance | G21: 12 | H21: 12 | I21: 2 | J21: 7.2 | K21: 3.6 | L21: 1.1 | M21: 0.2776450836 | N21: 8.191209913 | O21: 7.695604957 | P21: -0.4956049566 | Q21: 12 | R21: 4.307125103 | S21: 0.07420530661 | T21: 0.15 | U21: 0.2255442329 | V21: 2.364598624 | W21: 0.01118265331 | X21: 0.01118265331 | Y21: 1.928891488 | Z21: 0.007441244744 | AA21: 0.007441244744 | AB21: 2.269511983 | AC21: 0.01699725931 | AD21: 0.288684 | AE21: 0 | AF21: 0.01019955001 | AG21: 0.3169582938 | AH21: 3.660688735 | AI21: 0.04422211865 | AJ21: 0.15837555 | AK21: 0.2044055177 | AL21: 0.148176 | AM21: 0.066528 | AN21: 0.03895778597 | AO21: 0.00042 | AP21: 0.189 | AQ21: 0.378 | AR21: 0.2646 | AS21: 0.18942 | AT21: 1.208613728 | AU21: 11.88 | AV21: 0.9076591491 | AW21: 18.04333869 | AX21: 11.31798788 | AZ21: 90.76591491 | BA21: 0.2255442329 | BB21: 0.5878918114 | BC21: 0.3608667738 | BD21: 0.2263597577 | BE21: 0.03895778597
A22: Cin | B22: =Cin*1000000 -> 60 | C22: μF | D22: Input Capacitance | G22: 13 | H22: 12 | I22: 2 | J22: 7.8 | K22: 3.9 | L22: 1.191666667 | M22: 0.2778653569 | N22: 8.195638702 | O22: 7.997819351 | P22: -0.1978193508 | Q22: 6.59397836 | R22: 4.561510109 | S22: 0.08322949791 | T22: 0.15 | U22: 0.2347928331 | V22: 2.365877105 | W22: 0.01119474895 | X22: 0.01119474895 | Y22: 2.043313168 | Z22: 0.008350257403 | AA22: 0.008350257403 | AB22: 2.404505882 | AC22: 0.01907944017 | AD22: 0.312741 | AE22: 0.06811587267 | AF22: 0.004071122239 | AG22: 0.4055549875 | AH22: 3.876303128 | AI22: 0.04958489561 | AJ22: 0.1645951222 | AK22: 0.2163253114 | AL22: 0.160524 | AM22: 0.072072 | AN22: 0.0436954864 | AO22: 0.00042 | AP22: 0.189 | AQ22: 0.378 | AR22: 0.2646 | AS22: 0.18942 | AT22: 1.341929625 | AU22: 12.87 | AV22: 0.9055772397 | AW22: 22.65612537 | AX22: 12.00545357 | AZ22: 90.55772397 | BA22: 0.2347928331 | BB22: 0.6939522989 | BC22: 0.4531225075 | BD22: 0.2401090714 | BE22: 0.0436954864
A23: RCinEsr | B23: =RCinEsr*1000 -> 2 | C23: mW | D23: Input Capacitor ESR | G23: 14 | H23: 12 | I23: 2 | J23: 8.4 | K23: 4.2 | L23: 1.283333333 | M23: 0.2780856071 | N23: 8.200063527 | O23: 8.300031763 | P23: 0.09996823661 | Q23: 0 | R23: 4.821143034 | S23: 0.09297368061 | T23: 0.15 | U23: 0.2447944358 | V23: 2.367154442 | W23: 0.01120684031 | X23: 0.01120684031 | Y23: 2.160141111 | Z23: 0.009332419242 | AA23: 0.009332419242 | AB23: 2.542373026 | AC23: 0.02133007999 | AD23: 0.336798 | AE23: 0.1512 | AF23: 0 | AG23: 0.5115101906 | AH23: 4.09631048 | AI23: 0.05537320651 | AJ23: 0.172872 | AK23: 0.2308012475 | AL23: 0.172872 | AM23: 0.077616 | AN23: 0.04881118232 | AO23: 0.00042 | AP23: 0.189 | AQ23: 0.378 | AR23: 0.2646 | AS23: 0.18942 | AT23: 1.496364316 | AU23: 13.86 | AV23: 0.9025573837 | AW23: 28.13683753 | AX23: 12.82072638 | AZ23: 90.25573837 | BA23: 0.2447944358 | BB23: 0.8199274382 | BC23: 0.5627367506 | BD23: 0.2564145275 | BE23: 0.04881118232
A24: Cout | B24: =Cout*1000000 -> 100 | C24: μF | D24: Output Capcitance | G24: 15 | H24: 12 | I24: 2 | J24: 9 | K24: 4.5 | L24: 1.375 | M24: 0.2783058342 | N24: 8.204484389 | O24: 8.602242195 | P24: 0.3977578053 | Q24: 0 | R24: 5.085220121 | S24: 0.1034378547 | T24: 0.15 | U24: 0.2555525594 | V24: 2.368430635 | W24: 0.01121892735 | X24: 0.01121892735 | Y24: 2.279016709 | Z24: 0.01038783432 | AA24: 0.01038783432 | AB24: 2.682692604 | AC24: 0.02374957071 | AD24: 0.360855 | AE24: 0.1512 | AF24: 0 | AG24: 0.5383617428 | AH24: 4.320025933 | AI24: 0.06158665942 | AJ24: 0.18522 | AK24: 0.2498845706 | AL24: 0.18522 | AM24: 0.08316 | AN24: 0.05430487372 | AO24: 0.00042 | AP24: 0.189 | AQ24: 0.378 | AR24: 0.2646 | AS24: 0.18942 | AT24: 1.577510508 | AU24: 14.85 | AV24: 0.9039714199 | AW24: 29.66236714 | AX24: 13.86636853 | AZ24: 90.39714199 | BA24: 0.2555525594 | BB24: 0.8714063134 | BC24: 0.5932473428 | BD24: 0.2773273706 | BE24: 0.05430487372
A25: RCoutEsr | B25: =Cout_ESR*1000 -> 2 | C25: mW | D25: Output Capacitor ESR | G25: 16 | H25: 12 | I25: 2 | J25: 9.6 | K25: 4.8 | L25: 1.466666667 | M25: 0.2785260381 | N25: 8.20890129 | O25: 8.904450645 | P25: 0.6955493549 | Q25: 0 | R25: 5.353083694 | S25: 0.1146220201 | T25: 0.15 | U25: 0.2670709975 | V25: 2.369705685 | W25: 0.01123101007 | X25: 0.01123101007 | Y25: 2.399646479 | Z25: 0.01151660645 | AA25: 0.01151660645 | AB25: 2.825120225 | AC25: 0.02633830415 | AD25: 0.384912 | AE25: 0.1512 | AF25: 0 | AG25: 0.5654287912 | AH25: 4.546889128 | AI25: 0.06822486246 | AJ25: 0.197568 | AK25: 0.2694697701 | AL25: 0.197568 | AM25: 0.088704 | AN25: 0.06017656057 | AO25: 0.00042 | AP25: 0.189 | AQ25: 0.378 | AR25: 0.2646 | AS25: 0.18942 | AT25: 1.660585736 | AU25: 15.84 | AV25: 0.9051125625 | AW25: 31.19867156 | AX25: 14.9371045 | AZ25: 90.51125625 | BA25: 0.2670709975 | BB25: 0.9236025613 | BC25: 0.6239734312 | BD25: 0.2987420901 | BE25: 0.06017656057
A26: Top Driver | B26: Input Value | C26: Units | D26: Description | G26: 17 | H26: 12 | I26: 2 | J26: 10.2 | K26: 5.1 | L26: 1.558333333 | M26: 0.278746219 | N26: 8.21331423 | O26: 9.206657115 | P26: 0.9933428851 | Q26: 0 | R26: 5.624192762 | S26: 0.1265261769 | T26: 0.15 | U26: 0.2793538226 | V26: 2.370979591 | W26: 0.01124308844 | X26: 0.01124308844 | Y26: 2.521788972 | Z26: 0.01271883924 | AA26: 0.01271883924 | AB26: 2.969372552 | AC26: 0.02909667206 | AD26: 0.408969 | AE26: 0.1512 | AF26: 0 | AG26: 0.5927148782 | AH26: 4.776439141 | AI26: 0.07528742386 | AJ26: 0.209916 | AK26: 0.2895635222 | AL26: 0.209916 | AM26: 0.094248 | AN26: 0.06642624286 | AO26: 0.00042 | AP26: 0.189 | AQ26: 0.378 | AR26: 0.2646 | AS26: 0.18942 | AT26: 1.745604393 | AU26: 16.83 | AV26: 0.9060270473 | AW26: 32.74592791 | AX26: 16.03326811 | AZ26: 90.60270473 | BA26: 0.2793538226 | BB26: 0.9765264003 | BC26: 0.6549185582 | BD26: 0.3206653622 | BE26: 0.06642624286
A27: RdsonDRT | B27: =RdsonDRT -> 1 | C27: W | D27: Drain to Source Resistance of pullup Top FET Driver | G27: 18 | H27: 12 | I27: 2 | J27: 10.8 | K27: 5.4 | L27: 1.65 | M27: 0.2789663768 | N27: 8.217723209 | O27: 9.508861604 | P27: 1.291138396 | Q27: 0 | R27: 5.898099798 | S27: 0.1391503249 | T27: 0.15 | U27: 0.2924053893 | V27: 2.372252353 | W27: 0.01125516246 | X27: 0.01125516246 | Y27: 2.645244416 | Z27: 0.01399463604 | AA27: 0.01399463604 | AB27: 3.11521516 | AC27: 0.03202506612 | AD27: 0.433026 | AE27: 0.1512 | AF27: 0 | AG27: 0.6202236065 | AH27: 5.008294693 | AI27: 0.08277395193 | AJ27: 0.222264 | AK27: 0.3101727976 | AL27: 0.222264 | AM27: 0.099792 | AN27: 0.07305392058 | AO27: 0.00042 | AP27: 0.189 | AQ27: 0.378 | AR27: 0.2646 | AS27: 0.18942 | AT27: 1.832581512 | AU27: 17.82 | AV27: 0.9067511049 | AW27: 34.30431633 | AX27: 17.15520788 | AZ27: 90.67511049 | BA27: 0.2924053893 | BB27: 1.030188404 | BC27: 0.6860863265 | BD27: 0.3431041576 | BE27: 0.07305392058
A28: RdsonDRT2 | B28: =RdsonDRT2 -> 0.5 | C28: W | D28: Drain to Source Resistance of pulldown Top FET Driver | G28: 19 | H28: 12 | I28: 2 | J28: 11.4 | K28: 5.7 | L28: 1.741666667 | M28: 0.2791865115 | N28: 8.222128228 | O28: 9.811064114 | P28: 1.588935886 | Q28: 0 | R28: 6.174432448 | S28: 0.1524944642 | T28: 0.15 | U28: 0.3062303387 | V28: 2.373523973 | W28: 0.0112672321 | X28: 0.0112672321 | Y28: 2.769846565 | Z28: 0.01534409998 | AA28: 0.01534409998 | AB28: 3.262452968 | AC28: 0.03512387792 | AD28: 0.457083 | AE28: 0.1512 | AF28: 0 | AG28: 0.647958642 | AH28: 5.24213856 | AI28: 0.09068405505 | AJ28: 0.234612 | AK28: 0.3313048688 | AL28: 0.234612 | AM28: 0.105336 | AN28: 0.0800595937 | AO28: 0.00042 | AP28: 0.189 | AQ28: 0.378 | AR28: 0.2646 | AS28: 0.18942 | AT28: 1.921532775 | AU28: 18.81 | AV28: 0.9073135211 | AW28: 35.8740201 | AX28: 18.30328744 | AZ28: 90.73135211 | BA28: 0.3062303387 | BB28: 1.084599511 | BC28: 0.717480402 | BD28: 0.3660657488 | BE28: 0.0800595937
A29: Bottom Driver | B29: Input Value | C29: Units | D29: Description | G29: 20 | H29: 12 | I29: 2 | J29: 12 | K29: 6 | L29: 1.833333333 | M29: 0.279406623 | N29: 8.226529287 | O29: 10.11326464 | P29: 1.886735356 | Q29: 0 | R29: 6.4528791 | S29: 0.1665585947 | T29: 0.15 | U29: 0.3208336022 | V29: 2.374794449 | W29: 0.01127929735 | X29: 0.01127929735 | Y29: 2.895456266 | Z29: 0.01676733398 | AA29: 0.01676733398 | AB29: 3.410922694 | AC29: 0.03839349895 | AD29: 0.48114 | AE29: 0.1512 | AF29: 0 | AG29: 0.6759237142 | AH29: 5.477705273 | AI29: 0.09901734168 | AJ29: 0.24696 | AK29: 0.3529673188 | AL29: 0.24696 | AM29: 0.11088 | AN29: 0.08744326222 | AO29: 0.00042 | AP29: 0.189 | AQ29: 0.378 | AR29: 0.2646 | AS29: 0.18942 | AT29: 2.012474529 | AU29: 19.8 | AV29: 0.9077374497 | AW29: 37.45522571 | AX29: 19.47788594 | AZ29: 90.77374497 | BA29: 0.3208336022 | BB29: 1.139771033 | BC29: 0.7491045142 | BD29: 0.3895577188 | BE29: 0.08744326222
A30: RdsonDRB | B30: =RdsonDRB -> 1 | C30: W | D30: Drain to Source Resistance of pullup Bottom FET Driver | G30: 21 | H30: 12 | I30: 2 | J30: 12.6 | K30: 6.3 | L30: 1.925 | M30: 0.2796267116 | N30: 8.230926388 | O30: 10.41546319 | P30: 2.184536806 | Q30: 0 | R30: 6.733177489 | S30: 0.1813427164 | T30: 0.15 | U30: 0.3362204061 | V30: 2.376063783 | W30: 0.0112913582 | X30: 0.0112913582 | Y30: 3.021956377 | Z30: 0.01826444069 | AA30: 0.01826444069 | AB30: 3.560486886 | AC30: 0.04183432065 | AD30: 0.505197 | AE30: 0.1512 | AF30: 0 | AG30: 0.7041226189 | AH30: 5.714771407 | AI30: 0.1077734204 | AJ30: 0.259308 | AK30: 0.3751680492 | AL30: 0.259308 | AM30: 0.116424 | AN30: 0.09520492611 | AO30: 0.00042 | AP30: 0.189 | AQ30: 0.378 | AR30: 0.2646 | AS30: 0.18942 | AT30: 2.105423799 | AU30: 20.79 | AV30: 0.9080417197 | AW30: 39.04812295 | AX30: 20.67939846 | AZ30: 90.80417197 | BA30: 0.3362204061 | BB30: 1.195714668 | BC30: 0.7809624589 | BD30: 0.4135879692 | BE30: 0.09520492611
A31: RdsonDRB2 | B31: 1 | C31: W | D31: Drain to Source Resistance of pulldown Bottom FET Driver | G31: 22 | H31: 12 | I31: 2 | J31: 13.2 | K31: 6.6 | L31: 2.016666667 | M31: 0.279846777 | N31: 8.23531953 | O31: 10.71765977 | P31: 2.482340235 | Q31: 0 | R31: 7.015105652 | S31: 0.1968468293 | T31: 0.15 | U31: 0.3523962764 | V31: 2.377331974 | W31: 0.01130341463 | X31: 0.01130341463 | Y31: 3.149247732 | Z31: 0.01983552256 | AA31: 0.01983552256 | AB31: 3.711029194 | AC31: 0.04544673435 | AD31: 0.529254 | AE31: 0.1512 | AF31: 0 | AG31: 0.7325592192 | AH31: 5.953147876 | AI31: 0.1169518998 | AJ31: 0.271656 | AK31: 0.3979152896 | AL31: 0.271656 | AM31: 0.121968 | AN31: 0.1033445854 | AO31: 0.00042 | AP31: 0.189 | AQ31: 0.378 | AR31: 0.2646 | AS31: 0.18942 | AT31: 2.200398308 | AU31: 21.78 | AV31: 0.9082417948 | AW31: 40.65290496 | AX31: 21.90823648 | AZ31: 90.82417948 | BA31: 0.3523962764 | BB31: 1.252442509 | BC31: 0.8130580992 | BD31: 0.4381647296 | BE31: 0.1033445854
A32: Deadtime | B32: Input Value | C32: Units | D32: Description | G32: 23 | H32: 12 | I32: 2 | J32: 13.8 | K32: 6.9 | L32: 2.108333333 | M32: 0.2800668193 | N32: 8.239708716 | O32: 11.01985436 | P32: 2.780145642 | Q32: 0 | R32: 7.298474725 | S32: 0.2130709332 | T32: 0.15 | U32: 0.3693670437 | V32: 2.378599022 | W32: 0.01131546662 | X32: 0.01131546662 | Y32: 3.277245931 | Z32: 0.02148068179 | AA32: 0.02148068179 | AB32: 3.8624506 | AC32: 0.04923113131 | AD32: 0.553311 | AE32: 0.1512 | AF32: 0 | AG32: 0.7612374475 | AH32: 6.19267379 | AI32: 0.1265523886 | AJ32: 0.284004 | AK32: 0.4212176075 | AL32: 0.284004 | AM32: 0.127512 | AN32: 0.11186224 | AO32: 0.00042 | AP32: 0.189 | AQ32: 0.378 | AR32: 0.2646 | AS32: 0.18942 | AT32: 2.297416487 | AU32: 22.77 | AV32: 0.908350488 | AW32: 42.26976837 | AX32: 23.16482837 | AZ32: 90.8350488 | BA32: 0.3693670437 | BB32: 1.309967055 | BC32: 0.8453953675 | BD32: 0.4632965675 | BE32: 0.11186224
A33: Deadtime | B33: =Deadtime*1000000000 -> 14 | C33: ns | D33: Total Deadtime | G33: 24 | H33: 12 | I33: 2 | J33: 14.4 | K33: 7.2 | L33: 2.2 | M33: 0.2802868386 | N33: 8.244093944 | O33: 11.32204697 | P33: 3.077953028 | Q33: 0 | R33: 7.583123174 | S33: 0.2300150283 | T33: 0.15 | U33: 0.3871388486 | V33: 2.379864929 | W33: 0.01132751416 | X33: 0.01132751416 | Y33: 3.405878769 | Z33: 0.02320002037 | AA33: 0.02320002037 | AB33: 4.014666397 | AC33: 0.05318790272 | AD33: 0.577368 | AE33: 0.1512 | AF33: 0 | AG33: 0.7901613073 | AH33: 6.433211546 | AI33: 0.1365744956 | AJ33: 0.296352 | AK33: 0.445083918 | AL33: 0.296352 | AM33: 0.133056 | AN33: 0.1207578899 | AO33: 0.00042 | AP33: 0.189 | AQ33: 0.378 | AR33: 0.2646 | AS33: 0.18942 | AT33: 2.396497498 | AU33: 23.76 | AV33: 0.9083785014 | AW33: 43.89891336 | AX33: 24.4496199 | AZ33: 90.83785014 | BA33: 0.3871388486 | BB33: 1.368301225 | BC33: 0.8779782673 | BD33: 0.488992398 | BE33: 0.1207578899
A34: IQ | B34: Input Value | C34: Units | D34: Description | G34: 25 | H34: 12 | I34: 2 | J34: 15 | K34: 7.5 | L34: 2.291666667 | M34: 0.2805068348 | N34: 8.248475216 | O34: 11.62423761 | P34: 3.375762392 | Q34: 0 | R34: 7.868912162 | S34: 0.2476791145 | T34: 0.15 | U34: 0.4057181474 | V34: 2.381129693 | W34: 0.01133955723 | X34: 0.01133955723 | Y34: 3.535084161 | Z34: 0.02499364005 | AA34: 0.02499364005 | AB34: 4.167603761 | AC34: 0.05731743966 | AD34: 0.601425 | AE34: 0.1512 | AF34: 0 | AG34: 0.8193348751 | AH34: 6.674642875 | AI34: 0.1470178298 | AJ34: 0.3087 | AK34: 0.4695234948 | AL34: 0.3087 | AM34: 0.1386 | AN34: 0.1300315351 | AO34: 0.00042 | AP34: 0.189 | AQ34: 0.378 | AR34: 0.2646 | AS34: 0.18942 | AT34: 2.49766125 | AU34: 24.75 | AV34: 0.9083348392 | AW34: 45.54054376 | AX34: 25.76307474 | AZ34: 90.83348392 | BA34: 0.4057181474 | BB34: 1.42745837 | BC34: 0.9108108751 | BD34: 0.5152614948 | BE34: 0.1300315351
A35: IQ | B35: =Iq*1000 -> 0.035 | C35: mA | D35: Quiescent Current Of Controller (Not Switching!) | G35: 26 | H35: 12 | I35: 2 | J35: 15.6 | K35: 7.8 | L35: 2.383333333 | M35: 0.2807268079 | N35: 8.252852532 | O35: 11.92642627 | P35: 3.673573734 | Q35: 0 | R35: 8.15572179 | S35: 0.2660631916 | T35: 0.15 | U35: 0.4251117181 | V35: 2.382393315 | W35: 0.01135159582 | X35: 0.01135159582 | Y35: 3.664808477 | Z35: 0.02686164235 | AA35: 0.02686164235 | AB35: 4.32119979 | AC35: 0.06162013315 | AD35: 0.625482 | AE35: 0.1512 | AF35: 0 | AG35: 0.8487623024 | AH35: 6.91686564 | AI35: 0.1578819999 | AJ35: 0.321048 | AK35: 0.4945459817 | AL35: 0.321048 | AM35: 0.144144 | AN35: 0.1396831756 | AO35: 0.00042 | AP35: 0.189 | AQ35: 0.378 | AR35: 0.2646 | AS35: 0.18942 | AT35: 2.600928416 | AU35: 25.74 | AV35: 0.9082271273 | AW35: 47.19486712 | AX35: 27.10567508 | AZ35: 90.82271273 | BA35: 0.4251117181 | BB35: 1.487452284 | BC35: 0.9438973424 | BD35: 0.5421135017 | BE35: 0.1396831756
A36: High-side FET | B36: Input Value | C36: Units | D36: Description | G36: 27 | H36: 12 | I36: 2 | J36: 16.2 | K36: 8.1 | L36: 2.475 | M36: 0.280946758 | N36: 8.257225893 | O36: 12.22861295 | P36: 3.971387053 | Q36: 0 | R36: 8.443448049 | S36: 0.2851672598 | T36: 0.15 | U36: 0.4453266666 | V36: 2.383655796 | W36: 0.01136362991 | X36: 0.01136362991 | Y36: 3.795005174 | Z36: 0.02880412855 | AA36: 0.02880412855 | AB36: 4.475399902 | AC36: 0.06609637413 | AD36: 0.649539 | AE36: 0.1512 | AF36: 0 | AG36: 0.8784478172 | AH36: 7.159791245 | AI36: 0.1691666152 | AJ36: 0.333396 | AK36: 0.520161404 | AL36: 0.333396 | AM36: 0.149688 | AN36: 0.1497128114 | AO36: 0.00042 | AP36: 0.189 | AQ36: 0.378 | AR36: 0.2646 | AS36: 0.18942 | AT36: 2.706320458 | AU36: 26.73 | AV36: 0.9080618632 | AW36: 48.86209486 | AX36: 28.4779222 | AZ36: 90.80618632 | BA36: 0.4453266666 | BB36: 1.548297221 | BC36: 0.9772418972 | BD36: 0.569558444 | BE36: 0.1497128114
A37: RdsonTop | B37: =Rdson1*1000 -> 3.3 | C37: mW | D37: Drain-Source Resistance of Top FET | G37: 28 | H37: 12 | I37: 2 | J37: 16.8 | K37: 8.4 | L37: 2.566666667 | M37: 0.281166685 | N37: 8.2615953 | O37: 12.53079765 | P37: 4.26920235 | Q37: 0 | R37: 8.732000329 | S37: 0.304991319 | T37: 0.15 | U37: 0.4663704337 | V37: 2.384917135 | W37: 0.01137565948 | X37: 0.01137565948 | Y37: 3.925633689 | Z37: 0.03082119972 | AA37: 0.03082119972 | AB37: 4.630156534 | AC37: 0.07074655343 | AD37: 0.673596 | AE37: 0.1512 | AF37: 0 | AG37: 0.9083957268 | AH37: 7.403342503 | AI37: 0.1808712847 | AJ37: 0.345744 | AK37: 0.5463801818 | AL37: 0.345744 | AM37: 0.155232 | AN37: 0.1601204425 | AO37: 0.00042 | AP37: 0.189 | AQ37: 0.378 | AR37: 0.2646 | AS37: 0.18942 | AT37: 2.813859644 | AU37: 27.72 | AV37: 0.9078446133 | AW37: 50.54244234 | AX37: 29.88033709 | AZ37: 90.78446133 | BA37: 0.4663704337 | BB37: 1.610007909 | BC37: 1.010848847 | BD37: 0.5976067418 | BE37: 0.1601204425
A38: RdsonTopTc | B38: =RdsonTopTc*1000000 -> 4000 | C38: ppm | D38: Drain to Source Resistance Temp Co | G38: 29 | H38: 12 | I38: 2 | J38: 17.4 | K38: 8.7 | L38: 2.658333333 | M38: 0.2813865889 | N38: 8.265960753 | O38: 12.83298038 | P38: 4.567019624 | Q38: 0 | R38: 9.021299367 | S38: 0.3255353691 | T38: 0.15 | U38: 0.4882508014 | V38: 2.386177333 | W38: 0.01138768453 | X38: 0.01138768453 | Y38: 4.056658519 | Z38: 0.03291295668 | AA38: 0.03291295668 | AB38: 4.785428065 | AC38: 0.07557106183 | AD38: 0.697653 | AE38: 0.1512 | AF38: 0 | AG38: 0.938610419 | AH38: 7.647451896 | AI38: 0.1929956176 | AJ38: 0.358092 | AK38: 0.5732131425 | AL38: 0.358092 | AM38: 0.160776 | AN38: 0.1709060688 | AO38: 0.00042 | AP38: 0.189 | AQ38: 0.378 | AR38: 0.2646 | AS38: 0.18942 | AT38: 2.923569073 | AU38: 28.71 | AV38: 0.9075801701 | AW38: 52.23612895 | AX38: 31.31346113 | AZ38: 90.75801701 | BA38: 0.4882508014 | BB38: 1.672599562 | BC38: 1.044722579 | BD38: 0.6262692225 | BE38: 0.1709060688
A39: QgTop | B39: =Qg_Q1*1000000000 -> 9 | C39: nC | D39: Gate Charge Of Top FET | G39: 30 | H39: 12 | I39: 2 | J39: 18 | K39: 9 | L39: 2.75 | M39: 0.2816064698 | N39: 8.270322253 | O39: 13.13516113 | P39: 4.864838874 | Q39: 0 | R39: 9.311275558 | S39: 0.3467994101 | T39: 0.15 | U39: 0.5109759013 | V39: 2.387436389 | W39: 0.01139970503 | X39: 0.01139970503 | Y39: 4.188048474 | Z39: 0.03507950005 | AA39: 0.03507950005 | AB39: 4.941177936 | AC39: 0.08057029002 | AD39: 0.72171 | AE39: 0.1512 | AF39: 0 | AG39: 0.9690963651 | AH39: 7.892060131 | AI39: 0.2055392233 | AJ39: 0.37044 | AK39: 0.6006715354 | AL39: 0.37044 | AM39: 0.16632 | AN39: 0.1820696903 | AO39: 0.00042 | AP39: 0.189 | AQ39: 0.378 | AR39: 0.2646 | AS39: 0.18942 | AT39: 3.035472697 | AU39: 29.7 | AV39: 0.9072726786 | AW39: 53.94337825 | AX39: 32.77785677 | AZ39: 90.72726786 | BA39: 0.5109759013 | BB39: 1.736087901 | BC39: 1.078867565 | BD39: 0.6555571354 | BE39: 0.1820696903
A40: QgdTop | B40: =Qgd_Q1*1000000000 -> 3.6 | C40: nC | D40: Gate to Drain Charge | G40: 31 | H40: 12 | I40: 2 | J40: 18.6 | K40: 9.3 | L40: 2.841666667 | M40: 0.2818263277 | N40: 8.2746798 | O40: 13.4373399 | P40: 5.1626601 | Q40: 0 | R40: 9.601867552 | S40: 0.3687834419 | T40: 0.15 | U40: 0.5345542216 | V40: 2.388694305 | W40: 0.01141172097 | X40: 0.01141172097 | Y40: 4.319776046 | Z40: 0.03732093018 | AA40: 0.03732093018 | AB40: 5.097373911 | AC40: 0.08574462859 | AD40: 0.745767 | AE40: 0.1512 | AF40: 0 | AG40: 0.9998581212 | AH40: 8.137114949 | AI40: 0.218501711 | AJ40: 0.382788 | AK40: 0.6287670461 | AL40: 0.382788 | AM40: 0.171864 | AN40: 0.193611307 | AO40: 0.00042 | AP40: 0.189 | AQ40: 0.378 | AR40: 0.2646 | AS40: 0.18942 | AT40: 3.149595347 | AU40: 30.69 | AV40: 0.9069257385 | AW40: 55.66441806 | AX40: 34.2741083 | AZ40: 90.69257385 | BA40: 0.5345542216 | BB40: 1.800489167 | BC40: 1.113288361 | BD40: 0.6854821661 | BE40: 0.193611307
A41: QgsTop | B41: =Qgs_Q1*1000000000 -> 2.7 | C41: nC | G41: 32 | H41: =Vin -> 12 | I41: =MODE -> 2 | J41: 19.2 | K41: =Iout*G41/100/Number_of_Phases -> 9.6 | L41: =Vout*K41/(Vin*Efficiency) -> 2.933333333 | M41: =(Vout+(Rdson2+Rs+Rdcr)*K41)/(Vin+(Rs+Rdson2-Rdson1)*K41) -> 0.2820461624 | N41: =(Vin-(Rdson1+Rdcr)*K41-Vout)*M41/(Fsw*Lf) -> 8.279033395 | O41: 13.7395167 | P41: 5.460483302 | Q41: =IF(MIN(Vin, -P41/(Coss_Q1+Coss_Q2)*0.00000002)<0, 0, MIN(Vin, -P41/(Coss_Q1+Coss_Q2)*0.00000002)) -> 0 | R41: 9.893021084 | S41: =R41^2*Rdcr -> 0.3914874647 | T41: =Core_Loss_Ch1 -> 0.15 | U41: =(T41+S41*(1+Ltc*(Ta-25)))/(1-S41*Ltc*ThetaCa) -> 0.5589946154 | V41: 2.38995108 | W41: 0.01142373233 | X41: 0.01142373233 | Y41: 4.451816889 | Z41: 0.03963734723 | AA41: 0.03963734723 | AB41: 5.253987463 | AC41: =Rdson1*AB41^2 -> 0.09109446807 | AD41: =(Vin*K41/2)*Fsw*(Tr_buck+Tf_buck) -> 0.769824 | AE41: =(0.5*Coss_Q1*(Vin-Q41)^2-0.5*Coss_Q2*(Vin-Q41)^2+(Qoss_Q2*(Vin-Q41)/Vin)*Vin)*Fsw -> 0.1512 | AF41: =IF(K41>N41/2,0,ABS(K41-N41/2)*Vsd_Q1*Deadtime*Fsw) -> 0 | AG41: =(AF41+AE41+AD41+AC41*(1+RdsonTopTc*Ta-RdsonTopTc*25))/(1-AC41*RdsonTopTc*ThetaJA_Q1) -> 1.030900332 | AH41: =SQRT((1-M41))*SQRT(K41^2+(N41^2)/12) -> 8.382570125 | AI41: =Rdson2*AH41^2 -> 0.2318826903 | AJ41: =IF(K41<N41/2,Deadtime*Fsw*IF(VfdSky_Q2>0,0,Vsd_Q2)*(K41+N41/2),2*Deadtime*Fsw*IF(VfdSky_Q2>0,0,Vsd_Q2)*K41) -> 0.395136 | AK41: =(AJ41+AI41*(1+RdsonBotTc*Ta-RdsonBotTc*25))/(1-AI41*RdsonBotTc*ThetaJA_Q2) -> 0.6575118118 | AL41: =2*Deadtime*Fsw*IF(VfdSky_Q2>0,VfdSky_Q2,Vsd_Q2)*K41 -> 0.395136 | AM41: =IF(QrrSky_Q2>0,QrrSky_Q2,Qrr_Q2*K41/(Iout/Number_of_Phases))*Fsw*Vin -> 0.177408 | AN41: =Rs*R41^2 -> 0.2055309189 | AO41: =Iq*Vin -> 0.00042 | AP41: =IF(Ext_VCC=1, (Qg_Q1+Qg_Q2)*Fsw*VCC, (Qg_Q1+Qg_Q2)*Fsw*Vin) -> 0.189 | AQ41: 0.378 | AR41: =(Qg_Q1+Qg_Q2)*Fsw*(Vin-VCC) -> 0.2646 | AS41: =SUM(AO41:AP41) -> 0.18942 | AT41: =SUM(U41,X41,AA41,AG41,AK41,AL41,AM41,AS41,AN41) -> 3.265962757 | AU41: =Vout*K41 -> 31.68 | AV41: 0.9065424873 | AW41: =ThetaJA_Q1*BC41 -> 57.39948058 | AX41: =ThetaJA_Q2*BD41 -> 35.80282259 | AZ41: 90.65424873 | BA41: =U41 -> 0.5589946154 | BB41: =AG41+AK41+AM41 -> 1.865820143 | BC41: =AG41+AM41*0.66 -> 1.147989612 | BD41: =AK41+AM41*0.33 -> 0.7160564518 | BE41: =AN41 -> 0.2055309189
A42: RGateTop | B42: =Rgate1 -> 0.5 | C42: W | D42: Gate Resistance | G42: 33 | H42: 12 | I42: 2 | J42: =Iout*G42/100 -> 19.8 | K42: 9.9 | L42: 3.025 | M42: 0.2822659742 | N42: 8.283383039 | O42: 14.04169152 | P42: 5.75830848 | Q42: 0 | R42: 10.18468799 | S42: 0.4149114782 | T42: 0.15 | U42: 0.5843063098 | V42: 2.391206714 | W42: 0.0114357391 | X42: 0.0114357391 | Y42: 4.584149382 | Z42: 0.04202885111 | AA42: 0.04202885111 | AB42: 5.410993268 | AC42: 0.09662019889 | AD42: 0.793881 | AE42: 0.1512 | AF42: 0 | AG42: 1.06222773 | AH42: 8.628384634 | AI42: 0.2456817706 | AJ42: 0.407484 | AK42: 0.6869184383 | AL42: 0.407484 | AM42: 0.182952 | AN42: 0.2178285261 | AO42: 0.00042 | AP42: 0.189 | AQ42: 0.378 | AR42: 0.2646 | AS42: 0.18942 | AT42: 3.384601594 | AU42: 32.67 | AV42: 0.9061256693 | AW42: 59.14880249 | AX42: 37.36462991 | AZ42: 90.61256693 | BA42: 0.5843063098 | BB42: 1.932098168 | BC42: 1.18297605 | BD42: 0.7472925983 | BE42: 0.2178285261
A43: GfsTop | B43: =Gfs_Q1 -> 50 | C43: S | D43: Transconductance of Top FET | G43: 34 | H43: 12 | I43: 2 | J43: 20.4 | K43: 10.2 | L43: 3.116666667 | M43: 0.2824857629 | N43: 8.287728733 | O43: 14.34386437 | P43: 6.056135634 | Q43: 0 | R43: 10.47682541 | S43: 0.4390554825 | T43: 0.15 | U43: 0.6104989141 | V43: 2.392461207 | W43: 0.01144774126 | X43: 0.01144774126 | Y43: 4.71675426 | Z43: 0.0444955415 | AA43: 0.0444955415 | AB43: 5.568368768 | AC43: 0.1023222114 | AD43: 0.817938 | AE43: 0.1512 | AF43: 0 | AG43: 1.093845142 | AH43: 8.874521953 | AI43: 0.2598985617 | AJ43: 0.419832 | AK43: 0.7170000162 | AL43: 0.419832 | AM43: 0.188496 | AN43: 0.2305041283 | AO43: 0.00042 | AP43: 0.189 | AQ43: 0.378 | AR43: 0.2646 | AS43: 0.18942 | AT43: 3.505539484 | AU43: 33.66 | AV43: 0.9056776914 | AW43: 60.91262511 | AX43: 38.96018481 | AZ43: 90.56776914 | BA43: 0.6104989141 | BB43: 1.999341158 | BC43: 1.218252502 | BD43: 0.7792036962 | BE43: 0.2305041283
A44: VthTop | B44: =Vth_Q1 -> 2.9 | C44: V | D44: Threshold Voltage of Top FET | G44: 35 | H44: 12 | I44: 2 | J44: 21 | K44: 10.5 | L44: 3.208333333 | M44: 0.2827055286 | N44: 8.292070476 | O44: 14.64603524 | P44: 6.353964762 | Q44: 0 | R44: 10.76939503 | S44: 0.4639194776 | T44: 0.15 | U44: 0.6375824302 | V44: 2.393714561 | W44: 0.0114597388 | X44: 0.0114597388 | Y44: 4.849614307 | Z44: 0.04703751785 | AA44: 0.04703751785 | AB44: 5.726093807 | AC44: 0.1082008959 | AD44: 0.841995 | AE44: 0.1512 | AF44: 0 | AG44: 1.12575749 | AH44: 9.120949463 | AI44: 0.2745326731 | AJ44: 0.43218 | AK44: 0.7477701402 | AL44: 0.43218 | AM44: 0.19404 | AN44: 0.2435577257 | AO44: 0.00042 | AP44: 0.189 | AQ44: 0.378 | AR44: 0.2646 | AS44: 0.18942 | AT44: 3.628805043 | AU44: 34.65 | AV44: 0.9052006708 | AW44: 62.69119449 | AX44: 40.59016701 | AZ44: 90.52006708 | BA44: 0.6375824302 | BB44: 2.06756763 | BC44: 1.25382389 | BD44: 0.8118033402 | BE44: 0.2435577257
A45: VspTop | B45: =Vsp_Q1 -> 3.5 | C45: V | G45: 36 | H45: 12 | I45: 2 | J45: 21.6 | K45: 10.8 | L45: 3.3 | M45: 0.2829252712 | N45: 8.29640827 | O45: 14.94820414 | P45: 6.651795865 | Q45: 0 | R45: 11.06236258 | S45: 0.4895034634 | T45: 0.15 | U45: 0.6655672618 | V45: 2.394966774 | W45: 0.0114717317 | X45: 0.0114717317 | Y45: 4.98271409 | Z45: 0.04965487941 | AA45: 0.04965487941 | AB45: 5.884150324 | AC45: 0.1142566426 | AD45: 0.866052 | AE45: 0.1512 | AF45: 0 | AG45: 1.157969791 | AH45: 9.367637953 | AI45: 0.2895837147 | AJ45: 0.444528 | AK45: 0.779242927 | AL45: 0.444528 | AM45: 0.199584 | AN45: 0.2569893183 | AO45: 0.00042 | AP45: 0.189 | AQ45: 0.378 | AR45: 0.2646 | AS45: 0.18942 | AT45: 3.754427909 | AU45: 35.64 | AV45: 0.9046964734 | AW45: 64.48476154 | AX45: 42.25528235 | AZ45: 90.46964734 | BA45: 0.6655672618 | BB45: 2.136796718 | BC45: 1.289695231 | BD45: 0.845105647 | BE45: 0.2569893183
A46: VsdTop | B46: =Vsd_Q1 -> 0.7 | C46: V | G46: 37 | H46: 12 | I46: 2 | J46: 22.2 | K46: 11.1 | L46: 3.391666667 | M46: 0.2831449909 | N46: 8.300742115 | O46: 15.25037106 | P46: 6.949628942 | Q46: 0 | R46: 11.35569725 | S46: 0.5158074399 | T46: 0.15 | U46: 0.694464225 | V46: 2.396217847 | W46: 0.01148371994 | X46: 0.01148371994 | Y46: 5.116039736 | Z46: 0.05234772515 | AA46: 0.05234772515 | AB46: 6.04252209 | AC46: 0.1204898416 | AD46: 0.890109 | AE46: 0.1512 | AF46: 0 | AG46: 1.190487164 | AH46: 9.614561184 | AI46: 0.3050512963 | AJ46: 0.456876 | AK46: 0.8114330362 | AL46: 0.456876 | AM46: 0.205128 | AN46: 0.2707989059 | AO46: 0.00042 | AP46: 0.189 | AQ46: 0.378 | AR46: 0.2646 | AS46: 0.18942 | AT46: 3.882438776 | AU46: 36.63 | AV46: 0.9041667475 | AW46: 66.29358218 | AX46: 43.95626381 | AZ46: 90.41667475 | BA46: 0.694464225 | BB46: 2.2070482 | BC46: 1.325871644 | BD46: 0.8791252762 | BE46: 0.2707989059
A47: θJATop | B47: =ThetaJA_Q1 -> 50 | C47: °C/W | D47: Junction to Ambient Resistance | G47: 38 | H47: 12 | I47: 2 | J47: 22.8 | K47: 11.4 | L47: 3.483333333 | M47: 0.2833646874 | N47: 8.305072012 | O47: 15.55253601 | P47: 7.247463994 | Q47: 0 | R47: 11.6493713 | S47: 0.542831407 | T47: 0.15 | U47: 0.7242845596 | V47: 2.397467781 | W47: 0.01149570352 | X47: 0.01149570352 | Y47: 5.249578739 | Z47: 0.05511615386 | AA47: 0.05511615386 | AB47: 6.201194482 | AC47: 0.1269008829 | AD47: 0.914166 | AE47: 0.1512 | AF47: 0 | AG47: 1.223314829 | AH47: 9.861695532 | AI47: 0.3209350279 | AJ47: 0.469224 | AK47: 0.8443556914 | AL47: 0.469224 | AM47: 0.210672 | AN47: 0.2849864887 | AO47: 0.00042 | AP47: 0.189 | AQ47: 0.378 | AR47: 0.2646 | AS47: 0.18942 | AT47: 4.012869426 | AU47: 37.62 | AV47: 0.903612951 | AW47: 68.11791746 | AX47: 45.69387257 | AZ47: 90.3612951 | BA47: 0.7242845596 | BB47: 2.278342521 | BC47: 1.362358349 | BD47: 0.9138774514 | BE47: 0.2849864887
A48: Low-side FET | B48: Input Value | C48: Units | D48: Description | G48: 39 | H48: 12 | I48: 2 | J48: 23.4 | K48: 11.7 | L48: 3.575 | M48: 0.283584361 | N48: 8.309397961 | O48: 15.85469898 | P48: 7.545301019 | Q48: 0 | R48: 11.94335971 | S48: 0.5705753648 | T48: 0.15 | U48: 0.75503994 | V48: 2.398716575 | W48: 0.01150768241 | X48: 0.01150768241 | Y48: 5.383319797 | Z48: 0.05796026408 | AA48: 0.05796026408 | AB48: 6.360154288 | AC48: 0.1334901565 | AD48: 0.938223 | AE48: 0.1512 | AF48: 0 | AG48: 1.256458115 | AH48: 10.10901967 | AI48: 0.3372345195 | AJ48: 0.481572 | AK48: 0.8780267021 | AL48: 0.481572 | AM48: 0.216216 | AN48: 0.2995520665 | AO48: 0.00042 | AP48: 0.189 | AQ48: 0.378 | AR48: 0.2646 | AS48: 0.18942 | AT48: 4.14575277 | AU48: 38.61 | AV48: 0.9030363752 | AW48: 69.95803373 | AX48: 47.46889911 | AZ48: 90.30363752 | BA48: 0.75503994 | BB48: 2.350700817 | BC48: 1.399160675 | BD48: 0.9493779821 | BE48: 0.2995520665
A49: RdsonBot | B49: =Rdson2*1000 -> 3.3 | C49: mW | D49: Drain-Source Resistance of Low-side FET | G49: 40 | H49: 12 | I49: 2 | J49: 24 | K49: 12 | L49: 3.666666667 | M49: 0.2838040116 | N49: 8.313719964 | O49: 16.15685998 | P49: 7.843140018 | Q49: 0 | R49: 12.23763982 | S49: 0.5990393132 | T49: 0.15 | U49: 0.7867424876 | V49: 2.399964229 | W49: 0.01151965661 | X49: 0.01151965661 | Y49: 5.517252673 | Z49: 0.06088015412 | AA49: 0.06088015412 | AB49: 6.519389545 | AC49: 0.1402580521 | AD49: 0.96228 | AE49: 0.1512 | AF49: 0 | AG49: 1.289922454 | AH49: 10.35651429 | AI49: 0.3539493812 | AJ49: 0.49392 | AK49: 0.9124624878 | AL49: 0.49392 | AM49: 0.22176 | AN49: 0.3144956394 | AO49: 0.00042 | AP49: 0.189 | AQ49: 0.378 | AR49: 0.2646 | AS49: 0.18942 | AT49: 4.28112288 | AU49: 39.6 | AV49: 0.9024381648 | AW49: 71.81420272 | AX49: 49.28216439 | AZ49: 90.24381648 | BA49: 0.7867424876 | BB49: 2.424144942 | BC49: 1.436284054 | BD49: 0.9856432878 | BE49: 0.3144956394
A50: RdsonBotTc | B50: =RdsonBotTc*1000000 -> 4000 | C50: ppm | D50: Drain To Source Resitance Temp Co | G50: 41 | H50: 12 | I50: 2 | J50: 24.6 | K50: 12.3 | L50: 3.758333333 | M50: 0.2840236391 | N50: 8.31803802 | O50: 16.45901901 | P50: 8.14098099 | Q50: 0 | R50: 12.53219107 | S50: 0.6282232522 | T50: 0.15 | U50: 0.8194047832 | V50: 2.401210745 | W50: 0.01153162608 | X50: 0.01153162608 | Y50: 5.651368067 | Z50: 0.06387592206 | AA50: 0.06387592206 | AB50: 6.678889396 | AC50: 0.1472049598 | AD50: 0.986337 | AE50: 0.1512 | AF50: 0 | AG50: 1.323713395 | AH50: 10.60416189 | AI50: 0.3710792233 | AJ50: 0.506268 | AK50: 0.9476801025 | AL50: 0.506268 | AM50: 0.227304 | AN50: 0.3298172074 | AO50: 0.00042 | AP50: 0.189 | AQ50: 0.378 | AR50: 0.2646 | AS50: 0.18942 | AT50: 4.419015036 | AU50: 40.59 | AV50: 0.9018193348 | AW50: 73.68670176 | AX50: 51.13452113 | AZ50: 90.18193348 | BA50: 0.8194047832 | BB50: 2.498697498 | BC50: 1.473734035 | BD50: 1.022690423 | BE50: 0.3298172074
A51: QgBot | B51: =Qg_Q2*1000000000 -> 9 | C51: nC | D51: Gate Charge Of Top FET | G51: 42 | H51: 12 | I51: 2 | J51: 25.2 | K51: 12.6 | L51: 3.85 | M51: 0.2842432436 | N51: 8.32235213 | O51: 16.76117606 | P51: 8.438823935 | Q51: 0 | R51: 12.82699479 | S51: 0.6581271817 | T51: 0.15 | U51: 0.8530398802 | V51: 2.402456121 | W51: 0.01154359083 | X51: 0.01154359083 | Y51: 5.785657515 | Z51: 0.06694766576 | AA51: 0.06694766576 | AB51: 6.83864396 | AC51: 0.154331269 | AD51: 1.010394 | AE51: 0.1512 | AF51: 0 | AG51: 1.357836598 | AH51: 10.85194656 | AI51: 0.3886236559 | AJ51: 0.518616 | AK51: 0.983697261 | AL51: 0.518616 | AM51: 0.232848 | AN51: 0.3455167704 | AO51: 0.00042 | AP51: 0.189 | AQ51: 0.378 | AR51: 0.2646 | AS51: 0.18942 | AT51: 4.559465766 | AU51: 41.58 | AV51: 0.9011807855 | AW51: 75.5758139 | AX51: 53.02685505 | AZ51: 90.11807855 | BA51: 0.8530398802 | BB51: 2.574381859 | BC51: 1.511516278 | BD51: 1.060537101 | BE51: 0.3455167704
A52: RGateBot | B52: =Rgate2 -> 0.5 | C52: W | D52: Gate Resistance | G52: 43 | H52: 12 | I52: 2 | J52: 25.8 | K52: 12.9 | L52: 3.941666667 | M52: 0.2844628252 | N52: 8.326662295 | O52: 17.06333115 | P52: 8.736668852 | Q52: 0 | R52: 13.12203397 | S52: 0.6887511017 | T52: 0.15 | U52: 0.8876613185 | V52: 2.403700359 | W52: 0.01155555083 | X52: 0.01155555083 | Y52: 5.920113295 | Z52: 0.07009548285 | AA52: 0.07009548285 | AB52: 6.99864423 | AC52: 0.1616373695 | AD52: 1.034451 | AE52: 0.1512 | AF52: 0 | AG52: 1.392297842 | AH52: 11.0998538 | AI52: 0.4065822894 | AJ52: 0.530964 | AK52: 1.020532367 | AL52: 0.530964 | AM52: 0.238392 | AN52: 0.3615943284 | AO52: 0.00042 | AP52: 0.189 | AQ52: 0.378 | AR52: 0.2646 | AS52: 0.18942 | AT52: 4.702512889 | AU52: 42.57 | AV52: 0.9005233147 | AW52: 77.48182808 | AX52: 54.96008633 | AZ52: 90.05233147 | BA52: 0.8876613185 | BB52: 2.651222208 | BC52: 1.549636562 | BD52: 1.099201727 | BE52: 0.3615943284
A53: VsdBot | B53: =Vsd_Q2 -> 0.7 | C53: V | D53: Diode Forward Voltage of Bottom FET Body Diode | G53: 44 | H53: 12 | I53: 2 | J53: 26.4 | K53: 13.2 | L53: 4.033333333 | M53: 0.2846823837 | N53: 8.330968516 | O53: 17.36548426 | P53: 9.034515742 | Q53: 0 | R53: 13.41729306 | S53: 0.7200950121 | T53: 0.15 | U53: 0.9232831388 | V53: 2.404943458 | W53: 0.01156750607 | X53: 0.01156750607 | Y53: 6.054728348 | Z53: 0.07331947074 | AA53: 0.07331947074 | AB53: 7.158881975 | AC53: 0.1691236507 | AD53: 1.058508 | AE53: 0.1512 | AF53: 0 | AG53: 1.427103025 | AH53: 11.34787037 | AI53: 0.4249547343 | AJ53: 0.543312 | AK53: 1.05820454 | AL53: 0.543312 | AM53: 0.243936 | AN53: 0.3780498814 | AO53: 0.00042 | AP53: 0.189 | AQ53: 0.378 | AR53: 0.2646 | AS53: 0.18942 | AT53: 4.848195563 | AU53: 43.56 | AV53: 0.899847629 | AW53: 79.40503927 | AX53: 56.935171 | AZ53: 89.9847629 | BA53: 0.9232831388 | BB53: 2.729243566 | BC53: 1.588100785 | BD53: 1.13870342 | BE53: 0.3780498814
A54: QrrBot | B54: =Qrr_Q2*1000000000 -> 22 | C54: nC | D54: Reverse Recovery Charge of Body Diode | G54: 45 | H54: 12 | I54: 2 | J54: 27 | K54: 13.5 | L54: 4.125 | M54: 0.2849019192 | N54: 8.335270793 | O54: 17.6676354 | P54: 9.332364604 | Q54: 0 | R54: 13.71275787 | S54: 0.7521589131 | T54: 0.15 | U54: 0.9599198976 | V54: 2.406185418 | W54: 0.01157945653 | X54: 0.01157945653 | Y54: 6.189496207 | Z54: 0.07661972658 | AA54: 0.07661972658 | AB54: 7.319349662 | AC54: 0.1767905023 | AD54: 1.082565 | AE54: 0.1512 | AF54: 0 | AG54: 1.462258174 | AH54: 11.59598417 | AI54: 0.443740601 | AJ54: 0.55566 | AK54: 1.096733651 | AL54: 0.55566 | AM54: 0.24948 | AN54: 0.3948834294 | AO54: 0.00042 | AP54: 0.189 | AQ54: 0.378 | AR54: 0.2646 | AS54: 0.18942 | AT54: 4.996554335 | AU54: 44.55 | AV54: 0.8991543529 | AW54: 81.34574868 | AX54: 58.95310255 | AZ54: 89.91543529 | BA54: 0.9599198976 | BB54: 2.808471825 | BC54: 1.626914974 | BD54: 1.179062051 | BE54: 0.3948834294
A55: TrrBot | B55: =Trr_Q2*1000000000 -> 40 | C55: ns | D55: Reverse Recovery Time of Body Diode | G55: 46 | H55: 12 | I55: 2 | J55: 27.6 | K55: 13.8 | L55: 4.216666667 | M55: 0.2851214317 | N55: 8.339569126 | O55: 17.96978456 | P55: 9.630215437 | Q55: 0 | R55: 14.00841537 | S55: 0.7849428044 | T55: 0.15 | U55: 0.9975866835 | V55: 2.40742624 | W55: 0.0115914022 | X55: 0.0115914022 | Y55: 6.324410935 | Z55: 0.07999634735 | AA55: 0.07999634735 | AB55: 7.480040378 | AC55: 0.1846383134 | AD55: 1.106622 | AE55: 0.1512 | AF55: 0 | AG55: 1.497769438 | AH55: 11.8441841 | AI55: 0.4629395002 | AJ55: 0.568008 | AK55: 1.136140349 | AL55: 0.568008 | AM55: 0.255024 | AN55: 0.4120949723 | AO55: 0.00042 | AP55: 0.189 | AQ55: 0.378 | AR55: 0.2646 | AS55: 0.18942 | AT55: 5.147631193 | AU55: 45.54 | AV55: 0.8984440371 | AW55: 83.3042639 | AX55: 61.01491347 | AZ55: 89.84440371 | BA55: 0.9975866835 | BB55: 2.888933787 | BC55: 1.666085278 | BD55: 1.220298269 | BE55: 0.4120949723
A56: θJABot | B56: =ThetaJA_Q2 -> 50 | C56: °C/W | D56: Junction to Ambient Resistance | G56: 47 | H56: 12 | I56: 2 | J56: 28.2 | K56: 14.1 | L56: 4.308333333 | M56: 0.2853409213 | N56: 8.343863517 | O56: 18.27193176 | P56: 9.928068241 | Q56: 0 | R56: 14.30425362 | S56: 0.8184466861 | T56: 0.15 | U56: 1.036299133 | V56: 2.408665924 | W56: 0.01160334307 | X56: 0.01160334307 | Y56: 6.459467073 | Z56: 0.08344942974 | AA56: 0.08344942974 | AB56: 7.640947772 | AC56: 0.1926674734 | AD56: 1.130679 | AE56: 0.1512 | AF56: 0 | AG56: 1.533643102 | AH56: 12.09245999 | AI56: 0.4825510426 | AJ56: 0.580356 | AK56: 1.176446101 | AL56: 0.580356 | AM56: 0.260568 | AN56: 0.4296845102 | AO56: 0.00042 | AP56: 0.189 | AQ56: 0.378 | AR56: 0.2646 | AS56: 0.18942 | AT56: 5.301469619 | AU56: 46.53 | AV56: 0.8977171657 | AW56: 85.28089909 | AX56: 63.12167706 | AZ56: 89.77171657 | BA56: 1.036299133 | BB56: 2.970657203 | BC56: 1.705617982 | BD56: 1.262433541 | BE56: 0.4296845102
A57: Bottom Schottky | B57: Input Value | C57: Units | D57: Std Units | G57: 48 | H57: 12 | I57: 2 | J57: 28.8 | K57: 14.4 | L57: 4.4 | M57: 0.2855603878 | N57: 8.348153966 | O57: 18.57407698 | P57: 10.22592302 | Q57: 0 | R57: 14.60026163 | S57: 0.8526705582 | T57: 0.15 | U57: 1.07607345 | V57: 2.40990447 | W57: 0.01161527911 | X57: 0.01161527911 | Y57: 6.594659591 | Z57: 0.08697907025 | AA57: 0.08697907025 | AB57: 7.802065997 | AC57: 0.2008783716 | AD57: 1.154736 | AE57: 0.1512 | AF57: 0 | AG57: 1.569885584 | AH57: 12.34080248 | AI57: 0.5025748389 | AJ57: 0.592704 | AK57: 1.217673224 | AL57: 0.592704 | AM57: 0.266112 | AN57: 0.4476520431 | AO57: 0.00042 | AP57: 0.189 | AQ57: 0.378 | AR57: 0.2646 | AS57: 0.18942 | AT57: 5.45811465 | AU57: 47.52 | AV57: 0.8969741621 | AW57: 87.27597518 | AX57: 65.27450919 | AZ57: 89.69741621 | BA57: 1.07607345 | BB57: 3.053670807 | BC57: 1.745519504 | BD57: 1.305490184 | BE57: 0.4476520431
A58: VfdSky | B58: =VfdSky_Q2 -> 0 | C58: V | D58: Diode Forward Voltage | G58: 49 | H58: 12 | I58: 2 | J58: 29.4 | K58: 14.7 | L58: 4.491666667 | M58: 0.2857798314 | N58: 8.352440474 | O58: 18.87622024 | P58: 10.52377976 | Q58: 0 | R58: 14.89642928 | S58: 0.8876144206 | T58: 0.15 | U58: 1.11692642 | V58: 2.411141878 | W58: 0.01162721031 | X58: 0.01162721031 | Y58: 6.729983846 | Z58: 0.09058536515 | AA58: 0.09058536515 | AB58: 7.963389659 | AC58: 0.2092713971 | AD58: 1.178793 | AE58: 0.1512 | AF58: 0 | AG58: 1.606503441 | AH58: 12.58920293 | AI58: 0.5230105 | AJ58: 0.605052 | AK58: 1.259844925 | AL58: 0.605052 | AM58: 0.271656 | AN58: 0.4659975708 | AO58: 0.00042 | AP58: 0.189 | AQ58: 0.378 | AR58: 0.2646 | AS58: 0.18942 | AT58: 5.617612932 | AU58: 48.51 | AV58: 0.8962153949 | AW58: 89.28982005 | AX58: 67.47457024 | AZ58: 89.62153949 | BA58: 1.11692642 | BB58: 3.138004366 | BC58: 1.785796401 | BD58: 1.349491405 | BE58: 0.4659975708
A59: QrrSky | B59: =QrrSky_Q2*1000000000 -> 0 | C59: nC | D59: Diode Reverse Recovery Charge | G59: 50 | H59: 12 | I59: 2 | J59: 30 | K59: 15 | L59: 4.583333333 | M59: 0.285999252 | N59: 8.356723041 | O59: 19.17836152 | P59: 10.82163848 | Q59: 0 | R59: 15.19274723 | S59: 0.9232782733 | T59: 0.15 | U59: 1.158875434 | V59: 2.412378149 | W59: 0.01163913666 | X59: 0.01163913666 | Y59: 6.865435546 | Z59: 0.09426841046 | AA59: 0.09426841046 | AB59: 8.124913777 | AC59: 0.2178469388 | AD59: 1.20285 | AE59: 0.1512 | AF59: 0 | AG59: 1.643503375 | AH59: 12.83765339 | AI59: 0.5438576367 | AJ59: 0.6174 | AK59: 1.302985342 | AL59: 0.6174 | AM59: 0.2772 | AN59: 0.4847210935 | AO59: 0.00042 | AP59: 0.189 | AQ59: 0.378 | AR59: 0.2646 | AS59: 0.18942 | AT59: 5.780012792 | AU59: 49.5 | AV59: 0.8954411821 | AW59: 91.32276873 | AX59: 69.72306712 | AZ59: 89.54411821 | BA59: 1.158875434 | BB59: 3.223688717 | BC59: 1.826455375 | BD59: 1.394461342 | BE59: 0.4847210935
A60: Ireverse | B60: =Ireverse -> 0 | C60: mA | D60: Reverse Leakage Current | G60: 51 | H60: 12 | I60: 2 | J60: 30.6 | K60: 15.3 | L60: 4.675 | M60: 0.2862186496 | N60: 8.361001668 | O60: 19.48050083 | P60: 11.11949917 | Q60: 0 | R60: 15.48920686 | S60: 0.9596621163 | T60: 0.15 | U60: 1.201938504 | V60: 2.413613282 | W60: 0.01165105815 | X60: 0.01165105815 | Y60: 7.001010713 | Z60: 0.09802830202 | AA60: 0.09802830202 | AB60: 8.28663374 | AC60: 0.2266053858 | AD60: 1.226907 | AE60: 0.1512 | AF60: 0 | AG60: 1.680892232 | AH60: 13.0861465 | AI60: 0.5651158601 | AJ60: 0.629748 | AK60: 1.347119589 | AL60: 0.629748 | AM60: 0.282744 | AN60: 0.5038226111 | AO60: 0.00042 | AP60: 0.189 | AQ60: 0.378 | AR60: 0.2646 | AS60: 0.18942 | AT60: 5.945364297 | AU60: 50.49 | AV60: 0.8946517955 | AW60: 93.37516362 | AX60: 72.02125546 | AZ60: 89.46517955 | BA60: 1.201938504 | BB60: 3.310755822 | BC60: 1.867503272 | BD60: 1.440425109 | BE60: 0.5038226111
A61: Controller | B61: Input Value | C61: Units | D61: Std Units | G61: 52 | H61: 12 | I61: 2 | J61: 31.2 | K61: 15.6 | L61: 4.766666667 | M61: 0.2864380242 | N61: 8.365276355 | O61: 19.78263818 | P61: 11.41736182 | Q61: 0 | R61: 15.78580018 | S61: 0.9967659495 | T61: 0.15 | U61: 1.246134288 | V61: 2.414847278 | W61: 0.01166297475 | X61: 0.01166297475 | Y61: 7.136705661 | Z61: 0.1018651354 | AA61: 0.1018651354 | AB61: 8.448545277 | AC61: 0.2355471271 | AD61: 1.250964 | AE61: 0.1512 | AF61: 0 | AG61: 1.718677014 | AH61: 13.33467548 | AI61: 0.5867847813 | AJ61: 0.642096 | AK61: 1.392273796 | AL61: 0.642096 | AM61: 0.288288 | AN61: 0.5233021235 | AO61: 0.00042 | AP61: 0.189 | AQ61: 0.378 | AR61: 0.2646 | AS61: 0.18942 | AT61: 6.113719331 | AU61: 51.48 | AV61: 0.8938474646 | AW61: 95.44735468 | AX61: 74.37044181 | AZ61: 89.38474646 | BA61: 1.246134288 | BB61: 3.39923881 | BC61: 1.908947094 | BD61: 1.487408836 | BE61: 0.5233021235
A62: θJA | B62: 30 | C62: °C/W | D62: Junction to Ambient Resistance | G62: 53 | H62: 12 | I62: 2 | J62: 31.8 | K62: 15.9 | L62: 4.858333333 | M62: 0.2866573759 | N62: 8.369547103 | O62: 20.08477355 | P62: 11.71522645 | Q62: 0 | R62: 16.0825198 | S62: 1.034589773 | T62: 0.15 | U62: 1.291482107 | V62: 2.416080136 | W62: 0.01167488645 | X62: 0.01167488645 | Y62: 7.272516962 | Z62: 0.1057790059 | AA62: 0.1057790059 | AB62: 8.610644421 | AC62: 0.2446725512 | AD62: 1.275021 | AE62: 0.1512 | AF62: 0 | AG62: 1.756864873 | AH62: 13.583234 | AI62: 0.6088640114 | AJ62: 0.654444 | AK62: 1.438475163 | AL62: 0.654444 | AM62: 0.293832 | AN62: 0.5431596308 | AO62: 0.00042 | AP62: 0.189 | AQ62: 0.378 | AR62: 0.2646 | AS62: 0.18942 | AT62: 6.285131667 | AU62: 52.47 | AV62: 0.8930283792 | AW62: 97.53969967 | AX62: 76.77198615 | AZ62: 89.30283792 | BA62: 1.291482107 | BB62: 3.489172036 | BC62: 1.950793993 | BD62: 1.535439723 | BE62: 0.5431596308
A63: Theta Ja | B63: 2 | C63: °C/W | D63: Junction to Ambient Resistance | G63: 54 | H63: 12 | I63: 2 | J63: 32.4 | K63: 16.2 | L63: 4.95 | M63: 0.2868767045 | N63: 8.373813913 | O63: 20.38690696 | P63: 12.01309304 | Q63: 0 | R63: 16.37935886 | S63: 1.073133586 | T63: 0.15 | U63: 1.338001975 | V63: 2.417311858 | W63: 0.01168679324 | X63: 0.01168679324 | Y63: 7.408441427 | Z63: 0.1097700087 | AA63: 0.1097700087 | AB63: 8.772927488 | AC63: 0.2539820471 | AD63: 1.299078 | AE63: 0.1512 | AF63: 0 | AG63: 1.795463127 | AH63: 13.83181622 | AI63: 0.6313531617 | AJ63: 0.666792 | AK63: 1.485752007 | AL63: 0.666792 | AM63: 0.299376 | AN63: 0.5633951329 | AO63: 0.00042 | AP63: 0.189 | AQ63: 0.378 | AR63: 0.2646 | AS63: 0.18942 | AT63: 6.459657044 | AU63: 53.46 | AV63: 0.8921946926 | AW63: 99.65256436 | AX63: 79.22730436 | AZ63: 89.21946926 | BA63: 1.338001975 | BB63: 3.580591134 | BC63: 1.993051287 | BD63: 1.584546087 | BE63: 0.5633951329
G64: 55 | H64: 12 | I64: 2 | J64: 33 | K64: 16.5 | L64: 5.041666667 | M64: 0.2870960103 | N64: 8.378076785 | O64: 20.68903839 | P64: 12.31096161 | Q64: 0 | R64: 16.67631097 | S64: 1.11239739 | T64: 0.15 | U64: 1.385714616 | V64: 2.418542444 | W64: 0.0116986951 | X64: 0.0116986951 | Y64: 7.544476085 | Z64: 0.1138382388 | AA64: 0.1138382388 | AB64: 8.935391046 | AC64: 0.2634760034 | AD64: 1.323135 | AE64: 0.1512 | AF64: 0 | AG64: 1.834479256 | AH64: 14.0804167 | AI64: 0.6542518436 | AJ64: 0.67914 | AK64: 1.534133819 | AL64: 0.67914 | AM64: 0.30492 | AN64: 0.5840086299 | AO64: 0.00042 | AP64: 0.189 | AQ64: 0.378 | AR64: 0.2646 | AS64: 0.18942 | AT64: 6.637353255 | AU64: 54.45 | AV64: 0.8913465243 | AW64: 101.7863228 | AX64: 81.73787097 | AZ64: 89.13465243 | BA64: 1.385714616 | BB64: 3.673533075 | BC64: 2.035726456 | BD64: 1.634757419 | BE64: 0.5840086299
G65: 56 | H65: 12 | I65: 2 | J65: 33.6 | K65: 16.8 | L65: 5.133333333 | M65: 0.287315293 | N65: 8.382335721 | O65: 20.99116786 | P65: 12.60883214 | Q65: 0 | R65: 16.9733702 | S65: 1.152381184 | T65: 0.15 | U65: 1.434641493 | V65: 2.419771892 | W65: 0.01171059202 | X65: 0.01171059202 | Y65: 7.680618162 | Z65: 0.1179837907 | AA65: 0.1179837907 | AB65: 9.098031897 | AC65: 0.2731548085 | AD65: 1.347192 | AE65: 0.1512 | AF65: 0 | AG65: 1.87392091 | AH65: 14.32903038 | AI65: 0.6775596683 | AJ65: 0.691488 | AK65: 1.583651321 | AL65: 0.691488 | AM65: 0.310464 | AN65: 0.6050001216 | AO65: 0.00042 | AP65: 0.189 | AQ65: 0.378 | AR65: 0.2646 | AS65: 0.18942 | AT65: 6.818280228 | AU65: 55.44 | AV65: 0.8904839613 | AW65: 103.9413575 | AX65: 84.30522206 | AZ65: 89.04839613 | BA65: 1.434641493 | BB65: 3.768036231 | BC65: 2.07882715 | BD65: 1.686104441 | BE65: 0.6050001216
A66: Outputs | G66: 57 | H66: 12 | I66: 2 | J66: 34.2 | K66: 17.1 | L66: 5.225 | M66: 0.2875345529 | N66: 8.38659072 | O66: 21.29329536 | P66: 12.90670464 | Q66: 0 | R66: 17.27053103 | S66: 1.193084968 | T66: 0.15 | U66: 1.484804834 | V66: 2.421000205 | W66: 0.01172248398 | X66: 0.01172248398 | Y66: 7.816865067 | Z66: 0.1222067589 | AA66: 0.1222067589 | AB66: 9.260847056 | AC66: 0.283018851 | AD66: 1.371249 | AE66: 0.1512 | AF66: 0 | AG66: 1.913795915 | AH66: 14.57765255 | AI66: 0.7012762475 | AJ66: 0.703836 | AK66: 1.634336525 | AL66: 0.703836 | AM66: 0.316008 | AN66: 0.6263696082 | AO66: 0.00042 | AP66: 0.189 | AQ66: 0.378 | AR66: 0.2646 | AS66: 0.18942 | AT66: 7.002500125 | AU66: 56.43 | AV66: 0.8896070609 | AW66: 106.1180598 | AX66: 86.93095823 | AZ66: 88.96070609 | BA66: 1.484804834 | BB66: 3.86414044 | BC66: 2.122361195 | BD66: 1.738619165 | BE66: 0.6263696082
